Workbook

Sheet Form
B1: =IF(AND(TIGMODEL>"",TIG=""),"TIG with 4mm glass ONLY (Special order, contact CS)",IF(AND(TIGMODEL>"",TIGBAL=1),"TIG is NOT Available",IF(TIG_NOTE>"",TIG_NOTE,""))) -> 
B2: =IF(AND(WSIZE>0,HSIZE>0),"Only Available At"&" "&WSIZE&" x "&HSIZE&IF(HCONTROL=1," or "&HSIZE2,""),"") ->  | H2: Select a Model | J2: =IF(SHATERROR=1,"Adjust CMR to Increase Egress Height",IF(SHAT_MIN_R=1,SHAT_MESSAGE,"")) -> 
B3: =IF(Model_Select="Select Model","","(Model"&" "&ModelNo&")") ->  | G3: Select Model | J3: ="Min. W:"&" "&MINW -> Min. W: 0 | N3: ="Max W:"&" "&MAXW -> Max W: 0
B4: =Description -> 0 | J4: ="Min. H:"&" "&MINH -> Min. H: 0 | N4: ="Max H:"&" "&MAXH -> Max H: 0 | P4: ="Max UI:"&" "&MAXUI -> Max UI: 0
B5: =IF(AND(W>0,H>0),(IF(ISERROR(VLOOKUP(1,Data!$A:$D,3,FALSE)),"",VLOOKUP(1,Data!$A:$D,3,FALSE))),"") ->  | H5: =IF(AND(W>0,H>0),(IF(ISERROR(VLOOKUP(1,Data!$A:$D,4,FALSE)),"",VLOOKUP(1,Data!$A:$D,4,FALSE))),"") ->  | N5: Exact Size | R5: =IF(AND(W>0,H>0),"DP:"&" "&DP,"") -> 
B6: =IF(AND(W>0,H>0),(IF(ISERROR(VLOOKUP(2,Data!$A:$D,3,FALSE)),"",VLOOKUP(2,Data!$A:$D,3,FALSE))),"") ->  | H6: =IF(AND(W>0,H>0),(IF(ISERROR(VLOOKUP(2,Data!$A:$D,4,FALSE)),"",VLOOKUP(2,Data!$A:$D,4,FALSE))),"") ->  | J6: Width: | M6: 78.5 | N6: =IF(AND(RO=2,W>0),W-WCUTBACK,W) -> 0 | O6: =IF(AND(W>0,WSIZE>0,W<>WSIZE),"<< Width Not Available","") -> 
B7: =IF(AND(W>0,H>0),(IF(ISERROR(VLOOKUP(3,Data!$A:$D,3,FALSE)),"",VLOOKUP(3,Data!$A:$D,3,FALSE))),"") ->  | H7: =IF(AND(W>0,H>0),(IF(ISERROR(VLOOKUP(3,Data!$A:$D,4,FALSE)),"",VLOOKUP(3,Data!$A:$D,4,FALSE))),"") ->  | J7: Height: | N7: =IF(AND(RO=2,H>0),H-HCUTBACK,H) -> 0 | O7: =IF(AND(H>0,HSIZE>0,HSIZE2>0,H<>HSIZE,H<>HSIZE2),"<< Height Not Available","") -> 
B8: =IF(AND(W>0,H>0),(IF(ISERROR(VLOOKUP(4,Data!$A:$D,3,FALSE)),"",VLOOKUP(4,Data!$A:$D,3,FALSE))),"") ->  | H8: =IF(AND(W>0,H>0),(IF(ISERROR(VLOOKUP(4,Data!$A:$D,4,FALSE)),"",VLOOKUP(4,Data!$A:$D,4,FALSE))),"") ->  | J8: =IF(OR(ModelNo="S140",ModelNo="S144",ModelNo="S146",ModelNo="S140 (HP)",ModelNo="S144 (HP)",ModelNo="S146 (HP)"),"Leg:","") ->  | N8: =LEG_MESSAGE -> 
B9: =IF(AND(W>0,H>0),(IF(ISERROR(VLOOKUP(5,Data!$A:$D,3,FALSE)),"",VLOOKUP(5,Data!$A:$D,3,FALSE))),"") ->  | H9: =IF(AND(W>0,H>0),(IF(ISERROR(VLOOKUP(5,Data!$A:$D,4,FALSE)),"",VLOOKUP(5,Data!$A:$D,4,FALSE))),"") ->  | J9: =IF(BTYPE="Custom","CMR:","") ->  | N9: =IF(AND(W>0,H>0,BTYPE="Custom",CMR=0),"<< Enter CMR Location","") -> 
B10: =IF(AND(W>0,H>0),(IF(ISERROR(VLOOKUP(6,Data!$A:$D,3,FALSE)),"",VLOOKUP(6,Data!$A:$D,3,FALSE))),"") ->  | H10: =IF(AND(W>0,H>0),(IF(ISERROR(VLOOKUP(6,Data!$A:$D,4,FALSE)),"",VLOOKUP(6,Data!$A:$D,4,FALSE))),"") ->  | J10: =IF(SELECTEXT="Select Extrusion","Ext.",IF(SELECTEXT="Select Reinforcement","Reinforce",IF(SELECTEXT="Standard","HP >>",""))) ->  | N10: =EXT_MESSAGE -> 
B11: =IF(AND(W>0,H>0),(IF(ISERROR(VLOOKUP(7,Data!$A:$D,3,FALSE)),"",VLOOKUP(7,Data!$A:$D,3,FALSE))),"") ->  | H11: =IF(AND(W>0,H>0),(IF(ISERROR(VLOOKUP(7,Data!$A:$D,4,FALSE)),"",VLOOKUP(7,Data!$A:$D,4,FALSE))),"") ->  | J11: Opening: | N11: =RO_OPTION -> 0
B12: =IF(AND(W>0,H>0),(IF(ISERROR(VLOOKUP(8,Data!$A:$D,3,FALSE)),"",VLOOKUP(8,Data!$A:$D,3,FALSE))),"") ->  | H12: =IF(AND(W>0,H>0),(IF(ISERROR(VLOOKUP(8,Data!$A:$D,4,FALSE)),"",VLOOKUP(8,Data!$A:$D,4,FALSE))),"") ->  | J12: Type:
B13: =IF(AND(W>0,H>0),(IF(ISERROR(VLOOKUP(9,Data!$A:$D,3,FALSE)),"",VLOOKUP(9,Data!$A:$D,3,FALSE))),"") ->  | H13: =IF(AND(W>0,H>0),(IF(ISERROR(VLOOKUP(9,Data!$A:$D,4,FALSE)),"",VLOOKUP(9,Data!$A:$D,4,FALSE))),"") ->  | J13: Screen:
B14: =IF(AND(W>0,H>0),(IF(ISERROR(VLOOKUP(10,Data!$A:$D,3,FALSE)),"",VLOOKUP(10,Data!$A:$D,3,FALSE))),"") ->  | H14: =IF(AND(W>0,H>0),(IF(ISERROR(VLOOKUP(10,Data!$A:$D,4,FALSE)),"",VLOOKUP(10,Data!$A:$D,4,FALSE))),"") ->  | J14: Glass: | O14: =IF(AND(EXTTYPE="HP Package",GT="S"),"<< Must Select DS","") -> 
B16: =IF(AND(W>0,H>0),(IF(ISERROR(VLOOKUP(11,Data!$A:$D,3,FALSE)),"",VLOOKUP(11,Data!$A:$D,3,FALSE))),"") ->  | H16: =IF(AND(W>0,H>0),(IF(ISERROR(VLOOKUP(11,Data!$A:$D,4,FALSE)),"",VLOOKUP(11,Data!$A:$D,4,FALSE))),"") -> 
B17: =IF(AND(W>0,H>0),(IF(ISERROR(VLOOKUP(12,Data!$A:$D,3,FALSE)),"",VLOOKUP(12,Data!$A:$D,3,FALSE))),"") ->  | H17: =IF(AND(W>0,H>0),(IF(ISERROR(VLOOKUP(12,Data!$A:$D,4,FALSE)),"",VLOOKUP(12,Data!$A:$D,4,FALSE))),"") -> 
B18: =IF(AND(W>0,H>0),(IF(ISERROR(VLOOKUP(13,Data!$A:$D,3,FALSE)),"",VLOOKUP(13,Data!$A:$D,3,FALSE))),"") ->  | H18: =IF(AND(W>0,H>0),(IF(ISERROR(VLOOKUP(13,Data!$A:$D,4,FALSE)),"",VLOOKUP(13,Data!$A:$D,4,FALSE))),"") ->  | N18: A Designated AC Sash is Used to Replace BOTH Top and Bottom Sashes When AC is in the Window
B19: =IF(AND(W>0,H>0),(IF(ISERROR(VLOOKUP(14,Data!$A:$D,3,FALSE)),"",VLOOKUP(14,Data!$A:$D,3,FALSE))),"") ->  | H19: =IF(AND(W>0,H>0),(IF(ISERROR(VLOOKUP(14,Data!$A:$D,4,FALSE)),"",VLOOKUP(14,Data!$A:$D,4,FALSE))),"") -> 
B20: =IF(AND(W>0,H>0),(IF(ISERROR(VLOOKUP(15,Data!$A:$D,3,FALSE)),"",VLOOKUP(15,Data!$A:$D,3,FALSE))),"") ->  | H20: =IF(AND(W>0,H>0),(IF(ISERROR(VLOOKUP(15,Data!$A:$D,4,FALSE)),"",VLOOKUP(15,Data!$A:$D,4,FALSE))),"") ->  | J20: AC Width: | N20: =IF(AND(W>0,H>0,ACWIDTH>0,ACHEIGHT>0,ACCMR>0,ACLINK=TRUE),ACCMR,IF(AND(W>0,H>0,ACWIDTH>0,ACSASHW>0,ACLINK=TRUE),ACSASHW,"")) ->  | O20: =IF(AND(W>0,H>0,ACWIDTH>0,ACHEIGHT>0,ACCMR>0,ACLINK=TRUE),"<< CMR",IF(AND(W>0,H>0,ACWIDTH>0,ACSASHW>0,ACLINK=TRUE),"<< AC Sash Width","")) -> 
B21: =IF(AND(W>0,H>0),(IF(ISERROR(VLOOKUP(16,Data!$A:$D,3,FALSE)),"",VLOOKUP(16,Data!$A:$D,3,FALSE))),"") ->  | H21: =IF(AND(W>0,H>0),(IF(ISERROR(VLOOKUP(16,Data!$A:$D,4,FALSE)),"",VLOOKUP(16,Data!$A:$D,4,FALSE))),"") ->  | J21: AC Height: | N21: =IF(AND(W>0,H>0,ACHEIGHT>0,ACSASHH>0,ACLINK=TRUE),ACSASHH,"") ->  | O21: =IF(AND(ACCMR>0,ACLINK=TRUE),"",IF(AND(W>0,H>0,ACHEIGHT>0,ACSASHH>0,ACLINK=TRUE),"<< AC Sash Height","")) -> 
B22: =IF(AND(W>0,H>0),(IF(ISERROR(VLOOKUP(17,Data!$A:$D,3,FALSE)),"",VLOOKUP(17,Data!$A:$D,3,FALSE))),"") ->  | H22: =IF(AND(W>0,H>0),(IF(ISERROR(VLOOKUP(17,Data!$A:$D,4,FALSE)),"",VLOOKUP(17,Data!$A:$D,4,FALSE))),"") ->  | J22: =IF(ISERROR(TSW),"",IF(LIMIT1>"",LIMIT1&IF(LIMIT2>""," & "&LIMIT2),"")) -> 
B23: =IF(AND(W>0,H>0),(IF(ISERROR(VLOOKUP(18,Data!$A:$D,3,FALSE)),"",VLOOKUP(18,Data!$A:$D,3,FALSE))),"") ->  | H23: =IF(AND(W>0,H>0),(IF(ISERROR(VLOOKUP(18,Data!$A:$D,4,FALSE)),"",VLOOKUP(18,Data!$A:$D,4,FALSE))),"") -> 
B24: =IF(AND(W>0,H>0),(IF(ISERROR(VLOOKUP(19,Data!$A:$D,3,FALSE)),"",VLOOKUP(19,Data!$A:$D,3,FALSE))),"") ->  | H24: =IF(AND(W>0,H>0),(IF(ISERROR(VLOOKUP(19,Data!$A:$D,4,FALSE)),"",VLOOKUP(19,Data!$A:$D,4,FALSE))),"") -> 

Sheet Balance (hidden)
AP1: BLOCK & TACKLE BALANCE CHART | BD1: Spiral Balance | DE1: V-Series BLOCK & TACKLE BALANCE CHART
B2: CFB | F2: Curve CFB | M2: Glass Strength | O2: Weight Calculation | Y2: Egress Calculation | AC2: * = Deduct 2.25 from a 36 x 60 (RO) Frame to adjust for Egress | AN2: TOP SASH | AS2: BOTTOM SASH | BC2: Top Sash | BD2: =IF(ISERROR(VLOOKUP((TRUNC(TOP_WGT)),$BD$7:$DB$41,TOPTUBELENGTH,FALSE)),"N/A",VLOOKUP((TRUNC(TOP_WGT)),$BD$7:$DB$41,TOPTUBELENGTH,FALSE)) -> N/A | BE2: =TOPTUBELENGTH ->  | DE2: TOP SASH | DJ2: BOTTOM SASH
B3: 4 | C3: 3 | D3: BN | F3: 4 | G3: 3 | H3: RD | J3: 1 | K3: =IF(M3>"",VLOOKUP(M3,GLASSLOOKUP,2,FALSE),"") ->  | L3: =IF(M3>"",VLOOKUP(K3,WEIGHTCHART,2,FALSE),"") ->  | M3: =GLASS1 ->  | O3: Model | P3: CDIM | Q3: Bott. Sash Height | R3: Bottom Sash Weight | S3: Top Sash Weight | T3: Bal. Loc. | U3: Head + Sill + 4.5 | V3: Sill | W3: EW | Y3: # of Coils | Z3: =IF(OR(ModelNo="3100",ModelNo="i201"),VLOOKUP(BTM_WGT,CURVE_W,3,FALSE),VLOOKUP(BTM_WGT,CFB_W,3,FALSE)) ->  | AC3: 0100, 0700, 01HP, 07HP | AD3: Length | AE3: Weight/ft | AF3: Weight | AH3: 0601 | AI3: Length | AJ3: Weight/ft | AK3: Weight | AN3: Sash Weight | AO3: Tube Length | AP3: Balance | AQ3: Weight | AS3: Sash Weight | AT3: Tube Length | AU3: Balance | AV3: Weight | AZ3: Tube Length | BC3: Bott. Sash | BD3: =IF(ISERROR(VLOOKUP((TRUNC(BTM_WGT)),$BD$7:$DB$41,BOTTUBELENGTH,FALSE)),"N/A",VLOOKUP((TRUNC(BTM_WGT)),$BD$7:$DB$41,BOTTUBELENGTH,FALSE)) -> N/A | BE3: =BOTTUBELENGTH ->  | BJ3: TUBE LENGTH | BZ3: TUBE LENGTH | CR3: TUBE LENGTH | DE3: Sash Weight | DF3: Tube Length | DG3: Balance | DH3: Weight | DJ3: Sash Weight | DK3: Tube Length | DL3: Balance | DM3: Weight | DR3: Caldwell Balance Chart
B4: =B3+1 -> 5 | C4: 3 | D4: BN | F4: 5 | G4: 3 | H4: RD | J4: 2 | M4: =GLASS2 ->  | O4: =ModelNo -> Select Model | P4: =VLOOKUP(ModelNo,$O$5:$W$49,2,FALSE) ->  | Q4: =VLOOKUP(ModelNo,$O$5:$W$49,3,FALSE) ->  | R4: =TRUNC(VLOOKUP(ModelNo,$O$5:$W$49,4,FALSE)+GRID) ->  | S4: =TRUNC(VLOOKUP(ModelNo,$O$5:$W$49,5,FALSE)+GRID) ->  | T4: =VLOOKUP(ModelNo,$O$5:$W$49,6,FALSE) ->  | U4: =VLOOKUP(ModelNo,$O$5:$W$49,7,FALSE) ->  | V4: =VLOOKUP(ModelNo,$O$5:$W$49,8,FALSE) ->  | W4: =VLOOKUP(ModelNo,$O$5:$W$49,9,FALSE) ->  | Y4: Displacement | Z4: =IF($Q$4>37.5,$Q$4-36,0) ->  | AC4: Top Top Rail | AD4: 0 | AE4: 0 | AF4: =AD4*AE4 -> 0 | AH4: Top Top Rail | AI4: =(Frame_Width-4.25)/12 -> -0.3541666667 | AJ4: 0.369 | AK4: =AI4*AJ4 -> -0.1306875 | AN4: =TRUNC(TOP_WGT) ->  | AO4: =$AN$9 -> 0 | AP4: Number | AQ4: Range | AS4: =TRUNC(BTM_WGT) ->  | AT4: =$AS$9 -> 0 | AU4: Number | AV4: Range | AZ4: Model | BA4: Top | BB4: Bott | BE4: 2 | BF4: 3 | BG4: 4 | BH4: 5 | BI4: 6 | BJ4: 7 | BK4: 8 | BL4: 9 | BM4: 10 | BN4: 11 | BO4: 12 | BP4: 13 | BQ4: 14 | BR4: 15 | BS4: 16 | BT4: 17 | BU4: 18 | BV4: 19 | BW4: 20 | BX4: 21 | BY4: 22 | BZ4: 23 | CA4: 24 | CB4: 25 | CC4: 26 | CD4: 27 | CE4: 28 | CF4: 29 | CG4: 30 | CH4: 31 | CI4: 32 | CJ4: 33 | CK4: 34 | CL4: 35 | CM4: 36 | CN4: 37 | CO4: 38 | CP4: 39 | CQ4: 40 | CR4: 41 | CS4: 42 | CT4: 43 | CU4: 44 | CV4: 45 | CW4: 46 | CX4: 47 | CY4: 48 | CZ4: 49 | DA4: 50 | DB4: 51 | DE4: =TRUNC(TOP_WGT) ->  | DF4: =TOPTUBELENGTH ->  | DG4: Number | DH4: Range | DJ4: =TRUNC(BTM_WGT) ->  | DK4: =BOTTUBELENGTH ->  | DL4: Number | DM4: Range | DR4: =IF(OR(ModelNo="1700",ModelNo="1720",ModelNo="1730"),1,IF(OR(ModelNo="1900",ModelNo="1920",ModelNo="1930"),2,3)) -> 3 | DS4: =IF(OR(ModelNo="1700",ModelNo="1720",ModelNo="1730"),4,IF(OR(ModelNo="1900",ModelNo="1920",ModelNo="1930"),5,6)) -> 6 | DT4: Bott. | DU4: Top | DW4: 1 | DX4: 4 | DY4: 2 | DZ4: 5 | EA4: 3 | EB4: 6
B5: 6 | C5: 3 | D5: BN | F5: 6 | G5: 3 | H5: RD | J5: 3 | M5: =GLASS3 ->  | O5: 0100 | P5: =CMR!$E$11 -> 0 | Q5: =CMR!$E$11+0.125 -> 0.125 | R5: =$AF$23 -> 0 | S5: =$AF$22 -> 0 | T5: 1.03125 | U5: 3.074 | V5: 1.537 | W5: 3.0625 | Y5: Coil Loc. From CMR | Z5: =(($Z$3-1)*1.58)+$Z$4+$T$4+1.5 ->  | AC5: Top Bottom Rail | AD5: 0 | AE5: 0 | AF5: =AD5*AE5 -> 0 | AH5: Top Bottom Rail | AI5: =(Frame_Width-4.25)/12 -> -0.3541666667 | AJ5: 0.369 | AK5: -0.1306875 | AN5: Balance Size | AO5: =IF(AND(AP5>0,AQ5>0),AP5,0) ->  | AP5: =IF($AO$4<=6,6,0) -> 6 | AQ5: =IF(AND(AP5=6,$AN$4>=2,$AN$4<=5),AP5&"A",0) ->  | AS5: Balance Size | AT5: =IF(AND(AU5>0,AV5>0),AU5,0) ->  | AU5: =IF($AT$4<=6,6,0) -> 6 | AV5: =IF(AND(AU5=6,$AS$4>=2,$AS$4<=5),AU5&"A",0) ->  | AZ5: 0100 | BB5: =(INT(INT(Frame_Height/2-0.25)/2)+0.5)*2 -> -1 | BD5: Sash Weight | DE5: Balance Size | DF5: =IF(AND(DG5>0,DH5>0),DG5,0) ->  | DG5: =IF($DF$4<=8,8,0) ->  | DH5: =IF(AND(DG5=8,$DE$4>=2,$DE$4<=6),DG5&"A",0) ->  | DJ5: Balance Size | DK5: =IF(AND(DL5>0,DM5>0),DL5,0) ->  | DL5: =IF($DK$4<=8,8,0) ->  | DM5: =IF(AND(DL5=8,$DJ$4>=2,$DJ$4<=6),DL5&"A",0) ->  | DR5: =HLOOKUP($DR$4,CALDWELL_LOOKUP,2,FALSE) -> 9 | DS5: =HLOOKUP($DS$4,CALDWELL_LOOKUP,2,FALSE) -> 9.9995 | DT5: 8 | DU5: 7 | DW5: 9.7665 | DX5: 10.766 | DY5: 9.2185 | DZ5: 10.218 | EA5: 9 | EB5: 9.9995
B6: 7 | C6: 4 | D6: RD | F6: 7 | G6: 4 | H6: GR | J6: 4 | M6: =GLASS4 ->  | O6: 01HP | P6: =CMR!$L$11 -> 0 | Q6: =CMR!$L$11+0.125 -> 0.125 | R6: =$AF$23 -> 0 | S6: =$AF$22 -> 0 | T6: 1.03125 | U6: 3.168 | V6: 1.631 | W6: 3.0625 | Z6: =IF(OR(ModelNo="S140",ModelNo="S144",ModelNo="S146",ModelNo="S140 (HP)",ModelNo="S144 (HP)",ModelNo="S146 (HP)"),TRUNC((LEG-$Q$4-$U$4)*16+0.5)/16,TRUNC((Frame_Height-$Q$4-$U$4)*16+0.5)/16) ->  | AA6: =TRUNC((CMR!$L$74-1.65625)*32+0.5)/32 -> -1.625 | AB6: <8001TopSashH | AC6: Top Stile | AD6: 0 | AE6: 0 | AF6: =(AD6*AE6)/12 -> 0 | AH6: Top Stile | AI6: =(2*(CMR!$L$58-1.9375))/12 -> -0.3229166667 | AJ6: 0.369 | AK6: -0.11915625 | AN6: =VLOOKUP((MAX(AO5:AO229)),AO5:AQ229,3,FALSE) ->  | AP6: 6 | AQ6: =IF(AND(AP6=6,$AN$4>=6,$AN$4<=9),AP6&"B",0) ->  | AS6: =VLOOKUP((MAX(AT5:AT229)),AT5:AV229,3,FALSE) ->  | AU6: 6 | AV6: =IF(AND(AU6=6,$AS$4>=6,$AS$4<=9),AU6&"B",0) ->  | AZ6: 02A0 | DE6: =VLOOKUP((MAX(DF5:DF229)),DF5:DH229,3,FALSE) ->  | DG6: =IF($DF$4<=8,8,0) ->  | DH6: =IF(AND(DG6=8,$DE$4>=7,$DE$4<=10),DG6&"B",0) ->  | DJ6: =VLOOKUP((MAX(DK5:DK229)),DK5:DM229,3,FALSE) ->  | DL6: =IF($DK$4<=8,8,0) ->  | DM6: =IF(AND(DL6=8,$DJ$4>=7,$DJ$4<=10),DL6&"B",0) ->  | DR6: =HLOOKUP($DR$4,CALDWELL_LOOKUP,3,FALSE) -> 10 | DS6: =HLOOKUP($DS$4,CALDWELL_LOOKUP,3,FALSE) -> 10.9995 | DT6: 9 | DU6: 8 | DW6: 10.7665 | DX6: 11.766 | DY6: 10.2185 | DZ6: 11.218 | EA6: 10 | EB6: 10.9995
B7: 8 | C7: 4 | D7: RD | F7: 8 | G7: 4 | H7: GR | J7: 5 | M7: =GLASS5 ->  | O7: 0201 | P7: =CMR!$E$27 -> 0 | Q7: =CMR!$E$27-0.5625 -> -0.5625 | R7: =$AF$45 -> 0 | S7: =$AF$44 -> 0 | T7: 1.3125 | U7: 7.3125 | V7: 1.75 | W7: 4.406 | Y7: Egress Height | Z7: =IF($AA$7>0,$AA$7,IF(AND($Z$6<(TRUNC((P4-Z5-V4)*16+0.5)/16),$AA$7=0),$Z$6,TRUNC(($P$4-$Z$5-$V$4)*16+0.5)/16)) ->  | AA7: =IF(AND(CMR!L74<=CMR!L75,OR(ModelNo="8001",ModelNo="R601")),Frame_Height-Q4-7.3125,IF(AND(CMR!L74>CMR!L75,OR(ModelNo="8001",ModelNo="R601")),Frame_Height-AA6-7.3125,0)) -> 0 | AC7: Top Rail Reinf. | AD7: 0 | AE7: 0 | AF7: 0 | AH7: Top Rail Reinf. | AI7: =(TRUNC(((Frame_Width-4.25)-6)/2)*2)/12 -> -0.8333333333 | AJ7: 0.264 | AK7: -0.22 | AP7: 6 | AQ7: =IF(AND(AP7=6,$AN$4>=10,$AN$4<=12),AP7&"C",0) ->  | AU7: 6 | AV7: =IF(AND(AU7=6,$AS$4>=10,$AS$4<=12),AU7&"C",0) ->  | AZ7: 0201 | BA7: =IF(CMR!$E$26>=Frame_Height/2-0.07,(INT(INT((Frame_Height/2-4.875)+1)/2)-0.5)*2,(INT(INT((CMR!$E$26-4.181)+1)/2)-0.5)*2) -> -5 | BB7: =IF(Frame_Height>63.6875,IF(Frame_Height<66.3125,30,(INT(INT((Frame_Height/2-0.875)+1)/2)-0.5)*2),(INT(INT((Frame_Height/2-0.875)+1)/2)-0.5)*2) -> -1 | BD7: 6 | BO7: 2R | BP7: 2R | BQ7: 2R | BR7: 2R | BS7: 2R | BT7: 2R | BU7: 2R | BV7: 2R | BW7: 2R | BX7: 2R | BY7: 2R | DG7: =IF($DF$4<=8,8,0) ->  | DH7: =IF(AND(DG7=8,$DE$4>=11,$DE$4<=13),DG7&"C",0) ->  | DL7: =IF($DK$4<=8,8,0) ->  | DM7: =IF(AND(DL7=8,$DJ$4>=11,$DJ$4<=13),DL7&"C",0) ->  | DR7: =HLOOKUP($DR$4,CALDWELL_LOOKUP,4,FALSE) -> 11 | DS7: =HLOOKUP($DS$4,CALDWELL_LOOKUP,4,FALSE) -> 12.9995 | DT7: 10 | DU7: 9 | DW7: 11.7665 | DX7: 13.766 | DY7: 11.2185 | DZ7: 13.218 | EA7: 11 | EB7: 12.9995
B8: 9 | C8: 5 | D8: BU | F8: 9 | G8: 5 | H8: BR | J8: 6 | M8: =GLASS6 ->  | O8: L201 | P8: =CMR!$E$27 -> 0 | Q8: =CMR!$E$27-0.5625 -> -0.5625 | R8: =$AF$45 -> 0 | S8: =$AF$44 -> 0 | T8: 1.3125 | U8: 7.3125 | V8: 1.75 | W8: 4.406 | Y8: Egress Width | Z8: =Frame_Width-W4 ->  | AC8: Top Stile Reinf | AD8: 0 | AE8: 0 | AF8: 0 | AH8: Top Stile Reinf | AI8: =IF(CMR!$L$63>26.1875,((TRUNC((CMR!$L$59-10)/2)*2)/12)*2,0) -> 0 | AJ8: 0.264 | AK8: 0 | AN8: Top Tube length | AP8: 6 | AQ8: =IF(AND(AP8=6,$AN$4>=13,$AN$4<=15),AP8&"D",0) ->  | AS8: Bott. Tube Length | AU8: 6 | AV8: =IF(AND(AU8=6,$AS$4>=13,$AS$4<=15),AU8&"D",0) ->  | AZ8: 0301 | BA8: =IF(CMR!$E$42>=Frame_Height/2-0.07,(INT(INT((Frame_Height/2-4.875)+1)/2)-0.5)*2,(INT(INT((CMR!$E$42-4.181)+1)/2)-0.5)*2) -> -5 | BB8: =IF(Frame_Height>63.6875,IF(Frame_Height<66.3125,30,(INT(INT((Frame_Height/2-0.875)+1)/2)-0.5)*2),(INT(INT((Frame_Height/2-0.875)+1)/2)-0.5)*2) -> -1 | BD8: 7 | BN8: 2R | BO8: 2R | BP8: 2R | BQ8: 2R | BR8: 2R | BS8: 2R | BT8: 2R | BU8: 2R | BV8: 2R | BW8: 2R | BX8: 2R | BY8: 2R | BZ8: 2R | CA8: 2R | CB8: 2R | CC8: 2R | CD8: 2R | CE8: 2R | CF8: 2R | CG8: 2R | CH8: 2R | CI8: 2R | DG8: =IF(AND($DF$4<=10,$DF$4>8),10,0) ->  | DH8: =IF(AND(DG8=10,$DE$4>=2,$DE$4<=6),DG8&"A",0) ->  | DL8: =IF(AND($DK$4<=10,$DK$4>8),10,0) ->  | DM8: =IF(AND(DL8=10,$DJ$4>=2,$DJ$4<=6),DL8&"A",0) ->  | DR8: =HLOOKUP($DR$4,CALDWELL_LOOKUP,5,FALSE) -> 13 | DS8: =HLOOKUP($DS$4,CALDWELL_LOOKUP,5,FALSE) -> 14.9995 | DT8: 12 | DU8: 10 | DW8: 13.7665 | DX8: 15.766 | DY8: 13.2185 | DZ8: 15.218 | EA8: 13 | EB8: 14.9995
B9: 10 | C9: 5 | D9: BU | F9: 10 | G9: 5 | H9: BR | J9: 7 | M9: =GLASS7 ->  | O9: 02A0 | P9: =CMR!$L$27 -> 0 | Q9: =CMR!$L$27-0.75 -> -0.75 | R9: =$AF$67 -> 0 | S9: =$AF$66 -> 0 | T9: 1.3125 | U9: 7.3125 | V9: 1.75 | W9: 4.5 | Y9: Egress Area | Z9: =IF(E301EH>0,ROUND(((E301EH*EW)/144),3),ROUND(((EH*EW)/144),3)) ->  | AC9: Top Glass | AD9: 0 | AE9: 0 | AF9: 0 | AH9: Top Glass | AI9: =(CMR!$L$61*CMR!$L$63)/144 -> 0.1578776042 | AJ9: =$L$12 ->  | AN9: =IF(OR(ModelNo="8001",ModelNo="R601"),TOPTUBELENGTH,0) -> 0 | AP9: 6 | AQ9: =IF(AND(AP9=6,$AN$4>=16,$AN$4<=20),AP9&"E",0) ->  | AS9: =IF(OR(ModelNo="8001",ModelNo="R601"),BOTTUBELENGTH,0) -> 0 | AU9: 6 | AV9: =IF(AND(AU9=6,$AS$4>=16,$AS$4<=20),AU9&"E",0) ->  | AZ9: 0401 | BA9: =IF(CMR!$E$58>=Frame_Height/2-0.07,(INT(INT((Frame_Height/2-4.0625)+1)/2)-0.5)*2,(INT(INT((CMR!$E$58-4.375)+1)/2)-0.5)*2) -> -5 | BB9: =(INT(INT((Frame_Height/2-0.0625)+1)/2)-0.5)*2 -> -1 | BD9: 8 | BL9: 2R | BM9: 2R | BN9: 2R | BO9: 2R | BP9: 2R | BQ9: 2R | BR9: 2R | BS9: 2R | BT9: 2R | BU9: 2R | BV9: 2R | BW9: 2R | BX9: 2R | BY9: 2R | BZ9: 2R | CA9: 2R | CB9: 2R | CC9: 2R | CD9: 2R | CE9: 2R | CF9: 2R | CG9: 3R | CH9: 3R | CI9: 3R | DG9: =IF(AND($DF$4<=10,$DF$4>8),10,0) ->  | DH9: =IF(AND(DG9=10,$DE$4>=7,$DE$4<=10),DG9&"B",0) ->  | DL9: =IF(AND($DK$4<=10,$DK$4>8),10,0) ->  | DM9: =IF(AND(DL9=10,$DJ$4>=7,$DJ$4<=10),DL9&"B",0) ->  | DR9: =HLOOKUP($DR$4,CALDWELL_LOOKUP,6,FALSE) -> 15 | DS9: =HLOOKUP($DS$4,CALDWELL_LOOKUP,6,FALSE) -> 16.9995 | DT9: 14 | DU9: 12 | DW9: 15.7665 | DX9: 17.766 | DY9: 15.2185 | DZ9: 17.218 | EA9: 15 | EB9: 16.9995
B10: 11 | C10: 6 | D10: YW | F10: 11 | G10: 6 | H10: OR | J10: 8 | M10: =GLASS8 ->  | O10: 0301 | P10: =CMR!$E$43 -> 0 | Q10: =CMR!$E$43-0.625 -> -0.625 | R10: =$AF$89 -> 0 | S10: =$AF$88 -> 0 | T10: 1.3125 | U10: 7.61812 | V10: 2.05906 | W10: 4.375 | AC10: Top Spacer | AD10: 0 | AE10: 0 | AF10: 0 | AH10: Top Spacer | AI10: =((CMR!$L$61*2)+(CMR!$L$63*2))/12 -> -1.635416667 | AJ10: 0.0536 | AK10: -0.08765833333 | AP10: 6 | AQ10: =IF(AND(AP10=6,$AN$4>=21,$AN$4<=24),"Dbl."&AP10&"C",0) ->  | AU10: 6 | AV10: =IF(AND(AU10=6,$AS$4>=21,$AS$4<=24),"Dbl."&AU10&"C",0) ->  | AZ10: 0501 | BA10: =IF(CMR!$L$42>=Frame_Height/2-0.07,(INT(INT((Frame_Height/2-4.75)+1)/2)-0.5)*2,(INT(INT((CMR!$L$42-4.75)+1)/2)-0.5)*2) -> -5 | BB10: =(INT(INT((Frame_Height/2-0.75)+1)/2)-0.5)*2 -> -1 | BD10: 9 | BJ10: 2R | BK10: 2R | BL10: 2R | BM10: 2R | BN10: 2R | BO10: 2R | BP10: 2R | BQ10: 2R | BR10: 2R | BS10: 2R | BT10: 2R | BU10: 3R | BV10: 3R | BW10: 3R | BX10: 3R | BY10: 3R | BZ10: 3R | CA10: 3R | CB10: 3R | CC10: 3R | CD10: 3R | CE10: 3R | CF10: 3R | CG10: 3R | CH10: 3R | CI10: 3R | DG10: =IF(AND($DF$4<=10,$DF$4>8),10,0) ->  | DH10: =IF(AND(DG10=10,$DE$4>=11,$DE$4<=13),DG10&"C",0) ->  | DL10: =IF(AND($DK$4<=10,$DK$4>8),10,0) ->  | DM10: =IF(AND(DL10=10,$DJ$4>=11,$DJ$4<=13),DL10&"C",0) ->  | DR10: =HLOOKUP($DR$4,CALDWELL_LOOKUP,7,FALSE) -> 17 | DS10: =HLOOKUP($DS$4,CALDWELL_LOOKUP,7,FALSE) -> 18.9995 | DT10: 16 | DU10: 14 | DW10: 17.7665 | DX10: 19.766 | DY10: 17.2185 | DZ10: 19.218 | EA10: 17 | EB10: 18.9995
B11: 12 | C11: 6 | D11: YW | F11: 12 | G11: 6 | H11: OR | M11: 1 | O11: E301(3250) | P11: =CMR!$E$43 -> 0 | Q11: =CMR!$E$43-0.625 -> -0.625 | R11: =$AF$89 -> 0 | S11: =$AF$88 -> 0 | W11: 4.375 | Y11: E301(3250) | Z11: 25.1875 | AC11: Top Hardware | AD11: 0 | AE11: 0 | AF11: 0 | AH11: Top Hardware | AI11: 1 | AJ11: 0.2 | AK11: 0.2 | AP11: 6 | AQ11: =IF(AND(AP11=6,$AN$4>=25,$AN$4<=30),"Dbl."&AP11&"D",0) ->  | AU11: 6 | AV11: =IF(AND(AU11=6,$AS$4>=25,$AS$4<=30),"Dbl."&AU11&"D",0) ->  | AZ11: 0601 | BA11: =IF(CMR!$L$58>=Frame_Height/2-0.07,(INT(INT((Frame_Height/2-4.75)+1)/2)-0.5)*2,(INT(INT((CMR!$L$58-4.75)+1)/2)-0.5)*2) -> -5 | BB11: =(INT(INT((Frame_Height/2-0.75)+1)/2)-0.5)*2 -> -1 | BD11: 10 | BJ11: 2R | BK11: 2R | BL11: 2R | BM11: 2R | BN11: 2R | BO11: 2R | BP11: 2R | BQ11: 3R | BR11: 3R | BS11: 3R | BT11: 3R | BU11: 3R | BV11: 3R | BW11: 3R | BX11: 3R | BY11: 3R | BZ11: 3R | CA11: 3R | CB11: 3R | CC11: 3R | CD11: 3R | CE11: 3R | CF11: 3R | CG11: 4R | CH11: 4R | CI11: 4R | DG11: =IF(AND($DF$4<=10,$DF$4>8),10,0) ->  | DH11: =IF(AND(DG11=10,$DE$4>=14,$DE$4<=16),DG11&"D",0) ->  | DL11: =IF(AND($DK$4<=10,$DK$4>8),10,0) ->  | DM11: =IF(AND(DL11=10,$DJ$4>=14,$DJ$4<=16),DL11&"D",0) ->  | DR11: =HLOOKUP($DR$4,CALDWELL_LOOKUP,8,FALSE) -> 19 | DS11: =HLOOKUP($DS$4,CALDWELL_LOOKUP,8,FALSE) -> 20.9995 | DT11: 18 | DU11: 16 | DW11: 19.7665 | DX11: 21.766 | DY11: 19.2185 | DZ11: 21.218 | EA11: 19 | EB11: 20.9995
B12: 13 | C12: 7 | D12: GN | F12: 13 | G12: 7 | H12: BU | L12: =VLOOKUP(Glass,J3:L10,3,FALSE) ->  | M12: =VLOOKUP(Glass,J3:L10,2,FALSE) ->  | O12: E301(3052) | P12: =CMR!$E$43 -> 0 | Q12: =CMR!$E$43-0.625 -> -0.625 | R12: =$AF$89 -> 0 | S12: =$AF$88 -> 0 | W12: 4.375 | Y12: E301(3052) | Z12: 26.375 | AC12: Top Bead | AD12: 0 | AE12: 0 | AF12: 0 | AH12: Top Handle Bead | AI12: =(Frame_Width-5.912)/12 -> -0.4926666667 | AJ12: 0.104 | AK12: -0.05123733333 | AP12: 6 | AQ12: =IF(AND(AP12=6,$AN$4>=31,$AN$4<=40),"Dbl."&AP12&"E",0) ->  | AU12: 6 | AV12: =IF(AND(AU12=6,$AS$4>=31,$AS$4<=40),"Dbl."&AU12&"E",0) ->  | AZ12: 0700 | BB12: =(INT(INT(Frame_Height/2-0.25)/2)+0.5)*2 -> -1 | BD12: 11 | BJ12: 2R | BK12: 2R | BL12: 2R | BM12: 2R | BN12: 2R | BO12: 3R | BP12: 3R | BQ12: 3R | BR12: 3R | BS12: 3R | BT12: 3R | BU12: 3R | BV12: 3R | BW12: 3R | BX12: 4R | BY12: 4R | BZ12: 3R | CA12: 3R | CB12: 4R | CC12: 4R | CD12: 4R | CE12: 4R | CF12: 4R | CG12: 4R | CH12: 4R | CI12: 4R | DG12: =IF(AND($DF$4<=12,$DF$4>10),12,0) ->  | DH12: =IF(AND(DG12=12,$DE$4>=3,$DE$4<=7),DG12&"A",0) ->  | DL12: =IF(AND($DK$4<=12,$DK$4>10),12,0) ->  | DM12: =IF(AND(DL12=12,$DJ$4>=3,$DJ$4<=7),DL12&"A",0) ->  | DR12: =HLOOKUP($DR$4,CALDWELL_LOOKUP,9,FALSE) -> 21 | DS12: =HLOOKUP($DS$4,CALDWELL_LOOKUP,9,FALSE) -> 22.9995 | DT12: 20 | DU12: 18 | DW12: 21.7665 | DX12: 23.766 | DY12: 21.2185 | DZ12: 23.218 | EA12: 21 | EB12: 22.9995
B13: 14 | C13: 7 | D13: GN | F13: 14 | G13: 7 | H13: BU | O13: E301(2862) | P13: =CMR!$E$43 -> 0 | Q13: =CMR!$E$43-0.625 -> -0.625 | R13: =$AF$89 -> 0 | S13: =$AF$88 -> 0 | W13: 4.375 | Y13: E301(2862) | Z13: 32.3125 | AC13: Bottom Top Rail | AD13: =(Frame_Width-2.3125)/12 -> -0.1927083333 | AE13: 0.241 | AF13: =AD13*AE13 -> -0.04644270833 | AH13: Top Bead | AI13: =((Frame_Width-4.25)+((CMR!$L$58-4.74)*2))/12 -> -1.144166667 | AJ13: 0.074 | AK13: -0.08466833333 | AP13: =IF(AND($AO$4<=8,$AO$4>6),8,0) -> 0 | AQ13: =IF(AND(AP13=8,$AN$4>=2,$AN$4<=6),AP13&"A",0) ->  | AU13: =IF(AND($AT$4<=8,$AT$4>6),8,0) -> 0 | AV13: =IF(AND(AU13=8,$AS$4>=2,$AS$4<=6),AU13&"A",0) ->  | AZ13: 01HP | BB13: =(INT(INT(Frame_Height/2-0.25)/2)+0.5)*2 -> -1 | BD13: 12 | BJ13: 2R | BK13: 2R | BL13: 2R | BM13: 2R | BN13: 3R | BO13: 3R | BP13: 3R | BQ13: 3R | BR13: 4R | BS13: 4R | BT13: 4R | BU13: 4R | BV13: 4R | BW13: 4R | BX13: 4R | BY13: 4R | BZ13: 3R | CA13: 4R | CB13: 4R | CC13: 4R | CD13: 5R | CE13: 5R | CF13: 5R | CG13: 5R | CH13: 5R | CI13: 5R | CJ13: 4R | CK13: 4R | CL13: 4R | CM13: 4R | CN13: 4R | CO13: 4R | CP13: 5R | CQ13: 5R | CR13: 5R | CS13: 5R | CT13: 5R | CU13: 5R | CV13: 5R | DG13: =IF(AND($DF$4<=12,$DF$4>10),12,0) ->  | DH13: =IF(AND(DG13=12,$DE$4>=8,$DE$4<=10),DG13&"B",0) ->  | DL13: =IF(AND($DK$4<=12,$DK$4>10),12,0) ->  | DM13: =IF(AND(DL13=12,$DJ$4>=8,$DJ$4<=10),DL13&"B",0) ->  | DR13: =HLOOKUP($DR$4,CALDWELL_LOOKUP,10,FALSE) -> 23 | DS13: =HLOOKUP($DS$4,CALDWELL_LOOKUP,10,FALSE) -> 24.9995 | DT13: 22 | DU13: 20 | DW13: 23.7665 | DX13: 25.766 | DY13: 23.2185 | DZ13: 25.218 | EA13: 23 | EB13: 24.9995
B14: 15 | C14: 8 | D14: LG | F14: 15 | G14: 8 | H14: BK | M14: Extrusion | O14: 0401 | P14: =CMR!$E$59 -> 0 | Q14: =CMR!$E$59 -> 0 | R14: =$AF$111 -> 0 | S14: =$AF$110 -> 0 | T14: 0.6875 | U14: 7.57087 | V14: 2.00788 | W14: 4.375 | Z14: =IF(OR(ModelNo="E301(3250)",ModelNo="E301(3052)",ModelNo="E301(2862)"),VLOOKUP(ModelNo,$Y$11:$Z$13,2,FALSE),0) -> 0 | AC14: Bottom Bottom Rail | AD14: =(Frame_Width-2.3125)/12 -> -0.1927083333 | AE14: 0.25 | AF14: -0.04817708333 | AH14: Bottom Top Rail | AI14: =(Frame_Width-3.25)/12 -> -0.2708333333 | AJ14: 0.437 | AK14: =AI14*AJ14 -> -0.1183541667 | AP14: 0 | AQ14: =IF(AND(AP14=8,$AN$4>=7,$AN$4<=10),AP14&"B",0) ->  | AU14: 0 | AV14: =IF(AND(AU14=8,$AS$4>=7,$AS$4<=10),AU14&"B",0) ->  | AZ14: 07HP | BB14: =(INT(INT(Frame_Height/2-0.25)/2)+0.5)*2 -> -1 | BD14: 13 | BJ14: 2R | BK14: 2R | BL14: 2R | BM14: 2R | BN14: 3R | BO14: 3R | BP14: 3R | BQ14: 3R | BR14: 4R | BS14: 4R | BT14: 4R | BU14: 4R | BV14: 4R | BW14: 4R | BX14: 5R | BY14: 5R | BZ14: 4R | CA14: 4R | CB14: 4R | CC14: 5R | CD14: 5R | CE14: 5R | CF14: 5R | CG14: 5R | CH14: 5R | CI14: 5R | CJ14: 4R | CK14: 4R | CL14: 4R | CM14: 4R | CN14: 4R | CO14: 5R | CP14: 5R | CQ14: 5R | CR14: 5R | CS14: 5R | CT14: 5R | CU14: 5R | CV14: 5R | DG14: =IF(AND($DF$4<=12,$DF$4>10),12,0) ->  | DH14: =IF(AND(DG14=12,$DE$4>=11,$DE$4<=16),DG14&"C",0) ->  | DL14: =IF(AND($DK$4<=12,$DK$4>10),12,0) ->  | DM14: =IF(AND(DL14=12,$DJ$4>=11,$DJ$4<=16),DL14&"C",0) ->  | DR14: =HLOOKUP($DR$4,CALDWELL_LOOKUP,11,FALSE) -> 25 | DS14: =HLOOKUP($DS$4,CALDWELL_LOOKUP,11,FALSE) -> 26.9995 | DT14: 24 | DU14: 22 | DW14: 25.7665 | DX14: 27.766 | DY14: 25.2185 | DZ14: 27.218 | EA14: 25 | EB14: 26.9995
B15: 16 | C15: 8 | D15: LG | F15: 16 | G15: 8 | H15: BK | L15: 1 | M15: =IF(EXT_1=0,"",EXT_1) ->  | O15: 0501 | P15: =CMR!$L$43 -> 0 | Q15: =CMR!$L$43-1.3125 -> -1.3125 | R15: =$AF$135 -> 0 | S15: =$AF$134 -> 0 | T15: 1.875 | U15: 8.75 | V15: 2.689 | W15: 5.375 | AC15: Bottom Stile | AD15: =((CMR!$E$11+0.125)*2)/12 -> 0.02083333333 | AE15: 0.23 | AF15: 0.004791666667 | AH15: Bottom Bottom Rail | AI15: =(Frame_Width-3.25)/12 -> -0.2708333333 | AJ15: 0.437 | AK15: -0.1183541667 | AP15: 0 | AQ15: =IF(AND(AP15=8,$AN$4>=11,$AN$4<=13),AP15&"C",0) ->  | AU15: 0 | AV15: =IF(AND(AU15=8,$AS$4>=11,$AS$4<=13),AU15&"C",0) ->  | AZ15: 0901 | BA15: =IF(CMR!$E$74>=Frame_Height/2-0.07,(INT(INT((Frame_Height/2-3.625)+1)/2)-0.5)*2,(INT(INT((CMR!$E$74-3.625)+1)/2)-0.5)*2) -> -5 | BB15: =(INT(INT((Frame_Height/2-0.625)+1)/2)-0.5)*2 -> -1 | BD15: 14 | BJ15: 2R | BK15: 2R | BL15: 2R | BM15: 2R | BN15: 3R | BO15: 3R | BP15: 3R | BQ15: 4R | BR15: 4R | BS15: 4R | BT15: 4R | BU15: 4R | BV15: 5R | BW15: 5R | BX15: 5R | BY15: 5R | BZ15: 4R | CA15: 4R | CB15: 5R | CC15: 5R | CD15: 5R | CE15: 6R | CF15: 6R | CG15: 6R | CH15: 6R | CI15: 6R | CJ15: 4R | CK15: 5R | CL15: 5R | CM15: 5R | CN15: 5R | CO15: 5R | CP15: 5R | CQ15: 5R | CR15: 5R | CS15: 5R | CT15: 6R | CU15: 6R | CV15: 6R | CW15: 6R | CX15: 6R | DG15: =IF(AND($DF$4<=12,$DF$4>10),12,0) ->  | DH15: =IF(AND(DG15=12,$DE$4>=17,$DE$4<=18),DG15&"D",0) ->  | DL15: =IF(AND($DK$4<=12,$DK$4>10),12,0) ->  | DM15: =IF(AND(DL15=12,$DJ$4>=17,$DJ$4<=18),DL15&"D",0) ->  | DR15: =HLOOKUP($DR$4,CALDWELL_LOOKUP,12,FALSE) -> 27 | DS15: =HLOOKUP($DS$4,CALDWELL_LOOKUP,12,FALSE) -> 28.9995 | DT15: 26 | DU15: 24 | DW15: 27.7665 | DX15: 29.766 | DY15: 27.2185 | DZ15: 29.218 | EA15: 27 | EB15: 28.9995
B16: 17 | C16: 9 | D16: NAT | F16: 17 | G16: 9 | H16: NAT | L16: 2 | M16: =IF(EXT_2=0,"",EXT_2) ->  | N16: 12.5 | O16: B501 | P16: =CMR!$L$43 -> 0 | Q16: =CMR!$L$43-1.3125 -> -1.3125 | R16: =$AF$135 -> 0 | S16: =$AF$134 -> 0 | T16: 1.875 | U16: 8.75 | V16: 2.689 | W16: 5.375 | Y16: V100 | Z16: =Frame_Height-(CMR!$L$99-0.844)-3.64625 -> -2.80225 | AC16: Bottom Rail Reinf. | AD16: =(TRUNC(((AD13*12)-6)/2)*2)/12 -> -0.6666666667 | AE16: 0.328 | AF16: -0.2186666667 | AH16: Bottom Stile | AI16: =(2*(CMR!$L$59-0.9375))/12 -> -0.15625 | AJ16: 0.437 | AK16: -0.06828125 | AP16: 0 | AQ16: =IF(AND(AP16=8,$AN$4>=14,$AN$4<=15),AP16&"D",0) ->  | AU16: 0 | AV16: =IF(AND(AU16=8,$AS$4>=14,$AS$4<=15),AU16&"D",0) ->  | AZ16: 09A1 | BA16: =IF(CMR!$E$74>=Frame_Height/2-0.07,(INT(INT((Frame_Height/2-3.625)+1)/2)-0.5)*2,(INT(INT((CMR!$E$74-3.625)+1)/2)-0.5)*2) -> -5 | BB16: =(INT(INT((Frame_Height/2-0.625)+1)/2)-0.5)*2 -> -1 | BD16: 15 | BJ16: 2R | BK16: 2R | BL16: 2R | BM16: 2R | BN16: 3R | BO16: 4R | BP16: 4R | BQ16: 4R | BR16: 5R | BS16: 5R | BT16: 5R | BU16: 5R | BV16: 5R | BW16: 5R | BX16: 6R | BY16: 6R | BZ16: 5R | CA16: 5R | CB16: 5R | CC16: 6R | CD16: 6R | CE16: 6R | CF16: 6R | CG16: 6R | CH16: 6R | CI16: 6R | CJ16: 4R | CK16: 5R | CL16: 5R | CM16: 5R | CN16: 5R | CO16: 5R | CP16: 5R | CQ16: 5R | CR16: 5R | CS16: 6R | CT16: 6R | CU16: 6R | CV16: 6R | CW16: 6R | CX16: 6R | DG16: =IF(AND($DF$4<=12,$DF$4>10),12,0) ->  | DH16: =IF(AND(DG16=12,$DE$4>=19,$DE$4<=21),DG16&"E",0) ->  | DL16: =IF(AND($DK$4<=12,$DK$4>10),12,0) ->  | DM16: =IF(AND(DL16=12,$DJ$4>=19,$DJ$4<=21),DL16&"E",0) ->  | DR16: =HLOOKUP($DR$4,CALDWELL_LOOKUP,13,FALSE) -> 29 | DS16: =HLOOKUP($DS$4,CALDWELL_LOOKUP,13,FALSE) -> 30.9995 | DT16: 28 | DU16: 26 | DW16: 29.7665 | DX16: 31.766 | DY16: 29.2185 | DZ16: 31.218 | EA16: 29 | EB16: 30.9995
B17: 18 | C17: 9 | D17: NAT | F17: 18 | G17: 9 | H17: NAT | L17: 3 | M17: =IF(EXT_3=0,"",EXT_3) ->  | N17: 13 | O17: U501 | P17: =CMR!$L$43 -> 0 | Q17: =CMR!$L$43-1.3125 -> -1.3125 | R17: =$AF$135 -> 0 | S17: =$AF$134 -> 0 | T17: 1.875 | U17: 8.75 | V17: 2.689 | W17: 5.375 | Y17: V101 | Z17: =Frame_Height-(CMR!$L$115-0.3125)-4.948 -> -4.6355 | AC17: Bottom Stile Reinf. | AD17: =IF(OR(CMR!$E$16>=28.5,ModelNo="01HP",ModelNo="07HP",ModelNo="S140 (HP)",ModelNo="S144 (HP)",ModelNo="S146 (HP)"),(((CMR!$E$11-1.625)/2)*2)/12,0) -> 0 | AE17: 0.238 | AF17: 0 | AH17: Bottom Rail Reinf. | AI17: =(TRUNC(((Frame_Width-3.25)-6)/2)*2)/12 -> -0.6666666667 | AJ17: 0.4344 | AK17: -0.2896 | AP17: 0 | AQ17: =IF(AND(AP17=8,$AN$4>=16,$AN$4<=18),AP17&"E",0) ->  | AU17: 0 | AV17: =IF(AND(AU17=8,$AS$4>=16,$AS$4<=18),AU17&"E",0) ->  | AZ17: 09B1 | BA17: =IF(CMR!$E$74>=Frame_Height/2-0.07,(INT(INT((Frame_Height/2-3.625)+1)/2)-0.5)*2,(INT(INT((CMR!$E$74-3.625)+1)/2)-0.5)*2) -> -5 | BB17: =(INT(INT((Frame_Height/2-0.625)+1)/2)-0.5)*2 -> -1 | BD17: 16 | BJ17: 2R | BK17: 2R | BL17: 2R | BM17: 2R | BN17: 3R | BO17: 4R | BP17: 4R | BQ17: 4R | BR17: 5R | BS17: 5R | BT17: 5R | BU17: 5R | BV17: 6R | BW17: 6R | BX17: 6R | BY17: 6R | BZ17: 5R | CA17: 5R | CB17: 6R | CC17: 6R | CD17: 6R | CE17: 6R | CF17: 7R | CG17: 7R | CH17: 7R | CI17: 7R | CJ17: 5R | CK17: 5R | CL17: 5R | CM17: 5R | CN17: 5R | CO17: 6R | CP17: 6R | CQ17: 6R | CR17: 6R | CS17: 6R | CT17: 7R | CU17: 7R | CV17: 7R | CW17: 7R | CX17: 7R | CY17: 7R | CZ17: 7R | DG17: =IF(AND($DF$4<=14,$DF$4>12),14,0) ->  | DH17: =IF(AND(DG17=14,$DE$4>=3,$DE$4<=7),DG17&"A",0) ->  | DL17: =IF(AND($DK$4<=14,$DK$4>12),14,0) ->  | DM17: =IF(AND(DL17=14,$DJ$4>=3,$DJ$4<=7),DL17&"A",0) ->  | DR17: =HLOOKUP($DR$4,CALDWELL_LOOKUP,14,FALSE) -> 31 | DS17: =HLOOKUP($DS$4,CALDWELL_LOOKUP,14,FALSE) -> 32.9995 | DT17: 30 | DU17: 28 | DW17: 31.7665 | DX17: 33.766 | DY17: 31.2185 | DZ17: 33.218 | EA17: 31 | EB17: 32.9995
B18: 19 | C18: 10 | D18: PK | F18: 19 | G18: 55 | H18: NAT | L18: 4 | M18: =IF(EXT_4=0,"",EXT_4) ->  | N18: 10 | O18: 0601 | P18: =CMR!$L$59 -> 0 | Q18: =CMR!$L$59-0.9375 -> -0.9375 | R18: =$AK$25 -> 0 | S18: =$AK$24 -> 0 | T18: 1.875 | U18: 8.75 | V18: 2.689 | W18: 5.375 | Y18: V200 | Z18: =Frame_Height-(TRUNC(((CMR!$L$124-0.8125)*32+0.5))/32-0.0625)-4.047 -> -3.20325 | AC18: Bottom Glass | AD18: =(CMR!$E$14*CMR!$E$16)/144 -> 0.041015625 | AE18: =$L$12 ->  | AF18: =IF(AND(Frame_Width=35.5,Frame_Height=59.5),($AD$18*$AE$18)-2.25,$AD$18*$AE$18) ->  | AG18: * | AH18: Bottom Stile Reinf. | AI18: =IF(CMR!$L$64>26.1875,((TRUNC((CMR!$L$59-4)/2)*2)/12)*2,0) -> 0 | AJ18: 0.4344 | AK18: 0 | AP18: 0 | AQ18: =IF(AND(AP18=8,$AN$4>=19,$AN$4<=20),"Dbl."&AP18&"B",0) ->  | AU18: 0 | AV18: =IF(AND(AU18=8,$AS$4>=19,$AS$4<=20),"Dbl."&AU18&"B",0) ->  | AZ18: B501 | BA18: =IF(CMR!$L$42>=Frame_Height/2-0.07,(INT(INT((Frame_Height/2-4.75)+1)/2)-0.5)*2,(INT(INT((CMR!$L$42-4.75)+1)/2)-0.5)*2) -> -5 | BB18: =(INT(INT((Frame_Height/2-0.75)+1)/2)-0.5)*2 -> -1 | BD18: 17 | BJ18: 2R | BK18: 3R | BL18: 3R | BM18: 3R | BN18: 4R | BO18: 4R | BP18: 4R | BQ18: 5R | BR18: 5R | BS18: 5R | BT18: 5R | BU18: 6R | BV18: 6R | BW18: 6R | BX18: 7R | BY18: 7R | BZ18: 5R | CA18: 6R | CB18: 6R | CC18: 7R | CD18: 7R | CE18: 7R | CF18: 7R | CG18: 7R | CH18: 7R | CI18: 7R | CJ18: 5R | CK18: 5R | CL18: 6R | CM18: 6R | CN18: 6R | CO18: 6R | CP18: 6R | CQ18: 6R | CR18: 6R | CS18: 7R | CT18: 7R | CU18: 7R | CV18: 7R | CW18: 7R | CX18: 7R | CY18: 7R | CZ18: 7R | DH18: =IF(AND(DG18=14,$DE$4>=8,$DE$4<=10),DG18&"B",0) ->  | DM18: =IF(AND(DL18=14,$DJ$4>=8,$DJ$4<=10),DL18&"B",0) ->  | DR18: =HLOOKUP($DR$4,CALDWELL_LOOKUP,15,FALSE) -> 33 | DS18: =HLOOKUP($DS$4,CALDWELL_LOOKUP,15,FALSE) -> 34.9995 | DT18: 32 | DU18: 30 | DW18: 33.7665 | DX18: 35.766 | DY18: 33.2185 | DZ18: 35.218 | EA18: 33 | EB18: 34.9995
B19: 20 | C19: 10 | D19: PK | F19: 20 | G19: 55 | H19: NAT | L19: 5 | M19: =IF(EXT_5=0,"",EXT_5) ->  | N19: 10 | O19: B601 | P19: =CMR!$L$59 -> 0 | Q19: =CMR!$L$59-0.9375 -> -0.9375 | R19: =$AK$25 -> 0 | S19: =$AK$24 -> 0 | T19: 1.875 | U19: 8.75 | V19: 2.689 | W19: 5.375 | Y19: 1700 | Z19: =IF(TYPE=1,TRUNC((Frame_Height-$P$4-$U$4)*16+0.5)/16,IF(CMR>(Frame_Height/2),TRUNC((Frame_Height-CMR-$U$4)*16+0.5)/16,IF(CMR<(Frame_Height/2),TRUNC((Frame_Height-$Q$4-$V$4)*16+0.5)/16))) ->  | AC19: Bottom Spacer | AD19: =((CMR!$E$14*2)+(CMR!$E$16*2))/12 -> -0.90625 | AE19: 0.0536 | AF19: -0.048575 | AH19: Bottom Glass | AI19: =(CMR!$L$62*CMR!$L$64)/144 -> 0.1578776042 | AJ19: =$L$12 ->  | AP19: 0 | AQ19: =IF(AND(AP19=8,$AN$4>=21,$AN$4<=26),"Dbl."&AP19&"C",0) ->  | AU19: 0 | AV19: =IF(AND(AU19=8,$AS$4>=21,$AS$4<=26),"Dbl."&AU19&"C",0) ->  | AZ19: U501 | BA19: =IF(CMR!$L$42>=Frame_Height/2-0.07,(INT(INT((Frame_Height/2-4.75)+1)/2)-0.5)*2,(INT(INT((CMR!$L$42-4.75)+1)/2)-0.5)*2) -> -5 | BB19: =(INT(INT((Frame_Height/2-0.75)+1)/2)-0.5)*2 -> -1 | BD19: 18 | BJ19: 3R | BK19: 3R | BL19: 3R | BM19: 3R | BN19: 4R | BO19: 5R | BP19: 5R | BQ19: 5R | BR19: 5R | BS19: 5R | BT19: 5R | BU19: 6R | BV19: 7R | BW19: 7R | BX19: 7R | BY19: 7R | BZ19: 6R | CA19: 6R | CB19: 7R | CC19: 7R | CD19: 7R | CE19: 7R | CF19: 8R | CG19: 8R | CH19: 8R | CI19: 8R | CJ19: 6R | CK19: 6R | CL19: 6R | CM19: 6R | CN19: 6R | CO19: 7R | CP19: 7R | CQ19: 7R | CR19: 7R | CS19: 7R | CT19: 8R | CU19: 8R | CV19: 8R | CW19: 8R | CX19: 8R | CY19: 8R | CZ19: 8R | DA19: 8R | DB19: 8R | DH19: =IF(AND(DG19=14,$DE$4>=11,$DE$4<=16),DG19&"C",0) ->  | DM19: =IF(AND(DL19=14,$DJ$4>=11,$DJ$4<=16),DL19&"C",0) ->  | DR19: =HLOOKUP($DR$4,CALDWELL_LOOKUP,16,FALSE) -> 35 | DS19: =HLOOKUP($DS$4,CALDWELL_LOOKUP,16,FALSE) -> 36.9995 | DT19: 34 | DU19: 32 | DW19: 35.7665 | DX19: 37.766 | DY19: 35.2185 | DZ19: 37.218 | EA19: 35 | EB19: 36.9995
B20: 21 | C20: 56 | D20: BU | F20: 21 | G20: 47 | H20: BK | L20: 6 | M20: =IF(EXT_6=0,"",EXT_6) ->  | N20: 11.75 | O20: U601 | P20: =CMR!$L$59 -> 0 | Q20: =CMR!$L$59-0.9375 -> -0.9375 | R20: =$AK$25 -> 0 | S20: =$AK$24 -> 0 | T20: 1.875 | U20: 8.75 | V20: 2.689 | W20: 5.375 | Y20: 1720 | AC20: Bottom Hardware | AD20: 1 | AE20: 0.36 | AF20: 0.36 | AH20: Bottom Spacer | AI20: =((CMR!$L$62*2)+(CMR!$L$64*2))/12 -> -1.635416667 | AJ20: 0.0536 | AK20: -0.08765833333 | AP20: 0 | AQ20: =IF(AND(AP20=8,$AN$4>=27,$AN$4<=32),"Dbl."&AP20&"D",0) ->  | AU20: 0 | AV20: =IF(AND(AU20=8,$AS$4>=27,$AS$4<=32),"Dbl."&AU20&"D",0) ->  | AZ20: B601 | BA20: =IF(CMR!$L$58>=Frame_Height/2-0.07,(INT(INT((Frame_Height/2-4.75)+1)/2)-0.5)*2,(INT(INT((CMR!$L$58-4.75)+1)/2)-0.5)*2) -> -5 | BB20: =(INT(INT((Frame_Height/2-0.75)+1)/2)-0.5)*2 -> -1 | BD20: 19 | BJ20: 2B | BK20: 3R | BL20: 3R | BM20: 3R | BN20: 4R | BO20: 2B | BP20: 2B | BQ20: 3B | BR20: 3B | BS20: 3B | BT20: 6R | BU20: 7R | BV20: 7R | BW20: 7R | BX20: 7R | BY20: 7R | BZ20: 6R | CA20: 7R | CB20: 7R | CC20: 8R | CD20: 8R | CE20: 8R | CF20: 8R | CG20: 8R | CH20: 8R | CI20: 8R | CJ20: 6R | CK20: 6R | CL20: 7R | CM20: 7R | CN20: 7R | CO20: 7R | CP20: 7R | CQ20: 8R | CR20: 8R | CS20: 8R | CT20: 8R | CU20: 8R | CV20: 8R | CW20: 8R | CX20: 8R | CY20: 8R | CZ20: 8R | DA20: 8R | DB20: 8R | DH20: =IF(AND(DG20=14,$DE$4>=17,$DE$4<=19),DG20&"D",0) ->  | DM20: =IF(AND(DL20=14,$DJ$4>=17,$DJ$4<=19),DL20&"D",0) ->  | DR20: =HLOOKUP($DR$4,CALDWELL_LOOKUP,17,FALSE) -> 37 | DS20: =HLOOKUP($DS$4,CALDWELL_LOOKUP,17,FALSE) -> 38.9995 | DT20: 36 | DU20: 34 | DW20: 37.7665 | DX20: 39.766 | DY20: 37.2185 | DZ20: 39.218 | EA20: 37 | EB20: 38.9995
B21: 22 | C21: 56 | D21: BU | F21: 22 | G21: 47 | H21: BK | L21: 7 | M21: =IF(EXT_6=0,"",EXT_7) ->  | N21: 12 | O21: 0700 | P21: =CMR!$E$11 -> 0 | Q21: =CMR!$E$11+0.125 -> 0.125 | R21: =$AF$23 -> 0 | S21: =$AF$22 -> 0 | T21: 1.03125 | U21: 3.074 | V21: 1.537 | W21: 3.0625 | Y21: 1730 | AC21: Bottom Bead | AD21: =(((Frame_Width-3.75)*2)+((CMR!$E$11-2.5)*2))/12 -> -1.041666667 | AE21: 0.046 | AF21: -0.04791666667 | AH21: Bottom Hardware | AI21: 1 | AJ21: 0.36 | AK21: 0.36 | AP21: 0 | AQ21: =IF(AND(AP21=8,$AN$4>=33,$AN$4<=36),"Dbl."&AP21&"E",0) ->  | AU21: 0 | AV21: =IF(AND(AU21=8,$AS$4>=33,$AS$4<=36),"Dbl."&AU21&"E",0) ->  | AZ21: U601 | BA21: =IF(CMR!$L$58>=Frame_Height/2-0.07,(INT(INT((Frame_Height/2-4.75)+1)/2)-0.5)*2,(INT(INT((CMR!$L$58-4.75)+1)/2)-0.5)*2) -> -5 | BB21: =(INT(INT((Frame_Height/2-0.75)+1)/2)-0.5)*2 -> -1 | BD21: 20 | BJ21: 3B | BK21: 3B | BL21: 3B | BM21: 3B | BN21: 3B | BO21: 3B | BP21: 3B | BQ21: 3B | BR21: 4B | BS21: 4B | BT21: 4B | BU21: 5B | BV21: 5B | BW21: 6B | BX21: 7B | BY21: 7B | BZ21: 7R | CA21: 7R | CB21: 8R | CC21: 8R | CD21: 8R | CE21: 8R | CF21: 8R | CG21: 9R | CH21: 9R | CI21: 9R | CJ21: 7R | CK21: 7R | CL21: 7R | CM21: 7R | CN21: 7R | CO21: 8R | CP21: 8R | CQ21: 8R | CR21: 8R | CS21: 8R | CT21: 9R | CU21: 9R | CV21: 9R | CW21: 9R | CX21: 9R | CY21: 9R | CZ21: 9R | DA21: 9R | DB21: 9R | DH21: =IF(AND(DG21=14,$DE$4>=20,$DE$4<=22),DG21&"E",0) ->  | DM21: =IF(AND(DL21=14,$DJ$4>=20,$DJ$4<=22),DL21&"E",0) ->  | DR21: =HLOOKUP($DR$4,CALDWELL_LOOKUP,18,FALSE) -> 39 | DS21: =HLOOKUP($DS$4,CALDWELL_LOOKUP,18,FALSE) -> 40.9995 | DT21: 38 | DU21: 36 | DW21: 39.7665 | DX21: 41.766 | DY21: 39.2185 | DZ21: 41.218 | EA21: 39 | EB21: 40.9995
B22: 23 | C22: 66 | D22: YW | F22: 23 | G22: 48 | H22: BU | L22: 8 | M22: =IF(EXT_6=0,"",EXT_8) ->  | N22: 12 | O22: 07HP | P22: =CMR!$L$11 -> 0 | Q22: =CMR!$L$11+0.125 -> 0.125 | R22: =$AF$23 -> 0 | S22: =$AF$22 -> 0 | T22: 1.03125 | U22: 3.168 | V22: 1.631 | W22: 3.0625 | Y22: 1900 | AE22: Top Sash | AF22: 0 | AH22: Bottom Keeper Bead | AI22: =(Frame_Width-5.912)/12 -> -0.4926666667 | AJ22: 0.109 | AK22: -0.05370066667 | AP22: =IF(AND($AO$4<=10,$AO$4>8),10,0) -> 0 | AQ22: =IF(AND(AP22=10,$AN$4>=1,$AN$4<=6),AP22&"A",0) ->  | AU22: =IF(AND($AT$4<=10,$AT$4>8),10,0) -> 0 | AV22: =IF(AND(AU22=10,$AS$4>=1,$AS$4<=6),AU22&"A",0) ->  | AZ22: R601 | BA22: =IF(CMR!$L$74>=Frame_Height/2-0.07,(INT(INT((Frame_Height/2-4.75)+0.25)/2))*2,(INT(INT((CMR!$L$74-4.75)+0.25)/2))*2) -> -6 | BB22: =(INT(INT((Frame_Height/2-2.75)+0.25)/2)*2) -> -4 | BD22: 21 | BJ22: 3B | BK22: 3B | BL22: 3B | BM22: 3B | BN22: 3B | BO22: 3B | BP22: 3B | BQ22: 4B | BR22: 5B | BS22: 5B | BT22: 5B | BU22: 5B | BV22: 5B | BW22: 7B | BX22: 7B | BY22: 7B | BZ22: 8R | CA22: 8R | CB22: 8R | CC22: 9R | CD22: 9R | CE22: 9R | CF22: 9R | CG22: 9R | CH22: 9R | CI22: 10R | CJ22: 7R | CK22: 7R | CL22: 8R | CM22: 8R | CN22: 8R | CO22: 8R | CP22: 8R | CQ22: 9R | CR22: 9R | CS22: 9R | CT22: 9R | CU22: 9R | CV22: 9R | CW22: 9R | CX22: 9R | CY22: 9R | CZ22: 9R | DA22: 9R | DB22: 9R | DH22: =IF(AND(DG22=14,$DE$4>=23,$DE$4<=25),DG22&"F",0) ->  | DM22: =IF(AND(DL22=14,$DJ$4>=23,$DJ$4<=25),DL22&"F",0) ->  | DR22: =HLOOKUP($DR$4,CALDWELL_LOOKUP,19,FALSE) -> 41 | DS22: =HLOOKUP($DS$4,CALDWELL_LOOKUP,19,FALSE) -> 42.9995 | DT22: 40 | DU22: 38 | DW22: 41.7665 | DX22: 43.766 | DY22: 41.2185 | DZ22: 43.218 | EA22: 41 | EB22: 42.9995
B23: 24 | C23: 66 | D23: YW | F23: 24 | G23: 48 | H23: BU | M23: 1 | N23: =VLOOKUP(EXTSELECT,L15:M22,2,FALSE) ->  | O23: 0901 | P23: =CMR!$E$75 -> 0 | Q23: =CMR!$E$75-0.8125 -> -0.8125 | R23: =$AK$49 -> 0 | S23: =$AK$48 -> 0 | T23: 0.9375 | U23: 7.927 | V23: 2.125 | W23: 4.0625 | Y23: 1920 | AE23: Bottom Sash | AF23: =IF(OR(ModelNo="0100",ModelNo="01HP",ModelNo="0700",ModelNo="07HP",ModelNo="S140",ModelNo="S144",ModelNo="S146",ModelNo="S140 (HP)",ModelNo="S144 (HP)",ModelNo="S146 (HP)"),SUM(AF13:AF21),0) -> 0 | AH23: Bottom Bead | AI23: =((Frame_Width-5.912)+((CMR!$L$59-4.74)*2))/12 -> -1.282666667 | AJ23: 0.074 | AK23: -0.09491733333 | AP23: 0 | AQ23: =IF(AND(AP23=10,$AN$4>=7,$AN$4<=10),AP23&"B",0) ->  | AU23: 0 | AV23: =IF(AND(AU23=10,$AS$4>=7,$AS$4<=10),AU23&"B",0) ->  | AZ23: 8001 | BA23: =IF(CMR!$L$74>=Frame_Height/2-0.07,(INT(INT((Frame_Height/2-4.75)+0.25)/2))*2,(INT(INT((CMR!$L$74-4.75)+0.25)/2))*2) -> -6 | BB23: =(INT(INT((Frame_Height/2-2.75)+0.25)/2)*2) -> -4 | BD23: 22 | BJ23: 3B | BK23: 3B | BL23: 3B | BM23: 3B | BN23: 4B | BO23: 4B | BP23: 4B | BQ23: 4B | BR23: 5B | BS23: 5B | BT23: 5B | BU23: 5B | BV23: 5B | BW23: 7B | BX23: 8B | BY23: 8B | BZ23: 9R | CA23: 9R | CB23: 9R | CC23: 9R | CD23: 9R | CE23: 9R | CF23: 9R | CG23: 10R | CH23: 10R | CI23: 10R | CJ23: 8R | CK23: 8R | CL23: 8R | CM23: 8R | CN23: 8R | CO23: 9R | CP23: 9R | CQ23: 9R | CR23: 9R | CS23: 9R | CT23: 10R | CU23: 10R | CV23: 10R | CW23: 10R | CX23: 10R | CY23: 10R | CZ23: 10R | DA23: 10R | DB23: 10R | DG23: =IF(AND($DF$4<=16,$DF$4>14),16,0) ->  | DH23: =IF(AND(DG23=16,$DE$4>=3,$DE$4<=7),DG23&"A",0) ->  | DL23: =IF(AND($DK$4<=16,$DK$4>14),16,0) ->  | DM23: =IF(AND(DL23=16,$DJ$4>=3,$DJ$4<=7),DL23&"A",0) ->  | DR23: =HLOOKUP($DR$4,CALDWELL_LOOKUP,20,FALSE) -> 43 | DS23: =HLOOKUP($DS$4,CALDWELL_LOOKUP,20,FALSE) -> 44.9995 | DT23: 42 | DU23: 40 | DW23: 43.7665 | DX23: 45.766 | DY23: 43.2185 | DZ23: 45.218 | EA23: 43 | EB23: 44.9995
B24: 25 | C24: 67 | D24: GN | F24: 25 | G24: 58 | H24: OR | M24: =IF($M$23=1,0,IF($M$23=6,1.75,IF(OR($M$23=2,$M$23=3),2.40625,IF(OR($M$23=7,$M$23=8),1.8125,1)))) -> 0 | O24: 09A1 | P24: =CMR!$E$75 -> 0 | Q24: =CMR!$E$75-0.8125 -> -0.8125 | R24: =$AK$49 -> 0 | S24: =$AK$48 -> 0 | T24: 0.9375 | U24: 7.927 | V24: 2.125 | W24: 4.0625 | Y24: 1930 | AJ24: Top Sash | AK24: =IF(OR(ModelNo="0601",ModelNo="B601",ModelNo="U601"),(SUM(AK4:AK13))+5,0) -> 0 | AP24: 0 | AQ24: =IF(AND(AP24=10,$AN$4>=11,$AN$4<=13),AP24&"C",0) ->  | AU24: 0 | AV24: =IF(AND(AU24=10,$AS$4>=11,$AS$4<=13),AU24&"C",0) ->  | AZ24: V100 | BB24: =FLOOR(Frame_Height/2-2,2) -> -2 | BD24: 23 | BJ24: 3B | BK24: 3B | BL24: 3B | BM24: 3B | BN24: 4B | BO24: 4B | BP24: 5B | BQ24: 5B | BR24: 5B | BS24: 5B | BT24: 5B | BU24: 6B | BV24: 6B | BW24: 7B | BX24: 8B | BY24: 8B | BZ24: 9R | CA24: 9R | CB24: 9R | CC24: 10R | CD24: 10R | CE24: 10R | CF24: 10R | CG24: 10R | CH24: 11R | CI24: 11R | CJ24: 8R | CK24: 8R | CL24: 8R | CM24: 9R | CN24: 9R | CO24: 9R | CP24: 9R | CQ24: 9R | CR24: 9R | CS24: 10R | CT24: 10R | CU24: 10R | CV24: 10R | CW24: 10R | CX24: 10R | CY24: 10R | CZ24: 10R | DA24: 10R | DB24: 11R | DH24: =IF(AND(DG24=16,$DE$4>=8,$DE$4<=10),DG24&"B",0) ->  | DM24: =IF(AND(DL24=16,$DJ$4>=8,$DJ$4<=10),DL24&"B",0) ->  | DR24: =HLOOKUP($DR$4,CALDWELL_LOOKUP,21,FALSE) -> 45 | DS24: =HLOOKUP($DS$4,CALDWELL_LOOKUP,21,FALSE) -> 46.9995 | DT24: 44 | DU24: 42 | DW24: 45.7665 | DX24: 47.766 | DY24: 45.2185 | DZ24: 47.218 | EA24: 45 | EB24: 46.9995
B25: 26 | C25: 67 | D25: GN | F25: 26 | G25: 58 | H25: OR | M25: =IF(AND(EXTSELECT=1,OR(SELECTEXT="Select Reinforcement",SELECTEXT="Select Extrusion")),"<< Must Select","") ->  | O25: 09B1 | P25: =CMR!$E$75 -> 0 | Q25: =CMR!$E$75-0.8125 -> -0.8125 | R25: =$AK$49 -> 0 | S25: =$AK$48 -> 0 | T25: 0.9375 | U25: 7.927 | V25: 2.125 | W25: 4.0625 | Y25: 1901 | AC25: 0201 | AD25: Length | AE25: Weight/ft | AF25: Weight | AJ25: Bottom Sash | AK25: =IF(OR(ModelNo="0601",ModelNo="B601",ModelNo="U601"),SUM(AK14:AK23),0) -> 0 | AP25: 0 | AQ25: =IF(AND(AP25=10,$AN$4>=14,$AN$4<=16),AP25&"D",0) ->  | AU25: 0 | AV25: =IF(AND(AU25=10,$AS$4>=14,$AS$4<=16),AU25&"D",0) ->  | AZ25: V101 | BA25: =IF(CMR!$L$115>=Frame_Height/2-0.07,(INT(INT((Frame_Height/2-4.75))/2))*2,(INT(INT((CMR!$L$115-4.75))/2))*2) -> -6 | BB25: =(INT(INT((Frame_Height/2-2.75)+0.25)/2)*2) -> -4 | BD25: 24 | BJ25: 4B | BK25: 4B | BL25: 4B | BM25: 4B | BN25: 4B | BO25: 4B | BP25: 5B | BQ25: 5B | BR25: 5B | BS25: 5B | BT25: 5B | BU25: 6B | BV25: 6B | BW25: 8R | BX25: 9B | BY25: 9B | BZ25: 10R | CA25: 10R | CB25: 10R | CC25: 11R | CD25: 11R | CE25: 11R | CF25: 11R | CG25: 11R | CH25: 12R | CI25: 12R | CJ25: 8R | CK25: 8R | CL25: 9R | CM25: 9R | CN25: 9R | CO25: 9R | CP25: 10R | CQ25: 10R | CR25: 10R | CS25: 10R | CT25: 11R | CU25: 11R | CV25: 11R | CW25: 11R | CX25: 11R | CY25: 11R | CZ25: 11R | DA25: 11R | DB25: 12R | DH25: =IF(AND(DG25=16,$DE$4>=11,$DE$4<=16),DG25&"C",0) ->  | DM25: =IF(AND(DL25=16,$DJ$4>=11,$DJ$4<=16),DL25&"C",0) ->  | DR25: =HLOOKUP($DR$4,CALDWELL_LOOKUP,22,FALSE) -> 47 | DS25: =HLOOKUP($DS$4,CALDWELL_LOOKUP,22,FALSE) -> 48.9995 | DT25: 46 | DU25: 44 | DW25: 47.7665 | DX25: 49.766 | DY25: 47.2185 | DZ25: 49.218 | EA25: 47 | EB25: 48.9995
B26: 27 | C26: 77 | D26: LG | F26: 27 | G26: 68 | H26: BR | M26: =IF(AND(EXT_CONTROL=1,W>0,H>0,LEG=0),"<< Need Leg Height",IF(AND(ModelNo="S140",W>0,H>0,LEG<>(Frame_Height-(Frame_Width/2))),"<< Leg Should be"&" "&(Frame_Height-(Frame_Width/2)),"")) ->  | O26: 09L1 | P26: =CMR!$E$75 -> 0 | Q26: =CMR!$E$75-0.8125 -> -0.8125 | R26: =$AK$49 -> 0 | S26: =$AK$48 -> 0 | T26: 0.9375 | U26: 7.927 | V26: 2.125 | W26: 4.0625 | Y26: 1921 | AC26: Top Top Rail | AD26: =(Frame_Width-3.25)/12 -> -0.2708333333 | AE26: 0.257 | AF26: =AD26*AE26 -> -0.06960416667 | AP26: 0 | AQ26: =IF(AND(AP26=10,$AN$4>=17,$AN$4<=19),AP26&"E",0) ->  | AU26: 0 | AV26: =IF(AND(AU26=10,$AS$4>=17,$AS$4<=19),AU26&"E",0) ->  | AZ26: V200 | BB26: =FLOOR(Frame_Height/2-2.75,2) -> -4 | BD26: 25 | BK26: 4B | BL26: 4B | BM26: 4B | BN26: 4B | BO26: 4B | BP26: 5B | BQ26: 6B | BR26: 6B | BS26: 6B | BT26: 6B | BU26: 6B | BV26: 6B | BW26: 8B | BX26: 9B | BY26: 9B | BZ26: 10R | CA26: 10R | CB26: 11R | CC26: 11R | CD26: 11R | CE26: 11R | CF26: 11R | CG26: 11R | CH26: 12R | CI26: 12R | CJ26: 9R | CK26: 9R | CL26: 9R | CM26: 9R | CN26: 9R | CO26: 10R | CP26: 10R | CQ26: 10R | CR26: 10R | CS26: 11R | CT26: 11R | CU26: 11R | CV26: 11R | CW26: 11R | CX26: 11R | CY26: 11R | CZ26: 11R | DA26: 12R | DB26: 13R | DH26: =IF(AND(DG26=16,$DE$4>=17,$DE$4<=19),DG26&"D",0) ->  | DM26: =IF(AND(DL26=16,$DJ$4>=17,$DJ$4<=19),DL26&"D",0) -> 
B27: 28 | C27: 77 | D27: LG | F27: 28 | G27: 68 | H27: BR | M27: Type | O27: i201 | P27: =CMR!$E$27 -> 0 | Q27: =CMR!$E$27-0.5625 -> -0.5625 | R27: =$AK$144 -> 0 | S27: =$AK$143 -> 0 | T27: 1.25 | U27: 7.3125 | V27: 1.75 | W27: 4.406 | Y27: 1931 | AC27: Top Bottom Rail | AD27: =(Frame_Width-3.25)/12 -> -0.2708333333 | AE27: 0.273 | AF27: -0.0739375 | AH27: 0901 | AI27: Length | AJ27: Weight/ft | AK27: Weight | AP27: 0 | AQ27: =IF(AND(AP27=10,$AN$4=20),"Dbl."&AP27&"B",0) ->  | AU27: 0 | AV27: =IF(AND(AU27=10,$AS$4=20),"Dbl."&AU27&"B",0) ->  | AZ27: 1700 | BB27: =VLOOKUP((CDIM_1700-0.84375),Caldwell,3) ->  | BD27: 26 | BL27: 4B | BM27: 4B | BN27: 4B | BO27: 4B | BP27: 6B | BQ27: 6B | BR27: 6B | BS27: 6B | BT27: 6B | BU27: 6B | BV27: 7B | BW27: 9B | BX27: 9B | BY27: 9B | BZ27: 11R | CA27: 11R | CB27: 11R | CC27: 12R | CD27: 12R | CE27: 12R | CF27: 12R | CG27: 12R | CH27: 13R | CI27: 13R | CJ27: 9R | CK27: 9R | CL27: 10R | CM27: 10R | CN27: 10R | CO27: 10R | CP27: 10R | CQ27: 10R | CR27: 11R | CS27: 11R | CT27: 12R | CU27: 12R | CV27: 12R | CW27: 12R | CX27: 12R | CY27: 12R | CZ27: 12R | DA27: 13R | DB27: 14R | DH27: =IF(AND(DG27=16,$DE$4>=20,$DE$4<=22),DG27&"E",0) ->  | DM27: =IF(AND(DL27=16,$DJ$4>=20,$DJ$4<=22),DL27&"E",0) -> 
B28: 29 | C28: 78 | D28: OR | F28: 29 | G28: 78 | H28: GR | L28: 1 | M28: =IF(TYPE1>"",TYPE1,"") ->  | O28: 3100 | P28: =CMR!$E$91 -> 0 | Q28: =TRUNC(((CMR!$E$91-0.375)*32+0.5))/32 -> -0.34375 | R28: =$AK$121 -> 0 | S28: 0 | T28: 1.25 | U28: 3.42977 | V28: 2.42977 | W28: 4.86 | Z28: =VLOOKUP(ModelNo,$Y$16:$Z$27,2,FALSE) ->  | AC28: Top Stile | AD28: =(2*(CMR!$E$26-1.5625))/12 -> -0.2604166667 | AE28: 0.233 | AF28: -0.06067708333 | AH28: Top Top Rail | AI28: =(Frame_Width-3.4375)/12 -> -0.2864583333 | AJ28: 0.352 | AK28: =AI28*AJ28 -> -0.1008333333 | AP28: 0 | AQ28: =IF(AND(AP28=10,$AN$4>=21,$AN$4<=26),"Dbl."&AP28&"C",0) ->  | AU28: 0 | AV28: =IF(AND(AU28=10,$AS$4>=21,$AS$4<=26),"Dbl."&AU28&"C",0) ->  | AZ28: 1720 | BB28: =VLOOKUP((CDIM_1720-0.84375),Caldwell,3) ->  | BD28: 27 | BR28: 6B | BS28: 6B | BT28: 6B | BU28: 7B | BV28: 7B | BW28: 9B | BX28: 10B | BY28: 10B | BZ28: 11R | CA28: 11R | CB28: 12R | CC28: 12R | CD28: 12R | CE28: 12R | CF28: 12R | CG28: 12R | CH28: 13R | CI28: 13R | CJ28: 9R | CK28: 10R | CL28: 10R | CM28: 10R | CN28: 10R | CO28: 11R | CP28: 11R | CQ28: 11R | CR28: 12R | CS28: 12R | CT28: 12R | CU28: 12R | CV28: 12R | CW28: 12R | CX28: 12R | CY28: 13R | CZ28: 13R | DA28: 14R | DB28: 14R | DH28: =IF(AND(DG28=16,$DE$4>=23,$DE$4<=24),DG28&"F",0) ->  | DM28: =IF(AND(DL28=16,$DJ$4>=23,$DJ$4<=24),DL28&"F",0) -> 
B29: 30 | C29: 78 | D29: OR | F29: 30 | G29: 78 | H29: GR | L29: 2 | M29: =IF(TYPE2>"",TYPE2,"") ->  | O29: R601 | P29: =CMR!$L$75 -> 0 | Q29: =CMR!$L$75-0.65625 -> -0.65625 | R29: =$AK$73 -> 0 | S29: =$AK$72 -> 0 | W29: 5.9375 | Z29: =IF(VEH>0,ROUND(((VEH*EW)/144),3)) ->  | AC29: Top Rail Reinf. | AD29: =(TRUNC(((Frame_Width-3.25)-6)/2)*2)/12 -> -0.6666666667 | AE29: =IF(ModelNo="0201",0.299,IF(ModelNo="L201",0.052,0)) -> 0 | AF29: 0 | AH29: Top Bottom Rail | AI29: =(Frame_Width-3.4375)/12 -> -0.2864583333 | AJ29: 0.344 | AK29: -0.09854166667 | AP29: 0 | AQ29: =IF(AND(AP29=10,$AN$4>=27,$AN$4<=32),"Dbl."&AP29&"D",0) ->  | AU29: 0 | AV29: =IF(AND(AU29=10,$AS$4>=27,$AS$4<=32),"Dbl."&AU29&"D",0) ->  | AZ29: 1730 | BB29: =VLOOKUP((CDIM_1730-0.84375),Caldwell,3) ->  | BD29: 28 | BR29: 6B | BS29: 6B | BT29: 7B | BU29: 8B | BV29: 8B | BW29: 9B | BX29: 10B | BY29: 10B | BZ29: 12R | CA29: 12R | CB29: 12R | CC29: 12R | CD29: 12R | CE29: 12R | CF29: 12R | CG29: 13R | CH29: 13R | CI29: 13R | CJ29: 10R | CK29: 10R | CL29: 11R | CM29: 11R | CN29: 11R | CO29: 11R | CP29: 12R | CQ29: 12R | CR29: 12R | CS29: 12R | CT29: 13R | CU29: 13R | CV29: 13R | CW29: 13R | CX29: 13R | CY29: 13R | CZ29: 14R | DA29: 14R | DB29: 15R | DH29: =IF(AND(DG29=16,$DE$4>=25,$DE$4<=27),DG29&"G",0) ->  | DM29: =IF(AND(DL29=16,$DJ$4>=25,$DJ$4<=27),DL29&"G",0) -> 
B30: 31 | C30: 88 | D30: WT | F30: 31 | G30: 88 | H30: RD | L30: 3 | M30: =IF(TYPE3>"",TYPE3,"") ->  | O30: 8001 | P30: =CMR!$L$75 -> 0 | Q30: =INT((CMR!$L$75-0.811-0.0625)*32+0.5)/32 -> -0.875 | R30: =$AK$73 -> 0 | S30: =$AK$72 -> 0 | W30: 5.9375 | AC30: Top Stile Reinf | AD30: =IF(CMR!$E$31>26.6875,((TRUNC((CMR!$E$26-9.5)/2)*2)/12)*2,0) -> 0 | AE30: =IF(ModelNo="0201",0.299,IF(ModelNo="L201",0.052,0)) -> 0 | AF30: 0 | AH30: Top Stile | AI30: =(2*(CMR!$E$74-0.8125))/12 -> -0.1354166667 | AJ30: 0.218 | AK30: -0.02952083333 | AP30: 0 | AQ30: =IF(AND(AP30=10,$AN$4>=33,$AN$4<=38),"Dbl."&AP30&"E",0) ->  | AU30: 0 | AV30: =IF(AND(AU30=10,$AS$4>=33,$AS$4<=38),"Dbl."&AU30&"E",0) ->  | AZ30: 1900 | BB30: =VLOOKUP((CDIM_1900-0.84375),Caldwell,3) ->  | BD30: 29 | BT30: 4H | BU30: 4H | BV30: 8B | BW30: 10B | BX30: 10B | BY30: 10B | BZ30: 12R | CA30: 12R | CB30: 13R | CC30: 13R | CD30: 13R | CE30: 13R | CF30: 13R | CG30: 13R | CH30: 13R | CI30: 13R | CJ30: 10R | CK30: 11R | CL30: 11R | CM30: 11R | CN30: 11R | CO30: 12R | CP30: 12R | CQ30: 12R | CR30: 12R | CS30: 13R | CT30: 13R | CU30: 13R | CV30: 13R | CW30: 13R | CX30: 13R | CY30: 14R | CZ30: 14R | DA30: 15R | DB30: 16R | DG30: =IF(AND($DF$4<=18,$DF$4>16),18,0) ->  | DH30: =IF(AND(DG30=18,$DE$4>=4,$DE$4<=9),DG30&"A",0) ->  | DL30: =IF(AND($DK$4<=18,$DK$4>16),18,0) ->  | DM30: =IF(AND(DL30=18,$DJ$4>=4,$DJ$4<=9),DL30&"A",0) -> 
B31: 32 | C31: 88 | D31: WT | F31: 32 | G31: 88 | H31: RD | L31: 4 | M31: =IF(TYPE4>"",TYPE4,"") ->  | O31: S140 | P31: =CDIMS140 -> 0 | Q31: =BSH_S140 ->  | R31: =SW_S140 ->  | S31: 0 | T31: =IF(OR(EXTSELECT=2,EXTSELECT=3,EXTSELECT=6),1.3125,IF(OR(EXTSELECT=4,EXTSELECT=5),1.03125,0)) -> 0 | U31: =IF(OR(EXTSELECT=2,EXTSELECT=3),7.875,IF(OR(EXTSELECT=4,EXTSELECT=5),3.074,IF(OR(EXTSELECT=7,EXTSELECT=8),1,7.4375))) -> 7.4375 | V31: =IF(OR(EXTSELECT=2,EXTSELECT=3),1.875,IF(OR(EXTSELECT=4,EXTSELECT=5),1.537,IF(EXTSELECT=7,1.818,IF(EXTSELECT=8,2,1.75)))) -> 1.75 | W31: =IF(OR(EXTSELECT=2,EXTSELECT=3),5.8125,IF(OR(EXTSELECT=4,EXTSELECT=5),3.0625,IF(OR(EXTSELECT=7,EXTSELECT=8),4.625,4.5))) -> 4.5 | AC31: Top Glass | AD31: =(CMR!$E$29*CMR!$E$31)/144 -> 0.1068522135 | AE31: =$L$12 ->  | AH31: Top Rail Reinf. | AI31: =(ROUND(Frame_Width-13,2))/12 -> -1.083333333 | AJ31: 0.146 | AK31: -0.1581666667 | AP31: =IF(AND($AO$4<=12,$AO$4>10),12,0) -> 0 | AQ31: =IF(AND(AP31=12,$AN$4>=3,$AN$4<=7),AP31&"A",0) ->  | AU31: =IF(AND($AT$4<=12,$AT$4>10),12,0) -> 0 | AV31: =IF(AND(AU31=12,$AS$4>=3,$AS$4<=7),AU31&"A",0) ->  | AZ31: 1920 | BB31: =VLOOKUP((CDIM_1920-0.84375),Caldwell,3) ->  | BD31: 30 | BT31: 4H | BU31: 4H | BV31: 4H | BW31: 4H | BX31: 5H | BY31: 5H | BZ31: 5H | CA31: 5H | CB31: 5H | CC31: 5H | CD31: 6H | CE31: 6H | CF31: 6H | CG31: 6H | CH31: 7H | CI31: 7H | CJ31: 10R | CK31: 11R | CL31: 11R | CM31: 12R | CN31: 12R | CO31: 13R | CP31: 13R | CQ31: 13R | CR31: 13R | CS31: 14R | CT31: 14R | CU31: 14R | CV31: 14R | CW31: 14R | CX31: 14R | CY31: 14R | CZ31: 15R | DA31: 15R | DB31: 17R | DH31: =IF(AND(DG31=18,$DE$4>=10,$DE$4<=13),DG31&"B",0) ->  | DM31: =IF(AND(DL31=18,$DJ$4>=10,$DJ$4<=13),DL31&"B",0) -> 
B32: 33 | C32: 89 | D32: NAT | F32: 33 | G32: 89 | H32: YW | L32: 1 | M32: =VLOOKUP(TYPE,L28:M31,2,FALSE) ->  | O32: S144 | P32: =CDIMS140 -> 0 | Q32: =BSH_S140 ->  | R32: =SW_S140 ->  | S32: 0 | T32: =IF(OR(EXTSELECT=2,EXTSELECT=3,EXTSELECT=6),1.3125,IF(OR(EXTSELECT=4,EXTSELECT=5),1.03125,0)) -> 0 | U32: =IF(OR(EXTSELECT=2,EXTSELECT=3),7.875,IF(OR(EXTSELECT=4,EXTSELECT=5),3.074,IF(OR(EXTSELECT=7,EXTSELECT=8),1,7.4375))) -> 7.4375 | V32: =IF(OR(EXTSELECT=2,EXTSELECT=3),1.875,IF(OR(EXTSELECT=4,EXTSELECT=5),1.537,IF(EXTSELECT=7,1.818,IF(EXTSELECT=8,2,1.75)))) -> 1.75 | W32: =IF(OR(EXTSELECT=2,EXTSELECT=3),5.8125,IF(OR(EXTSELECT=4,EXTSELECT=5),3.0625,IF(OR(EXTSELECT=7,EXTSELECT=8),4.625,4.5))) -> 4.5 | Y32: SHAT Error | AC32: Top Spacer | AD32: =((CMR!$E$29*2)+(CMR!$E$31*2))/12 -> -1.338541667 | AE32: 0.0536 | AF32: -0.07174583333 | AH32: Top Stile Reinf | AJ32: 0.146 | AK32: 0 | AP32: 0 | AQ32: =IF(AND(AP32=12,$AN$4>=8,$AN$4<=10),AP32&"B",0) ->  | AU32: 0 | AV32: =IF(AND(AU32=12,$AS$4>=8,$AS$4<=10),AU32&"B",0) ->  | AZ32: 1930 | BB32: =VLOOKUP((CDIM_1930-0.84375),Caldwell,3) ->  | BD32: 31 | BT32: 4H | BU32: 4H | BV32: 4H | BW32: 5H | BX32: 5H | BY32: 5H | BZ32: 6H | CA32: 6H | CB32: 6H | CC32: 6H | CD32: 6H | CE32: 6H | CF32: 7H | CG32: 7H | CH32: 7H | CI32: 7H | CJ32: 8H | CK32: 8H | CL32: 9H | CM32: 9H | CN32: 9H | CO32: 9H | CP32: 10H | CQ32: 10H | CR32: 10H | CS32: 10H | CT32: 11H | CU32: 11H | CV32: 11H | CW32: 11H | CX32: 12H | CY32: 12H | CZ32: 12H | DA32: 12H | DB32: 12H | DH32: =IF(AND(DG32=18,$DE$4>=14,$DE$4<=18),DG32&"C",0) ->  | DM32: =IF(AND(DL32=18,$DJ$4>=14,$DJ$4<=18),DL32&"C",0) -> 
B33: 34 | C33: 89 | D33: NAT | F33: 34 | G33: 89 | H33: YW | O33: S146 | P33: =CDIMS140 -> 0 | Q33: =BSH_S140 ->  | R33: =SW_S140 ->  | S33: 0 | T33: =IF(OR(EXTSELECT=2,EXTSELECT=3,EXTSELECT=6),1.3125,IF(OR(EXTSELECT=4,EXTSELECT=5),1.03125,0)) -> 0 | U33: =IF(OR(EXTSELECT=2,EXTSELECT=3),7.875,IF(OR(EXTSELECT=4,EXTSELECT=5),3.074,IF(OR(EXTSELECT=7,EXTSELECT=8),1,7.4375))) -> 7.4375 | V33: =IF(OR(EXTSELECT=2,EXTSELECT=3),1.875,IF(OR(EXTSELECT=4,EXTSELECT=5),1.537,IF(EXTSELECT=7,1.818,IF(EXTSELECT=8,2,1.75)))) -> 1.75 | W33: =IF(OR(EXTSELECT=2,EXTSELECT=3),5.8125,IF(OR(EXTSELECT=4,EXTSELECT=5),3.0625,IF(OR(EXTSELECT=7,EXTSELECT=8),4.625,4.5))) -> 4.5 | Y33: =IF(AND(OR(ModelNo="S140",ModelNo="S144",ModelNo="S146",ModelNo="S140 (HP)",ModelNo="S144 (HP)",ModelNo="S146 (HP)"),EH<6),1,0) ->  | AC33: Top Hardware | AD33: 1 | AE33: 0.2 | AF33: 0.2 | AH33: Top Glass | AI33: =(CMR!$E$77*CMR!$E$79)/144 -> 0.1002604167 | AJ33: =$L$12 ->  | AP33: 0 | AQ33: =IF(AND(AP33=12,$AN$4>=11,$AN$4<=16),AP33&"C",0) ->  | AU33: 0 | AV33: =IF(AND(AU33=12,$AS$4>=11,$AS$4<=16),AU33&"C",0) ->  | AZ33: 1901 | BA33: =VLOOKUP((DDIM_1901-1),Caldwell,4) ->  | BB33: =VLOOKUP((CDIM_1901-1),Caldwell,3) ->  | BD33: 32 | BT33: 4H | BU33: 4H | BV33: 4H | BW33: 5H | BX33: 5H | BY33: 5H | BZ33: 6H | CA33: 6H | CB33: 6H | CC33: 6H | CD33: 6H | CE33: 6H | CF33: 7H | CG33: 7H | CH33: 7H | CI33: 7H | CJ33: 8H | CK33: 8H | CL33: 9H | CM33: 9H | CN33: 9H | CO33: 9H | CP33: 10H | CQ33: 10H | CR33: 10H | CS33: 10H | CT33: 11H | CU33: 11H | CV33: 11H | CW33: 11H | CX33: 12H | CY33: 12H | CZ33: 12H | DA33: 12H | DB33: 12H | DH33: =IF(AND(DG33=18,$DE$4>=19,$DE$4<=21),DG33&"D",0) ->  | DM33: =IF(AND(DL33=18,$DJ$4>=19,$DJ$4<=21),DL33&"D",0) -> 
B34: 35 | C34: 99 | D34: PU | F34: 35 | G34: 99 | H34: YW | M34: Opening | O34: V100 | P34: =CMR!$L$100 -> 0 | Q34: =TRUNC(((CMR!$L$100-0.844)*32+0.5))/32 -> -0.8125 | R34: =AF157 -> 0 | S34: =AF156 -> 0 | U34: 4 | W34: 4.625 | Y34: SHAT_MIN_R | AC34: Top Bead | AD34: =(((Frame_Width-4.3125)*2)+((CMR!$E$26-2.625)*2))/12 -> -1.15625 | AE34: 0.028 | AF34: -0.032375 | AH34: Top Spacer | AI34: =((CMR!$E$77*2)+(CMR!$E$79*2))/12 -> -1.302083333 | AJ34: 0.0536 | AK34: -0.06979166667 | AP34: 0 | AQ34: =IF(AND(AP34=12,$AN$4>=17,$AN$4<=18),AP34&"D",0) ->  | AU34: 0 | AV34: =IF(AND(AU34=12,$AS$4>=17,$AS$4<=18),AU34&"D",0) ->  | AZ34: 1921 | BA34: =VLOOKUP((DDIM_1921-1),Caldwell,4) ->  | BB34: =VLOOKUP((CDIM_1921-1),Caldwell,3) ->  | BD34: 33 | BT34: 5H | BU34: 5H | BV34: 5H | BW34: 5H | BX34: 6H | BY34: 6H | BZ34: 6H | CA34: 6H | CB34: 6H | CC34: 6H | CD34: 7H | CE34: 7H | CF34: 7H | CG34: 7H | CH34: 8H | CI34: 8H | CJ34: 9H | CK34: 9H | CL34: 10H | CM34: 10H | CN34: 10H | CO34: 10H | CP34: 11H | CQ34: 11H | CR34: 11H | CS34: 11H | CT34: 12H | CU34: 12H | CV34: 12H | CW34: 12H | CX34: 13H | CY34: 13H | CZ34: 13H | DA34: 13H | DB34: 13H | DH34: =IF(AND(DG34=18,$DE$4>=22,$DE$4<=24),DG34&"E",0) ->  | DM34: =IF(AND(DL34=18,$DJ$4>=22,$DJ$4<=24),DL34&"E",0) -> 
B35: 36 | C35: 99 | D35: PU | F35: 36 | G35: 99 | H35: YW | L35: 1 | M35: Exact Size | O35: V101 | P35: =CMR!$L$116 -> 0 | Q35: =TRUNC(((CMR!$L$116-0.3125)*32+0.5))/32 -> -0.28125 | R35: =AF179 -> 0 | S35: =AF178 -> 0 | U35: 4.75 | W35: 4.625 | Y35: =IF(AND(OR(ModelNo="S140",ModelNo="S144",ModelNo="S146"),SHATRADIUS<Y36),1,0) ->  | AC35: Bottom Top Rail | AD35: =(Frame_Width-2.25)/12 -> -0.1875 | AE35: 0.246 | AF35: =AD35*AE35 -> -0.046125 | AH35: Top Hardware | AI35: 1 | AJ35: 0.24 | AK35: 0.24 | AP35: 0 | AQ35: =IF(AND(AP35=12,$AN$4>=19,$AN$4<=21),AP35&"E",0) ->  | AU35: 0 | AV35: =IF(AND(AU35=12,$AS$4>=19,$AS$4<=21),AU35&"E",0) ->  | AZ35: 1931 | BA35: =VLOOKUP((DDIM_1931-1),Caldwell,4) ->  | BB35: =VLOOKUP((CDIM_1931-1),Caldwell,3) ->  | BD35: 34 | BT35: 5H | BU35: 5H | BV35: 5H | BW35: 6H | BX35: 6H | BY35: 6H | BZ35: 6H | CA35: 6H | CB35: 6H | CC35: 6H | CD35: 7H | CE35: 7H | CF35: 7H | CG35: 7H | CH35: 8H | CI35: 8H | CJ35: 9H | CK35: 9H | CL35: 10H | CM35: 10H | CN35: 10H | CO35: 10H | CP35: 11H | CQ35: 11H | CR35: 11H | CS35: 11H | CT35: 12H | CU35: 12H | CV35: 12H | CW35: 12H | CX35: 13H | CY35: 13H | CZ35: 13H | DA35: 13H | DB35: 14H | DH35: =IF(AND(DG35=18,$DE$4>=25,$DE$4<=26),DG35&"F",0) ->  | DM35: =IF(AND(DL35=18,$DJ$4>=25,$DJ$4<=26),DL35&"F",0) -> 
B36: 37 | C36: 766 | D36: BU | F36: 37 | G36: 478 | H36: PUR | L36: 2 | M36: Rough Opening | O36: V200 | P36: =CMR!$L$125 -> 0 | Q36: =TRUNC(((CMR!$L$125-0.8125)*32+0.5))/32-0.0625 -> -0.84375 | R36: =AK167 -> 0 | S36: =AK166 -> 0 | U36: 4.75 | W36: 4.625 | Y36: =IF(OR(ModelNo="S140",ModelNo="S144",ModelNo="S146"),VLOOKUP(EXTSELECT,L16:N20,3),0) -> 0 | AC36: Bottom Bottom Rail | AD36: =(Frame_Width-2.25)/12 -> -0.1875 | AE36: 0.257 | AF36: -0.0481875 | AH36: Top Handle Bead | AI36: =(Frame_Width-5.9375)/12 -> -0.4947916667 | AJ36: 0.078 | AK36: -0.03859375 | AP36: 0 | AQ36: =IF(AND(AP36=12,$AN$4>=22,$AN$4<=32),"Dbl."&AP36&"C",0) ->  | AU36: 0 | AV36: =IF(AND(AU36=12,$AS$4>=22,$AS$4<=32),"Dbl."&AU36&"C",0) ->  | AZ36: =ModelNo -> Select Model | BA36: =VLOOKUP($AZ$36,$AZ$5:$BB$35,2,FALSE) ->  | BB36: =VLOOKUP($AZ$36,$AZ$5:$BB$35,3,FALSE) ->  | BD36: 35 | BT36: 5H | BU36: 5H | BV36: 5H | BW36: 6H | BX36: 6H | BY36: 6H | BZ36: 7H | CA36: 7H | CB36: 7H | CC36: 7H | CD36: 7H | CE36: 7H | CF36: 8H | CG36: 8H | CH36: 9H | CI36: 9H | CJ36: 10H | CK36: 10H | CL36: 10H | CM36: 10H | CN36: 11H | CO36: 11H | CP36: 11H | CQ36: 11H | CR36: 12H | CS36: 12H | CT36: 13H | CU36: 13H | CV36: 13H | CW36: 13H | CX36: 14H | CY36: 14H | CZ36: 14H | DA36: 14H | DB36: 15H | DH36: =IF(AND(DG36=18,$DE$4>=27,$DE$4<=29),DG36&"G",0) ->  | DM36: =IF(AND(DL36=18,$DJ$4>=27,$DJ$4<=29),DL36&"G",0) -> 
B37: 38 | C37: 766 | D37: BU | F37: 38 | G37: 478 | H37: PUR | L37: 1 | M37: =VLOOKUP(RO,L35:M36,2,FALSE) -> Exact Size | O37: P601 | P37: =CMR!$L$91 -> 0 | Q37: =CMR!$L$91-1.0625 -> -1.0625 | R37: =$AK$97 -> 0 | S37: =$AK$96 -> 0 | W37: 5.9375 | Y37: SHAT_MESSAGE | AC37: Bottom Stile | AD37: =(2*(CMR!$E$27-0.5625))/12 -> -0.09375 | AE37: 0.233 | AF37: -0.02184375 | AH37: Top Bead | AI37: =((Frame_Width-5.9375)+((CMR!$E$74-3.0625)*2))/12 -> -1.005208333 | AJ37: 0.078 | AK37: -0.07840625 | AO37: =IF(AND(AP37>0,AQ37>0),AP37,0) ->  | AP37: 0 | AQ37: =IF(AND(AP37=12,$AN$4>=33,$AN$4<=36),"Dbl."&AP37&"D",0) ->  | AU37: 0 | AV37: =IF(AND(AU37=12,$AS$4>=33,$AS$4<=36),"Dbl."&AU37&"D",0) ->  | BD37: 36 | BT37: 5H | BU37: 5H | BV37: 5H | BW37: 6H | BX37: 6H | BY37: 6H | BZ37: 7H | CA37: 7H | CB37: 7H | CC37: 7H | CD37: 7H | CE37: 7H | CF37: 8H | CG37: 8H | CH37: 9H | CI37: 9H | CJ37: 10H | CK37: 10H | CL37: 10H | CM37: 10H | CN37: 11H | CO37: 11H | CP37: 11H | CQ37: 11H | CR37: 12H | CS37: 12H | CT37: 13H | CU37: 13H | CV37: 13H | CW37: 13H | CX37: 14H | CY37: 14H | CZ37: 14H | DA37: 14H | DB37: 15H | DH37: =IF(AND(DG37=18,$DE$4>=30,$DE$4<=32),DG37&"H",0) ->  | DM37: =IF(AND(DL37=18,$DJ$4>=30,$DJ$4<=32),DL37&"H",0) -> 
B38: 39 | C38: 866 | D38: YW | F38: 39 | G38: 488 | H38: YW | O38: 9001 | P38: =CMR!$L$91 -> 0 | Q38: =CMR!$L$91-1.0625 -> -1.0625 | R38: =$AK$97 -> 0 | S38: =$AK$96 -> 0 | W38: 5.9375 | Y38: =IF(Y35=1,"Radius Must be Greater Than "&Y36,"") ->  | AC38: Bottom Rail Reinf. | AD38: =(TRUNC(((Frame_Width-2.25)-6)/2)*2)/12 -> -0.6666666667 | AE38: =IF(ModelNo="0201",0.37,IF(ModelNo="L201",0.052,0)) -> 0 | AF38: 0 | AH38: Bottom Top Rail | AI38: =(Frame_Width-3)/12 -> -0.25 | AJ38: 0.429 | AK38: -0.10725 | AP38: 0 | AQ38: =IF(AND(AP38=12,$AN$4>=37,$AN$4<=42),"Dbl."&AP38&"E",0) ->  | AU38: 0 | AV38: =IF(AND(AU38=12,$AS$4>=37,$AS$4<=42),"Dbl."&AU38&"E",0) ->  | BD38: 37 | BT38: 6H | BU38: 6H | BV38: 6H | BW38: 7H | BX38: 7H | BY38: 7H | BZ38: 7H | CA38: 7H | CB38: 7H | CC38: 7H | CD38: 8H | CE38: 8H | CF38: 9H | CG38: 9H | CH38: 10H | CI38: 10H | CJ38: 11H | CK38: 11H | CL38: 11H | CM38: 11H | CN38: 12H | CO38: 12H | CP38: 12H | CQ38: 12H | CR38: 13H | CS38: 13H | CT38: 14H | CU38: 14H | CV38: 14H | CW38: 14H | CX38: 15H | CY38: 15H | CZ38: 15H | DA38: 15H | DB38: 16H | DG38: =IF(AND($DF$4<=20,$DF$4>18),20,0) ->  | DH38: =IF(AND(DG38=20,$DE$4>=5,$DE$4<=10),DG38&"A",0) ->  | DL38: =IF(AND($DK$4<=20,$DK$4>18),20,0) ->  | DM38: =IF(AND(DL38=20,$DJ$4>=5,$DJ$4<=10),DL38&"A",0) -> 
B39: 40 | C39: 866 | D39: YW | F39: 40 | G39: 488 | H39: YW | L39: =IF(OR(ModelNo="0100",ModelNo="01HP",ModelNo="0102",ModelNo="0103",ModelNo="0104",ModelNo="0109",ModelNo="0151",ModelNo="0152",ModelNo="0153",ModelNo="0154",ModelNo="0155",ModelNo="0170",ModelNo="0171",ModelNo="0172",ModelNo="0173",ModelNo="S174",ModelNo="S175",ModelNo="0179",ModelNo="0301"),1,0) -> 0 | M39: Screen | O39: 3001 | P39: =CDIM3001 -> 0 | Q39: =CDIM3001-0.4375 -> -0.4375 | R39: =BSW_3001 -> 0 | S39: =TSW_3001 -> 0 | T39: 1.3125 | U39: 7.875 | V39: 1.875 | W39: 5.25 | AC39: Bottom Stile Reinf. | AD39: =IF(CMR!$E$32>27.6875,((TRUNC((CMR!$E$27-4.5)/2)*2)/12)*2,0) -> 0 | AE39: =IF(ModelNo="0201",0.299,IF(ModelNo="L201",0.052,0)) -> 0 | AF39: 0 | AH39: Bottom Bottom Rail | AI39: =(Frame_Width-3)/12 -> -0.25 | AJ39: 0.429 | AK39: -0.10725 | AP39: =IF(AND($AO$4<=14,$AO$4>12),14,0) -> 0 | AQ39: =IF(AND(AP39=14,$AN$4>=3,$AN$4<=7),AP39&"A",0) ->  | AU39: =IF(AND($AT$4<=14,$AT$4>12),14,0) -> 0 | AV39: =IF(AND(AU39=14,$AS$4>=3,$AS$4<=7),AU39&"A",0) ->  | BD39: 38 | BT39: 6H | BU39: 6H | BV39: 6H | BW39: 7H | BX39: 7H | BY39: 7H | BZ39: 7H | CA39: 7H | CB39: 7H | CC39: 7H | CD39: 8H | CE39: 8H | CF39: 9H | CG39: 9H | CH39: 10H | CI39: 10H | CJ39: 11H | CK39: 11H | CL39: 11H | CM39: 11H | CN39: 12H | CO39: 12H | CP39: 12H | CQ39: 12H | CR39: 13H | CS39: 13H | CT39: 14H | CU39: 14H | CV39: 14H | CW39: 14H | CX39: 15H | CY39: 15H | CZ39: 16H | DA39: 16H | DB39: 17H | DH39: =IF(AND(DG39=20,$DE$4>=11,$DE$4<=14),DG39&"B",0) ->  | DM39: =IF(AND(DL39=20,$DJ$4>=11,$DJ$4<=14),DL39&"B",0) -> 
B40: 41 | C40: 777 | D40: GN | F40: 41 | G40: 588 | H40: RD | L40: 1 | M40: =IF(SCREEN1>"",SCREEN1,"") ->  | O40: 03A0 | P40: =CDIM03A0 -> 0 | Q40: =CDIM03A0-0.75 -> -0.75 | R40: =BSW03A0 -> 0 | T40: 1.3125 | U40: 7.875 | V40: 1.875 | W40: 5.8125 | AC40: Bottom Glass | AD40: =(CMR!$E$30*CMR!$E$32)/144 -> 0.05802408854 | AE40: =$L$12 ->  | AH40: Bottom Stile | AI40: =(2*(CMR!$E$75-0.8125))/12 -> -0.1354166667 | AJ40: 0.233 | AK40: -0.03155208333 | AP40: 0 | AQ40: =IF(AND(AP40=14,$AN$4>=8,$AN$4<=10),AP40&"B",0) ->  | AU40: 0 | AV40: =IF(AND(AU40=14,$AS$4>=8,$AS$4<=10),AU40&"B",0) ->  | BD40: 39 | BT40: 6H | BU40: 6H | BV40: 7H | BW40: 7H | BX40: 7H | BY40: 7H | BZ40: 7H | CA40: 7H | CB40: 8H | CC40: 8H | CD40: 8H | CE40: 8H | CF40: 9H | CG40: 9H | CH40: 10H | CI40: 10H | CJ40: 11H | CK40: 11H | CL40: 12H | CM40: 12H | CN40: 13H | CO40: 13H | CP40: 13H | CQ40: 13H | CR40: 14H | CS40: 14H | CT40: 15H | CU40: 15H | CV40: 15H | CW40: 15H | CX40: 16H | CY40: 16H | CZ40: 17H | DA40: 17H | DB40: 17H | DH40: =IF(AND(DG40=20,$DE$4>=15,$DE$4<=18),DG40&"C",0) ->  | DM40: =IF(AND(DL40=20,$DJ$4>=15,$DJ$4<=18),DL40&"C",0) -> 
B41: 42 | C41: 777 | D41: GN | F41: 42 | G41: 588 | H41: RD | L41: 2 | M41: =IF(SCREEN2>"",SCREEN2,"") ->  | O41: 1700 | P41: =CDIM_1700 -> 0 | Q41: =TRUNC(((CDIM_1700-0.84375)*32+0.5))/32 -> -0.8125 | R41: =AK201 -> 0 | S41: 0 | U41: 3 | V41: 4.1875 | W41: 4.625 | AC41: Bottom Spacer | AD41: =((CMR!$E$30*2)+(CMR!$E$32*2))/12 -> -1.005208333 | AE41: 0.0536 | AF41: -0.05387916667 | AH41: Bottom Rail Reinf. | AI41: =(ROUND(Frame_Width-13,2))/12 -> -1.083333333 | AJ41: 0.146 | AK41: -0.1581666667 | AP41: 0 | AQ41: =IF(AND(AP41=14,$AN$4>=11,$AN$4<=16),AP41&"C",0) ->  | AU41: 0 | AV41: =IF(AND(AU41=14,$AS$4>=11,$AS$4<=16),AU41&"C",0) ->  | BD41: 40 | BT41: 6H | BU41: 7H | BV41: 7H | BW41: 7H | BX41: 7H | BY41: 7H | BZ41: 7H | CA41: 7H | CB41: 8H | CC41: 8H | CD41: 8H | CE41: 8H | CF41: 9H | CG41: 9H | CH41: 10H | CI41: 10H | CJ41: 11H | CK41: 11H | CL41: 12H | CM41: 12H | CN41: 13H | CO41: 13H | CP41: 13H | CQ41: 13H | CR41: 14H | CS41: 14H | CT41: 15H | CU41: 15H | CV41: 15H | CW41: 15H | CX41: 16H | CY41: 16H | CZ41: 17H | DA41: 17H | DB41: 17H | DH41: =IF(AND(DG41=20,$DE$4>=19,$DE$4<=22),DG41&"D",0) ->  | DM41: =IF(AND(DL41=20,$DJ$4>=19,$DJ$4<=22),DL41&"D",0) -> 
B42: 43 | C42: 877 | D42: LG | F42: 43 | G42: 688 | H42: GR | L42: 3 | M42: =IF(SCREEN3>"",SCREEN3,"") ->  | O42: 1720 | P42: =CDIM_1720 -> 0 | Q42: =TRUNC(((CDIM_1720-0.84375)*32+0.5))/32 -> -0.8125 | R42: =AK213 -> 0 | S42: 0 | U42: 3 | V42: 4.1875 | W42: =Frame_Width/2+4.875 -> 4.875 | AC42: Bottom Hardware | AD42: 1 | AE42: 0.36 | AF42: 0.36 | AH42: Bottom Stile Reinf. | AJ42: 0.146 | AK42: 0 | AP42: 0 | AQ42: =IF(AND(AP42=14,$AN$4>=17,$AN$4<=19),AP42&"D",0) ->  | AU42: 0 | AV42: =IF(AND(AU42=14,$AS$4>=17,$AS$4<=19),AU42&"D",0) ->  | DH42: =IF(AND(DG42=20,$DE$4>=23,$DE$4<=26),DG42&"E",0) ->  | DM42: =IF(AND(DL42=20,$DJ$4>=23,$DJ$4<=26),DL42&"E",0) -> 
B43: 44 | C43: 877 | D43: LG | F43: 44 | G43: 688 | H43: GR | L43: 1 | M43: =IF(Screen_Type=3,"L",IF(Screen_Type=2,"F","H")) -> H | O43: 1730 | P43: =CDIM_1730 -> 0 | Q43: =TRUNC(((CDIM_1730-0.84375)*32+0.5))/32 -> -0.8125 | R43: =AK225 -> 0 | S43: 0 | U43: 3 | V43: 4.1875 | W43: =((Frame_Width/3)*2)+4.875 -> 4.875 | AC43: Bottom Bead | AD43: =(((Frame_Width-3.3125)*2)+((CMR!$E$27-1.625)*2))/12 -> -0.8229166667 | AE43: 0.028 | AF43: -0.02304166667 | AH43: Bottom Glass | AI43: =(CMR!$E$78*CMR!$E$80)/144 -> 0.1002604167 | AJ43: =$L$12 ->  | AP43: 0 | AQ43: =IF(AND(AP43=14,$AN$4>=20,$AN$4<=22),AP43&"E",0) ->  | AU43: 0 | AV43: =IF(AND(AU43=14,$AS$4>=20,$AS$4<=22),AU43&"E",0) ->  | DH43: =IF(AND(DG43=20,$DE$4>=27,$DE$4<=30),DG43&"F",0) ->  | DM43: =IF(AND(DL43=20,$DJ$4>=27,$DJ$4<=30),DL43&"F",0) -> 
B44: 45 | C44: 878 | D44: OR | F44: 45 | G44: 788 | H44: BR | M44: Add Grid for Weight Calc. | O44: 1900 | P44: =CDIM_1900 -> 0 | Q44: =TRUNC(((CDIM_1900-0.844)*16+0.5))/16 -> -0.8125 | R44: =AF204 -> 0 | S44: 0 | U44: 3 | V44: 4.4375 | W44: 4.625 | AE44: Top Sash | AF44: =IF(OR(ModelNo="0201",ModelNo="L201"),(SUM(AF26:AF34))+5,0) -> 0 | AH44: Bottom Spacer | AI44: =((CMR!$E$78*2)+(CMR!$E$80*2))/12 -> -1.302083333 | AJ44: 0.0536 | AK44: -0.06979166667 | AP44: 0 | AQ44: =IF(AND(AP44=14,$AN$4>=23,$AN$4<=25),AP44&"F",0) ->  | AU44: 0 | AV44: =IF(AND(AU44=14,$AS$4>=23,$AS$4<=25),AU44&"F",0) ->  | DH44: =IF(AND(DG44=20,$DE$4>=31,$DE$4<=34),DG44&"G",0) ->  | DM44: =IF(AND(DL44=20,$DJ$4>=31,$DJ$4<=34),DL44&"G",0) -> 
B45: 46 | C45: 878 | D45: OR | F45: 46 | G45: 788 | H45: BR | L45: =IF(GRIDWEIGHT=TRUE,0.25,0) -> 0 | M45: FALSE | O45: 1920 | P45: =CDIM_1920 -> 0 | Q45: =TRUNC(((CDIM_1920-0.844)*16+0.5))/16 -> -0.8125 | R45: =AF216 -> 0 | S45: 0 | U45: 3 | V45: 4.4375 | W45: =Frame_Width/2+4.875 -> 4.875 | AE45: Bottom Sash | AF45: =IF(OR(ModelNo="0201",ModelNo="l201"),SUM(AF35:AF43),0) -> 0 | AH45: Bottom Hardware | AI45: 1 | AJ45: 0.322 | AK45: 0.322 | AP45: 0 | AQ45: =IF(AND(AP45=14,$AN$4>=26,$AN$4<=28),AP45&"G",0) ->  | AU45: 0 | AV45: =IF(AND(AU45=14,$AS$4>=26,$AS$4<=28),AU45&"G",0) ->  | DG45: =IF(AND($DF$4<=22,$DF$4>20),22,0) ->  | DH45: =IF(AND(DG45=22,$DE$4>=5,$DE$4<=10),DG45&"A",0) ->  | DL45: =IF(AND($DK$4<=22,$DK$4>20),22,0) ->  | DM45: =IF(AND(DL45=22,$DJ$4>=5,$DJ$4<=10),DL45&"A",0) -> 
B46: 47 | C46: 888 | D46: WT | F46: 47 | G46: 888 | H46: OR | O46: 1930 | P46: =CDIM_1930 -> 0 | Q46: =TRUNC(((CDIM_1930-0.844)*16+0.5))/16 -> -0.8125 | R46: =AF228 -> 0 | S46: 0 | U46: 3 | V46: 4.4375 | W46: =((Frame_Width/3)*2)+4.875 -> 4.875 | AH46: Bottom Keeper Bead | AI46: =(Frame_Width-5.9375)/12 -> -0.4947916667 | AJ46: 0.078 | AK46: -0.03859375 | AP46: 0 | AQ46: =IF(AND(AP46=14,$AN$4>=29,$AN$4<=31),AP46&"H",0) ->  | AU46: 0 | AV46: =IF(AND(AU46=14,$AS$4>=29,$AS$4<=31),AU46&"H",0) ->  | DH46: =IF(AND(DG46=22,$DE$4>=11,$DE$4<=16),DG46&"B",0) ->  | DM46: =IF(AND(DL46=22,$DJ$4>=11,$DJ$4<=16),DL46&"B",0) -> 
B47: 48 | C47: 888 | D47: WT | F47: 48 | G47: 888 | H47: OR | O47: 1901 | P47: =CDIM_1901 -> 0 | Q47: =TRUNC(((CDIM_1901-1)*16+0.5))/16 -> -0.9375 | R47: =AK247 -> 0 | S47: =AK246 -> 0 | U47: 3.5 | V47: 3.125 | W47: 4.625 | AC47: 02A0 | AD47: Length | AE47: Weight/ft | AF47: Weight | AH47: Bottom Bead | AI47: =((Frame_Width-5.9375)+((CMR!$E$75-3.0625)*2))/12 -> -1.005208333 | AJ47: 0.078 | AK47: -0.07840625 | AP47: 0 | AQ47: =IF(AND(AP47=14,$AN$4>=32,$AN$4<=34),AP47&"I",0) ->  | AU47: 0 | AV47: =IF(AND(AU47=14,$AS$4>=32,$AS$4<=34),AU47&"I",0) ->  | DH47: =IF(AND(DG47=22,$DE$4>=17,$DE$4<=21),DG47&"C",0) ->  | DM47: =IF(AND(DL47=22,$DJ$4>=17,$DJ$4<=21),DL47&"C",0) -> 
B48: 49 | C48: 889 | D48: BN | F48: 49 | G48: 889 | H48: BU | O48: 1921 | P48: =CDIM_1921 -> 0 | Q48: =TRUNC(((CDIM_1921-1)*16+0.5))/16 -> -0.9375 | R48: =AK247 -> 0 | S48: =AK246 -> 0 | U48: 3.5 | V48: 3.125 | W48: =Frame_Width/2+4.875 -> 4.875 | AC48: Top Top Rail | AD48: 0 | AE48: 0 | AF48: =AD48*AE48 -> 0 | AJ48: Top Sash | AK48: =IF(OR(ModelNo="0901",ModelNo="09A1",ModelNo="09B1",ModelNo="09L1"),(SUM(AK28:AK37))+5,0) -> 0 | AP48: 0 | AQ48: =IF(AND(AP48=14,$AN$4>=35,$AN$4<=38),"Dbl."&AP48&"D",0) ->  | AU48: 0 | AV48: =IF(AND(AU48=14,$AS$4>=35,$AS$4<=38),"Dbl."&AU48&"D",0) ->  | DH48: =IF(AND(DG48=22,$DE$4>=22,$DE$4<=24),DG48&"D",0) ->  | DM48: =IF(AND(DL48=22,$DJ$4>=22,$DJ$4<=24),DL48&"D",0) -> 
B49: 50 | C49: 889 | D49: BN | F49: 50 | G49: 889 | H49: BU | O49: 1931 | P49: =CDIM_1931 -> 0 | Q49: =TRUNC(((CDIM_1931-1)*16+0.5))/16 -> -0.9375 | R49: =AK247 -> 0 | S49: =AK246 -> 0 | U49: 3.5 | V49: 3.125 | W49: =((Frame_Width/3)*2)+4.875 -> 4.875 | AC49: Top Bottom Rail | AD49: 0 | AE49: 0 | AF49: 0 | AJ49: Bottom Sash | AK49: =IF(OR(ModelNo="0901",ModelNo="09A1",ModelNo="09B1",ModelNo="09L1"),SUM(AK38:AK47),0) -> 0 | AP49: 0 | AQ49: =IF(AND(AP49=14,$AN$4>=39,$AN$4<=44),"Dbl."&AP49&"E",0) ->  | AU49: 0 | AV49: =IF(AND(AU49=14,$AS$4>=39,$AS$4<=44),"Dbl."&AU49&"E",0) ->  | DH49: =IF(AND(DG49=22,$DE$4>=25,$DE$4<=27),DG49&"E",0) ->  | DM49: =IF(AND(DL49=22,$DJ$4>=25,$DJ$4<=27),DL49&"E",0) -> 
B50: 51 | C50: 899 | D50: RD | F50: 51 | G50: 899 | H50: BK | AC50: Top Stile | AD50: 0 | AE50: 0 | AF50: 0 | AP50: 0 | AQ50: =IF(AND(AP50=14,$AN$4>=45,$AN$4<=50),"Dbl."&AP50&"F",0) ->  | AU50: 0 | AV50: =IF(AND(AU50=14,$AS$4>=45,$AS$4<=50),"Dbl."&AU50&"F",0) ->  | DH50: =IF(AND(DG50=22,$DE$4>=28,$DE$4<=30),DG50&"F",0) ->  | DM50: =IF(AND(DL50=22,$DJ$4>=28,$DJ$4<=30),DL50&"F",0) -> 
B51: 52 | C51: 899 | D51: RD | F51: 52 | G51: 899 | H51: BK | AC51: Top Rail Reinf. | AD51: 0 | AE51: 0 | AF51: 0 | AH51: 8001 | AI51: Length | AJ51: Weight/ft | AK51: Weight | AP51: 0 | AQ51: =IF(AND(AP51=14,$AN$4>=51,$AN$4<=56),"Dbl."&AP51&"G",0) ->  | AU51: 0 | AV51: =IF(AND(AU51=14,$AS$4>=51,$AS$4<=56),"Dbl."&AU51&"G",0) ->  | AX51: =IF(Model_Select>1,HLOOKUP(Package_Select,#REF!,2,FALSE),"") ->  | DH51: =IF(AND(DG51=22,$DE$4>=31,$DE$4<=34),DG51&"G",0) ->  | DM51: =IF(AND(DL51=22,$DJ$4>=31,$DJ$4<=34),DL51&"G",0) -> 
B52: 53 | C52: 999 | D52: NAT | F52: 53 | G52: 999 | H52: NAT | AC52: Top Stile Reinf | AD52: 0 | AE52: 0 | AF52: 0 | AH52: Top Top Rail | AI52: =(Data!#REF!)/12 ->  | AJ52: 0.341 | AK52: =AI52*AJ52 ->  | AP52: 0 | AQ52: =IF(AND(AP52=14,$AN$4>=57,$AN$4<=62),"Dbl."&AP52&"H",0) ->  | AU52: 0 | AV52: =IF(AND(AU52=14,$AS$4>=57,$AS$4<=62),"Dbl."&AU52&"H",0) ->  | AX52: =IF(Model_Select>1,HLOOKUP(Package_Select,#REF!,3,FALSE),"") ->  | DH52: =IF(AND(DG52=22,$DE$4>=35,$DE$4<=37),DG52&"H",0) ->  | DM52: =IF(AND(DL52=22,$DJ$4>=35,$DJ$4<=37),DL52&"H",0) -> 
B53: 54 | C53: 999 | D53: NAT | F53: 54 | G53: 999 | H53: NAT | AC53: Top Glass | AD53: 0 | AE53: 0 | AF53: 0 | AH53: Top Bottom Rail | AI53: =(Data!#REF!)/12 ->  | AJ53: 0.384 | AP53: 0 | AQ53: =IF(AND(AP53=14,$AN$4>=63,$AN$4<=68),"Dbl."&AP53&"I",0) ->  | AU53: 0 | AV53: =IF(AND(AU53=14,$AS$4>=63,$AS$4<=68),"Dbl."&AU53&"I",0) ->  | AX53: =IF(Model_Select>1,HLOOKUP(Package_Select,#REF!,4,FALSE),"") ->  | DG53: =IF(AND($DF$4<=24,$DF$4>22),24,0) ->  | DH53: =IF(AND(DG53=24,$DE$4>=6,$DE$4<=10),DG53&"A",0) ->  | DL53: =IF(AND($DK$4<=24,$DK$4>22),24,0) ->  | DM53: =IF(AND(DL53=24,$DJ$4>=6,$DJ$4<=10),DL53&"A",0) -> 
B54: 55 | C54: 6679 | D54: BU | F54: 55 | G54: 4888 | H54: NAT | AC54: Top Spacer | AD54: 0 | AE54: 0 | AF54: 0 | AH54: Top Stile | AI54: =(Data!#REF!*2)/12 ->  | AJ54: 0.311 | AP54: =IF(AND($AO$4<=16,$AO$4>14),16,0) -> 0 | AQ54: =IF(AND(AP54=16,$AN$4>=3,$AN$4<=7),AP54&"A",0) ->  | AU54: =IF(AND($AT$4<=16,$AT$4>14),16,0) -> 0 | AV54: =IF(AND(AU54=16,$AS$4>=3,$AS$4<=7),AU54&"A",0) ->  | AX54: =IF(Model_Select>1,HLOOKUP(Package_Select,#REF!,5,FALSE),"") ->  | DH54: =IF(AND(DG54=24,$DE$4>=11,$DE$4<=17),DG54&"B",0) ->  | DM54: =IF(AND(DL54=24,$DJ$4>=11,$DJ$4<=17),DL54&"B",0) -> 
B55: 56 | C55: 6679 | D55: BU | F55: 56 | G55: 4888 | H55: NAT | AC55: Top Hardware | AD55: 0 | AE55: 0 | AF55: 0 | AH55: Top Stile Reinf. | AI55: =IF(CMR!$L$79>26.75,TRUNC((CMR!$L$74-9.5)/2)*2,0) -> 0 | AJ55: 0 | AK55: 0 | AP55: 0 | AQ55: =IF(AND(AP55=16,$AN$4>=8,$AN$4<=10),AP55&"B",0) ->  | AU55: 0 | AV55: =IF(AND(AU55=16,$AS$4>=8,$AS$4<=10),AU55&"B",0) ->  | AX55: =IF(Model_Select>1,HLOOKUP(Package_Select,#REF!,6,FALSE),"") ->  | DH55: =IF(AND(DG55=24,$DE$4>=18,$DE$4<=22),DG55&"C",0) ->  | DM55: =IF(AND(DL55=24,$DJ$4>=18,$DJ$4<=22),DL55&"C",0) -> 
B56: 57 | C56: 6779 | D56: LG | F56: 57 | G56: 5888 | H56: BK | AC56: Top Bead | AD56: 0 | AE56: 0 | AF56: 0 | AH56: Keeper Bead | AI56: =(INT((Data!#REF!-1.197)*32+0.5)/32)/12 ->  | AJ56: 0.097 | AP56: 0 | AQ56: =IF(AND(AP56=16,$AN$4>=11,$AN$4<=16),AP56&"C",0) ->  | AU56: 0 | AV56: =IF(AND(AU56=16,$AS$4>=11,$AS$4<=16),AU56&"C",0) ->  | AX56: =IF(Model_Select>1,HLOOKUP(Package_Select,#REF!,7,FALSE),"") ->  | DH56: =IF(AND(DG56=24,$DE$4>=23,$DE$4<=25),DG56&"D",0) ->  | DM56: =IF(AND(DL56=24,$DJ$4>=23,$DJ$4<=25),DL56&"D",0) -> 
B57: 58 | C57: 6779 | D57: LG | F57: 58 | G57: 5888 | H57: BK | AC57: Bottom Top Rail | AD57: =(Frame_Width-2.25)/12 -> -0.1875 | AE57: 0.241 | AF57: =AD57*AE57 -> -0.0451875 | AH57: Top Glass | AI57: =(CMR!$L$77*CMR!$L$79)/144 -> 0.1705932617 | AJ57: =$L$12 ->  | AP57: 0 | AQ57: =IF(AND(AP57=16,$AN$4>=17,$AN$4<=19),AP57&"D",0) ->  | AU57: 0 | AV57: =IF(AND(AU57=16,$AS$4>=17,$AS$4<=19),AU57&"D",0) ->  | AX57: =IF(Model_Select>1,HLOOKUP(Package_Select,#REF!,8,FALSE),"") ->  | DH57: =IF(AND(DG57=24,$DE$4>=26,$DE$4<=28),DG57&"E",0) ->  | DM57: =IF(AND(DL57=24,$DJ$4>=26,$DJ$4<=28),DL57&"E",0) -> 
B58: 59 | C58: 7779 | D58: WT | F58: 59 | G58: 6888 | H58: BU | AC58: Bottom Bottom Rail | AD58: =(Frame_Width-2.25)/12 -> -0.1875 | AE58: 0.25 | AF58: -0.046875 | AH58: Top Spacer | AI58: =((CMR!$L$77*2)+(CMR!$L$79*2))/12 -> -1.729166667 | AJ58: 0.034 | AK58: -0.05879166667 | AP58: 0 | AQ58: =IF(AND(AP58=16,$AN$4>=20,$AN$4<=22),AP58&"E",0) ->  | AU58: 0 | AV58: =IF(AND(AU58=16,$AS$4>=20,$AS$4<=22),AU58&"E",0) ->  | AX58: =IF(Model_Select>1,HLOOKUP(Package_Select,#REF!,9,FALSE),"") ->  | DH58: =IF(AND(DG58=24,$DE$4>=29,$DE$4<=30),DG58&"F",0) ->  | DM58: =IF(AND(DL58=24,$DJ$4>=29,$DJ$4<=30),DL58&"F",0) -> 
B59: 60 | C59: 7779 | D59: WT | F59: 60 | G59: 6888 | H59: BU | AC59: Bottom Stile | AD59: =((CMR!L27-0.75)*2)/12 -> -0.125 | AE59: 0.23 | AF59: -0.02875 | AH59: Top Hardware | AI59: 1 | AJ59: 0.2 | AK59: 0.2 | AP59: 0 | AQ59: =IF(AND(AP59=16,$AN$4>=23,$AN$4<=24),AP59&"F",0) ->  | AU59: 0 | AV59: =IF(AND(AU59=16,$AS$4>=23,$AS$4<=24),AU59&"F",0) ->  | AX59: =IF(Model_Select>1,HLOOKUP(Package_Select,#REF!,10,FALSE),"") ->  | DH59: =IF(AND(DG59=24,$DE$4>=31,$DE$4<=34),DG59&"G",0) ->  | DM59: =IF(AND(DL59=24,$DJ$4>=31,$DJ$4<=34),DL59&"G",0) -> 
B60: 61 | C60: 6799 | D60: OR | F60: 61 | G60: 7888 | H60: OR | AC60: Bottom Rail Reinf. | AD60: =(TRUNC(((AD57*12)-6)/2)*2)/12 -> -0.6666666667 | AE60: 0.328 | AF60: -0.2186666667 | AH60: Top Handle Bead | AI60: =AI56 ->  | AJ60: 0.097 | AP60: 0 | AQ60: =IF(AND(AP60=16,$AN$4>=25,$AN$4<=28),AP60&"G",0) ->  | AU60: 0 | AV60: =IF(AND(AU60=16,$AS$4>=25,$AS$4<=28),AU60&"G",0) ->  | AX60: =IF(Model_Select>1,HLOOKUP(Package_Select,#REF!,11,FALSE),"") ->  | DH60: =IF(AND(DG60=24,$DE$4>=35,$DE$4<=37),DG60&"H",0) ->  | DM60: =IF(AND(DL60=24,$DJ$4>=35,$DJ$4<=37),DL60&"H",0) -> 
B61: 62 | C61: 6799 | D61: OR | F61: 62 | G61: 7888 | H61: OR | AC61: Bottom Stile Reinf. | AD61: =IF(CMR!$L$32>=27.5,(((CMR!$L$32-4.5)/2)*2)/12,0) -> 0 | AE61: 0.238 | AF61: 0 | AH61: Top Vert. Bead | AI61: =(2*(INT((Data!#REF!-1.197)*32+0.5)/32))/12 ->  | AJ61: 0.097 | AP61: 0 | AQ61: =IF(AND(AP61=16,$AN$4>=29,$AN$4<=31),AP61&"H",0) ->  | AU61: 0 | AV61: =IF(AND(AU61=16,$AS$4>=29,$AS$4<=31),AU61&"H",0) ->  | DG61: =IF(AND($DF$4<=26,$DF$4>24),26,0) ->  | DH61: =IF(AND(DG61=26,$DE$4>=6,$DE$4<=11),DG61&"A",0) ->  | DL61: =IF(AND($DK$4<=26,$DK$4>24),26,0) ->  | DM61: =IF(AND(DL61=26,$DJ$4>=6,$DJ$4<=11),DL61&"A",0) -> 
B62: 63 | C62: 7799 | D62: BN | F62: 63 | G62: 8888 | H62: BR | AC62: Bottom Glass | AD62: =(CMR!$L$30*CMR!$L$32)/144 -> 0.06391059028 | AE62: =$L$12 ->  | AH62: Bottom Top Rail | AI62: =(Data!#REF!)/12 ->  | AJ62: 0.428 | AP62: 0 | AQ62: =IF(AND(AP62=16,$AN$4>=32,$AN$4<=34),AP62&"I",0) ->  | AU62: 0 | AV62: =IF(AND(AU62=16,$AS$4>=32,$AS$4<=34),AU62&"I",0) ->  | DH62: =IF(AND(DG62=26,$DE$4>=12,$DE$4<=17),DG62&"B",0) ->  | DM62: =IF(AND(DL62=26,$DJ$4>=12,$DJ$4<=17),DL62&"B",0) -> 
B63: 64 | C63: 7799 | D63: BN | F63: 64 | G63: 8888 | H63: BR | AC63: Bottom Spacer | AD63: =((CMR!$L$30*2)+(CMR!$L$32*2))/12 -> -1.041666667 | AE63: 0.0536 | AF63: -0.05583333333 | AH63: Bottom Bottom Rail | AI63: =(Data!#REF!)/12 ->  | AJ63: 0.443 | AP63: 0 | AQ63: =IF(AND(AP63=16,$AN$4>=35,$AN$4<=36),"Dbl."&AP63&"D",0) ->  | AU63: 0 | AV63: =IF(AND(AU63=16,$AS$4>=35,$AS$4<=36),"Dbl."&AU63&"D",0) ->  | DH63: =IF(AND(DG63=26,$DE$4>=18,$DE$4<=22),DG63&"C",0) ->  | DM63: =IF(AND(DL63=26,$DJ$4>=18,$DJ$4<=22),DL63&"C",0) -> 
B64: 65 | C64: 7899 | D64: GN | F64: 65 | G64: 8889 | H64: GR | AC64: Bottom Hardware | AD64: 1 | AE64: 0.36 | AF64: 0.36 | AH64: Bottom Stile | AI64: =(2*(Data!#REF!))/12 ->  | AJ64: 0.378 | AP64: 0 | AQ64: =IF(AND(AP64=16,$AN$4>=37,$AN$4<=44),"Dbl."&AP64&"E",0) ->  | AU64: 0 | AV64: =IF(AND(AU64=16,$AS$4>=37,$AS$4<=44),"Dbl."&AU64&"E",0) ->  | DH64: =IF(AND(DG64=26,$DE$4>=23,$DE$4<=26),DG64&"D",0) ->  | DM64: =IF(AND(DL64=26,$DJ$4>=23,$DJ$4<=26),DL64&"D",0) -> 
B65: 66 | C65: 7899 | D65: GN | F65: 66 | G65: 8889 | H65: GR | AC65: Bottom Bead | AD65: =(((Frame_Width-3.3125)*2)+((CMR!$L$27-1.8125)*2))/12 -> -0.8541666667 | AE65: 0.028 | AF65: -0.02391666667 | AH65: Lock Rail Reinf. | AI65: =(INT((Data!#REF!-6)/2)*2)/12 ->  | AJ65: 0.3184 | AP65: 0 | AQ65: =IF(AND(AP65=16,$AN$4>=45,$AN$4<=48),"Dbl."&AP65&"F",0) ->  | AU65: 0 | AV65: =IF(AND(AU65=16,$AS$4>=45,$AS$4<=48),"Dbl."&AU65&"F",0) ->  | DH65: =IF(AND(DG65=26,$DE$4>=27,$DE$4<=30),DG65&"E",0) ->  | DM65: =IF(AND(DL65=26,$DJ$4>=27,$DJ$4<=30),DL65&"E",0) -> 
B66: 67 | C66: 8899 | D66: RD | F66: 67 | G66: 8899 | H66: RD | AE66: Top Sash | AF66: 0 | AH66: Bottom Stile Reinf. | AI66: =IF(CMR!$L$80>27.75,TRUNC((CMR!$L$75-4.5)/2)*2,0) -> 0 | AJ66: 0 | AK66: 0 | AP66: 0 | AQ66: =IF(AND(AP66=16,$AN$4>=49,$AN$4<=56),"Dbl."&AP66&"G",0) ->  | AU66: 0 | AV66: =IF(AND(AU66=16,$AS$4>=49,$AS$4<=56),"Dbl."&AU66&"G",0) ->  | DH66: =IF(AND(DG66=26,$DE$4>=31,$DE$4<=34),DG66&"F",0) ->  | DM66: =IF(AND(DL66=26,$DJ$4>=31,$DJ$4<=34),DL66&"F",0) -> 
B67: 68 | C67: 8899 | D67: RD | F67: 68 | G67: 8899 | H67: RD | AE67: Bottom Sash | AF67: =IF(OR(ModelNo="02A0",ModelNo="S140",ModelNo="S144",ModelNo="S146",ModelNo="S140 (HP)",ModelNo="S144 (HP)",ModelNo="S146 (HP)"),SUM(AF57:AF65),0) -> 0 | AH67: Bottom Glass | AI67: =(CMR!$L$78*CMR!$L$80)/144 -> 0.1705932617 | AJ67: =$L$12 ->  | AP67: 0 | AQ67: =IF(AND(AP67=16,$AN$4>=57,$AN$4<=62),"Dbl."&AP67&"H",0) ->  | AU67: 0 | AV67: =IF(AND(AU67=16,$AS$4>=57,$AS$4<=62),"Dbl."&AU67&"H",0) ->  | DH67: =IF(AND(DG67=26,$DE$4>=35,$DE$4<=38),DG67&"G",0) ->  | DM67: =IF(AND(DL67=26,$DJ$4>=35,$DJ$4<=38),DL67&"G",0) -> 
B68: 69 | C68: 8999 | D68: YW | F68: 69 | G68: 8999 | H68: YW | AH68: Bottom Spacer | AI68: =((CMR!$L$78*2)+(CMR!$L$80*2))/12 -> -1.729166667 | AJ68: 0.034 | AK68: -0.05879166667 | AP68: 0 | AQ68: =IF(AND(AP68=16,$AN$4>=63,$AN$4<=68),"Dbl."&AP68&"I",0) ->  | AU68: 0 | AV68: =IF(AND(AU68=16,$AS$4>=63,$AS$4<=68),"Dbl."&AU68&"I",0) ->  | DH68: =IF(AND(DG68=26,$DE$4>=39,$DE$4<=42),DG68&"H",0) ->  | DM68: =IF(AND(DL68=26,$DJ$4>=39,$DJ$4<=42),DL68&"H",0) -> 
B69: 70 | C69: 8999 | D69: YW | F69: 70 | G69: 8999 | H69: YW | AC69: 0301 | AD69: Length | AE69: Weight/ft | AF69: Weight | AH69: Bottom Hardware | AI69: 1 | AJ69: 0.36 | AK69: 0.36 | AO69: =IF(AND(AP69>0,AQ69>0),AP69,0) ->  | AP69: =IF(AND($AO$4<=18,$AO$4>16),18,0) -> 0 | AQ69: =IF(AND(AP69=18,$AN$4>=4,$AN$4<=9),AP69&"A",0) ->  | AT69: =IF(AND(AU69>0,AV69>0),AU69,0) ->  | AU69: =IF(AND($AT$4<=18,$AT$4>16),18,0) -> 0 | AV69: =IF(AND(AU69=18,$AS$4>=4,$AS$4<=9),AU69&"A",0) ->  | DF69: =IF(AND(DG69>0,DH69>0),DG69,0) ->  | DG69: =IF(AND($DF$4<=28,$DF$4>26),28,0) ->  | DH69: =IF(AND(DG69=28,$DE$4>=7,$DE$4<=12),DG69&"A",0) ->  | DK69: =IF(AND(DL69>0,DM69>0),DL69,0) ->  | DL69: =IF(AND($DK$4<=28,$DK$4>26),28,0) ->  | DM69: =IF(AND(DL69=28,$DJ$4>=7,$DJ$4<=12),DL69&"A",0) -> 
B70: 71 | C70: 9999 | D70: PU | F70: 71 | G70: 9999 | H70: PUR | AC70: Top Top Rail | AD70: =(Frame_Width-3.25)/12 -> -0.2708333333 | AE70: 0.257 | AF70: =AD70*AE70 -> -0.06960416667 | AH70: Bott. Hor. Bead | AI70: =(2*(INT((Data!#REF!-2.197)*32+0.5)/32))/12 ->  | AJ70: 0.097 | AP70: 0 | AQ70: =IF(AND(AP70=18,$AN$4>=10,$AN$4<=13),AP70&"B",0) ->  | AU70: 0 | AV70: =IF(AND(AU70=18,$AS$4>=10,$AS$4<=13),AU70&"B",0) ->  | DH70: =IF(AND(DG70=28,$DE$4>=13,$DE$4<=18),DG70&"B",0) ->  | DM70: =IF(AND(DL70=28,$DJ$4>=13,$DJ$4<=18),DL70&"B",0) -> 
B71: 72 | C71: 9999 | D71: PU | F71: 72 | G71: 9999 | H71: PUR | AC71: Top Bottom Rail | AD71: =(Frame_Width-3.25)/12 -> -0.2708333333 | AE71: 0.273 | AF71: -0.0739375 | AH71: Bottom Vert. Bead | AI71: =(2*(INT((Data!#REF!-2.197)*32+0.5)/32))/12 ->  | AJ71: 0.097 | AP71: 0 | AQ71: =IF(AND(AP71=18,$AN$4>=14,$AN$4<=18),AP71&"C",0) ->  | AU71: 0 | AV71: =IF(AND(AU71=18,$AS$4>=14,$AS$4<=18),AU71&"C",0) ->  | DH71: =IF(AND(DG71=28,$DE$4>=19,$DE$4<=23),DG71&"C",0) ->  | DM71: =IF(AND(DL71=28,$DJ$4>=19,$DJ$4<=23),DL71&"C",0) -> 
AC72: Top Stile | AD72: =(2*(CMR!$E$42-1.625))/12 -> -0.2708333333 | AE72: 0.233 | AF72: -0.06310416667 | AJ72: Top Sash | AK72: =IF(OR(ModelNo="8001",ModelNo="R601"),(SUM(AK52:AK61))+6.5,0) -> 0 | AP72: 0 | AQ72: =IF(AND(AP72=18,$AN$4>=19,$AN$4<=21),AP72&"D",0) ->  | AU72: 0 | AV72: =IF(AND(AU72=18,$AS$4>=19,$AS$4<=21),AU72&"D",0) ->  | DH72: =IF(AND(DG72=28,$DE$4>=24,$DE$4<=28),DG72&"D",0) ->  | DM72: =IF(AND(DL72=28,$DJ$4>=24,$DJ$4<=28),DL72&"D",0) -> 
AC73: Top Rail Reinf. | AD73: =(TRUNC(((Frame_Width-3.25)-6)/2)*2)/12 -> -0.6666666667 | AE73: 0.299 | AF73: -0.1993333333 | AJ73: Bottom Sash | AK73: =IF(OR(ModelNo="8001",ModelNo="R601"),SUM(AK62:AK71),0) -> 0 | AP73: 0 | AQ73: =IF(AND(AP73=18,$AN$4>=22,$AN$4<=24),AP73&"E",0) ->  | AU73: 0 | AV73: =IF(AND(AU73=18,$AS$4>=22,$AS$4<=24),AU73&"E",0) ->  | DH73: =IF(AND(DG73=28,$DE$4>=29,$DE$4<=32),DG73&"E",0) ->  | DM73: =IF(AND(DL73=28,$DJ$4>=29,$DJ$4<=32),DL73&"E",0) -> 
B74: 4 | C74: 3 | D74: 1 | F74: 4 | G74: 3 | H74: 1 | AC74: Top Stile Reinf | AD74: =IF(CMR!$E$47>26.6875,((TRUNC((CMR!$E$42-9.5)/2)*2)/12)*2,0) -> 0 | AE74: 0.299 | AF74: 0 | AP74: 0 | AQ74: =IF(AND(AP74=18,$AN$4>=25,$AN$4<=26),AP74&"F",0) ->  | AU74: 0 | AV74: =IF(AND(AU74=18,$AS$4>=25,$AS$4<=26),AU74&"F",0) ->  | DH74: =IF(AND(DG74=28,$DE$4>=33,$DE$4<=36),DG74&"F",0) ->  | DM74: =IF(AND(DL74=28,$DJ$4>=33,$DJ$4<=36),DL74&"F",0) -> 
B75: =B74+1 -> 5 | C75: 3 | D75: 1 | F75: 5 | G75: 3 | H75: 1 | AC75: Top Glass | AD75: =(CMR!$E$45*CMR!$E$47)/144 -> 0.1100260417 | AE75: =$L$12 ->  | AH75: 9001 | AI75: Length | AJ75: Weight/ft | AK75: Weight | AP75: 0 | AQ75: =IF(AND(AP75=18,$AN$4>=27,$AN$4<=29),AP75&"G",0) ->  | AU75: 0 | AV75: =IF(AND(AU75=18,$AS$4>=27,$AS$4<=29),AU75&"G",0) ->  | DH75: =IF(AND(DG75=28,$DE$4>=37,$DE$4<=40),DG75&"G",0) ->  | DM75: =IF(AND(DL75=28,$DJ$4>=37,$DJ$4<=40),DL75&"G",0) -> 
B76: 6 | C76: 3 | D76: 1 | F76: 6 | G76: 3 | H76: 1 | AC76: Top Spacer | AD76: =((CMR!$E$45*2)+(CMR!$E$47*2))/12 -> -1.354166667 | AE76: 0.0536 | AF76: -0.07258333333 | AH76: Top Top Rail | AI76: =(Frame_Width-4.9375)/12 -> -0.4114583333 | AJ76: 0.369 | AK76: =AI76*AJ76 -> -0.151828125 | AP76: 0 | AQ76: =IF(AND(AP76=18,$AN$4>=30,$AN$4<=32),AP76&"H",0) ->  | AU76: 0 | AV76: =IF(AND(AU76=18,$AS$4>=30,$AS$4<=32),AU76&"H",0) ->  | DH76: =IF(AND(DG76=28,$DE$4>=41,$DE$4<=43),DG76&"H",0) ->  | DM76: =IF(AND(DL76=28,$DJ$4>=41,$DJ$4<=43),DL76&"H",0) -> 
B77: 7 | C77: 4 | D77: 1 | F77: 7 | G77: 4 | H77: 1 | AC77: Top Hardware | AD77: 1 | AE77: 0.2 | AF77: 0.2 | AH77: Top Bottom Rail | AI77: =(Frame_Width-4.9375)/12 -> -0.4114583333 | AJ77: 0.369 | AK77: -0.151828125 | AP77: 0 | AQ77: =IF(AND(AP77=18,$AN$4>=33,$AN$4<=34),AP77&"I",0) ->  | AU77: 0 | AV77: =IF(AND(AU77=18,$AS$4>=33,$AS$4<=34),AU77&"I",0) ->  | DH77: =IF(AND(DG77=28,$DE$4>=44,$DE$4<=45),DG77&"I",0) ->  | DM77: =IF(AND(DL77=28,$DJ$4>=44,$DJ$4<=45),DL77&"I",0) -> 
B78: 8 | C78: 4 | D78: 1 | F78: 8 | G78: 4 | H78: 1 | AC78: Top Bead | AD78: =(((Frame_Width-4.3125)*2)+((CMR!$E$42-2.6875)*2))/12 -> -1.166666667 | AE78: 0.028 | AF78: -0.03266666667 | AH78: Top Stile | AI78: =(2*(CMR!$L$90-2.0625))/12 -> -0.34375 | AJ78: 0.369 | AK78: -0.12684375 | AP78: 0 | AQ78: =IF(AND(AP78=18,$AN$4>=35,$AN$4<=36),"Dbl."&AP78&"C",0) ->  | AU78: 0 | AV78: =IF(AND(AU78=18,$AS$4>=35,$AS$4<=36),"Dbl."&AU78&"C",0) ->  | DG78: =IF(AND($DF$4<=30,$DF$4>28),30,0) ->  | DH78: =IF(AND(DG78=30,$DE$4>=8,$DE$4<=13),DG78&"A",0) ->  | DL78: =IF(AND($DK$4<=30,$DK$4>28),30,0) ->  | DM78: =IF(AND(DL78=30,$DJ$4>=8,$DJ$4<=13),DL78&"A",0) -> 
B79: 9 | C79: 5 | D79: 1 | F79: 9 | G79: 5 | H79: 1 | AC79: Bottom Top Rail | AD79: =(Frame_Width-2.25)/12 -> -0.1875 | AE79: 0.246 | AF79: -0.046125 | AH79: Top Rail Reinf. | AI79: =IF((INT((Frame_Width-9.9375)/2)*2)>12,(INT((Frame_Width-9.9375)/2)*2)/12,0) -> 0 | AJ79: 0.165 | AK79: 0 | AP79: 0 | AQ79: =IF(AND(AP79=18,$AN$4>=37,$AN$4<=42),"Dbl."&AP79&"D",0) ->  | AU79: 0 | AV79: =IF(AND(AU79=18,$AS$4>=37,$AS$4<=42),"Dbl."&AU79&"D",0) ->  | DH79: =IF(AND(DG79=30,$DE$4>=14,$DE$4<=19),DG79&"B",0) ->  | DM79: =IF(AND(DL79=30,$DJ$4>=14,$DJ$4<=19),DL79&"B",0) -> 
B80: 10 | C80: 5 | D80: 1 | F80: 10 | G80: 5 | H80: 1 | P80: FALSE | Q80: AC SASH CALCULATOR | AC80: Bottom Bottom Rail | AD80: =(Frame_Width-2.25)/12 -> -0.1875 | AE80: 0.257 | AF80: -0.0481875 | AH80: Keeper Bead | AI80: =(Frame_Width-4.59375)/12 -> -0.3828125 | AJ80: 0.096 | AK80: -0.03675 | AP80: 0 | AQ80: =IF(AND(AP80=18,$AN$4>=43,$AN$4<=48),"Dbl."&AP80&"E",0) ->  | AU80: 0 | AV80: =IF(AND(AU80=18,$AS$4>=43,$AS$4<=48),"Dbl."&AU80&"E",0) ->  | DH80: =IF(AND(DG80=30,$DE$4>=20,$DE$4<=24),DG80&"C",0) ->  | DM80: =IF(AND(DL80=30,$DJ$4>=20,$DJ$4<=24),DL80&"C",0) -> 
B81: 11 | C81: 6 | D81: 1 | F81: 11 | G81: 6 | H81: 1 | P81: Model | Q81: Head | R81: Sill | S81: Center of Astragal | T81: Top Sash Width | U81: Sash Height | V81: CMR | AC81: Bottom Stile | AD81: =(2*(CMR!$E$43-0.625))/12 -> -0.1041666667 | AE81: 0.233 | AF81: -0.02427083333 | AH81: Top Glass | AI81: =(CMR!$L$93*CMR!$L$95)/144 -> 0.1770562066 | AJ81: =$L$12 ->  | AP81: 0 | AQ81: =IF(AND(AP81=18,$AN$4>=49,$AN$4<=52),"Dbl."&AP81&"F",0) ->  | AU81: 0 | AV81: =IF(AND(AU81=18,$AS$4>=49,$AS$4<=52),"Dbl."&AU81&"F",0) ->  | DH81: =IF(AND(DG81=30,$DE$4>=25,$DE$4<=29),DG81&"D",0) ->  | DM81: =IF(AND(DL81=30,$DJ$4>=25,$DJ$4<=29),DL81&"D",0) -> 
B82: 12 | C82: 6 | D82: 1 | F82: 12 | G82: 6 | H82: 1 | P82: =ModelNo -> Select Model | Q82: =IF(ISERROR(VLOOKUP(ModelNo,ACTABLE,2,FALSE)),"",VLOOKUP(ModelNo,ACTABLE,2,FALSE)) ->  | R82: =IF(ISERROR(VLOOKUP(ModelNo,ACTABLE,3,FALSE)),"",VLOOKUP(ModelNo,ACTABLE,3,FALSE)) ->  | S82: =IF(ISERROR(VLOOKUP(ModelNo,ACTABLE,4,FALSE)),"",VLOOKUP(ModelNo,ACTABLE,4,FALSE)) ->  | T82: =IF(ISERROR(VLOOKUP(ModelNo,ACTABLE,5,FALSE)),"",VLOOKUP(ModelNo,ACTABLE,5,FALSE)) ->  | U82: =IF(ISERROR(VLOOKUP(ModelNo,ACTABLE,6,FALSE)),"",VLOOKUP(ModelNo,ACTABLE,6,FALSE)) ->  | V82: =IF(ISERROR(VLOOKUP(ModelNo,ACTABLE,7,FALSE)),"",VLOOKUP(ModelNo,ACTABLE,7,FALSE)) ->  | AC82: Bottom Rail Reinf. | AD82: =(TRUNC(((Frame_Width-2.25)-6)/2)*2)/12 -> -0.6666666667 | AE82: 0.37 | AF82: -0.2466666667 | AH82: Top Spacer | AI82: =((CMR!$L$93*2)+(CMR!$L$95*2))/12 -> -1.75 | AJ82: 0.0536 | AK82: -0.0938 | AP82: 0 | AQ82: =IF(AND(AP82=18,$AN$4>=53,$AN$4<=58),"Dbl."&AP82&"G",0) ->  | AU82: 0 | AV82: =IF(AND(AU82=18,$AS$4>=53,$AS$4<=58),"Dbl."&AU82&"G",0) ->  | DH82: =IF(AND(DG82=30,$DE$4>=30,$DE$4<=33),DG82&"E",0) ->  | DM82: =IF(AND(DL82=30,$DJ$4>=30,$DJ$4<=33),DL82&"E",0) -> 
B83: 13 | C83: 7 | D83: 1 | F83: 13 | G83: 7 | H83: 1 | P83: 0100 | R83: 1.537 | S83: 1.0625 | T83: =Frame_Width-2.3125 -> -2.3125 | V83: =INT((Frame_Height-(R83+0.5+ACHEIGHT+S83))*16+0.5)/16 -> -3.125 | AC83: Bottom Stile Reinf. | AD83: =IF(CMR!$E$48>27.6875,((TRUNC((CMR!$E$43-4.5)/2)*2)/12)*2,0) -> 0 | AE83: 0.299 | AF83: 0 | AH83: Top Hardware | AI83: 1 | AJ83: 0.2 | AK83: 0.2 | AP83: 0 | AQ83: =IF(AND(AP83=18,$AN$4>=59,$AN$4<=64),"Dbl."&AP83&"H",0) ->  | AU83: 0 | AV83: =IF(AND(AU83=18,$AS$4>=59,$AS$4<=64),"Dbl."&AU83&"H",0) ->  | DH83: =IF(AND(DG83=30,$DE$4>=34,$DE$4<=37),DG83&"F",0) ->  | DM83: =IF(AND(DL83=30,$DJ$4>=34,$DJ$4<=37),DL83&"F",0) -> 
B84: 14 | C84: 7 | D84: 1 | F84: 14 | G84: 7 | H84: 1 | P84: 01HP | R84: 1.537 | S84: 1.1875 | T84: =Frame_Width-2.3125 -> -2.3125 | V84: =INT((Frame_Height-(R84+0.5+ACHEIGHT+S84))*16+0.5)/16 -> -3.25 | AC84: Bottom Glass | AD84: =(CMR!$E$46*CMR!$E$48)/144 -> 0.060546875 | AE84: =$L$12 ->  | AH84: Top Handle Bead | AI84: =(Frame_Width-6.59375)/12 -> -0.5494791667 | AJ84: 0.089 | AK84: -0.04890364583 | AP84: 0 | AQ84: =IF(AND(AP84=18,$AN$4>=65,$AN$4<=68),"Dbl."&AP84&"I",0) ->  | AU84: 0 | AV84: =IF(AND(AU84=18,$AS$4>=65,$AS$4<=68),"Dbl."&AU84&"I",0) ->  | DH84: =IF(AND(DG84=30,$DE$4>=38,$DE$4<=40),DG84&"G",0) ->  | DM84: =IF(AND(DL84=30,$DJ$4>=38,$DJ$4<=40),DL84&"G",0) -> 
B85: 15 | C85: 8 | D85: 1 | F85: 15 | G85: 8 | H85: 1 | P85: 02A0 | R85: 1.75 | S85: 0.625 | T85: =Frame_Width-2.25 -> -2.25 | V85: =INT((Frame_Height-(R85+0.5+ACHEIGHT+S85))*16+0.5)/16 -> -2.875 | AC85: Bottom Spacer | AD85: =((CMR!$E$46*2)+(CMR!$E$48*2))/12 -> -1.020833333 | AE85: 0.0536 | AF85: -0.05471666667 | AH85: Top Bead | AI85: =((CMR!$L$90-4.25)*2)/12 -> -0.7083333333 | AJ85: 0.064 | AK85: -0.04533333333 | AP85: =IF(AND($AO$4<=20,$AO$4>18),20,0) -> 0 | AQ85: =IF(AND(AP85=20,$AN$4>=5,$AN$4<=10),AP85&"A",0) ->  | AU85: =IF(AND($AT$4<=20,$AT$4>18),20,0) -> 0 | AV85: =IF(AND(AU85=20,$AS$4>=5,$AS$4<=10),AU85&"A",0) ->  | DH85: =IF(AND(DG85=30,$DE$4>=41,$DE$4<=43),DG85&"H",0) ->  | DM85: =IF(AND(DL85=30,$DJ$4>=41,$DJ$4<=43),DL85&"H",0) -> 
B86: 16 | C86: 8 | D86: 1 | F86: 16 | G86: 8 | H86: 1 | P86: 0201 | Q86: 1.625 | R86: 1.75 | T86: =Frame_Width-3.25 -> -3.25 | U86: =INT((Frame_Height-(Q86+R86+0.5+ACHEIGHT))*16+0.5)/16 -> -3.875 | AC86: Bottom Hardware | AD86: 1 | AE86: 0.36 | AF86: 0.36 | AH86: Bottom Top Rail | AI86: =(Frame_Width-3.9375)/12 -> -0.328125 | AJ86: 0.473 | AK86: -0.155203125 | AP86: 0 | AQ86: =IF(AND(AP86=20,$AN$4>=11,$AN$4<=14),AP86&"B",0) ->  | AU86: 0 | AV86: =IF(AND(AU86=20,$AS$4>=11,$AS$4<=14),AU86&"B",0) ->  | DH86: =IF(AND(DG86=30,$DE$4>=44,$DE$4<=45),DG86&"I",0) ->  | DM86: =IF(AND(DL86=30,$DJ$4>=44,$DJ$4<=45),DL86&"I",0) -> 
B87: 17 | C87: 9 | D87: 1 | F87: 17 | G87: 9 | H87: 1 | P87: i201 | Q87: 1.625 | R87: 1.75 | T87: =Frame_Width-3.25 -> -3.25 | U87: -3.875 | AC87: Bottom Bead | AD87: =(((Frame_Width-3.3125)*2)+((CMR!$E$43-1.6875)*2))/12 -> -0.8333333333 | AE87: 0.028 | AF87: -0.02333333333 | AH87: Bottom Bottom Rail | AI87: =(Frame_Width-3.9375)/12 -> -0.328125 | AJ87: 0.437 | AK87: -0.143390625 | AP87: 0 | AQ87: =IF(AND(AP87=20,$AN$4>=15,$AN$4<=18),AP87&"C",0) ->  | AU87: 0 | AV87: =IF(AND(AU87=20,$AS$4>=15,$AS$4<=18),AU87&"C",0) ->  | DG87: =IF(AND($DF$4<=32,$DF$4>30),32,0) ->  | DH87: =IF(AND(DG87=32,$DE$4>=8,$DE$4<=14),DG87&"A",0) ->  | DL87: =IF(AND($DK$4<=32,$DK$4>30),32,0) ->  | DM87: =IF(AND(DL87=32,$DJ$4>=8,$DJ$4<=14),DL87&"A",0) -> 
B88: 18 | C88: 9 | D88: 1 | F88: 18 | G88: 9 | H88: 1 | P88: 0301 | Q88: 1.75 | R88: 2.0625 | T88: =Frame_Width-3.25 -> -3.25 | U88: -4.3125 | AE88: Top Sash | AF88: =IF(OR(ModelNo="0301",ModelNo="E301(3250)",ModelNo="E301(3052)",ModelNo="E301(2862)"),(SUM(AF70:AF78))+5,0) -> 0 | AH88: Bottom Stile | AI88: =(2*(CMR!$L$91-1.0625))/12 -> -0.1770833333 | AJ88: 0.437 | AK88: -0.07738541667 | AP88: 0 | AQ88: =IF(AND(AP88=20,$AN$4>=19,$AN$4<=22),AP88&"D",0) ->  | AU88: 0 | AV88: =IF(AND(AU88=20,$AS$4>=19,$AS$4<=22),AU88&"D",0) ->  | DH88: =IF(AND(DG88=32,$DE$4>=15,$DE$4<=20),DG88&"B",0) ->  | DM88: =IF(AND(DL88=32,$DJ$4>=15,$DJ$4<=20),DL88&"B",0) -> 
B89: 19 | C89: 10 | D89: 1 | F89: 19 | G89: 55 | H89: 2 | P89: 0401 | Q89: 1.125 | R89: 2 | T89: =Frame_Width-3.25 -> -3.25 | U89: -3.625 | AE89: Bottom Sash | AF89: =IF(OR(ModelNo="0301",ModelNo="E301(3250)",ModelNo="E301(3052)",ModelNo="E301(2862)"),SUM(AF79:AF87),0) -> 0 | AH89: Bottom Rail Reinf. | AI89: =IF((INT((Frame_Width-8.9375)/2)*2)>12,(INT((Frame_Width-8.9375)/2)*2)/12,0) -> 0 | AJ89: 0.179 | AK89: 0 | AP89: 0 | AQ89: =IF(AND(AP89=20,$AN$4>=23,$AN$4<=26),AP89&"E",0) ->  | AU89: 0 | AV89: =IF(AND(AU89=20,$AS$4>=23,$AS$4<=26),AU89&"E",0) ->  | DH89: =IF(AND(DG89=32,$DE$4>=21,$DE$4<=25),DG89&"C",0) ->  | DM89: =IF(AND(DL89=32,$DJ$4>=21,$DJ$4<=25),DL89&"C",0) -> 
B90: 20 | C90: 10 | D90: 1 | F90: 20 | G90: 55 | H90: 2 | P90: =IF(ModelNo="0501","0501",IF(ModelNo="B501","B501",IF(ModelNo="U501","U501","0501"))) -> 0501 | Q90: 2.25 | R90: 3 | T90: =Frame_Width-4.25 -> -4.25 | U90: -5.75 | AH90: Bottom Stile Reinf. | AI90: 0 | AJ90: 0 | AK90: 0 | AP90: 0 | AQ90: =IF(AND(AP90=20,$AN$4>=27,$AN$4<=30),AP90&"F",0) ->  | AU90: 0 | AV90: =IF(AND(AU90=20,$AS$4>=27,$AS$4<=30),AU90&"F",0) ->  | DH90: =IF(AND(DG90=32,$DE$4>=26,$DE$4<=30),DG90&"D",0) ->  | DM90: =IF(AND(DL90=32,$DJ$4>=26,$DJ$4<=30),DL90&"D",0) -> 
B91: 21 | C91: 56 | D91: 2 | F91: 21 | G91: 47 | H91: 2 | P91: =IF(ModelNo="0601","0601",IF(ModelNo="B601","B601",IF(ModelNo="U601","U601","0601"))) -> 0601 | Q91: 2.375 | R91: 2.75 | T91: =Frame_Width-4.25 -> -4.25 | U91: -5.625 | AC91: 0401 | AD91: Length | AE91: Weight/ft | AF91: Weight | AH91: Bottom Glass | AI91: =(CMR!$L$94*CMR!$L$96)/144 -> 0.1770562066 | AJ91: =$L$12 ->  | AP91: 0 | AQ91: =IF(AND(AP91=20,$AN$4>=31,$AN$4<=34),AP91&"G",0) ->  | AU91: 0 | AV91: =IF(AND(AU91=20,$AS$4>=31,$AS$4<=34),AU91&"G",0) ->  | DH91: =IF(AND(DG91=32,$DE$4>=31,$DE$4<=34),DG91&"E",0) ->  | DM91: =IF(AND(DL91=32,$DJ$4>=31,$DJ$4<=34),DL91&"E",0) -> 
B92: 22 | C92: 56 | D92: 2 | F92: 22 | G92: 47 | H92: 2 | P92: 0700 | R92: 1.537 | S92: 1.0625 | T92: =Frame_Width-2.3125 -> -2.3125 | V92: =INT((Frame_Height-(R92+0.5+ACHEIGHT+S92))*16+0.5)/16 -> -3.125 | AC92: Top Top Rail | AD92: =(Frame_Width-3.25)/12 -> -0.2708333333 | AE92: 0.334 | AF92: =AD92*AE92 -> -0.09045833333 | AH92: Bottom Spacer | AI92: =((CMR!$L$94*2)+(CMR!$L$96*2))/12 -> -1.75 | AJ92: 0.0536 | AK92: -0.0938 | AP92: 0 | AQ92: =IF(AND(AP92=20,$AN$4>=35,$AN$4<=37),AP92&"H",0) ->  | AU92: 0 | AV92: =IF(AND(AU92=20,$AS$4>=35,$AS$4<=37),AU92&"H",0) ->  | DH92: =IF(AND(DG92=32,$DE$4>=35,$DE$4<=37),DG92&"F",0) ->  | DM92: =IF(AND(DL92=32,$DJ$4>=35,$DJ$4<=37),DL92&"F",0) -> 
B93: 23 | C93: 66 | D93: 2 | F93: 23 | G93: 48 | H93: 2 | P93: 07HP | R93: 1.537 | S93: 1.1875 | T93: =Frame_Width-2.3125 -> -2.3125 | V93: =INT((Frame_Height-(R93+0.5+ACHEIGHT+S93))*16+0.5)/16 -> -3.25 | AC93: Top Bottom Rail | AD93: =(Frame_Width-3.25)/12 -> -0.2708333333 | AE93: 0.295 | AF93: -0.07989583333 | AH93: Bottom Hardware | AI93: 1 | AJ93: 0.36 | AK93: 0.36 | AP93: 0 | AQ93: =IF(AND(AP93=20,$AN$4>=38,$AN$4<=40),AP93&"I",0) ->  | AU93: 0 | AV93: =IF(AND(AU93=20,$AS$4>=38,$AS$4<=40),AU93&"I",0) ->  | DH93: =IF(AND(DG93=32,$DE$4>=38,$DE$4<=40),DG93&"G",0) ->  | DM93: =IF(AND(DL93=32,$DJ$4>=38,$DJ$4<=40),DL93&"G",0) -> 
B94: 24 | C94: 66 | D94: 2 | F94: 24 | G94: 48 | H94: 2 | P94: =IF(ModelNo="0901","0901",IF(ModelNo="09A1","09A1",IF(ModelNo="09B1","09B1","0901"))) -> 0901 | Q94: 1.4375 | R94: 2.125 | T94: =Frame_Width-3.4375 -> -3.4375 | U94: =INT((Frame_Height-(Q94+R94+0.5+ACHEIGHT))*16+0.5)/16 -> -4.0625 | AC94: Top Stile | AD94: =(2*(CMR!$E$58-1))/12 -> -0.1666666667 | AE94: 0.27 | AF94: -0.045 | AH94: Bott. Handle Bead | AI94: =(Frame_Width-6.59375)/12 -> -0.5494791667 | AJ94: 0.089 | AK94: -0.04890364583 | AP94: 0 | AQ94: =IF(AND(AP94=20,$AN$4>=41,$AN$4<=44),"Dbl."&AP94&"D",0) ->  | AU94: 0 | AV94: =IF(AND(AU94=20,$AS$4>=41,$AS$4<=44),"Dbl."&AU94&"D",0) ->  | DH94: =IF(AND(DG94=32,$DE$4>=41,$DE$4<=43),DG94&"H",0) ->  | DM94: =IF(AND(DL94=32,$DJ$4>=41,$DJ$4<=43),DL94&"H",0) -> 
B95: 25 | C95: 67 | D95: 2 | F95: 25 | G95: 58 | H95: 2 | P95: 09L1 | Q95: 1.4375 | R95: 2.125 | T95: =Frame_Width-3.4375 -> -3.4375 | U95: =INT((Frame_Height-(Q95+R95+0.5+ACHEIGHT))*16+0.5)/16 -> -4.0625 | AC95: Top Rail Reinf. | AD95: =(TRUNC(((Frame_Width-3.25)-6)/2)*2)/12 -> -0.6666666667 | AE95: 0.274 | AF95: -0.1826666667 | AH95: Bottom Bead | AI95: =((Frame_Width-6.59375)+((CMR!$L$91-3.71875)*2))/12 -> -1.169270833 | AJ95: 0.064 | AK95: -0.07483333333 | AP95: 0 | AQ95: =IF(AND(AP95=20,$AN$4>=45,$AN$4<=52),"Dbl."&AP95&"E",0) ->  | AU95: 0 | AV95: =IF(AND(AU95=20,$AS$4>=45,$AS$4<=52),"Dbl."&AU95&"E",0) ->  | DH95: =IF(AND(DG95=32,$DE$4>=44,$DE$4<=45),DG95&"I",0) ->  | DM95: =IF(AND(DL95=32,$DJ$4>=44,$DJ$4<=45),DL95&"I",0) -> 
B96: 26 | C96: 67 | D96: 2 | F96: 26 | G96: 58 | H96: 2 | P96: 8001 | Q96: 2.5 | R96: 2.5 | T96: =Frame_Width-4.9375 -> -4.9375 | U96: =INT((Frame_Height-(Q96+R96+0.5+ACHEIGHT))*16+0.5)/16 -> -5.5 | AC96: Top Stile Reinf | AD96: =IF(CMR!$E$63>27.25,((TRUNC((CMR!$E$58-8)/2)*2)/12)*2,0) -> 0 | AE96: 0.274 | AF96: 0 | AJ96: Top Sash | AK96: =IF(OR(ModelNo="9001",ModelNo="P601"),(SUM(AK76:AK85))+5,0) -> 0 | AP96: 0 | AQ96: =IF(AND(AP96=20,$AN$4>=53,$AN$4<=60),"Dbl."&AP96&"F",0) ->  | AU96: 0 | AV96: =IF(AND(AU96=20,$AS$4>=53,$AS$4<=60),"Dbl."&AU96&"F",0) ->  | DG96: =IF(AND($DF$4<=34,$DF$4>32),34,0) ->  | DH96: =IF(AND(DG96=34,$DE$4>=11,$DE$4<=16),DG96&"A",0) ->  | DL96: =IF(AND($DK$4<=34,$DK$4>32),34,0) ->  | DM96: =IF(AND(DL96=34,$DJ$4>=11,$DJ$4<=16),DL96&"A",0) -> 
B97: 27 | C97: 77 | D97: 2 | F97: 27 | G97: 68 | H97: 2 | P97: R601 | Q97: 2.5 | R97: 2.5 | T97: =Frame_Width-4.9375 -> -4.9375 | U97: =INT((Frame_Height-(Q97+R97+0.5+ACHEIGHT))*16+0.5)/16 -> -5.5 | AC97: Top Glass | AD97: =(CMR!$E$61*CMR!$E$63)/144 -> 0.09214952257 | AE97: =$L$12 ->  | AJ97: Bottom Sash | AK97: =IF(OR(ModelNo="9001",ModelNo="9601"),SUM(AK86:AK95),0) -> 0 | AP97: 0 | AQ97: =IF(AND(AP97=20,$AN$4>=61,$AN$4<=68),"Dbl."&AP97&"G",0) ->  | AU97: 0 | AV97: =IF(AND(AU97=20,$AS$4>=61,$AS$4<=68),"Dbl."&AU97&"G",0) ->  | DH97: =IF(AND(DG97=34,$DE$4>=17,$DE$4<=22),DG97&"B",0) ->  | DM97: =IF(AND(DL97=34,$DJ$4>=17,$DJ$4<=22),DL97&"B",0) -> 
B98: 28 | C98: 77 | D98: 2 | F98: 28 | G98: 68 | H98: 2 | P98: S140 | R98: =IF(OR(EXTSELECT=2,EXTSELECT=3),1.875,IF(OR(EXTSELECT=4,EXTSELECT=5),1.537,IF(EXTSELECT=7,1.818,IF(EXTSELECT=8,2,1.75)))) -> 1.75 | S98: =IF(OR(EXTSELECT=2,EXTSELECT=3),1.25,IF(EXTSELECT=4,1.0625,IF(EXTSELECT=5,1.1875,IF(EXTSELECT=7,0.4375,IF(EXTSELECT=8,1,0.625))))) -> 0.625 | T98: =BSW_S140 ->  | V98: =INT((Frame_Height-(R98+0.5+ACHEIGHT+S98))*16+0.5)/16 -> -2.875 | AC98: Top Spacer | AD98: =((CMR!$E$61*2)+(CMR!$E$63*2))/12 -> -1.270833333 | AE98: 0.0536 | AF98: -0.06811666667 | AP98: 0 | AQ98: =IF(AND(AP98=20,$AN$4>=69,$AN$4<=74),"Dbl."&AP98&"H",0) ->  | AU98: 0 | AV98: =IF(AND(AU98=20,$AS$4>=69,$AS$4<=74),"Dbl."&AU98&"H",0) ->  | DH98: =IF(AND(DG98=34,$DE$4>=23,$DE$4<=27),DG98&"C",0) ->  | DM98: =IF(AND(DL98=34,$DJ$4>=23,$DJ$4<=27),DL98&"C",0) -> 
B99: 29 | C99: 78 | D99: 2 | F99: 29 | G99: 78 | H99: 2 | P99: S144 | R99: =IF(OR(EXTSELECT=2,EXTSELECT=3),1.875,IF(OR(EXTSELECT=4,EXTSELECT=5),1.537,IF(EXTSELECT=7,1.818,IF(EXTSELECT=8,2,1.75)))) -> 1.75 | S99: =IF(OR(EXTSELECT=2,EXTSELECT=3),1.25,IF(EXTSELECT=4,1.0625,IF(EXTSELECT=5,1.1875,IF(EXTSELECT=7,0.4375,IF(EXTSELECT=8,1,0.625))))) -> 0.625 | T99: =BSW_S140 ->  | V99: =INT((Frame_Height-(R99+0.5+ACHEIGHT+S99))*16+0.5)/16 -> -2.875 | AC99: Top Hardware | AD99: 1 | AE99: 0.2 | AF99: 0.2 | AH99: 3100 | AI99: Length | AJ99: Weight/ft | AK99: Weight | AP99: 0 | AQ99: =IF(AND(AP99=20,$AN$4>=75,$AN$4<=80),"Dbl."&AP99&"I",0) ->  | AU99: 0 | AV99: =IF(AND(AU99=20,$AS$4>=75,$AS$4<=80),"Dbl."&AU99&"I",0) ->  | DH99: =IF(AND(DG99=34,$DE$4>=28,$DE$4<=32),DG99&"D",0) ->  | DM99: =IF(AND(DL99=34,$DJ$4>=28,$DJ$4<=32),DL99&"D",0) -> 
B100: 30 | C100: 78 | D100: 2 | F100: 30 | G100: 78 | H100: 2 | P100: S146 | R100: =IF(OR(EXTSELECT=2,EXTSELECT=3),1.875,IF(OR(EXTSELECT=4,EXTSELECT=5),1.537,IF(EXTSELECT=7,1.818,IF(EXTSELECT=8,2,1.75)))) -> 1.75 | S100: =IF(OR(EXTSELECT=2,EXTSELECT=3),1.25,IF(EXTSELECT=4,1.0625,IF(EXTSELECT=5,1.1875,IF(EXTSELECT=7,0.4375,IF(EXTSELECT=8,1,0.625))))) -> 0.625 | T100: =BSW_S140 ->  | V100: =INT((Frame_Height-(R100+0.5+ACHEIGHT+S100))*16+0.5)/16 -> -2.875 | AC100: Top Bead | AD100: =(((Frame_Width-4.344)*2)+((CMR!$E$58-3.656)*2))/12 -> -1.333333333 | AE100: 0.06 | AF100: -0.08 | AH100: Top Top Rail | AI100: 0 | AJ100: 0 | AK100: =AI100*AJ100 -> 0 | AP100: =IF(AND($AO$4<=22,$AO$4>20),22,0) -> 0 | AQ100: =IF(AND(AP100=22,$AN$4>=5,$AN$4<=10),AP100&"A",0) ->  | AU100: =IF(AND($AT$4<=22,$AT$4>20),22,0) -> 0 | AV100: =IF(AND(AU100=22,$AS$4>=5,$AS$4<=10),AU100&"A",0) ->  | DH100: =IF(AND(DG100=34,$DE$4>=33,$DE$4<=34),DG100&"E",0) ->  | DM100: =IF(AND(DL100=34,$DJ$4>=33,$DJ$4<=34),DL100&"E",0) -> 
B101: 31 | C101: 88 | D101: 2 | F101: 31 | G101: 88 | H101: 2 | P101: 3100 | R101: 2.43 | S101: 0.1875 | T101: =TRUNC((Frame_Width-2.14315)*32+0.5)/32 -> -2.125 | V101: =INT((Frame_Height-(R101+0.5+ACHEIGHT+S101))*16+0.5)/16 -> -3.125 | AC101: Bottom Top Rail | AD101: =(Frame_Width-2.25)/12 -> -0.1875 | AE101: 0.355 | AF101: -0.0665625 | AH101: Top Bottom Rail | AI101: 0 | AJ101: 0 | AK101: =AI101*AJ101 -> 0 | AO101: =IF(AND(AP101>0,AQ101>0),AP101,0) ->  | AP101: 0 | AQ101: =IF(AND(AP101=22,$AN$4>=11,$AN$4<=16),AP101&"B",0) ->  | AU101: 0 | AV101: =IF(AND(AU101=22,$AS$4>=11,$AS$4<=16),AU101&"B",0) ->  | DH101: =IF(AND(DG101=34,$DE$4>=35,$DE$4<=37),DG101&"F",0) ->  | DM101: =IF(AND(DL101=34,$DJ$4>=35,$DJ$4<=37),DL101&"F",0) -> 
B102: 32 | C102: 88 | D102: 2 | F102: 32 | G102: 88 | H102: 2 | P102: 9001 | Q102: 2.5 | R102: 2.75 | T102: =Frame_Width-4.9375 -> -4.9375 | U102: =INT((Frame_Height-(Q102+R102+0.5+ACHEIGHT))*16+0.5)/16 -> -5.75 | AC102: Bottom Bottom Rail | AD102: =(Frame_Width-2.25)/12 -> -0.1875 | AE102: 0.379 | AF102: -0.0710625 | AH102: Top Stile | AI102: 0 | AJ102: 0 | AK102: =(AI102*AJ102)/12 -> 0 | AP102: 0 | AQ102: =IF(AND(AP102=22,$AN$4>=17,$AN$4<=21),AP102&"C",0) ->  | AU102: 0 | AV102: =IF(AND(AU102=22,$AS$4>=17,$AS$4<=21),AU102&"C",0) ->  | DH102: =IF(AND(DG102=34,$DE$4>=38,$DE$4<=40),DG102&"G",0) ->  | DM102: =IF(AND(DL102=34,$DJ$4>=38,$DJ$4<=40),DL102&"G",0) -> 
B103: 33 | C103: 89 | D103: 2 | F103: 33 | G103: 89 | H103: 2 | P103: P601 | Q103: 2.5 | R103: 2.75 | T103: =Frame_Width-4.9375 -> -4.9375 | U103: =INT((Frame_Height-(Q103+R103+0.5+ACHEIGHT))*16+0.5)/16 -> -5.75 | AC103: Bottom Stile | AD103: =(2*(CMR!$E$59))/12 -> 0 | AE103: 0.315 | AF103: 0 | AH103: Top Rail Reinf. | AI103: 0 | AJ103: 0 | AK103: 0 | AP103: 0 | AQ103: =IF(AND(AP103=22,$AN$4>=22,$AN$4<=24),AP103&"D",0) ->  | AU103: 0 | AV103: =IF(AND(AU103=22,$AS$4>=22,$AS$4<=24),AU103&"D",0) ->  | DH103: =IF(AND(DG103=34,$DE$4>=41,$DE$4<=43),DG103&"H",0) ->  | DM103: =IF(AND(DL103=34,$DJ$4>=41,$DJ$4<=43),DL103&"H",0) -> 
B104: 34 | C104: 89 | D104: 2 | F104: 34 | G104: 89 | H104: 2 | P104: V100 | R104: 2 | S104: 1 | T104: =TRUNC((Frame_Width-2.188)*32+0.5)/32 -> -2.15625 | V104: =INT((Frame_Height-(R104+0.5+ACHEIGHT+S104))*16+0.5)/16 -> -3.5 | AC104: Bottom Rail Reinf. | AD104: =(TRUNC(((Frame_Width-2.25)-6)/2)*2)/12 -> -0.6666666667 | AE104: 0.596 | AF104: -0.3973333333 | AH104: Top Stile Reinf | AI104: 0 | AJ104: 0 | AK104: 0 | AP104: 0 | AQ104: =IF(AND(AP104=22,$AN$4>=25,$AN$4<=27),AP104&"E",0) ->  | AU104: 0 | AV104: =IF(AND(AU104=22,$AS$4>=25,$AS$4<=27),AU104&"E",0) ->  | DH104: =IF(AND(DG104=34,$DE$4>=44,$DE$4<=45),DG104&"I",0) ->  | DM104: =IF(AND(DL104=34,$DJ$4>=44,$DJ$4<=45),DL104&"I",0) -> 
B105: 35 | C105: 99 | D105: 2 | F105: 35 | G105: 99 | H105: 2 | P105: V101 | Q105: 1.875 | R105: 2 | T105: =Frame_Width-3.4375 -> -3.4375 | U105: =INT((Frame_Height-(Q105+R105+0.5+ACHEIGHT))*16+0.5)/16 -> -4.375 | AC105: Bottom Stile Reinf. | AD105: =IF(CMR!$E$64>27.25,((TRUNC((CMR!$E$59-3.75)/2)*2)/12)*2,0) -> 0 | AE105: 0.274 | AF105: 0 | AH105: Top Glass | AI105: 0 | AJ105: 0 | AK105: 0 | AP105: 0 | AQ105: =IF(AND(AP105=22,$AN$4>=28,$AN$4<=30),AP105&"F",0) ->  | AU105: 0 | AV105: =IF(AND(AU105=22,$AS$4>=28,$AS$4<=30),AU105&"F",0) ->  | DG105: =IF(AND($DF$4<=36,$DF$4>34),36,0) ->  | DH105: =IF(AND(DG105=36,$DE$4>=11,$DE$4<=16),DG105&"A",0) ->  | DL105: =IF(AND($DK$4<=36,$DK$4>34),36,0) ->  | DM105: =IF(AND(DL105=36,$DJ$4>=11,$DJ$4<=16),DL105&"A",0) -> 
B106: 36 | C106: 99 | D106: 2 | F106: 36 | G106: 99 | H106: 2 | P106: V200 | R106: 2 | S106: 0.4375 | T106: =TRUNC((Frame_Width-2.188)*32+0.5)/32 -> -2.15625 | V106: =INT((Frame_Height-(R106+0.5+ACHEIGHT+S106))*16+0.5)/16 -> -2.9375 | AC106: Bottom Glass | AD106: =(CMR!$E$62*CMR!$E$64)/144 -> 0.09214952257 | AE106: =$L$12 ->  | AH106: Top Spacer | AI106: 0 | AJ106: 0 | AK106: 0 | AP106: 0 | AQ106: =IF(AND(AP106=22,$AN$4>=31,$AN$4<=34),AP106&"G",0) ->  | AU106: 0 | AV106: =IF(AND(AU106=22,$AS$4>=31,$AS$4<=34),AU106&"G",0) ->  | DH106: =IF(AND(DG106=36,$DE$4>=17,$DE$4<=22),DG106&"B",0) ->  | DM106: =IF(AND(DL106=36,$DJ$4>=17,$DJ$4<=22),DL106&"B",0) -> 
B107: 37 | C107: 766 | D107: 3 | F107: 37 | G107: 478 | H107: 3 | P107: 03A0 | R107: 1.875 | S107: 1.25 | T107: =Frame_Width-3.125 -> -3.125 | V107: =INT((Frame_Height-(R107+0.5+ACHEIGHT+S107))*16+0.5)/16 -> -3.625 | AC107: Bottom Spacer | AD107: =((CMR!$E$62*2)+(CMR!$E$64*2))/12 -> -1.270833333 | AE107: 0.0536 | AF107: -0.06811666667 | AH107: Top Hardware | AI107: 0 | AJ107: 0 | AK107: 0 | AP107: 0 | AQ107: =IF(AND(AP107=22,$AN$4>=35,$AN$4<=37),AP107&"H",0) ->  | AU107: 0 | AV107: =IF(AND(AU107=22,$AS$4>=35,$AS$4<=37),AU107&"H",0) ->  | DH107: =IF(AND(DG107=36,$DE$4>=23,$DE$4<=27),DG107&"C",0) ->  | DM107: =IF(AND(DL107=36,$DJ$4>=23,$DJ$4<=27),DL107&"C",0) -> 
B108: 38 | C108: 766 | D108: 3 | F108: 38 | G108: 478 | H108: 3 | P108: 3001 | Q108: 2.0625 | R108: 1.875 | T108: =Frame_Width-4.125 -> -4.125 | U108: =INT((Frame_Height-(Q108+R108+0.5+ACHEIGHT))*16+0.5)/16 -> -4.4375 | AC108: Bottom Hardware | AD108: 1 | AE108: 0.36 | AF108: 0.36 | AH108: Top Bead | AI108: 0 | AJ108: 0 | AK108: 0 | AP108: 0 | AQ108: =IF(AND(AP108=22,$AN$4>=38,$AN$4<=40),AP108&"I",0) ->  | AU108: 0 | AV108: =IF(AND(AU108=22,$AS$4>=38,$AS$4<=40),AU108&"I",0) ->  | DH108: =IF(AND(DG108=36,$DE$4>=28,$DE$4<=32),DG108&"D",0) ->  | DM108: =IF(AND(DL108=36,$DJ$4>=28,$DJ$4<=32),DL108&"D",0) -> 
B109: 39 | C109: 866 | D109: 3 | F109: 39 | G109: 488 | H109: 3 | P109: 1700 | R109: 2 | S109: 0.4375 | T109: =TRUNC((Frame_Width-2.188)*32+0.5)/32 -> -2.15625 | AC109: Bottom Bead | AD109: =(((Frame_Width-4.344)*2)+((CMR!$E$59-3.656)*2))/12 -> -1.333333333 | AE109: 0.06 | AF109: -0.08 | AH109: Bottom Top Rail | AI109: =(TRUNC((Frame_Width-2.14315)*32+0.5)/32)/12 -> -0.1770833333 | AJ109: 0.331 | AK109: =AI109*AJ109 -> -0.05861458333 | AP109: 0 | AQ109: =IF(AND(AP109=22,$AN$4>=41,$AN$4<=42),"Dbl."&AP109&"C",0) ->  | AU109: 0 | AV109: =IF(AND(AU109=22,$AS$4>=41,$AS$4<=42),"Dbl."&AU109&"C",0) ->  | DH109: =IF(AND(DG109=36,$DE$4>=33,$DE$4<=34),DG109&"E",0) ->  | DM109: =IF(AND(DL109=36,$DJ$4>=33,$DJ$4<=34),DL109&"E",0) -> 
B110: 40 | C110: 866 | D110: 3 | F110: 40 | G110: 488 | H110: 3 | P110: 1720 | R110: 2 | S110: 0.4375 | T110: =TRUNC((Frame_Width/2-2.4375)*32+0.5)/32 -> -2.40625 | AE110: Top Sash | AF110: =IF(ModelNo="0401",(SUM(AF92:AF100))+5,0) -> 0 | AH110: Bottom Bottom Rail | AI110: =(TRUNC((Frame_Width-2.14315)*32+0.5)/32)/12 -> -0.1770833333 | AJ110: 0.316 | AK110: =AI110*AJ110 -> -0.05595833333 | AP110: 0 | AQ110: =IF(AND(AP110=22,$AN$4>=43,$AN$4<=48),"Dbl."&AP110&"D",0) ->  | AU110: 0 | AV110: =IF(AND(AU110=22,$AS$4>=43,$AS$4<=48),"Dbl."&AU110&"D",0) ->  | DH110: =IF(AND(DG110=36,$DE$4>=35,$DE$4<=37),DG110&"F",0) ->  | DM110: =IF(AND(DL110=36,$DJ$4>=35,$DJ$4<=37),DL110&"F",0) -> 
B111: 41 | C111: 777 | D111: 3 | F111: 41 | G111: 588 | H111: 3 | P111: 1730 | R111: 2 | S111: 0.4375 | T111: =TRUNC((Frame_Width/3-2.53125)*32+0.5)/32 -> -2.5 | AE111: Bottom Sash | AF111: =IF(ModelNo="0401",SUM(AF101:AF109),0) -> 0 | AH111: Bottom Stile | AI111: =((CMR!$E$91-2.09375)*2)/12 -> -0.3489583333 | AJ111: 0.27 | AK111: =AI111*AJ111 -> -0.09421875 | AP111: 0 | AQ111: =IF(AND(AP111=22,$AN$4>=49,$AN$4<=54),"Dbl."&AP111&"E",0) ->  | AU111: 0 | AV111: =IF(AND(AU111=22,$AS$4>=49,$AS$4<=54),"Dbl."&AU111&"E",0) ->  | DH111: =IF(AND(DG111=36,$DE$4>=38,$DE$4<=40),DG111&"G",0) ->  | DM111: =IF(AND(DL111=36,$DJ$4>=38,$DJ$4<=40),DL111&"G",0) -> 
B112: 42 | C112: 777 | D112: 3 | F112: 42 | G112: 588 | H112: 3 | P112: 1900 | R112: 2 | S112: 1 | T112: =TRUNC((Frame_Width-2.1875)*32+0.5)/32 -> -2.15625 | AH112: Lock Rail Reinf. | AI112: =((TRUNC((Frame_Width-2.14315)*32+0.5)/32)-0.25)/12 -> -0.1979166667 | AJ112: 0.392 | AK112: =AI112*AJ112 -> -0.07758333333 | AP112: 0 | AQ112: =IF(AND(AP112=22,$AN$4>=55,$AN$4<=60),"Dbl."&AP112&"F",0) ->  | AU112: 0 | AV112: =IF(AND(AU112=22,$AS$4>=55,$AS$4<=60),"Dbl."&AU112&"F",0) ->  | DH112: =IF(AND(DG112=36,$DE$4>=41,$DE$4<=43),DG112&"H",0) ->  | DM112: =IF(AND(DL112=36,$DJ$4>=41,$DJ$4<=43),DL112&"H",0) -> 
B113: 43 | C113: 877 | D113: 3 | F113: 43 | G113: 688 | H113: 3 | P113: 1920 | R113: 2 | S113: 1 | T113: =TRUNC((Frame_Width/2-2.4375)*32+0.5)/32 -> -2.40625 | AC113: 0501 | AD113: Length | AE113: Weight/ft | AF113: Weight | AH113: Lock Rail Reinf. | AI113: =((((Frame_Width-3.625)-0.5)/2)*2)/12 -> -0.34375 | AJ113: 0.229 | AK113: =AI113*AJ113 -> -0.07871875 | AP113: 0 | AQ113: =IF(AND(AP113=22,$AN$4>=61,$AN$4<=68),"Dbl."&AP113&"G",0) ->  | AU113: 0 | AV113: =IF(AND(AU113=22,$AS$4>=61,$AS$4<=68),"Dbl."&AU113&"G",0) ->  | DH113: =IF(AND(DG113=36,$DE$4>=44,$DE$4<=45),DG113&"I",0) ->  | DM113: =IF(AND(DL113=36,$DJ$4>=44,$DJ$4<=45),DL113&"I",0) -> 
B114: 44 | C114: 877 | D114: 3 | F114: 44 | G114: 688 | H114: 3 | P114: 1930 | R114: 2 | S114: 1 | T114: =TRUNC((Frame_Width/3-2.53125)*32+0.5)/32 -> -2.5 | AC114: Top Top Rail | AD114: =(Frame_Width-4.25)/12 -> -0.3541666667 | AE114: 0.369 | AF114: =AD114*AE114 -> -0.1306875 | AH114: Handle Rail Reinf. | AI114: =((((Frame_Width-3.625)-0.5)/2)*2)/12 -> -0.34375 | AJ114: 0.536 | AK114: -0.18425 | AP114: 0 | AQ114: =IF(AND(AP114=22,$AN$4>=69,$AN$4<=74),"Dbl."&AP114&"H",0) ->  | AU114: 0 | AV114: =IF(AND(AU114=22,$AS$4>=69,$AS$4<=74),"Dbl."&AU114&"H",0) ->  | DG114: =IF(AND($DF$4<=38,$DF$4>36),38,0) ->  | DH114: =IF(AND(DG114=38,$DE$4>=11,$DE$4<=16),DG114&"A",0) ->  | DL114: =IF(AND($DK$4<=38,$DK$4>36),38,0) ->  | DM114: =IF(AND(DL114=38,$DJ$4>=11,$DJ$4<=16),DL114&"A",0) -> 
B115: 45 | C115: 878 | D115: 3 | F115: 45 | G115: 788 | H115: 3 | P115: 1901 | Q115: 1.875 | R115: 2 | T115: =Frame_Width-2.1875 -> -2.1875 | U115: =INT((Frame_Height-(Q115+R115+0.5+ACHEIGHT))*16+0.5)/16 -> -4.375 | AC115: Top Bottom Rail | AD115: =(Frame_Width-4.25)/12 -> -0.3541666667 | AE115: 0.369 | AF115: -0.1306875 | AH115: Bottom Stile Reinf. | AI115: =(CMR!$E$91-2.09375)/12 -> -0.1744791667 | AJ115: 0.536 | AK115: -0.09352083333 | AP115: 0 | AQ115: =IF(AND(AP115=22,$AN$4>=75,$AN$4<=80),"Dbl."&AP115&"I",0) ->  | AU115: 0 | AV115: =IF(AND(AU115=22,$AS$4>=75,$AS$4<=80),"Dbl."&AU115&"I",0) ->  | DH115: =IF(AND(DG115=38,$DE$4>=17,$DE$4<=22),DG115&"B",0) ->  | DM115: =IF(AND(DL115=38,$DJ$4>=17,$DJ$4<=22),DL115&"B",0) -> 
B116: 46 | C116: 878 | D116: 3 | F116: 46 | G116: 788 | H116: 3 | P116: 1921 | Q116: 1.875 | R116: 2 | T116: =Frame_Width/2-2.4375 -> -2.4375 | U116: =INT((Frame_Height-(Q116+R116+0.5+ACHEIGHT))*16+0.5)/16 -> -4.375 | AC116: Top Stile | AD116: =(2*(CMR!$L$42-2.25))/12 -> -0.375 | AE116: 0.369 | AF116: -0.138375 | AH116: Bottom Glass | AI116: =(CMR!$E$94*CMR!$E$96)/144 -> 0.09792751736 | AJ116: =$L$12 ->  | AP116: =IF(AND($AO$4<=24,$AO$4>22),24,0) -> 0 | AQ116: =IF(AND(AP116=24,$AN$4>=6,$AN$4<=10),AP116&"A",0) ->  | AU116: =IF(AND($AT$4<=24,$AT$4>22),24,0) -> 0 | AV116: =IF(AND(AU116=24,$AS$4>=6,$AS$4<=10),AU116&"A",0) ->  | DH116: =IF(AND(DG116=38,$DE$4>=23,$DE$4<=27),DG116&"C",0) ->  | DM116: =IF(AND(DL116=38,$DJ$4>=23,$DJ$4<=27),DL116&"C",0) -> 
B117: 47 | C117: 888 | D117: 3 | F117: 47 | G117: 888 | H117: 3 | P117: 1931 | Q117: 1.875 | R117: 2 | T117: =Frame_Width/3-2.5 -> -2.5 | U117: =INT((Frame_Height-(Q117+R117+0.5+ACHEIGHT))*16+0.5)/16 -> -4.375 | AC117: Top Rail Reinf. | AD117: =(TRUNC(((Frame_Width-4.25)-6)/2)*2)/12 -> -0.8333333333 | AE117: 0.264 | AF117: -0.22 | AH117: Bottom Spacer | AI117: =((CMR!$E$94*2)+(CMR!$E$96*2))/12 -> -1.286458333 | AJ117: 0.0536 | AK117: -0.06895416667 | AP117: 0 | AQ117: =IF(AND(AP117=24,$AN$4>=11,$AN$4<=17),AP117&"B",0) ->  | AU117: 0 | AV117: =IF(AND(AU117=24,$AS$4>=11,$AS$4<=17),AU117&"B",0) ->  | DH117: =IF(AND(DG117=38,$DE$4>=28,$DE$4<=32),DG117&"D",0) ->  | DM117: =IF(AND(DL117=38,$DJ$4>=28,$DJ$4<=32),DL117&"D",0) -> 
B118: 48 | C118: 888 | D118: 3 | F118: 48 | G118: 888 | H118: 3 | AC118: Top Stile Reinf | AD118: =IF(CMR!$L$47>26.1875,((TRUNC((CMR!$L$43-10)/2)*2)/12)*2,0) -> 0 | AE118: 0.264 | AF118: 0 | AH118: Bottom Hardware | AI118: 1 | AJ118: 0.36 | AK118: 0.36 | AP118: 0 | AQ118: =IF(AND(AP118=24,$AN$4>=18,$AN$4<=22),AP118&"C",0) ->  | AU118: 0 | AV118: =IF(AND(AU118=24,$AS$4>=18,$AS$4<=22),AU118&"C",0) ->  | DH118: =IF(AND(DG118=38,$DE$4>=33,$DE$4<=34),DG118&"E",0) ->  | DM118: =IF(AND(DL118=38,$DJ$4>=33,$DJ$4<=34),DL118&"E",0) -> 
B119: 49 | C119: 889 | D119: 3 | F119: 49 | G119: 889 | H119: 3 | AC119: Top Glass | AD119: =(CMR!$L$45*CMR!$L$47)/144 -> 0.1710340712 | AE119: =$L$12 ->  | AH119: Bottom Bead | AI119: =(((Frame_Width-4.45565)*2)+((CMR!$E$91-4.09375)*2))/12 -> -1.4249 | AJ119: 0.046 | AK119: -0.0655454 | AP119: 0 | AQ119: =IF(AND(AP119=24,$AN$4>=23,$AN$4<=25),AP119&"D",0) ->  | AU119: 0 | AV119: =IF(AND(AU119=24,$AS$4>=23,$AS$4<=25),AU119&"D",0) ->  | DH119: =IF(AND(DG119=38,$DE$4>=35,$DE$4<=37),DG119&"F",0) ->  | DM119: =IF(AND(DL119=38,$DJ$4>=35,$DJ$4<=37),DL119&"F",0) -> 
B120: 50 | C120: 889 | D120: 3 | F120: 50 | G120: 889 | H120: 3 | AC120: Top Spacer | AD120: =((CMR!$L$45*2)+(CMR!$L$47*2))/12 -> -1.6875 | AE120: 0.0536 | AF120: -0.09045 | AJ120: Top Sash | AK120: 0 | AP120: 0 | AQ120: =IF(AND(AP120=24,$AN$4>=26,$AN$4<=28),AP120&"E",0) ->  | AU120: 0 | AV120: =IF(AND(AU120=24,$AS$4>=26,$AS$4<=28),AU120&"E",0) ->  | DH120: =IF(AND(DG120=38,$DE$4>=38,$DE$4<=40),DG120&"G",0) ->  | DM120: =IF(AND(DL120=38,$DJ$4>=38,$DJ$4<=40),DL120&"G",0) -> 
B121: 51 | C121: 899 | D121: 3 | F121: 51 | G121: 899 | H121: 3 | AC121: Top Hardware | AD121: 1 | AE121: 0.2 | AF121: 0.2 | AJ121: Bottom Sash | AK121: =IF(ModelNo="3100",SUM(AK109:AK119),0) -> 0 | AP121: 0 | AQ121: =IF(AND(AP121=24,$AN$4>=29,$AN$4<=30),AP121&"F",0) ->  | AU121: 0 | AV121: =IF(AND(AU121=24,$AS$4>=29,$AS$4<=30),AU121&"F",0) ->  | DH121: =IF(AND(DG121=38,$DE$4>=41,$DE$4<=43),DG121&"H",0) ->  | DM121: =IF(AND(DL121=38,$DJ$4>=41,$DJ$4<=43),DL121&"H",0) -> 
B122: 52 | C122: 899 | D122: 3 | F122: 52 | G122: 899 | H122: 3 | AC122: Top Handle Bead | AD122: =(Frame_Width-5.912)/12 -> -0.4926666667 | AE122: 0.104 | AF122: -0.05123733333 | AP122: 0 | AQ122: =IF(AND(AP122=24,$AN$4>=31,$AN$4<=34),AP122&"G",0) ->  | AU122: 0 | AV122: =IF(AND(AU122=24,$AS$4>=31,$AS$4<=34),AU122&"G",0) ->  | DH122: =IF(AND(DG122=38,$DE$4>=44,$DE$4<=45),DG122&"I",0) ->  | DM122: =IF(AND(DL122=38,$DJ$4>=44,$DJ$4<=45),DL122&"I",0) -> 
B123: 53 | C123: 999 | D123: 3 | F123: 53 | G123: 999 | H123: 3 | AC123: Top Bead | AD123: =((Frame_Width-4.25)+((CMR!$L$42-5.0625)*2))/12 -> -1.197916667 | AE123: 0.074 | AF123: =AD123*AE123 -> -0.08864583333 | AH123: i201 | AI123: Length | AJ123: Weight/ft | AK123: Weight | AP123: 0 | AQ123: =IF(AND(AP123=24,$AN$4>=35,$AN$4<=37),AP123&"H",0) ->  | AU123: 0 | AV123: =IF(AND(AU123=24,$AS$4>=35,$AS$4<=37),AU123&"H",0) ->  | DG123: =IF(AND($DF$4<=40,$DF$4>38),40,0) ->  | DH123: =IF(AND(DG123=40,$DE$4>=11,$DE$4<=16),DG123&"A",0) ->  | DL123: =IF(AND($DK$4<=40,$DK$4>38),40,0) ->  | DM123: =IF(AND(DL123=40,$DJ$4>=11,$DJ$4<=16),DL123&"A",0) -> 
B124: 54 | C124: 999 | D124: 3 | F124: 54 | G124: 999 | H124: 3 | AC124: Bottom Top Rail | AD124: =(Frame_Width-3.25)/12 -> -0.2708333333 | AE124: 0.437 | AF124: -0.1183541667 | AH124: Top Top Rail | AI124: =(Frame_Width-3.25)/12 -> -0.2708333333 | AJ124: 0.257 | AK124: =AI124*AJ124 -> -0.06960416667 | AP124: 0 | AQ124: =IF(AND(AP124=24,$AN$4>=38,$AN$4<=40),AP124&"I",0) ->  | AU124: 0 | AV124: =IF(AND(AU124=24,$AS$4>=38,$AS$4<=40),AU124&"I",0) ->  | DH124: =IF(AND(DG124=40,$DE$4>=17,$DE$4<=22),DG124&"B",0) ->  | DM124: =IF(AND(DL124=40,$DJ$4>=17,$DJ$4<=22),DL124&"B",0) -> 
B125: 55 | C125: 6679 | D125: 4 | F125: 55 | G125: 4888 | H125: 4 | AC125: Bottom Bottom Rail | AD125: =(Frame_Width-3.25)/12 -> -0.2708333333 | AE125: 0.437 | AF125: -0.1183541667 | AH125: Top Bottom Rail | AI125: =(Frame_Width-3.25)/12 -> -0.2708333333 | AJ125: 0.273 | AK125: -0.0739375 | AO125: =IF(AND(AP125>0,AQ125>0),AP125,0) ->  | AP125: 0 | AQ125: =IF(AND(AP125=24,$AN$4>=41,$AN$4<=44),"Dbl."&AP125&"C",0) ->  | AU125: 0 | AV125: =IF(AND(AU125=24,$AS$4>=41,$AS$4<=44),"Dbl."&AU125&"C",0) ->  | DH125: =IF(AND(DG125=40,$DE$4>=23,$DE$4<=27),DG125&"C",0) ->  | DM125: =IF(AND(DL125=40,$DJ$4>=23,$DJ$4<=27),DL125&"C",0) -> 
B126: 56 | C126: 6679 | D126: 4 | F126: 56 | G126: 4888 | H126: 4 | AC126: Bottom Stile | AD126: =(2*(CMR!$L$43-1.25))/12 -> -0.2083333333 | AE126: 0.437 | AF126: -0.09104166667 | AH126: Top Stile | AI126: =(2*(CMR!$E$26-1.5625))/12 -> -0.2604166667 | AJ126: 0.233 | AK126: -0.06067708333 | AP126: 0 | AQ126: =IF(AND(AP126=24,$AN$4>=45,$AN$4<=50),"Dbl."&AP126&"D",0) ->  | AU126: 0 | AV126: =IF(AND(AU126=24,$AS$4>=45,$AS$4<=50),"Dbl."&AU126&"D",0) ->  | DH126: =IF(AND(DG126=40,$DE$4>=28,$DE$4<=32),DG126&"D",0) ->  | DM126: =IF(AND(DL126=40,$DJ$4>=28,$DJ$4<=32),DL126&"D",0) -> 
B127: 57 | C127: 6779 | D127: 4 | F127: 57 | G127: 5888 | H127: 4 | AC127: Bottom Rail Reinf. | AD127: =(TRUNC(((Frame_Width-3.25)-6)/2)*2)/12 -> -0.6666666667 | AE127: 0.4344 | AF127: -0.2896 | AH127: Keeper Rail Reinf. | AI127: =(TRUNC(Frame_Width-3.25)-6)/12 -> -0.75 | AJ127: 0.431 | AK127: -0.32325 | AP127: 0 | AQ127: =IF(AND(AP127=24,$AN$4>=51,$AN$4<=56),"Dbl."&AP127&"E",0) ->  | AU127: 0 | AV127: =IF(AND(AU127=24,$AS$4>=51,$AS$4<=56),"Dbl."&AU127&"E",0) ->  | DH127: =IF(AND(DG127=40,$DE$4>=33,$DE$4<=34),DG127&"E",0) ->  | DM127: =IF(AND(DL127=40,$DJ$4>=33,$DJ$4<=34),DL127&"E",0) -> 
B128: 58 | C128: 6779 | D128: 4 | F128: 58 | G128: 5888 | H128: 4 | AC128: Bottom Stile Reinf. | AD128: =IF(CMR!$L$48>26.1875,((TRUNC((CMR!$L$43-4)/2)*2)/12)*2,0) -> 0 | AE128: 0.4344 | AF128: 0 | AH128: Top Stile Reinf | AI128: =(2*(CMR!$E$26-3.5625))/12 -> -0.59375 | AJ128: 0.431 | AK128: -0.25590625 | AP128: 0 | AQ128: =IF(AND(AP128=24,$AN$4>=57,$AN$4<=60),"Dbl."&AP128&"F",0) ->  | AU128: 0 | AV128: =IF(AND(AU128=24,$AS$4>=57,$AS$4<=60),"Dbl."&AU128&"F",0) ->  | DH128: =IF(AND(DG128=40,$DE$4>=35,$DE$4<=37),DG128&"F",0) ->  | DM128: =IF(AND(DL128=40,$DJ$4>=35,$DJ$4<=37),DL128&"F",0) -> 
B129: 59 | C129: 7779 | D129: 4 | F129: 59 | G129: 6888 | H129: 4 | AC129: Bottom Glass | AD129: =(CMR!$L$46*CMR!$L$48)/144 -> 0.1710340712 | AE129: =$L$12 ->  | AH129: Top Glass | AI129: =(CMR!$E$29*CMR!$E$31)/144 -> 0.1068522135 | AJ129: =$L$12 ->  | AP129: 0 | AQ129: =IF(AND(AP129=24,$AN$4>=61,$AN$4<=68),"Dbl."&AP129&"G",0) ->  | AU129: 0 | AV129: =IF(AND(AU129=24,$AS$4>=61,$AS$4<=68),"Dbl."&AU129&"G",0) ->  | DH129: =IF(AND(DG129=40,$DE$4>=38,$DE$4<=40),DG129&"G",0) ->  | DM129: =IF(AND(DL129=40,$DJ$4>=38,$DJ$4<=40),DL129&"G",0) -> 
B130: 60 | C130: 7779 | D130: 4 | F130: 60 | G130: 6888 | H130: 4 | AC130: Bottom Spacer | AD130: =((CMR!$L$46*2)+(CMR!$L$48*2))/12 -> -1.6875 | AE130: 0.0536 | AF130: -0.09045 | AH130: Top Spacer | AI130: =((CMR!$E$29*2)+(CMR!$E$31*2))/12 -> -1.338541667 | AJ130: 0.0536 | AK130: -0.07174583333 | AP130: 0 | AQ130: =IF(AND(AP130=24,$AN$4>=69,$AN$4<=74),"Dbl."&AP130&"H",0) ->  | AU130: 0 | AV130: =IF(AND(AU130=24,$AS$4>=69,$AS$4<=74),"Dbl."&AU130&"H",0) ->  | DH130: =IF(AND(DG130=40,$DE$4>=41,$DE$4<=42),DG130&"H",0) ->  | DM130: =IF(AND(DL130=40,$DJ$4>=41,$DJ$4<=42),DL130&"H",0) -> 
B131: 61 | C131: 6799 | D131: 4 | F131: 61 | G131: 7888 | H131: 4 | AC131: Bottom Hardware | AD131: 1 | AE131: 0.36 | AF131: 0.36 | AH131: Top Hardware | AI131: 1 | AJ131: =IF(Frame_Width>36,0.258,0.2) -> 0.2 | AK131: 0.2 | AP131: 0 | AQ131: =IF(AND(AP131=24,$AN$4>=75,$AN$4<=80),"Dbl."&AP131&"I",0) ->  | AU131: 0 | AV131: =IF(AND(AU131=24,$AS$4>=75,$AS$4<=80),"Dbl."&AU131&"I",0) ->  | DH131: =IF(AND(DG131=40,$DE$4>=43,$DE$4<=45),DG131&"I",0) ->  | DM131: =IF(AND(DL131=40,$DJ$4>=43,$DJ$4<=45),DL131&"I",0) -> 
B132: 62 | C132: 6799 | D132: 4 | F132: 62 | G132: 7888 | H132: 4 | AC132: Bottom Keeper Bead | AD132: =(Frame_Width-5.912)/12 -> -0.4926666667 | AE132: 0.109 | AF132: -0.05370066667 | AH132: Top Bead | AI132: =(((Frame_Width-4.3125)*2)+((CMR!$E$26-2.625)*2))/12 -> -1.15625 | AJ132: 0.028 | AK132: -0.032375 | AO132: =IF(AND(AP132>0,AQ132>0),AP132,0) ->  | AP132: =IF(AND($AO$4<=26,$AO$4>24),26,0) -> 0 | AQ132: =IF(AND(AP132=26,$AN$4>=6,$AN$4<=11),AP132&"A",0) ->  | AU132: =IF(AND($AT$4<=26,$AT$4>24),26,0) -> 0 | AV132: =IF(AND(AU132=26,$AS$4>=6,$AS$4<=11),AU132&"A",0) ->  | DG132: =IF(AND($DF$4<=42,$DF$4>40),42,0) ->  | DH132: =IF(AND(DG132=42,$DE$4>=11,$DE$4<=16),DG132&"A",0) ->  | DL132: =IF(AND($DK$4<=42,$DK$4>40),42,0) ->  | DM132: =IF(AND(DL132=42,$DJ$4>=11,$DJ$4<=16),DL132&"A",0) -> 
B133: 63 | C133: 7799 | D133: 4 | F133: 63 | G133: 8888 | H133: 4 | AC133: Bottom Bead | AD133: =((Frame_Width-5.912)+((CMR!$L$43-5.0625)*2))/12 -> -1.336416667 | AE133: 0.074 | AF133: -0.09889483333 | AH133: Bottom Top Rail | AI133: =(Frame_Width-2.25)/12 -> -0.1875 | AJ133: 0.246 | AK133: -0.046125 | AP133: 0 | AQ133: =IF(AND(AP133=26,$AN$4>=12,$AN$4<=17),AP133&"B",0) ->  | AT133: =IF(AND(AU133>0,AV133>0),AU133,0) ->  | AU133: 0 | AV133: =IF(AND(AU133=26,$AS$4>=12,$AS$4<=17),AU133&"B",0) ->  | DF133: =IF(AND(DG133>0,DH133>0),DG133,0) ->  | DH133: =IF(AND(DG133=42,$DE$4>=17,$DE$4<=22),DG133&"B",0) ->  | DK133: =IF(AND(DL133>0,DM133>0),DL133,0) ->  | DM133: =IF(AND(DL133=42,$DJ$4>=17,$DJ$4<=22),DL133&"B",0) -> 
B134: 64 | C134: 7799 | D134: 4 | F134: 64 | G134: 8888 | H134: 4 | AE134: Top Sash | AF134: =IF(OR(ModelNo="0501",ModelNo="B501",ModelNo="U501"),(SUM(AF114:AF123))+5,0) -> 0 | AH134: Bottom Bottom Rail | AI134: =(Frame_Width-2.25)/12 -> -0.1875 | AJ134: 0.257 | AK134: -0.0481875 | AP134: 0 | AQ134: =IF(AND(AP134=26,$AN$4>=18,$AN$4<=22),AP134&"C",0) ->  | AU134: 0 | AV134: =IF(AND(AU134=26,$AS$4>=18,$AS$4<=22),AU134&"C",0) ->  | DH134: =IF(AND(DG134=42,$DE$4>=23,$DE$4<=27),DG134&"C",0) ->  | DM134: =IF(AND(DL134=42,$DJ$4>=23,$DJ$4<=27),DL134&"C",0) -> 
B135: 65 | C135: 7899 | D135: 4 | F135: 65 | G135: 8889 | H135: 4 | AE135: Bottom Sash | AF135: =IF(OR(ModelNo="0501",ModelNo="B501",ModelNo="U501"),SUM(AF124:AF133),0) -> 0 | AH135: Bottom Stile | AI135: =(2*(CMR!$E$27-0.5625))/12 -> -0.09375 | AJ135: 0.233 | AK135: -0.02184375 | AP135: 0 | AQ135: =IF(AND(AP135=26,$AN$4>=23,$AN$4<=26),AP135&"D",0) ->  | AU135: 0 | AV135: =IF(AND(AU135=26,$AS$4>=23,$AS$4<=26),AU135&"D",0) ->  | DH135: =IF(AND(DG135=42,$DE$4>=28,$DE$4<=31),DG135&"D",0) ->  | DM135: =IF(AND(DL135=42,$DJ$4>=28,$DJ$4<=31),DL135&"D",0) -> 
B136: 66 | C136: 7899 | D136: 4 | F136: 66 | G136: 8889 | H136: 4 | AH136: Lock Rail Reinf. | AI136: =(Frame_Width-3)/12 -> -0.25 | AJ136: 0.5601 | AK136: -0.140025 | AP136: 0 | AQ136: =IF(AND(AP136=26,$AN$4>=27,$AN$4<=30),AP136&"E",0) ->  | AU136: 0 | AV136: =IF(AND(AU136=26,$AS$4>=27,$AS$4<=30),AU136&"E",0) ->  | DH136: =IF(AND(DG136=42,$DE$4>=32,$DE$4<=34),DG136&"E",0) ->  | DM136: =IF(AND(DL136=42,$DJ$4>=32,$DJ$4<=34),DL136&"E",0) -> 
B137: 67 | C137: 8899 | D137: 4 | F137: 67 | G137: 8899 | H137: 4 | AC137: V100 | AD137: Length | AE137: Weight/ft | AF137: Weight | AH137: Bottom Rail Reinf. | AI137: =(Frame_Width-8.25)/12 -> -0.6875 | AJ137: 0.43 | AK137: =AI137*AJ137 -> -0.295625 | AP137: 0 | AQ137: =IF(AND(AP137=26,$AN$4>=31,$AN$4<=34),AP137&"F",0) ->  | AU137: 0 | AV137: =IF(AND(AU137=26,$AS$4>=31,$AS$4<=34),AU137&"F",0) ->  | DH137: =IF(AND(DG137=42,$DE$4>=35,$DE$4<=37),DG137&"F",0) ->  | DM137: =IF(AND(DL137=42,$DJ$4>=35,$DJ$4<=37),DL137&"F",0) -> 
B138: 68 | C138: 8899 | D138: 4 | F138: 68 | G138: 8899 | H138: 4 | AC138: Top Top Rail | AD138: 0 | AE138: 0 | AF138: =AD138*AE138 -> 0 | AH138: Bottom Stile Reinf. | AI138: =2*((CMR!$E$27-2.5625)/12) -> -0.4270833333 | AJ138: 0.43 | AK138: -0.1836458333 | AP138: 0 | AQ138: =IF(AND(AP138=26,$AN$4>=35,$AN$4<=38),AP138&"G",0) ->  | AU138: 0 | AV138: =IF(AND(AU138=26,$AS$4>=35,$AS$4<=38),AU138&"G",0) ->  | DH138: =IF(AND(DG138=42,$DE$4>=38,$DE$4<=40),DG138&"G",0) ->  | DM138: =IF(AND(DL138=42,$DJ$4>=38,$DJ$4<=40),DL138&"G",0) -> 
B139: 69 | C139: 8999 | D139: 4 | F139: 69 | G139: 8999 | H139: 4 | AC139: Top Bottom Rail | AD139: 0 | AE139: 0 | AF139: 0 | AH139: Bottom Glass | AI139: =(CMR!$E$30*CMR!$E$32)/144 -> 0.05802408854 | AJ139: =$L$12 ->  | AP139: 0 | AQ139: =IF(AND(AP139=26,$AN$4>=39,$AN$4<=42),AP139&"H",0) ->  | AU139: 0 | AV139: =IF(AND(AU139=26,$AS$4>=39,$AS$4<=42),AU139&"H",0) ->  | DH139: =IF(AND(DG139=42,$DE$4>=41,$DE$4<=43),DG139&"H",0) ->  | DM139: =IF(AND(DL139=42,$DJ$4>=41,$DJ$4<=43),DL139&"H",0) -> 
B140: 70 | C140: 8999 | D140: 4 | F140: 70 | G140: 8999 | H140: 4 | AC140: Top Stile | AD140: 0 | AE140: 0 | AF140: 0 | AH140: Bottom Spacer | AI140: =((CMR!$E$30*2)+(CMR!$E$32*2))/12 -> -1.005208333 | AJ140: 0.0536 | AK140: -0.05387916667 | AP140: 0 | AQ140: =IF(AND(AP140=26,$AN$4>=43,$AN$4<=45),AP140&"I",0) ->  | AU140: 0 | AV140: =IF(AND(AU140=26,$AS$4>=43,$AS$4<=45),AU140&"I",0) ->  | DH140: =IF(AND(DG140=42,$DE$4>=44,$DE$4<=45),DG140&"I",0) ->  | DM140: =IF(AND(DL140=42,$DJ$4>=44,$DJ$4<=45),DL140&"I",0) -> 
B141: 71 | C141: 9999 | D141: 4 | F141: 71 | G141: 9999 | H141: 4 | AC141: Top Rail Reinf. | AD141: 0 | AE141: 0 | AF141: 0 | AH141: Bottom Hardware | AI141: 1 | AJ141: =IF(Frame_Width>36,0.482,0.36) -> 0.36 | AK141: 0.36 | AP141: 0 | AQ141: =IF(AND(AP141=26,$AN$4>=46,$AN$4<=52),"Dbl."&AP141&"D",0) ->  | AU141: 0 | AV141: =IF(AND(AU141=26,$AS$4>=46,$AS$4<=52),"Dbl."&AU141&"D",0) ->  | DG141: =IF(AND($DF$4<=44,$DF$4>42),44,0) ->  | DH141: =IF(AND(DG141=44,$DE$4>=11,$DE$4<=16),DG141&"A",0) ->  | DL141: =IF(AND($DK$4<=44,$DK$4>42),44,0) ->  | DM141: =IF(AND(DL141=44,$DJ$4>=11,$DJ$4<=16),DL141&"A",0) -> 
B142: 72 | C142: 9999 | D142: 4 | F142: 72 | G142: 9999 | H142: 4 | AC142: Top Stile Reinf | AD142: 0 | AE142: 0 | AF142: 0 | AH142: Bottom Bead | AI142: =(((Frame_Width-3.3125)*2)+((CMR!$E$27-1.625)*2))/12 -> -0.8229166667 | AJ142: 0.028 | AK142: -0.02304166667 | AP142: 0 | AQ142: =IF(AND(AP142=26,$AN$4>=53,$AN$4<=60),"Dbl."&AP142&"E",0) ->  | AU142: 0 | AV142: =IF(AND(AU142=26,$AS$4>=53,$AS$4<=60),"Dbl."&AU142&"E",0) ->  | DH142: =IF(AND(DG142=44,$DE$4>=17,$DE$4<=22),DG142&"B",0) ->  | DM142: =IF(AND(DL142=44,$DJ$4>=17,$DJ$4<=22),DL142&"B",0) -> 
AC143: Top Glass | AD143: 0 | AE143: 0 | AF143: 0 | AJ143: Top Sash | AK143: =IF(ModelNo="i201",(SUM(AK124:AK132))+5,0) -> 0 | AP143: 0 | AQ143: =IF(AND(AP143=26,$AN$4>=61,$AN$4<=68),"Dbl."&AP143&"F",0) ->  | AU143: 0 | AV143: =IF(AND(AU143=26,$AS$4>=61,$AS$4<=68),"Dbl."&AU143&"F",0) ->  | DH143: =IF(AND(DG143=44,$DE$4>=23,$DE$4<=27),DG143&"C",0) ->  | DM143: =IF(AND(DL143=44,$DJ$4>=23,$DJ$4<=27),DL143&"C",0) -> 
AC144: Top Spacer | AD144: 0 | AE144: 0 | AF144: 0 | AJ144: Bottom Sash | AK144: =IF(ModelNo="i201",SUM(AK133:AK142),0) -> 0 | AP144: 0 | AQ144: =IF(AND(AP144=26,$AN$4>=69,$AN$4<=76),"Dbl."&AP144&"G",0) ->  | AU144: 0 | AV144: =IF(AND(AU144=26,$AS$4>=69,$AS$4<=76),"Dbl."&AU144&"G",0) ->  | DH144: =IF(AND(DG144=44,$DE$4>=28,$DE$4<=32),DG144&"D",0) ->  | DM144: =IF(AND(DL144=44,$DJ$4>=28,$DJ$4<=32),DL144&"D",0) -> 
AC145: Top Hardware | AD145: 0 | AE145: 0 | AF145: 0 | AP145: 0 | AQ145: =IF(AND(AP145=26,$AN$4>=77,$AN$4<=80),"Dbl."&AP145&"H",0) ->  | AU145: 0 | AV145: =IF(AND(AU145=26,$AS$4>=77,$AS$4<=80),"Dbl."&AU145&"H",0) ->  | DH145: =IF(AND(DG145=44,$DE$4>=33,$DE$4<=34),DG145&"E",0) ->  | DM145: =IF(AND(DL145=44,$DJ$4>=33,$DJ$4<=34),DL145&"E",0) -> 
AC146: Top Bead | AD146: 0 | AE146: 0 | AF146: 0 | AP146: =IF(AND($AO$4<=28,$AO$4>26),28,0) -> 0 | AQ146: =IF(AND(AP146=28,$AN$4>=7,$AN$4<=12),AP146&"A",0) ->  | AU146: =IF(AND($AT$4<=28,$AT$4>26),28,0) -> 0 | AV146: =IF(AND(AU146=28,$AS$4>=7,$AS$4<=12),AU146&"A",0) ->  | DH146: =IF(AND(DG146=44,$DE$4>=35,$DE$4<=37),DG146&"F",0) ->  | DM146: =IF(AND(DL146=44,$DJ$4>=35,$DJ$4<=37),DL146&"F",0) -> 
AC147: Bottom Top Rail | AD147: =(Frame_Width-2.1875)/12 -> -0.1822916667 | AE147: 0.224 | AF147: -0.04083333333 | AH147: V200 | AI147: Length | AJ147: Weight/ft | AK147: Weight | AP147: 0 | AQ147: =IF(AND(AP147=28,$AN$4>=13,$AN$4<=18),AP147&"B",0) ->  | AU147: 0 | AV147: =IF(AND(AU147=28,$AS$4>=13,$AS$4<=18),AU147&"B",0) ->  | DH147: =IF(AND(DG147=44,$DE$4>=38,$DE$4<=40),DG147&"G",0) ->  | DM147: =IF(AND(DL147=44,$DJ$4>=38,$DJ$4<=40),DL147&"G",0) -> 
AC148: Bottom Bottom Rail | AD148: =(Frame_Width-2.1875)/12 -> -0.1822916667 | AE148: 0.199 | AF148: -0.03627604167 | AH148: Top Top Rail | AI148: 0 | AJ148: 0 | AK148: =AI148*AJ148 -> 0 | AP148: 0 | AQ148: =IF(AND(AP148=28,$AN$4>=19,$AN$4<=23),AP148&"C",0) ->  | AU148: 0 | AV148: =IF(AND(AU148=28,$AS$4>=19,$AS$4<=23),AU148&"C",0) ->  | DH148: =IF(AND(DG148=44,$DE$4>=41,$DE$4<=43),DG148&"H",0) ->  | DM148: =IF(AND(DL148=44,$DJ$4>=41,$DJ$4<=43),DL148&"H",0) -> 
AC149: Bottom Stile | AD149: =((CMR!$L$100-0.844)*2)/12 -> -0.1406666667 | AE149: 0.199 | AF149: -0.02799266667 | AH149: Top Bottom Rail | AI149: 0 | AJ149: 0 | AK149: 0 | AP149: 0 | AQ149: =IF(AND(AP149=28,$AN$4>=24,$AN$4<=28),AP149&"D",0) ->  | AU149: 0 | AV149: =IF(AND(AU149=28,$AS$4>=24,$AS$4<=28),AU149&"D",0) ->  | DH149: =IF(AND(DG149=44,$DE$4>=44,$DE$4<=45),DG149&"I",0) ->  | DM149: =IF(AND(DL149=44,$DJ$4>=44,$DJ$4<=45),DL149&"I",0) -> 
AC150: Bottom Rail Reinf. | AD150: =(TRUNC(((Frame_Width-8.188)-0.5)/2)*2)/12 -> -0.6666666667 | AE150: 0.133 | AF150: -0.08866666667 | AH150: Top Stile | AI150: 0 | AJ150: 0 | AK150: 0 | AP150: 0 | AQ150: =IF(AND(AP150=28,$AN$4>=29,$AN$4<=32),AP150&"E",0) ->  | AU150: 0 | AV150: =IF(AND(AU150=28,$AS$4>=29,$AS$4<=32),AU150&"E",0) -> 
AC151: Bottom Stile Reinf. | AD151: =(TRUNC((((CMR!$L$100-0.844)-1.46875)-0.25)/2)*2)/12 -> -0.1666666667 | AE151: 0.101 | AF151: -0.01683333333 | AH151: Top Rail Reinf. | AI151: 0 | AJ151: 0 | AK151: 0 | AP151: 0 | AQ151: =IF(AND(AP151=28,$AN$4>=33,$AN$4<=36),AP151&"F",0) ->  | AU151: 0 | AV151: =IF(AND(AU151=28,$AS$4>=33,$AS$4<=36),AU151&"F",0) -> 
AC152: Bottom Glass | AD152: =(CMR!$L$103*CMR!$L$105)/144 -> 0.05445692274 | AE152: =$L$12 ->  | AH152: Top Stile Reinf | AI152: 0 | AJ152: 0 | AK152: 0 | AP152: 0 | AQ152: =IF(AND(AP152=28,$AN$4>=37,$AN$4<=40),AP152&"G",0) ->  | AU152: 0 | AV152: =IF(AND(AU152=28,$AS$4>=37,$AS$4<=40),AU152&"G",0) -> 
AC153: Bottom Spacer | AD153: =((CMR!$L$103*2)+(CMR!$L$105*2))/12 -> -0.953125 | AE153: 0.0536 | AF153: -0.0510875 | AH153: Top Glass | AI153: 0 | AJ153: 0 | AK153: 0 | AP153: 0 | AQ153: =IF(AND(AP153=28,$AN$4>=41,$AN$4<=43),AP153&"H",0) ->  | AU153: 0 | AV153: =IF(AND(AU153=28,$AS$4>=41,$AS$4<=43),AU153&"H",0) -> 
AC154: Bottom Hardware | AD154: 1 | AE154: 0.36 | AF154: 0.36 | AH154: Top Spacer | AI154: 0 | AJ154: 0 | AK154: 0 | AP154: 0 | AQ154: =IF(AND(AP154=28,$AN$4>=44,$AN$4<=45),AP154&"I",0) ->  | AU154: 0 | AV154: =IF(AND(AU154=28,$AS$4>=44,$AS$4<=45),AU154&"I",0) -> 
AC155: Bottom Bead | AD155: =(((Frame_Width-2.9375)*2)+((CMR!$L$100-1.625)*2))/12 -> -0.7604166667 | AE155: 0.021 | AF155: -0.01596875 | AH155: Top Hardware | AI155: 0 | AJ155: 0 | AK155: 0 | AP155: 0 | AQ155: =IF(AND(AP155=28,$AN$4=46),"Dbl."&AP155&"C",0) ->  | AU155: 0 | AV155: =IF(AND(AU155=28,$AS$4=46),"Dbl."&AU155&"C",0) -> 
AE156: Top Sash | AF156: 0 | AH156: Top Bead | AI156: 0 | AJ156: 0 | AK156: 0 | AP156: 0 | AQ156: =IF(AND(AP156=28,$AN$4>=47,$AN$4<=56),"Dbl."&AP156&"D",0) ->  | AU156: 0 | AV156: =IF(AND(AU156=28,$AS$4>=47,$AS$4<=56),"Dbl."&AU156&"D",0) -> 
AE157: Bottom Sash | AF157: =IF(OR(ModelNo="V100",ModelNo="V100",ModelNo="V100"),SUM(AF147:AF155),0) -> 0 | AH157: Bottom Top Rail | AI157: =(Frame_Width-2.1875)/12 -> -0.1822916667 | AJ157: 0.224 | AK157: -0.04083333333 | AP157: 0 | AQ157: =IF(AND(AP157=28,$AN$4>=57,$AN$4<=64),"Dbl."&AP157&"E",0) ->  | AU157: 0 | AV157: =IF(AND(AU157=28,$AS$4>=57,$AS$4<=64),"Dbl."&AU157&"E",0) -> 
AH158: Bottom Bottom Rail | AI158: =(Frame_Width-2.1875)/12 -> -0.1822916667 | AJ158: 0.199 | AK158: -0.03627604167 | AP158: 0 | AQ158: =IF(AND(AP158=28,$AN$4>=65,$AN$4<=72),"Dbl."&AP158&"F",0) ->  | AU158: 0 | AV158: =IF(AND(AU158=28,$AS$4>=65,$AS$4<=72),"Dbl."&AU158&"F",0) -> 
AC159: V101 | AD159: Length | AE159: Weight/ft | AF159: Weight | AH159: Bottom Stile | AI159: =((CMR!$L$125-0.875)*2)/12 -> -0.1458333333 | AJ159: 0.199 | AK159: -0.02902083333 | AP159: 0 | AQ159: =IF(AND(AP159=28,$AN$4>=73,$AN$4<=80),"Dbl."&AP159&"G",0) ->  | AU159: 0 | AV159: =IF(AND(AU159=28,$AS$4>=73,$AS$4<=80),"Dbl."&AU159&"G",0) -> 
AC160: Top Top Rail | AD160: =(Frame_Width-3.4375)/12 -> -0.2864583333 | AE160: 0.208 | AF160: =AD160*AE160 -> -0.05958333333 | AH160: Bottom Rail Reinf. | AI160: =(TRUNC(((Frame_Width-3.625)-0.5)/2)*2-2)/12 -> -0.5 | AJ160: 0.133 | AK160: -0.0665 | AP160: =IF(AND($AO$4<=30,$AO$4>28),30,0) -> 0 | AQ160: =IF(AND(AP160=30,$AN$4>=8,$AN$4<=13),AP160&"A",0) ->  | AU160: =IF(AND($AT$4<=30,$AT$4>28),30,0) -> 0 | AV160: =IF(AND(AU160=30,$AS$4>=8,$AS$4<=13),AU160&"A",0) -> 
AC161: Top Bottom Rail | AD161: =(Frame_Width-3.4375)/12 -> -0.2864583333 | AE161: 0.238 | AF161: -0.06817708333 | AH161: Bottom Stile Reinf. | AI161: =(TRUNC((((TRUNC(((CMR!$L$125-0.8125)*32+0.5))/32-0.0625)-1.46875)-0.25)/2)*2)/12 -> -0.1666666667 | AJ161: 0.101 | AK161: -0.01683333333 | AP161: 0 | AQ161: =IF(AND(AP161=30,$AN$4>=14,$AN$4<=19),AP161&"B",0) ->  | AU161: 0 | AV161: =IF(AND(AU161=30,$AS$4>=14,$AS$4<=19),AU161&"B",0) -> 
AC162: Top Stile | AD162: =(2*(CMR!$L$115-1.5625))/12 -> -0.2604166667 | AE162: 0.199 | AF162: -0.05182291667 | AH162: Bottom Glass | AI162: =(CMR!$L$128*CMR!$L$130)/144 -> 0.0546875 | AJ162: =$L$12 ->  | AP162: 0 | AQ162: =IF(AND(AP162=30,$AN$4>=20,$AN$4<=24),AP162&"C",0) ->  | AU162: 0 | AV162: =IF(AND(AU162=30,$AS$4>=20,$AS$4<=24),AU162&"C",0) -> 
AC163: Top Rail Reinf. | AD163: =(TRUNC(((Frame_Width-9.4375)+0.5)/2)*2)/12 -> -0.6666666667 | AE163: 0.101 | AF163: -0.06733333333 | AH163: Bottom Spacer | AI163: =((CMR!$L$128*2)+(CMR!$L$130*2))/12 -> -0.9583333333 | AJ163: 0.0536 | AK163: -0.05136666667 | AP163: 0 | AQ163: =IF(AND(AP163=30,$AN$4>=25,$AN$4<=29),AP163&"D",0) ->  | AU163: 0 | AV163: =IF(AND(AU163=30,$AS$4>=25,$AS$4<=29),AU163&"D",0) -> 
AC164: Top Stile Reinf | AD164: =((TRUNC(((CMR!$L$115-2.5625)+0.5)/2)*2)/12)*2 -> -0.3333333333 | AE164: 0.133 | AF164: -0.04433333333 | AH164: Bottom Hardware | AI164: 1 | AJ164: 0.36 | AK164: 0.36 | AO164: =IF(AND(AP164>0,AQ164>0),AP164,0) ->  | AP164: 0 | AQ164: =IF(AND(AP164=30,$AN$4>=30,$AN$4<=33),AP164&"E",0) ->  | AU164: 0 | AV164: =IF(AND(AU164=30,$AS$4>=30,$AS$4<=33),AU164&"E",0) -> 
AC165: Top Glass | AD165: =(CMR!$L$118*CMR!$L$120)/144 -> 0.09358723958 | AE165: =$L$12 ->  | AH165: Bottom Bead | AI165: =(((Frame_Width-2.9375)*2)+((CMR!$L$125-1.625)*2))/12 -> -0.7604166667 | AJ165: 0.021 | AK165: -0.01596875 | AP165: 0 | AQ165: =IF(AND(AP165=30,$AN$4>=34,$AN$4<=37),AP165&"F",0) ->  | AU165: 0 | AV165: =IF(AND(AU165=30,$AS$4>=34,$AS$4<=37),AU165&"F",0) -> 
AC166: Top Spacer | AD166: =((CMR!$L$118*2)+(CMR!$L$120*2))/12 -> -1.260416667 | AE166: 0.0536 | AF166: -0.06755833333 | AJ166: Top Sash | AK166: 0 | AP166: 0 | AQ166: =IF(AND(AP166=30,$AN$4>=38,$AN$4<=40),AP166&"G",0) ->  | AU166: 0 | AV166: =IF(AND(AU166=30,$AS$4>=38,$AS$4<=40),AU166&"G",0) -> 
AC167: Top Hardware | AD167: 1 | AE167: 0.2 | AF167: 0.2 | AJ167: Bottom Sash | AK167: =IF(ModelNo="V200",SUM(AK157:AK165),0) -> 0 | AP167: 0 | AQ167: =IF(AND(AP167=30,$AN$4>=41,$AN$4<=43),AP167&"H",0) ->  | AU167: 0 | AV167: =IF(AND(AU167=30,$AS$4>=41,$AS$4<=43),AU167&"H",0) -> 
AC168: Top Bead | AD168: =(((Frame_Width-4.2)*2)+((CMR!$L$115-2.875)*2))/12 -> -1.179166667 | AE168: 0.021 | AF168: -0.0247625 | AP168: 0 | AQ168: =IF(AND(AP168=30,$AN$4>=44,$AN$4<=45),AP168&"I",0) ->  | AU168: 0 | AV168: =IF(AND(AU168=30,$AS$4>=44,$AS$4<=45),AU168&"I",0) -> 
AC169: Bottom Top Rail | AD169: =(Frame_Width-2.1875)/12 -> -0.1822916667 | AE169: 0.224 | AF169: -0.04083333333 | AH169: 3001 | AI169: Length | AJ169: Weight/ft | AK169: Weight | AP169: 0 | AQ169: =IF(AND(AP169=30,$AN$4>=46,$AN$4<=48),"Dbl."&AP169&"C",0) ->  | AU169: 0 | AV169: =IF(AND(AU169=30,$AS$4>=46,$AS$4<=48),"Dbl."&AU169&"C",0) -> 
AC170: Bottom Bottom Rail | AD170: =(Frame_Width-2.1875)/12 -> -0.1822916667 | AE170: 0.199 | AF170: -0.03627604167 | AH170: Top Top Rail | AI170: =Data!D1120/12 -> -0.34375 | AJ170: 0.297 | AK170: =AI170*AJ170 -> -0.10209375 | AP170: 0 | AQ170: =IF(AND(AP170=30,$AN$4>=49,$AN$4<=58),"Dbl."&AP170&"D",0) ->  | AU170: 0 | AV170: =IF(AND(AU170=30,$AS$4>=49,$AS$4<=58),"Dbl."&AU170&"D",0) -> 
AC171: Bottom Stile | AD171: =(2*(CMR!$L$116-0.3125))/12 -> -0.05208333333 | AE171: 0.199 | AF171: -0.01036458333 | AH171: Top Bottom Rail | AI171: =Data!D1120/12 -> -0.34375 | AJ171: 0.289 | AK171: -0.09934375 | AP171: 0 | AQ171: =IF(AND(AP171=30,$AN$4>=59,$AN$4<=66),"Dbl."&AP171&"E",0) ->  | AU171: 0 | AV171: =IF(AND(AU171=30,$AS$4>=59,$AS$4<=66),"Dbl."&AU171&"E",0) -> 
AC172: Bottom Rail Reinf. | AD172: =(TRUNC(((Frame_Width-8.1875)+0.5)/2)*2)/12 -> -0.5 | AE172: 0.133 | AF172: -0.0665 | AH172: Top Stile | AI172: =(2*Data!D1121)/12 -> -0.2395833333 | AJ172: 0.218 | AK172: -0.05222916667 | AP172: 0 | AQ172: =IF(AND(AP172=30,$AN$4>=67,$AN$4<=74),"Dbl."&AP172&"F",0) ->  | AU172: 0 | AV172: =IF(AND(AU172=30,$AS$4>=67,$AS$4<=74),"Dbl."&AU172&"F",0) -> 
AC173: Bottom Stile Reinf. | AD173: =((TRUNC(((CMR!$L$116-1.3125)+0.5)/2)*2)/12)*2 -> 0 | AE173: 0.133 | AF173: 0 | AH173: Keeper Rail Reinf. | AI173: =(TRUNC((Data!D1120-6.5)/2)*2)/12 -> -0.8333333333 | AJ173: =IF(OR(EXTSELECT=2,Frame_Width<48,Frame_Height<84),0.0516,IF(OR(EXTSELECT=3,Frame_Width>48,Frame_Height>84),0.3784,0)) -> 0.0516 | AK173: -0.043 | AP173: 0 | AQ173: =IF(AND(AP173=30,$AN$4>=75,$AN$4<=80),"Dbl."&AP173&"G",0) ->  | AU173: 0 | AV173: =IF(AND(AU173=30,$AS$4>=75,$AS$4<=80),"Dbl."&AU173&"G",0) -> 
AC174: Bottom Glass | AD174: =(CMR!$L$119*CMR!$L$121)/144 -> 0.03879123264 | AE174: =$L$12 ->  | AH174: Top Stile Reinf | AI174: =IF(OR(Frame_Width>48,Frame_Height>84,EXTTYPE="Steel"),((TRUNC(((DDIM3001-1.4375)-8)/2)*2)/12)*2,0) -> 0 | AJ174: 0.456 | AK174: 0 | AP174: =IF(AND($AO$4<=32,$AO$4>30),32,0) -> 0 | AQ174: =IF(AND(AP174=32,$AN$4>=8,$AN$4<=14),AP174&"A",0) ->  | AU174: =IF(AND($AT$4<=32,$AT$4>30),32,0) -> 0 | AV174: =IF(AND(AU174=32,$AS$4>=8,$AS$4<=14),AU174&"A",0) -> 
AC175: Bottom Spacer | AD175: =((CMR!$L$119*2)+(CMR!$L$121*2))/12 -> -0.84375 | AE175: 0.0536 | AF175: -0.045225 | AH175: Top Glass | AI175: =(CMR!$E$119*CMR!$E$121)/144 -> 0.1210394965 | AJ175: =$L$12 ->  | AP175: 0 | AQ175: =IF(AND(AP175=32,$AN$4>=15,$AN$4<=20),AP175&"B",0) ->  | AU175: 0 | AV175: =IF(AND(AU175=32,$AS$4>=15,$AS$4<=20),AU175&"B",0) -> 
AC176: Bottom Hardware | AD176: 1 | AE176: 0.36 | AF176: 0.36 | AH176: Top Spacer | AI176: =((CMR!$E$119*2)+(CMR!$E$121*2))/12 -> -1.463541667 | AJ176: 0.0536 | AK176: -0.07844583333 | AP176: 0 | AQ176: =IF(AND(AP176=32,$AN$4>=21,$AN$4<=25),AP176&"C",0) ->  | AU176: 0 | AV176: =IF(AND(AU176=32,$AS$4>=21,$AS$4<=25),AU176&"C",0) -> 
AC177: Bottom Bead | AD177: =(((Frame_Width-2.95)*2)+((CMR!$L$116-1.0625)*2))/12 -> -0.66875 | AE177: 0.021 | AF177: -0.01404375 | AH177: Top Hardware | AI177: 1 | AJ177: 0.4 | AK177: 0.4 | AP177: 0 | AQ177: =IF(AND(AP177=32,$AN$4>=26,$AN$4<=30),AP177&"D",0) ->  | AU177: 0 | AV177: =IF(AND(AU177=32,$AS$4>=26,$AS$4<=30),AU177&"D",0) -> 
AE178: Top Sash | AF178: =IF(ModelNo="V101",(SUM(AF160:AF168))+5,0) -> 0 | AH178: Top Bead | AI178: =(((Frame_Width-5.125)*2)+((DDIM3001-4.3125)*2))/12 -> -1.572916667 | AJ178: 0.072 | AK178: -0.11325 | AP178: 0 | AQ178: =IF(AND(AP178=32,$AN$4>=31,$AN$4<=34),AP178&"E",0) ->  | AU178: 0 | AV178: =IF(AND(AU178=32,$AS$4>=31,$AS$4<=34),AU178&"E",0) -> 
AE179: Bottom Sash | AF179: =IF(ModelNo="V101",SUM(AF169:AF177),0) -> 0 | AH179: Bottom Top Rail | AI179: =Data!D1122/12 -> -0.2604166667 | AJ179: 0.33 | AK179: -0.0859375 | AP179: 0 | AQ179: =IF(AND(AP179=32,$AN$4>=35,$AN$4<=37),AP179&"F",0) ->  | AU179: 0 | AV179: =IF(AND(AU179=32,$AS$4>=35,$AS$4<=37),AU179&"F",0) -> 
AH180: Bottom Bottom Rail | AI180: =Data!D1122/12 -> -0.2604166667 | AJ180: 0.306 | AK180: -0.0796875 | AP180: 0 | AQ180: =IF(AND(AP180=32,$AN$4>=38,$AN$4<=40),AP180&"G",0) ->  | AU180: 0 | AV180: =IF(AND(AU180=32,$AS$4>=38,$AS$4<=40),AU180&"G",0) -> 
AC181: 03A0 | AD181: Length | AE181: Weight/ft | AF181: Weight | AH181: Bottom Stile | AI181: =(2*Data!D1123)/12 -> -0.07291666667 | AJ181: 0.219 | AK181: -0.01596875 | AP181: 0 | AQ181: =IF(AND(AP181=32,$AN$4>=41,$AN$4<=43),AP181&"H",0) ->  | AU181: 0 | AV181: =IF(AND(AU181=32,$AS$4>=41,$AS$4<=43),AU181&"H",0) -> 
AC182: Bottom Top Rail | AD182: =(Frame_Width-3.25)/12 -> -0.2708333333 | AE182: 0.33 | AF182: =AD182*AE182 -> -0.089375 | AH182: Bottom Rail Reinf. | AI182: =(TRUNC(((Frame_Width-3.125)-6)/2)*2)/12 -> -0.6666666667 | AJ182: =IF(OR(EXTSELECT=2,Frame_Width<48,Frame_Height<84),0.0516,IF(OR(EXTSELECT=3,Frame_Width>48,Frame_Height>84),0.57,0)) -> 0.0516 | AK182: -0.0344 | AP182: 0 | AQ182: =IF(AND(AP182=32,$AN$4>=44,$AN$4<=45),AP182&"I",0) ->  | AU182: 0 | AV182: =IF(AND(AU182=32,$AS$4>=44,$AS$4<=45),AU182&"I",0) -> 
AC183: Bottom Bottom Rail | AD183: =(Frame_Width-3.25)/12 -> -0.2708333333 | AE183: 0.306 | AF183: -0.082875 | AH183: Bottom Stile Reinf. | AI183: =IF(OR(Frame_Width>48,Frame_Height>84,EXTTYPE="Steel"),((TRUNC((CDIM3001-2)/2)*2)/12)*2,0) -> 0 | AJ183: 0.536 | AK183: 0 | AP183: 0 | AQ183: =IF(AND(AP183=32,$AN$4>=46,$AN$4<=50),"Dbl."&AP183&"C",0) ->  | AU183: 0 | AV183: =IF(AND(AU183=32,$AS$4>=46,$AS$4<=50),"Dbl."&AU183&"C",0) -> 
AC184: Bottom Stile | AD184: =(2*(CDIM03A0-0.6875))/12 -> -0.1145833333 | AE184: 0.24 | AF184: -0.0275 | AH184: Bottom Glass | AI184: =(CMR!$E$120*CMR!$E$122)/144 -> 0.09228515625 | AJ184: =$L$12 ->  | AP184: 0 | AQ184: =IF(AND(AP184=32,$AN$4>=51,$AN$4<=60),"Dbl."&AP184&"D",0) ->  | AU184: 0 | AV184: =IF(AND(AU184=32,$AS$4>=51,$AS$4<=60),"Dbl."&AU184&"D",0) -> 
AC185: Bottom Rail Reinf. | AD185: =(TRUNC(((Frame_Width-3.25)-6)/2)*2)/12 -> -0.6666666667 | AE185: =IF(OR(EXTSELECT=2,Frame_Width<48,Frame_Height<84),0.0516,IF(OR(EXTSELECT=3,Frame_Width>48,Frame_Height>84),0.57,0)) -> 0.0516 | AF185: -0.0344 | AH185: Bottom Spacer | AI185: =((CMR!$E$120*2)+(CMR!$E$122*2))/12 -> -1.296875 | AJ185: 0.0536 | AK185: -0.0695125 | AP185: 0 | AQ185: =IF(AND(AP185=32,$AN$4>=61,$AN$4<=68),"Dbl."&AP185&"E",0) ->  | AU185: 0 | AV185: =IF(AND(AU185=32,$AS$4>=61,$AS$4<=68),"Dbl."&AU185&"E",0) -> 
AC186: Bottom Stile Reinf. | AD186: =IF(OR(Frame_Height>84,Frame_Width>48,EXTTYPE="Steel"),((TRUNC((CDIM03A0-4)/2)*2)/12)*2,0) -> 0 | AE186: 0.536 | AF186: 0 | AH186: Bottom Hardware | AI186: 1 | AJ186: 0.36 | AK186: 0.36 | AP186: 0 | AQ186: =IF(AND(AP186=32,$AN$4>=69,$AN$4<=74),"Dbl."&AP186&"F",0) ->  | AU186: 0 | AV186: =IF(AND(AU186=32,$AS$4>=69,$AS$4<=74),"Dbl."&AU186&"F",0) -> 
AC187: Bottom Glass | AD187: =(CMR!$E$136*CMR!$E$138)/144 -> 0.1036783854 | AE187: =$L$12 ->  | AH187: Bottom Bead | AI187: =(((Frame_Width-4.625)*2)+((CDIM3001-3.625)*2))/12 -> -1.375 | AJ187: 0.072 | AK187: -0.099 | AP187: 0 | AQ187: =IF(AND(AP187=32,$AN$4>=75,$AN$4<=80),"Dbl."&AP187&"G",0) ->  | AU187: 0 | AV187: =IF(AND(AU187=32,$AS$4>=75,$AS$4<=80),"Dbl."&AU187&"G",0) -> 
AC188: Bottom Spacer | AD188: =((CMR!$E$136*2)+(CMR!$E$138*2))/12 -> -1.348958333 | AE188: 0.0536 | AF188: -0.07230416667 | AJ188: Top Sash | AK188: =IF(ModelNo="3001",(SUM(AK170:AK178))+5,0) -> 0 | AP188: =IF(AND($AO$4<=34,$AO$4>32),34,0) -> 0 | AQ188: =IF(AND(AP188=34,$AN$4>=11,$AN$4<=16),AP188&"A",0) ->  | AU188: =IF(AND($AT$4<=34,$AT$4>32),34,0) -> 0 | AV188: =IF(AND(AU188=34,$AS$4>=11,$AS$4<=16),AU188&"A",0) -> 
AC189: Bottom Hardware | AD189: 1 | AE189: 0.36 | AF189: 0.36 | AJ189: Bottom Sash | AK189: =IF(ModelNo="3001",SUM(AK179:AK187),0) -> 0 | AP189: 0 | AQ189: =IF(AND(AP189=34,$AN$4>=17,$AN$4<=22),AP189&"B",0) ->  | AU189: 0 | AV189: =IF(AND(AU189=34,$AS$4>=17,$AS$4<=22),AU189&"B",0) -> 
AC190: Bottom Bead | AD190: =(((Frame_Width-4.75)*2)+((CDIM03A0-3.875)*2))/12 -> -1.4375 | AE190: 0.072 | AF190: -0.1035 | AP190: 0 | AQ190: =IF(AND(AP190=34,$AN$4>=23,$AN$4<=27),AP190&"C",0) ->  | AU190: 0 | AV190: =IF(AND(AU190=34,$AS$4>=23,$AS$4<=27),AU190&"C",0) -> 
AE191: Bottom Sash | AF191: =IF(OR(ModelNo="03A0",ModelNo="S140",ModelNo="S144",ModelNo="S146",ModelNo="S140 (HP)",ModelNo="S144 (HP)",ModelNo="S146 (HP)"),SUM(AF182:AF190),0) -> 0 | AH191: 1700 | AI191: Length | AJ191: Weight/ft | AK191: Weight | AP191: 0 | AQ191: =IF(AND(AP191=34,$AN$4>=28,$AN$4<=32),AP191&"D",0) ->  | AU191: 0 | AV191: =IF(AND(AU191=34,$AS$4>=28,$AS$4<=32),AU191&"D",0) -> 
AH192: Bottom Top Rail | AI192: =(Frame_Width-2.1875)/12 -> -0.1822916667 | AJ192: 0.221 | AK192: =AI192*AJ192 -> -0.04028645833 | AP192: 0 | AQ192: =IF(AND(AP192=34,$AN$4>=33,$AN$4<=34),AP192&"E",0) ->  | AU192: 0 | AV192: =IF(AND(AU192=34,$AS$4>=33,$AS$4<=34),AU192&"E",0) -> 
AH193: Bottom Bottom Rail | AI193: =(Frame_Width-2.1875)/12 -> -0.1822916667 | AJ193: 0.196 | AK193: -0.03572916667 | AP193: 0 | AQ193: =IF(AND(AP193=34,$AN$4>=35,$AN$4<=37),AP193&"F",0) ->  | AU193: 0 | AV193: =IF(AND(AU193=34,$AS$4>=35,$AS$4<=37),AU193&"F",0) -> 
AC194: 1900 | AD194: Length | AE194: Weight/ft | AF194: Weight | AH194: Bottom Stile | AI194: =((CDIM_1700-0.875)*2)/12 -> -0.1458333333 | AJ194: 0.196 | AK194: -0.02858333333 | AP194: 0 | AQ194: =IF(AND(AP194=34,$AN$4>=38,$AN$4<=40),AP194&"G",0) ->  | AU194: 0 | AV194: =IF(AND(AU194=34,$AS$4>=38,$AS$4<=40),AU194&"G",0) -> 
AC195: Bottom Top Rail | AD195: =(Frame_Width-2.1875)/12 -> -0.1822916667 | AE195: 0.221 | AF195: =AD195*AE195 -> -0.04028645833 | AH195: Bottom Rail Reinf. | AI195: =IF(STILE_REINF>0,(TRUNC(((Frame_Width-3.625)-0.5)/2)*2-2)/12,0) -> 0 | AJ195: 0.133 | AK195: 0 | AP195: 0 | AQ195: =IF(AND(AP195=34,$AN$4>=41,$AN$4<=43),AP195&"H",0) ->  | AU195: 0 | AV195: =IF(AND(AU195=34,$AS$4>=41,$AS$4<=43),AU195&"H",0) -> 
AC196: Bottom Bottom Rail | AD196: =(Frame_Width-2.1875)/12 -> -0.1822916667 | AE196: 0.196 | AF196: -0.03572916667 | AH196: Bottom Stile Reinf. | AI196: =IF(STILE_REINF>0,(((((CDIM_1700-4.03125))/2)*2)/12)*2,0) -> 0 | AJ196: 0.133 | AK196: 0 | AO196: =IF(AND(AP196>0,AQ196>0),AP196,0) ->  | AP196: 0 | AQ196: =IF(AND(AP196=34,$AN$4>=44,$AN$4<=45),AP196&"I",0) ->  | AU196: 0 | AV196: =IF(AND(AU196=34,$AS$4>=44,$AS$4<=45),AU196&"I",0) -> 
AC197: Bottom Stile | AD197: =((CDIM_1900-0.844)*2)/12 -> -0.1406666667 | AE197: 0.196 | AF197: -0.02757066667 | AH197: Bottom Glass | AI197: =(Data!D1247*Data!D1248)/144 -> 0.05118815104 | AJ197: =$L$12 ->  | AP197: 0 | AQ197: =IF(AND(AP197=34,$AN$4>=46,$AN$4<=54),"Dbl."&AP197&"C",0) ->  | AT197: =IF(AND(AU197>0,AV197>0),AU197,0) ->  | AU197: 0 | AV197: =IF(AND(AU197=34,$AS$4>=46,$AS$4<=54),"Dbl."&AU197&"C",0) -> 
AC198: Bottom Rail Reinf. | AD198: =IF(STILE_REINF>0,(TRUNC(((Frame_Width-8.688)-0.5)/2)*2)/12,0) -> 0 | AE198: 0.133 | AF198: 0 | AH198: Bottom Spacer | AI198: =((Data!D1247*2)+(Data!D1248*2))/12 -> -0.9322916667 | AJ198: 0.0536 | AK198: -0.04997083333 | AP198: 0 | AQ198: =IF(AND(AP198=34,$AN$4>=55,$AN$4<=64),"Dbl."&AP198&"D",0) ->  | AU198: 0 | AV198: =IF(AND(AU198=34,$AS$4>=55,$AS$4<=64),"Dbl."&AU198&"D",0) -> 
AC199: Bottom Stile Reinf. | AD199: =IF(STILE_REINF>0,(((((CDIM_1900-4.094))/2)*2)/12)*2,0) -> 0 | AE199: 0.133 | AF199: 0 | AH199: Bottom Hardware | AI199: 1 | AJ199: 0.36 | AK199: 0.36 | AP199: 0 | AQ199: =IF(AND(AP199=34,$AN$4>=65,$AN$4<=68),"Dbl."&AP199&"E",0) ->  | AU199: 0 | AV199: =IF(AND(AU199=34,$AS$4>=65,$AS$4<=68),"Dbl."&AU199&"E",0) -> 
AC200: Bottom Glass | AD200: =(Data!D1331*Data!D1332)/144 -> 0.04998101128 | AE200: =$L$12 ->  | AH200: Bottom Bead | AI200: =(((Frame_Width-2.9375)*2)+((CDIM_1700-1.625)*2))/12 -> -0.7604166667 | AJ200: 0.021 | AK200: -0.01596875 | AP200: 0 | AQ200: =IF(AND(AP200=34,$AN$4>=69,$AN$4<=74),"Dbl."&AP200&"F",0) ->  | AU200: 0 | AV200: =IF(AND(AU200=34,$AS$4>=69,$AS$4<=74),"Dbl."&AU200&"F",0) -> 
... 47 more rows

Sheet CMR (hidden)
C2: W | E2: 0100 / 0700 | J2: W | L2: S140, S144, S146 | T2: SashW | U2: SashH | V2: GlassW | W2: GlassH | X2: Radius | Y2: Weight | AP2: 1700 | AQ2: 1720 | AR2: 1730 | AS2: 1900 | AT2: 1920 | AU2: 1930 | AV2: 1901 | AW2: 1921 | AX2: 1931
C3: =IF(TYPE=1,$C$2,IF(TYPE= "",$C$2," ")) -> W | D3: 1 | E3: =Frame_Height/2 -> 0 | F3: =TRUNC($E$3*16+0.5)/16 -> 0 | J3: =IF(TYPE=1,$J$2,IF(TYPE= "",$J$2," ")) -> W | K3: 1 | L3: =Frame_Height/2-CMRD -> 6 | M3: =TRUNC($L$3*16+0.5)/16 -> 6 | P3: Frame Cut Leg | Q3: =LEG+6 -> 6 | S3: 2 | T3: =Frame_Width-3.125 -> -3.125 | U3: =CDIMS140-1.125 -> -1.125 | V3: =T3-1.6875 -> -4.8125 | W3: =U3-1.625 -> -2.75 | X3: 12.5 | Y3: =BSW03A0 -> 0 | AO3: TGW | AP3: =IF(AD20>40.5,1,0) -> 0 | AQ3: =IF(AD21>40.25,1,0) -> 0 | AR3: =IF(AD22>25.5,1,0) -> 0 | AS3: =IF(AD23>40.5,1,0) -> 0 | AT3: =IF(AD24>40.25,1,0) -> 0 | AU3: =IF(AD25>25.5,1,0) -> 0 | AV3: =IF(AD26>39.25,1,0) -> 0 | AW3: =IF(AD27>39,1,0) -> 0 | AX3: =IF(AD28>30.9375,1,0) -> 0
C4: =IF(TYPE=5,$C$2,IF(TYPE=2,IF(Frame_Height>=54.5,IF(Frame_Height<72.5,$C$2,""),""),"")) ->  | D4: 2 | E4: =CEILING(((Frame_Height/5-0.093)*3-0.03125),0.0625) -> -0.25 | F4: =TRUNC($E4*16+0.5)/16 -> -0.1875 | G4: 5 | J4: =IF(TYPE=5,$J$2,IF(TYPE=2,IF(Frame_Height>=54.5,IF(Frame_Height<72.5,$J$2,""),""),"")) ->  | K4: 2 | L4: =CEILING(((Frame_Height/3-0.22)*2-0.03125),0.0625)-CMRD -> 5.5625 | M4: =TRUNC($L$4*16+0.5)/16 -> 5.5625 | N4: 5 | P4: CMRD | Q4: =Frame_Height-Q3 -> -6 | S4: 3 | T4: =Frame_Width-3.125 -> -3.125 | U4: =CDIMS140-1.125 -> -1.125 | V4: =T4-1.6875 -> -4.8125 | W4: =U4-1.625 -> -2.75 | X4: 13 | Y4: =BSW03A0 -> 0 | AA4: Model | AB4: TSW | AC4: TSH | AD4: TGW | AE4: TGH | AF4: TGSF | AG4: BSW | AH4: BSH | AI4: BGW | AJ4: BGH | AK4: BGSF | AO4: TGH | AP4: =IF(AE20>35.34375,1,0) -> 0 | AQ4: =IF(AE21>35.34375,1,0) -> 0 | AR4: =IF(AE22>35.34375,1,0) -> 0 | AS4: =IF(AE23>35.34375,1,0) -> 0 | AT4: =IF(AE24>35.34375,1,0) -> 0 | AU4: =IF(AE25>35.34375,1,0) -> 0 | AV4: =IF(AE26>35.1875,1,0) -> 0 | AW4: =IF(AE27>35.1875,1,0) -> 0 | AX4: =IF(AE28>35.1875,1,0) -> 0
C5: =IF(TYPE=6,$C$2,IF(AND(TYPE=2,OR(Frame_Height<54.5,Frame_Height>=72.5)),$C$2,"")) ->  | E5: =TRUNC((Frame_Height/3-0.22)*32+0.5)/16 -> -0.375 | F5: =TRUNC($E$5*16+0.5)/16 -> -0.3125 | G5: 6 | J5: =IF(TYPE=6,$J$2,IF(AND(TYPE=2,OR(Frame_Height<54.5,Frame_Height>=72.5)),$J$2,"")) ->  | L5: =TRUNC((Frame_Height/5-0.093)*32+0.5)/16-CMRD -> 5.875 | M5: =TRUNC($L$5*16+0.5)/16 -> 5.875 | N5: 6 | P5: Sash Cut back | Q5: =IF(OR(EXTSELECT=2,EXTSELECT=3),3.125,IF(OR(EXTSELECT=4,EXTSELECT=5),2.3125,IF(EXTSELECT=6,2.25,0))) -> 0 | S5: 4 | T5: =Frame_Width-2.3125 -> -2.3125 | U5: =CDIMS140+0.125 -> 0.125 | V5: =Frame_Width-4 -> -4 | W5: =CDIMS140-1.5625 -> -1.5625 | X5: 10 | Y5: =Balance!AF23 -> 0 | AA5: 0100 | AG5: =Data!D2 -> -2.3125 | AH5: =Data!D3 -> 0.125 | AI5: =Data!D4 -> -3.9375 | AJ5: =Data!D5 -> -1.5 | AK5: =(AI5*AJ5)/144 -> 0.041015625 | AO5: BGW | AP5: =IF(AI20>40.5,1,0) -> 0 | AQ5: =IF(AI21>40.25,1,0) -> 0 | AR5: =IF(AI22>25.46875,1,0) -> 0 | AS5: =IF(AI23>40.5,1,0) -> 0 | AT5: =IF(AI24>40.25,1,0) -> 0 | AU5: =IF(AI25>25.5,1,0) -> 0 | AV5: =IF(AG26>40.5,1,0) -> 0 | AW5: =IF(AI27>40.25,1,0) -> 0 | AX5: =IF(AI28>32.1875,1,0) -> 0
C6: =IF(TYPE=7,$C$2,IF(TYPE=3,IF(Frame_Height>=54.5,IF(Frame_Height<72.5,$C$2,""),""),"")) ->  | D6: 3 | E6: =TRUNC((Frame_Height/5+0.156)*32+0.5)/16 -> 0.3125 | F6: =TRUNC($E$6*16+0.5)/16 -> 0.3125 | G6: 7 | J6: =IF(TYPE=7,$J$2,IF(TYPE=3,IF(Frame_Height>=54.5,IF(Frame_Height<72.5,$J$2,""),""),"")) ->  | K6: 3 | L6: =TRUNC((Frame_Height/3+0.44)*32+0.5)/16-CMRD -> 6.875 | M6: =TRUNC($L$6*16+0.5)/16 -> 6.875 | N6: 7 | S6: 5 | T6: =Frame_Width-2.3125 -> -2.3125 | U6: =CDIMS140+0.125 -> 0.125 | V6: =Frame_Width-4 -> -4 | W6: =CDIMS140-1.5625 -> -1.5625 | X6: 10 | Y6: =Balance!AF23 -> 0 | AA6: 01HP | AG6: =Data!D17 -> -2.3125 | AH6: =Data!D18 -> 0.125 | AI6: =Data!D19 -> -3.9375 | AJ6: =Data!D20 -> -1.5 | AK6: 0.041015625 | AO6: BGH | AP6: =IF(AJ20>35.34375,1,0) -> 0 | AQ6: =IF(AJ21>35.34375,1,0) -> 0 | AR6: =IF(AJ22>35.34375,1,0) -> 0 | AS6: =IF(AJ23>35.3125,1,0) -> 0 | AT6: =IF(AJ24>35.34375,1,0) -> 0 | AU6: =IF(AJ25>35.3125,1,0) -> 0 | AV6: =IF(AJ26>35.1875,1,0) -> 0 | AW6: =IF(AJ27>35.1875,1,0) -> 0 | AX6: =IF(AJ28>35.1875,1,0) -> 0
C7: =IF(TYPE=8,$C$2,IF(AND(TYPE=3,OR(Frame_Height<54.5,Frame_Height>=72.5)),$C$2,"")) ->  | E7: =TRUNC((Frame_Height/3+0.44)*16+0.5)/16 -> 0.4375 | F7: =TRUNC($E$7*16+0.5)/16 -> 0.4375 | G7: 8 | J7: =IF(TYPE=8,$J$2,IF(AND(TYPE=3,OR(Frame_Height<54.5,Frame_Height>=72.5)),$J$2,"")) ->  | L7: =TRUNC((Frame_Height/5+0.156)*16+0.5)/16-CMRD -> 6.125 | M7: =TRUNC($L$7*16+0.5)/16 -> 6.125 | N7: 8 | S7: 6 | T7: =Frame_Width-2.25 -> -2.25 | U7: =CDIMS140-0.75 -> -0.75 | V7: =Frame_Width-3.9375 -> -3.9375 | W7: =CDIMS140-2.4375 -> -2.4375 | X7: 11.75 | Y7: =Balance!AF67 -> 0 | AA7: 0301 | AB7: =Data!D325 -> -3.25 | AC7: =Data!D326 -> -1.625 | AD7: =Data!D329 -> -4.875 | AE7: =Data!D330 -> -3.25 | AF7: =(AD7*AE7)/144 -> 0.1100260417 | AG7: =Data!D327 -> -2.25 | AH7: =Data!D328 -> -0.625 | AI7: =Data!D331 -> -3.875 | AJ7: =Data!D332 -> -2.25 | AK7: 0.060546875 | AP7: =MAX(AP3:AP6) -> 0 | AQ7: 0 | AR7: 0 | AS7: 0 | AT7: 0 | AU7: 0 | AV7: 0 | AW7: 0 | AX7: 0
C8: =IF(TYPE=4,$C$2,"") ->  | D8: 4 | E8: =CMR -> 0 | F8: =TRUNC($E$8*16+0.5)/16 -> 0 | J8: =IF(TYPE=4,$J$2,"") ->  | K8: 4 | L8: =CMR-CMRD -> 6 | M8: =TRUNC($L$8*16+0.5)/16 -> 6 | S8: 7 | T8: =Frame_Width-2.1875 -> -2.1875 | U8: =CDIMS140-0.84375 -> -0.84375 | V8: =T8-1.3125 -> -3.5 | W8: =U8-1.3125 -> -2.15625 | X8: 12 | Y8: =Balance!AK201 -> 0 | AA8: 0501 | AB8: =Data!D404 -> -4.25 | AC8: =Data!D405 -> -2.25 | AD8: =Data!D408 -> -6.0625 | AE8: =Data!D409 -> -4.0625 | AF8: =(AD8*AE8)/144 -> 0.1710340712 | AG8: =Data!D406 -> -3.25 | AH8: =Data!D407 -> -1.25 | AI8: =Data!D410 -> -6.0625 | AJ8: =Data!D411 -> -4.0625 | AK8: 0.1710340712 | AN8: Stile Reinf. Driver >> | AO8: =MAX(AP8:AX8,AO9,AO10) -> 0 | AP8: =IF(ModelNo=1700,HLOOKUP(Model_Select,REINF_CHART,6,FALSE),0) -> 0 | AQ8: =IF(ModelNo=1720,HLOOKUP(Model_Select,REINF_CHART,6,FALSE),0) -> 0 | AR8: =IF(ModelNo=1730,HLOOKUP(Model_Select,REINF_CHART,6,FALSE),0) -> 0 | AS8: =IF(ModelNo=1900,HLOOKUP(Model_Select,REINF_CHART,6,FALSE),0) -> 0 | AT8: =IF(ModelNo=1920,HLOOKUP(Model_Select,REINF_CHART,6,FALSE),0) -> 0 | AU8: =IF(ModelNo=1930,HLOOKUP(Model_Select,REINF_CHART,6,FALSE),0) -> 0 | AV8: =IF(ModelNo=1901,HLOOKUP(Model_Select,REINF_CHART,6,FALSE),0) -> 0 | AW8: =IF(ModelNo=1921,HLOOKUP(Model_Select,REINF_CHART,6,FALSE),0) -> 0 | AX8: =IF(ModelNo=1931,HLOOKUP(Model_Select,REINF_CHART,6,FALSE),0) -> 0
S9: 8 | T9: =Frame_Width-2.1875 -> -2.1875 | U9: =CDIMS140-1.03125 -> -1.03125 | V9: =T9-1.3125 -> -3.5 | W9: =U9-1.3125 -> -2.34375 | X9: 12 | Y9: =Balance!AF204 -> 0 | AA9: 0601 | AB9: =Data!D500 -> -4.25 | AC9: =Data!D501 -> -1.9375 | AD9: =Data!D504 -> -6.0625 | AE9: =Data!D505 -> -3.75 | AF9: =(AD9*AE9)/144 -> 0.1578776042 | AG9: =Data!D502 -> -3.25 | AH9: =Data!D503 -> -0.9375 | AI9: =Data!D506 -> -6.0625 | AJ9: =Data!D507 -> -3.75 | AK9: 0.1578776042 | AN9: Oriel >> | AO9: =IF(TYPE>1,1,0) -> 0
B10: Dim.,"D" | D10: = | E10: =IF($C$3=$C$2,$F$3,IF($C$4=$C$2,$F$4,IF($C$5=$C$2,$F$5,IF($C$6=$C$2,$F$6,IF($C$7=$C$2,$F$7,IF($C$8=$C$2,$F$8,$F$3)))))) -> 0 | I10: Dim.,"D" | K10: = | L10: =IF($J$3=$J$2,$M$3,IF($J$4=$J$2,$M$4,IF($J$5=$J$2,$M$5,IF($J$6=$J$2,$M$6,IF($J$7=$J$2,$M$7,IF($J$8=$J$2,$M$8,$M$3)))))) -> 6 | T10: =VLOOKUP(EXTSELECT,$S$3:$Y$9,2,FALSE) ->  | U10: =VLOOKUP(EXTSELECT,$S$3:$Y$9,3,FALSE) ->  | V10: =VLOOKUP(EXTSELECT,$S$3:$Y$9,4,FALSE) ->  | W10: =VLOOKUP(EXTSELECT,$S$3:$Y$9,5,FALSE) ->  | X10: =VLOOKUP(EXTSELECT,$S$3:$Y$9,6,FALSE) ->  | Y10: =VLOOKUP(EXTSELECT,$S$3:$Y$9,7,FALSE) ->  | AA10: 0700 | AG10: =Data!D522 -> -2.3125 | AH10: =Data!D523 -> 0.125 | AI10: =Data!D524 -> -3.9375 | AJ10: =Data!D525 -> -1.5 | AK10: 0.041015625 | AN10: HP >> | AO10: =IF(EXTTYPE="HP Package",1,0) -> 0
B11: Dim.,"C" | D11: = | E11: =Frame_Height-$E$10 -> 0 | I11: Dim.,"C" | K11: = | L11: =Q3-DDIMS140 -> 0 | AA11: 07HP | AG11: =Data!D537 -> -2.3125 | AH11: =Data!D538 -> 0.125 | AI11: =Data!D539 -> -3.9375 | AJ11: =Data!D540 -> -1.5 | AK11: 0.041015625
AA12: i201 | AB12: =Data!D866 -> -3.25 | AC12: =Data!D867 -> -1.5625 | AD12: =Data!D870 -> -4.875 | AE12: =Data!D871 -> -3.15625 | AF12: =(AD12*AE12)/144 -> 0.1068522135 | AG12: =Data!D868 -> -2.25 | AH12: =Data!D869 -> -0.5625 | AI12: =Data!D872 -> -3.875 | AJ12: =Data!D873 -> -2.15625 | AK12: 0.05802408854
B13: Top Glass Width | E13: =TRUNC((Frame_Width-2)*16+0.5)/16 -> -1.9375 | I13: Top Glass Width | L13: =TRUNC((Frame_Width-2*EXT)*16+0.5)/16 -> 0 | M13: Glass R: | N13: =FrameR-EXT ->  | O13: F | P13: =IF(Frame_Width>=(Frame_Height-LEG),2*(ASIN((EXT*2)/(2*N13))),2*(ASIN(((N13-(Frame_Width-2*EXT))*2)/(2*N13)))) ->  | AA13: S140 | AG13: =IF(AND(Frame_Width>0,Frame_Height>0,LEG>0),BSW_S140,0) -> 0 | AH13: =IF(AND(Frame_Width>0,Frame_Height>0,LEG>0),BSH_S140,0) -> 0 | AI13: =IF(AND(Frame_Width>0,Frame_Height>0,LEG>0),BGW_S140,0) -> 0 | AJ13: =IF(AND(Frame_Width>0,Frame_Height>0,LEG>0),BGH_S140,0) -> 0 | AK13: =IF(AND(Frame_Width>0,Frame_Height>0,LEG>0),(AI13*AJ13)/144,0) -> 0
B14: Bottom Glass Width | E14: =TRUNC((Frame_Width-4)*16+0.5)/16 -> -3.9375 | I14: Bottom Glass Width | L14: =IF(EXTSELECT=5,$L$30,IF(EXTSELECT=2,$E$136,TRUNC((Frame_Width-4)*16+0.5)/16)) -> -3.9375 | M14: Glass h: | N14: =IF(ModelNo="S146",N13-(SQRT((4*N13^2)-(L13*2+(2*EXT))^2))/2,N13-(SQRT((4*N13^2)-(L13)^2)/2)) ->  | O14: d | P14: =N13*COS(P13/2) ->  | AA14: S144 | AG14: =IF(AND(Frame_Width>0,Frame_Height>0,LEG>0),BSW_S140,0) -> 0 | AH14: =IF(AND(Frame_Width>0,Frame_Height>0,LEG>0),BSH_S140,0) -> 0 | AI14: =IF(AND(Frame_Width>0,Frame_Height>0,LEG>0),BGW_S140,0) -> 0 | AJ14: =IF(AND(Frame_Width>0,Frame_Height>0,LEG>0),BGH_S140,0) -> 0 | AK14: =IF(AND(Frame_Width>0,Frame_Height>0,LEG>0),(AI14*AJ14)/144,0) -> 0
B15: Top Glass Height | E15: =TRUNC(($E$10-1.9375)*16+0.5)/16 -> -1.875 | I15: Top Glass Height | L15: =IF(ModelNo="S146",Frame_Height-($L$11+$N$15+EXT+P15),Frame_Height-($L$11+N15+EXT)) -> -0.5137 | N15: =IF(OR(EXTSELECT=4,EXTSELECT=5),0.9198,IF(OR(EXTSELECT=2,EXTSELECT=3),0.264,IF(OR(EXTSELECT=7,EXTSELECT=8),0.407,0.5137))) -> 0.5137 | O15: h | P15: =N13-P14 ->  | AA15: S146 | AG15: =IF(AND(Frame_Width>0,Frame_Height>0,LEG>0),BSW_S140,0) -> 0 | AH15: =IF(AND(Frame_Width>0,Frame_Height>0,LEG>0),BSH_S140,0) -> 0 | AI15: =IF(AND(Frame_Width>0,Frame_Height>0,LEG>0),BGW_S140,0) -> 0 | AJ15: =IF(AND(Frame_Width>0,Frame_Height>0,LEG>0),BGH_S140,0) -> 0 | AK15: =IF(AND(Frame_Width>0,Frame_Height>0,LEG>0),(AI15*AJ15)/144,0) -> 0
B16: Bottom Glass Height | E16: =TRUNC(($E$11-1.5625)*16+0.5)/16 -> -1.5 | I16: Bottom Glass Height | L16: =IF(EXTSELECT=5,$L$32,IF(EXTSELECT=2,$E$138,TRUNC(($L$11-1.5625)*16+0.5)/16)) -> -1.5 | M16: Top Glass Leg: | N16: =IF(ModelNo="S146",L15-N14+P15,L15-N14) ->  | P16: =IF(ModelNo="S146",((Frame_Height-LEG)/2)+(((Frame_Width*2)^2)/(8*(Frame_Height-LEG))),((Frame_Height-LEG)/2)+((Frame_Width^2)/(8*(Frame_Height-LEG)))) ->  | AA16: 3100 | AG16: =Data!D823 -> -2.125 | AH16: =Data!D824 -> -0.34375 | AI16: =Data!D825 -> -4.75 | AJ16: =Data!D826 -> -2.96875 | AK16: 0.09792751736
AA17: 03A0 | AG17: =Data!D1178 -> -3.125 | AH17: =Data!D1179 -> -0.75 | AI17: =Data!D1180 -> -5.25 | AJ17: =Data!D1181 -> -2.84375 | AK17: 0.1036783854
C18: W | E18: 0201 | J18: W | L18: 02A0 | AA18: L201 | AB18: =Data!D1228 -> -3.25 | AC18: =Data!D1229 -> -1.5625 | AD18: =Data!D1232 -> -4.875 | AE18: =Data!D1233 -> -3.15625 | AF18: =(AD18*AE18)/144 -> 0.1068522135 | AG18: =Data!D1230 -> -2.25 | AH18: =Data!D1231 -> -0.5625 | AI18: =Data!D1234 -> -3.875 | AJ18: =Data!D1235 -> -2.15625 | AK18: 0.05802408854
C19: =IF(TYPE=1,C18,IF(TYPE= "",C18," ")) -> W | D19: 1 | E19: =Frame_Height/2 -> 0 | F19: =TRUNC(E19*16+0.5)/16 -> 0 | J19: =IF(TYPE=1,$J$18,IF(TYPE= "",$J$18," ")) -> W | K19: 1 | L19: =Frame_Height/2 -> 0 | M19: =TRUNC($L$19*16+0.5)/16 -> 0 | AA19: 3001 | AB19: =Data!D1120 -> -4.125 | AC19: =Data!D1121 -> -1.4375 | AD19: =Data!D1124 -> -5.75 | AE19: =Data!D1125 -> -3.03125 | AF19: 0.1210394965 | AG19: =Data!D1122 -> -3.125 | AH19: =Data!D1123 -> -0.4375 | AI19: =Data!D1126 -> -5.25 | AJ19: =Data!D1127 -> -2.53125 | AK19: 0.09228515625
C20: =IF(TYPE=5,C18,IF(TYPE=2,IF(Frame_Height>=54.5,IF(Frame_Height<72.5,C18,""),""),"")) ->  | D20: 2 | E20: =INT((Frame_Height/5)*48+0.5)/16 -> 0 | F20: 0 | G20: 5 | J20: =IF(TYPE=5,$J$18,IF(TYPE=2,IF(Frame_Height>=54.5,IF(Frame_Height<72.5,$J$18,""),""),"")) ->  | K20: 2 | L20: =INT((Frame_Height/5)*48+0.5)/16 -> 0 | M20: =TRUNC($L$20*16+0.5)/16 -> 0 | N20: 5 | AA20: 1700 | AD20: =Data!D1249 -> -3.46875 | AE20: =Data!D1250 -> -2.125 | AF20: 0.05118815104 | AG20: =Data!D1245 -> -2.15625 | AH20: =Data!D1246 -> -0.8125 | AI20: =Data!D1247 -> -3.46875 | AJ20: =Data!D1248 -> -2.125 | AK20: 0.05118815104
C21: =IF(TYPE=6,C18,IF(AND(TYPE=2,OR(Frame_Height<54.5,Frame_Height>=72.5)),C18,"")) ->  | E21: =INT((Frame_Height/3-0.22)*32+0.5)/16 -> -0.4375 | F21: -0.375 | G21: 6 | J21: =IF(TYPE=6,$J$18,IF(AND(TYPE=2,OR(Frame_Height<54.5,Frame_Height>=72.5)),$J$18,"")) ->  | L21: =INT((Frame_Height/3-0.22)*32+0.5)/16 -> -0.4375 | M21: =TRUNC($L$21*16+0.5)/16 -> -0.375 | N21: 6 | AA21: 1720 | AD21: =Data!D1305 -> -3.71875 | AE21: =Data!D1306 -> -2.125 | AF21: 0.05487738715 | AG21: =Data!D1301 -> -2.40625 | AH21: =Data!D1302 -> -0.8125 | AI21: =Data!D1303 -> -3.6875 | AJ21: =Data!D1304 -> -2.09375 | AK21: 0.05361599392
C22: =IF(TYPE=7,C18,IF(TYPE=3,IF(Frame_Height>=54.5,IF(Frame_Height<72.5,C18,""),""),"")) ->  | D22: 3 | E22: =INT((Frame_Height/5+0.55)*32+0.5)/16 -> 1.125 | F22: 1.125 | G22: 7 | J22: =IF(TYPE=7,$J$18,IF(TYPE=3,IF(Frame_Height>=54.5,IF(Frame_Height<72.5,$J$18,""),""),"")) ->  | K22: 3 | L22: =INT((Frame_Height/5+0.55)*32+0.5)/16 -> 1.125 | M22: =TRUNC($L$22*16+0.5)/16 -> 1.125 | N22: 7 | AA22: 1730 | AD22: =Data!D1319 -> -3.8125 | AE22: =Data!D1320 -> -2.125 | AF22: 0.05626085069 | AG22: =Data!D1315 -> -2.5 | AH22: =Data!D1316 -> -0.8125 | AI22: =Data!D1317 -> -3.8125 | AJ22: =Data!D1318 -> -2.09375 | AK22: 0.05543348524
C23: =IF(TYPE=8,C18,IF(AND(TYPE=3,OR(Frame_Height<54.5,Frame_Height>=72.5)),C18,"")) ->  | E23: =INT((Frame_Height/3+1.4)*16+0.5)/16 -> 1.375 | F23: 1.375 | G23: 8 | J23: =IF(TYPE=8,$J$18,IF(AND(TYPE=3,OR(Frame_Height<54.5,Frame_Height>=72.5)),$J$18,"")) ->  | L23: =INT((Frame_Height/3+1.4)*16+0.5)/16 -> 1.375 | M23: =TRUNC($L$23*16+0.5)/16 -> 1.375 | N23: 8 | AA23: 1900 | AD23: =Data!D1333 -> -3.46875 | AE23: =Data!D1334 -> -2.125 | AF23: 0.05118815104 | AG23: =Data!D1329 -> -2.15625 | AH23: =Data!D1330 -> -0.8125 | AI23: =Data!D1331 -> -3.4375 | AJ23: =Data!D1332 -> -2.09375 | AK23: 0.04998101128
C24: =IF(TYPE=4,C18,"") ->  | D24: 4 | E24: =CMR -> 0 | F24: 0 | J24: =IF(TYPE=4,$J$18,"") ->  | K24: 4 | L24: =CMR -> 0 | M24: =TRUNC($L$24*16+0.5)/16 -> 0 | AA24: 1920 | AD24: =Data!D1389 -> -3.71875 | AE24: =Data!D1390 -> -2.125 | AF24: 0.05487738715 | AG24: =Data!D1385 -> -2.40625 | AH24: =Data!D1386 -> -0.8125 | AI24: =Data!D1387 -> -3.6875 | AJ24: =Data!D1388 -> -2.09375 | AK24: 0.05361599392
AA25: 1930 | AD25: =Data!D1403 -> -3.8125 | AE25: =Data!D1404 -> -2.125 | AF25: 0.05626085069 | AG25: =Data!D1399 -> -2.5 | AH25: =Data!D1400 -> -0.8125 | AI25: =Data!D1401 -> -3.78125 | AJ25: =Data!D1402 -> -2.09375 | AK25: 0.05497911241
B26: Dim.,"D" | D26: = | E26: =TRUNC((IF(C19=C18,F19,IF(C20=C18,F20,IF(C21=C18,F21,IF(C22=C18,F22,IF(C23=C18,F23,IF(C24=C18,F24,F19)))))))*32+0.5)/32 -> 0 | I26: Dim.,"D" | K26: = | L26: =IF($J$19=$J$18,$M$19,IF($J$20=$J$18,$M$20,IF($J$21=$J$18,$M$21,IF($J$22=$J$18,$M$22,IF($J$23=$J$18,$M$23,IF($J$24=$J$18,$M$24,$M$19)))))) -> 0 | AA26: 1901 | AB26: =Data!D1413 -> -3.4375 | AC26: =Data!D1414 -> -0.90625 | AD26: =Data!D1417 -> -4.75 | AE26: =Data!D1418 -> -2.21875 | AF26: 0.07318793403 | AG26: =Data!D1415 -> -2.1875 | AH26: =Data!D1416 -> -0.90625 | AI26: =Data!D1419 -> -3.5 | AJ26: =Data!D1420 -> -2.21875 | AK26: 0.05392795139
B27: Dim.,"C" | D27: = | E27: =TRUNC((Frame_Height-E26)*32+0.5)/32 -> 0 | I27: Dim.,"C" | K27: = | L27: =Frame_Height-$L$26 -> 0 | AA27: 1921 | AB27: =Data!D1430 -> -3.6875 | AC27: =Data!D1431 -> -0.90625 | AD27: =Data!D1434 -> -5 | AE27: =Data!D1435 -> -2.21875 | AF27: 0.07703993056 | AG27: =Data!D1432 -> -2.4375 | AH27: =Data!D1433 -> -0.90625 | AI27: =Data!D1436 -> -3.75 | AJ27: =Data!D1437 -> -2.21875 | AK27: 0.05777994792
AA28: 1931 | AB28: =Data!D1447 -> -3.75 | AC28: =Data!D1448 -> -0.90625 | AD28: =Data!D1451 -> -5.0625 | AE28: =Data!D1452 -> -2.21875 | AF28: 0.07800292969 | AG28: =Data!D1449 -> -2.5 | AH28: =Data!D1450 -> -0.90625 | AI28: =Data!D1453 -> -3.8125 | AJ28: =Data!D1454 -> -2.21875 | AK28: 0.05874294705
B29: Top Glass Width | E29: =TRUNC((Frame_Width-4.9375)*16+0.5)/16 -> -4.875 | I29: Top Glass Width | L29: =TRUNC((Frame_Width-3.4375)*16+0.5)/16 -> -3.375 | AA29: =ModelNo -> Select Model | AB29: =VLOOKUP(ModelNo,ORL_LIMIT,2,FALSE) ->  | AC29: =VLOOKUP(ModelNo,ORL_LIMIT,3,FALSE) ->  | AD29: =VLOOKUP(ModelNo,ORL_LIMIT,4,FALSE) ->  | AE29: =VLOOKUP(ModelNo,ORL_LIMIT,5,FALSE) ->  | AF29: =VLOOKUP(ModelNo,ORL_LIMIT,6,FALSE) ->  | AG29: =VLOOKUP(ModelNo,ORL_LIMIT,7,FALSE) ->  | AH29: =VLOOKUP(ModelNo,ORL_LIMIT,8,FALSE) ->  | AI29: =VLOOKUP(ModelNo,ORL_LIMIT,9,FALSE) ->  | AJ29: =VLOOKUP(ModelNo,ORL_LIMIT,10,FALSE) ->  | AK29: =VLOOKUP(ModelNo,ORL_LIMIT,11,FALSE) -> 
B30: Bottom Glass Width | E30: =TRUNC((Frame_Width-3.9375)*16+0.5)/16 -> -3.875 | I30: Bottom Glass Width | L30: =TRUNC((Frame_Width-3.90625)*16+0.5)/16 -> -3.875 | AA30: =IF(OR(TSH>50,BSH>50),"SH MUST BE < 50","") -> 
B31: Top Glass Height | E31: =TRUNC((E26-3.1875)*32+0.5)/32 -> -3.15625 | I31: Top Glass Height | L31: =TRUNC(($L$26-2.25)*16+0.5)/16 -> -2.1875 | AA31: =IF(AND(OR(Glass<4,Glass>5),OR(TGSF>15,BGSF>15)),"GLASS MUST BE < 15 SF",IF(AND(OR(Glass=4,Glass=5),OR(TGSF>11,BGSF>11)),"GLASS MUST BE <11 SF","")) -> 
B32: Bottom Glass Height | E32: =TRUNC((E27-2.1875)*32+0.5)/32 -> -2.15625 | I32: Bottom Glass Height | L32: =TRUNC(($L$27-2.40625)*16+0.5)/16 -> -2.375
C34: W | E34: 0301 | J34: W | L34: 0501
C35: =IF(TYPE=1,$C34,IF(TYPE="",$C34," ")) -> W | D35: 1 | E35: =Frame_Height/2 -> 0 | F35: =TRUNC($E35*16+0.5)/16 -> 0 | J35: =IF(TYPE=1,J34,IF(TYPE= "",J34," ")) -> W | K35: 1 | L35: =Frame_Height/2 -> 0 | M35: =TRUNC(L35*16+0.5)/16 -> 0
C36: =IF(TYPE=5,$C34,IF(TYPE=2,IF(Frame_Height>=54.5,IF(Frame_Height<72.5,$C34,""),""),"")) ->  | D36: 2 | E36: =INT((Frame_Height/5)*48+0.5)/16 -> 0 | F36: 0 | G36: 5 | J36: =IF(TYPE=5,J34,IF(TYPE=2,IF(Frame_Height>=54.5,IF(Frame_Height<72.5,J34,""),""),"")) ->  | K36: 2 | L36: =CEILING(((Frame_Height/5-0.24)*3-0.03125),0.0625) -> -0.75 | M36: -0.6875 | N36: 5
C37: =IF(TYPE=6,$C34,IF(AND(TYPE=2,OR(Frame_Height<54.5,Frame_Height>=72.5)),$C34,"")) ->  | E37: =INT((Frame_Height/3-0.22)*32+0.5)/16 -> -0.4375 | F37: -0.375 | G37: 6 | J37: =IF(TYPE=6,J34,IF(AND(TYPE=2,OR(Frame_Height<54.5,Frame_Height>=72.5)),J34,"")) ->  | L37: =TRUNC((Frame_Height/3-0.62)*32+0.5)/16 -> -1.1875 | M37: -1.125 | N37: 6
C38: =IF(TYPE=7,$C34,IF(TYPE=3,IF(Frame_Height>=54.5,IF(Frame_Height<72.5,$C34,""),""),"")) ->  | D38: 3 | E38: =INT((Frame_Height/5+0.55)*32+0.5)/16 -> 1.125 | F38: 1.125 | G38: 7 | J38: =IF(TYPE=7,J34,IF(TYPE=3,IF(Frame_Height>=54.5,IF(Frame_Height<72.5,J34,""),""),"")) ->  | K38: 3 | L38: =TRUNC((Frame_Height/5+0.38)*32+0.5)/16 -> 0.75 | M38: 0.75 | N38: 7
C39: =IF(TYPE=8,$C34,IF(AND(TYPE=3,OR(Frame_Height<54.5,Frame_Height>=72.5)),$C34,"")) ->  | E39: =INT((Frame_Height/3+1.4)*16+0.5)/16 -> 1.375 | F39: 1.375 | G39: 8 | J39: =IF(TYPE=8,J34,IF(AND(TYPE=3,OR(Frame_Height<54.5,Frame_Height>=72.5)),J34,"")) ->  | L39: =TRUNC((Frame_Height/3+1.3)*16+0.5)/16 -> 1.3125 | M39: 1.3125 | N39: 8
C40: =IF(TYPE=4,$C34,"") ->  | D40: 4 | E40: =CMR -> 0 | F40: 0 | J40: =IF(TYPE=4,J34,"") ->  | K40: 4 | L40: =CMR -> 0 | M40: 0
B42: Dim.,"D" | D42: = | E42: =IF($C35=$C34,$F35,IF($C36=$C34,$F36,IF($C37=$C34,$F37,IF($C38=$C34,$F38,IF($C39=$C34,$F39,IF($C40=$C34,$F40)))))) -> 0 | I42: Dim.,"D" | K42: = | L42: =IF(J35=J34,M35,IF(J36=J34,M36,IF(J37=J34,M37,IF(J38=J34,M38,IF(J39=J34,M39,IF(J40=J34,M40,M35)))))) -> 0
B43: Dim.,"C" | D43: = | E43: =Frame_Height-$E42 -> 0 | I43: Dim.,"C" | K43: = | L43: =Frame_Height-L42 -> 0
B45: Top Glass Width | E45: =TRUNC((Frame_Width-4.9375)*16+0.5)/16 -> -4.875 | I45: Top Glass Width | L45: =TRUNC((Frame_Width-6.125)*16+0.5)/16 -> -6.0625
B46: Bottom Glass Width | E46: =TRUNC((Frame_Width-3.9375)*16+0.5)/16 -> -3.875 | I46: Bottom Glass Width | L46: =TRUNC((Frame_Width-6.125)*16+0.5)/16 -> -6.0625
B47: Top Glass Height | E47: =TRUNC(($E42-3.3125)*16+0.5)/16 -> -3.25 | I47: Top Glass Height | L47: =TRUNC((L42-4.125)*16+0.5)/16 -> -4.0625
B48: Bottom Glass Height | E48: =TRUNC(($E43-2.3125)*16+0.5)/16 -> -2.25 | I48: Bottom Glass Height | L48: =TRUNC((L43-4.125)*16+0.5)/16 -> -4.0625
C50: W | E50: 0401 | J50: W | L50: 0601
C51: =IF(TYPE=1,C50,IF(TYPE= "",C50," ")) -> W | D51: 1 | E51: =Frame_Height/2 -> 0 | F51: =TRUNC(E51*16+0.5)/16 -> 0 | J51: =IF(TYPE=1,J50,IF(TYPE= "",J50," ")) -> W | K51: 1 | L51: =Frame_Height/2 -> 0 | M51: =TRUNC(L51*16+0.5)/16 -> 0
C52: =IF(TYPE=5,C50,IF(TYPE=2,IF(Frame_Height>=54.5,IF(Frame_Height<72.5,C50,""),""),"")) ->  | D52: 2 | E52: =CEILING(((Frame_Height/5-0.2)*3-0.03125),0.0625) -> -0.625 | F52: -0.5625 | G52: 5 | J52: =IF(TYPE=5,J50,IF(TYPE=2,IF(Frame_Height>=54.5,IF(Frame_Height<72.5,J50,""),""),"")) ->  | K52: 2 | L52: =CEILING(((Frame_Height/5-0.24)*3-0.03125),0.0625) -> -0.75 | M52: -0.6875 | N52: 5
C53: =IF(TYPE=6,C50,IF(AND(TYPE=2,OR(Frame_Height<54.5,Frame_Height>=72.5)),C50,"")) ->  | E53: =TRUNC((Frame_Height/3-0.31)*32+0.5)/16 -> -0.5625 | F53: -0.5 | G53: 6 | J53: =IF(TYPE=6,J50,IF(AND(TYPE=2,OR(Frame_Height<54.5,Frame_Height>=72.5)),J50,"")) ->  | L53: =TRUNC((Frame_Height/3-0.62)*32+0.5)/16 -> -1.1875 | M53: -1.125 | N53: 6
C54: =IF(TYPE=7,C50,IF(TYPE=3,IF(Frame_Height>=54.5,IF(Frame_Height<72.5,C50,""),""),"")) ->  | D54: 3 | E54: =TRUNC((Frame_Height/5+0.31)*32+0.5)/16 -> 0.625 | F54: 0.625 | G54: 7 | J54: =IF(TYPE=7,J50,IF(TYPE=3,IF(Frame_Height>=54.5,IF(Frame_Height<72.5,J50,""),""),"")) ->  | K54: 3 | L54: =TRUNC((Frame_Height/5+0.38)*32+0.5)/16 -> 0.75 | M54: 0.75 | N54: 7
C55: =IF(TYPE=8,C50,IF(AND(TYPE=3,OR(Frame_Height<54.5,Frame_Height>=72.5)),C50,"")) ->  | E55: =TRUNC((Frame_Height/3+0.65)*16+0.5)/16 -> 0.625 | F55: 0.625 | G55: 8 | J55: =IF(TYPE=8,J50,IF(AND(TYPE=3,OR(Frame_Height<54.5,Frame_Height>=72.5)),J50,"")) ->  | L55: =TRUNC((Frame_Height/3+1.3)*16+0.5)/16 -> 1.3125 | M55: 1.3125 | N55: 8
C56: =IF(TYPE=4,C50,"") ->  | D56: 4 | E56: =CMR -> 0 | F56: 0 | J56: =IF(TYPE=4,J50,"") ->  | K56: 4 | L56: =CMR -> 0 | M56: 0
B58: Dim.,"D" | D58: = | E58: =IF(C51=C50,F51,IF(C52=C50,F52,IF(C53=C50,F53,IF(C54=C50,F54,IF(C55=C50,F55,IF(C56=C50,F56,F51)))))) -> 0 | I58: Dim.,"D" | K58: = | L58: =IF(J51=J50,M51,IF(J52=J50,M52,IF(J53=J50,M53,IF(J54=J50,M54,IF(J55=J50,M55,IF(J56=J50,M56,M51)))))) -> 0
B59: Dim.,"C" | D59: = | E59: =Frame_Height-E58 -> 0 | I59: Dim.,"C" | K59: = | L59: =Frame_Height-L58 -> 0
B61: Top Glass Width | E61: =TRUNC((Frame_Width-5)*16+0.5)/16 -> -4.9375 | I61: Top Glass Width | L61: =TRUNC((Frame_Width-6.125)*16+0.5)/16 -> -6.0625
B62: Bottom Glass Width | E62: =TRUNC((Frame_Width-5)*16+0.5)/16 -> -4.9375 | I62: Bottom Glass Width | L62: =TRUNC((Frame_Width-6.125)*16+0.5)/16 -> -6.0625
B63: Top Glass Height | E63: =TRUNC((E58-2.75)*16+0.5)/16 -> -2.6875 | I63: Top Glass Height | L63: =TRUNC((L58-3.8125)*16+0.5)/16 -> -3.75
B64: Bottom Glass Height | E64: =TRUNC((E59-2.75)*16+0.5)/16 -> -2.6875 | I64: Bottom Glass Height | L64: =TRUNC((L59-3.8125)*16+0.5)/16 -> -3.75
C66: W | E66: 0901, 0981, 09A1, 09B1 | J66: W | L66: 8001
C67: =IF(TYPE=1,C66,IF(TYPE= "",C66," ")) -> W | D67: 1 | E67: =Frame_Height/2 -> 0 | F67: =TRUNC(E67*16+0.5)/16 -> 0 | J67: =IF(TYPE=1,J66,IF(TYPE= "",J66," ")) -> W | K67: 1 | L67: =Frame_Height/2 -> 0 | M67: =TRUNC(L67*16+0.5)/16 -> 0
C68: =IF(TYPE=5,C66,IF(TYPE=2,IF(Frame_Height>=54.5,IF(Frame_Height<72.5,C66,""),""),"")) ->  | D68: 2 | E68: =(Frame_Height/3-0.31)*2 -> -0.62 | F68: -0.5625 | G68: 5 | J68: =IF(TYPE=5,J66,IF(TYPE=2,IF(Frame_Height>=54.5,IF(Frame_Height<72.5,J66,""),""),"")) ->  | K68: 2 | L68: =CEILING(((Frame_Height/5-0.24)*3-0.03125),0.0625) -> -0.75 | M68: -0.6875 | N68: 5
C69: =IF(TYPE=6,C66,IF(AND(TYPE=2,OR(Frame_Height<54.5,Frame_Height>=72.5)),C66,"")) ->  | E69: =(Frame_Height/5-0.2)*3 -> -0.6 | F69: -0.5625 | G69: 6 | J69: =IF(TYPE=6,J66,IF(AND(TYPE=2,OR(Frame_Height<54.5,Frame_Height>=72.5)),J66,"")) ->  | L69: =TRUNC((Frame_Height/3-0.62)*32+0.5)/16 -> -1.1875 | M69: -1.125 | N69: 6
C70: =IF(TYPE=7,C66,IF(TYPE=3,IF(Frame_Height>=54.5,IF(Frame_Height<72.5,C66,""),""),"")) ->  | D70: 3 | E70: =(Frame_Height/3+0.65) -> 0.65 | F70: 0.625 | G70: 7 | J70: =IF(TYPE=7,J66,IF(TYPE=3,IF(Frame_Height>=54.5,IF(Frame_Height<72.5,J66,""),""),"")) ->  | K70: 3 | L70: =TRUNC((Frame_Height/5+0.38)*32+0.5)/16 -> 0.75 | M70: 0.75 | N70: 7
C71: =IF(TYPE=8,C66,IF(AND(TYPE=3,OR(Frame_Height<54.5,Frame_Height>=72.5)),C66,"")) ->  | E71: =(Frame_Height/5+0.31)*2 -> 0.62 | F71: 0.625 | G71: 8 | J71: =IF(TYPE=8,J66,IF(AND(TYPE=3,OR(Frame_Height<54.5,Frame_Height>=72.5)),J66,"")) ->  | L71: =TRUNC((Frame_Height/3+1.3)*16+0.5)/16 -> 1.3125 | M71: 1.3125 | N71: 8
C72: =IF(TYPE=4,C66,"") ->  | D72: 4 | E72: =CMR -> 0 | F72: 0 | J72: =IF(TYPE=4,J66,"") ->  | K72: 4 | L72: =CMR -> 0 | M72: 0
B74: Dim.,"D" | D74: = | E74: =IF(C67=C66,F67,IF(C68=C66,F68,IF(C69=C66,F69,IF(C70=C66,F70,IF(C71=C66,F71,IF(C72=C66,F72,F67)))))) -> 0 | I74: Dim.,"D" | K74: = | L74: =IF(J67=J66,M67,IF(J68=J66,M68,IF(J69=J66,M69,IF(J70=J66,M70,IF(J71=J66,M71,IF(J72=J66,M72,M67)))))) -> 0
B75: Dim.,"C" | D75: = | E75: =Frame_Height-E74 -> 0 | I75: Dim.,"C" | K75: = | L75: =Frame_Height-L74 -> 0
B77: Top Glass Width | E77: =TRUNC((Frame_Width-4.875)*16+0.5)/16 -> -4.8125 | I77: Top Glass Width | L77: =TRUNC(((INT((Frame_Width-4.875)*32)/32)-1.875)*32+0.5)/32 -> -6.71875
B78: Bottom Glass Width | E78: =TRUNC((Frame_Width-4.875)*16+0.5)/16 -> -4.8125 | I78: Bottom Glass Width | L78: =TRUNC(((INT((Frame_Width-3.875)*32)/32)-2.875)*32+0.5)/32 -> -6.71875
B79: Top Glass Height | E79: =TRUNC((E74-3.0625)*16+0.5)/16 -> -3 | I79: Top Glass Height | L79: =TRUNC(((INT((L74-1.811-0.0625)*32+0.5)/32)-1.814)*32+0.5)/32 -> -3.65625
B80: Bottom Glass Height | E80: =TRUNC((E75-3.0625)*16+0.5)/16 -> -3 | I80: Bottom Glass Height | L80: =TRUNC(((INT((L75-0.811-0.0625)*32+0.5)/32)-2.814)*32+0.5)/32 -> -3.65625
C82: W | E82: 3100 | J82: W | L82: 9001
C83: =IF(TYPE=1,$C82,IF(TYPE= "",$C82," ")) -> W | D83: 1 | E83: =Frame_Height/2 -> 0 | F83: =TRUNC($E83*16+0.5)/16 -> 0 | J83: =IF(TYPE=1,J82,IF(TYPE= "",J82," ")) -> W | K83: 1 | L83: =Frame_Height/2 -> 0 | M83: =TRUNC(L83*16+0.5)/16 -> 0
C84: =IF(TYPE=5,$C82,IF(TYPE=2,IF(Frame_Height>=54.5,IF(Frame_Height<72.5,$C82,""),""),"")) ->  | D84: 2 | E84: =INT((Frame_Height/5)*16+0.5)/16 -> 0 | F84: 0 | G84: 5 | J84: =IF(TYPE=5,J82,IF(TYPE=2,IF(Frame_Height>=54.5,IF(Frame_Height<72.5,J82,""),""),"")) ->  | K84: 2 | L84: =CEILING(((Frame_Height/5-0.24)*3-0.03125),0.0625) -> -0.75 | M84: -0.6875 | N84: 5
C85: =IF(TYPE=6,$C82,IF(AND(TYPE=2,OR(Frame_Height<54.5,Frame_Height>=72.5)),$C82,"")) ->  | E85: =INT((Frame_Height/3-0.22)*32+0.5)/16 -> -0.4375 | F85: -0.375 | G85: 6 | J85: =IF(TYPE=6,J82,IF(AND(TYPE=2,OR(Frame_Height<54.5,Frame_Height>=72.5)),J82,"")) ->  | L85: =TRUNC((Frame_Height/3-0.62)*32+0.5)/16 -> -1.1875 | M85: -1.125 | N85: 6
C86: =IF(TYPE=7,$C82,IF(TYPE=3,IF(Frame_Height>=54.5,IF(Frame_Height<72.5,$C82,""),""),"")) ->  | D86: 3 | E86: =INT((Frame_Height/5+0.55)*32+0.5)/16 -> 1.125 | F86: 1.125 | G86: 7 | J86: =IF(TYPE=7,J82,IF(TYPE=3,IF(Frame_Height>=54.5,IF(Frame_Height<72.5,J82,""),""),"")) ->  | K86: 3 | L86: =TRUNC((Frame_Height/5+0.38)*32+0.5)/16 -> 0.75 | M86: 0.75 | N86: 7
C87: =IF(TYPE=8,$C82,IF(AND(TYPE=3,OR(Frame_Height<54.5,Frame_Height>=72.5)),$C82,"")) ->  | E87: =INT((Frame_Height/3+1.4)*16+0.5)/16 -> 1.375 | F87: 1.375 | G87: 8 | J87: =IF(TYPE=8,J82,IF(AND(TYPE=3,OR(Frame_Height<54.5,Frame_Height>=72.5)),J82,"")) ->  | L87: =TRUNC((Frame_Height/3+1.3)*16+0.5)/16 -> 1.3125 | M87: 1.3125 | N87: 8
C88: =IF(TYPE=4,$C82,"") ->  | D88: 4 | E88: =CMR -> 0 | F88: 0 | J88: =IF(TYPE=4,J82,"") ->  | K88: 4 | L88: =CMR -> 0 | M88: 0
B90: Dim.,"D" | D90: = | E90: =IF(C83=C82,F83,IF(C84=C82,F84,IF(C85=C82,F85,IF(C86=C82,F86,IF(C87=C82,F87,IF(C88=C82,F88,F83)))))) -> 0 | I90: Dim.,"D" | K90: = | L90: =IF(J83=J82,M83,IF(J84=J82,M84,IF(J85=J82,M85,IF(J86=J82,M86,IF(J87=J82,M87,IF(J88=J82,M88,M83)))))) -> 0
B91: Dim.,"C" | D91: = | E91: =Frame_Height-$E90 -> 0 | I91: Dim.,"C" | K91: = | L91: =Frame_Height-L90 -> 0
B93: Top Glass Width | E93: =TRUNC((Frame_Width-4.03125)*32+0.5)/32 -> -4 | I93: Top Glass Width | L93: =TRUNC((Frame_Width-6.75)*16+0.5)/16 -> -6.6875
B94: Bottom Glass Width | E94: =TRUNC((Frame_Width-4.76815)*32+0.5)/32 -> -4.75 | I94: Bottom Glass Width | L94: =TRUNC((Frame_Width-6.75)*16+0.5)/16 -> -6.6875
B95: Top Glass Height | E95: =TRUNC(($E90-3.0625)*32+0.5)/32 -> -3.03125 | I95: Top Glass Height | L95: =TRUNC((L90-3.875)*16+0.5)/16 -> -3.8125
B96: Bottom Glass Height | E96: =TRUNC(($E91-3.00375)*32+0.5)/32 -> -2.96875 | I96: Bottom Glass Height | L96: =TRUNC((L91-3.875)*16+0.5)/16 -> -3.8125
D98: 3102 | L98: V100
I99: Dim.,"D" | K99: = | L99: =IF(TYPE=1,(Frame_Height/2),IF(TYPE=2,CMR)) -> 0
B100: Dim.,"D" | D100: = | E100: =IF(TYPE=1,(Frame_Width/2),IF(TYPE=4,CMR)) -> 0 | I100: Dim.,"C" | K100: = | L100: =Frame_Height-L99 -> 0
B101: Dim.,"C" | D101: = | E101: =Frame_Width-$E100 -> 0
I102: Top Glass Width | L102: =TRUNC((Frame_Width-3.5)*32+0.5)/32 -> -3.46875
B103: Fixed Glass Width | E103: =$E$100-3.09375 -> -3.09375 | I103: Bottom Glass Width | L103: =TRUNC(((TRUNC((Frame_Width-2.188)*32+0.5)/32)-1.3125)*32+0.5)/32 -> -3.4375
B104: Sash Glass Width | E104: =(TRUNC(($E$101-0.7)*16+0.5)/16)-1.625 -> -2.25 | I104: Top Glass Height | L104: =TRUNC((L99-2.157)*32+0.5)/32 -> -2.125
B105: Fixed Glass Height | E105: =Frame_Height-5.09375 -> -5.09375 | I105: Bottom Glass Height | L105: =TRUNC(((TRUNC(((L100-1.0625)*16+0.5))/16)-1.312)*32+0.5)/32 -> -2.28125
B106: Sash Glass Height | E106: =(TRUNC((Frame_Height-3.4)*16+0.5)/16)-1.625 -> -4.9375
J107: W | L107: V101
C108: W | E108: 3001 | J108: =IF(TYPE=1,$J107,IF(TYPE="",$J107," ")) -> W | K108: 1 | L108: =Frame_Height/2 -> 0 | M108: =TRUNC($L108*16+0.5)/16 -> 0
C109: =IF(TYPE=1,C108,IF(TYPE= "",C108," ")) -> W | D109: 1 | E109: =Frame_Height/2 -> 0 | F109: =TRUNC(E109*16+0.5)/16 -> 0 | J109: =IF(TYPE=5,$J107,IF(TYPE=2,IF(Frame_Height>=54.5,IF(Frame_Height<72.5,$J107,""),""),"")) ->  | K109: 2 | L109: =INT((Frame_Height/5)*48+0.5)/16 -> 0 | M109: 0 | N109: 5
C110: =IF(TYPE=5,C108,IF(TYPE=2,IF(Frame_Height>=54.5,IF(Frame_Height<72.5,C108,""),""),"")) ->  | D110: 2 | E110: =INT((Frame_Height/5)*48+0.5)/16 -> 0 | F110: 0 | G110: 5 | J110: =IF(TYPE=6,$J107,IF(AND(TYPE=2,OR(Frame_Height<54.5,Frame_Height>=72.5)),$J107,"")) ->  | L110: =INT((Frame_Height/3-0.22)*32+0.5)/16 -> -0.4375 | M110: -0.375 | N110: 6
C111: =IF(TYPE=6,C108,IF(AND(TYPE=2,OR(Frame_Height<54.5,Frame_Height>=72.5)),C108,"")) ->  | E111: =INT((Frame_Height/3-0.22)*32+0.5)/16 -> -0.4375 | F111: -0.375 | G111: 6 | J111: =IF(TYPE=7,$J107,IF(TYPE=3,IF(Frame_Height>=54.5,IF(Frame_Height<72.5,$J107,""),""),"")) ->  | K111: 3 | L111: =INT((Frame_Height/5+0.55)*32+0.5)/16 -> 1.125 | M111: 1.125 | N111: 7
C112: =IF(TYPE=7,C108,IF(TYPE=3,IF(Frame_Height>=54.5,IF(Frame_Height<72.5,C108,""),""),"")) ->  | D112: 3 | E112: =INT((Frame_Height/5+0.55)*32+0.5)/16 -> 1.125 | F112: 1.125 | G112: 7 | J112: =IF(TYPE=8,$J107,IF(AND(TYPE=3,OR(Frame_Height<54.5,Frame_Height>=72.5)),$J107,"")) ->  | L112: =INT((Frame_Height/3+1.4)*16+0.5)/16 -> 1.375 | M112: 1.375 | N112: 8
C113: =IF(TYPE=8,C108,IF(AND(TYPE=3,OR(Frame_Height<54.5,Frame_Height>=72.5)),C108,"")) ->  | E113: =INT((Frame_Height/3+1.4)*16+0.5)/16 -> 1.375 | F113: 1.375 | G113: 8 | J113: =IF(TYPE=4,$J107,"") ->  | K113: 4 | L113: =CMR -> 0 | M113: 0
C114: =IF(TYPE=4,C108,"") ->  | D114: 4 | E114: =CMR -> 0 | F114: 0
I115: Dim.,"D" | K115: = | L115: =IF($J108=$J107,$M108,IF($J109=$J107,$M109,IF($J110=$J107,$M110,IF($J111=$J107,$M111,IF($J112=$J107,$M112,IF($J113=$J107,$M113)))))) -> 0
B116: Dim.,"D" | D116: = | E116: =TRUNC((IF(C109=C108,F109,IF(C110=C108,F110,IF(C111=C108,F111,IF(C112=C108,F112,IF(C113=C108,F113,IF(C114=C108,F114,F109)))))))*32+0.5)/32 -> 0 | I116: Dim.,"C" | K116: = | L116: =Frame_Height-$L115 -> 0
B117: Dim.,"C" | D117: = | E117: =TRUNC((Frame_Height-E116)*32+0.5)/32 -> 0
I118: Top Glass Width | L118: =TRUNC((Frame_Width-4.75)*16+0.5)/16 -> -4.6875
B119: Top Glass Width | E119: =TRUNC((Frame_Width-5.8125)*16+0.5)/16 -> -5.75 | I119: Bottom Glass Width | L119: =TRUNC((Frame_Width-3.5)*16+0.5)/16 -> -3.4375
B120: Bottom Glass Width | E120: =TRUNC((Frame_Width-5.3125)*16+0.5)/16 -> -5.25 | I120: Top Glass Height | L120: =TRUNC(($L115-2.9375)*16+0.5)/16 -> -2.875
B121: Top Glass Height | E121: =(TRUNC((E116-1.4375)*32+0.5)/32)-1.625 -> -3.03125 | I121: Bottom Glass Height | L121: =TRUNC(($L116-1.6875)*16+0.5)/16 -> -1.625
B122: Bottom Glass Height | E122: =(TRUNC((E117-0.4375)*32+0.5)/32)-2.125 -> -2.53125
L123: V200
C124: W | E124: 03A0 | I124: Dim.,"D" | K124: = | L124: =IF(TYPE=1,(Frame_Height/2),IF(TYPE=2,CMR)) -> 0
C125: =IF(TYPE=1,C124,IF(TYPE= "",C124," ")) -> W | D125: 1 | E125: =Frame_Height/2 -> 0 | F125: =TRUNC(E125*16+0.5)/16 -> 0 | I125: Dim.,"C" | K125: = | L125: =Frame_Height-L124 -> 0
C126: =IF(TYPE=5,C124,IF(TYPE=2,IF(Frame_Height>=54.5,IF(Frame_Height<72.5,C124,""),""),"")) ->  | D126: 2 | E126: =INT((Frame_Height/5)*48+0.5)/16 -> 0 | F126: 0 | G126: 5
C127: =IF(TYPE=6,C124,IF(AND(TYPE=2,OR(Frame_Height<54.5,Frame_Height>=72.5)),C124,"")) ->  | E127: =INT((Frame_Height/3-0.22)*32+0.5)/16 -> -0.4375 | F127: -0.375 | G127: 6 | I127: Top Glass Width | L127: =TRUNC((Frame_Width-3.5625)*32+0.5)/32 -> -3.53125
C128: =IF(TYPE=7,C124,IF(TYPE=3,IF(Frame_Height>=54.5,IF(Frame_Height<72.5,C124,""),""),"")) ->  | D128: 3 | E128: =INT((Frame_Height/5+0.55)*32+0.5)/16 -> 1.125 | F128: 1.125 | G128: 7 | I128: Bottom Glass Width | L128: =TRUNC(((TRUNC((Frame_Width-2.1875)*32+0.5)/32)-1.375)*32+0.5)/32 -> -3.5
C129: =IF(TYPE=8,C124,IF(AND(TYPE=3,OR(Frame_Height<54.5,Frame_Height>=72.5)),C124,"")) ->  | E129: =INT((Frame_Height/3+1.4)*16+0.5)/16 -> 1.375 | F129: 1.375 | G129: 8 | I129: Top Glass Height | L129: =TRUNC((L124-2.25)*32+0.5)/32 -> -2.21875
C130: =IF(TYPE=4,C124,"") ->  | D130: 4 | E130: =CMR -> 0 | F130: 0 | I130: Bottom Glass Height | L130: =TRUNC(((TRUNC(((L125-0.8125)*32+0.5))/32-0.0625)-1.4375)*32+0.5)/32 -> -2.25
B132: Dim.,"D" | D132: = | E132: =TRUNC((IF(C125=C124,F125,IF(C126=C124,F126,IF(C127=C124,F127,IF(C128=C124,F128,IF(C129=C124,F129,IF(C130=C124,F130,F125)))))))*32+0.5)/32 -> 0 | L132: 1700
B133: Dim.,"C" | D133: = | E133: =TRUNC((Frame_Height-E132)*32+0.5)/32 -> 0 | J133: Dim.,"D" | K133: = | L133: =IF(TYPE=1,(Frame_Height/2),IF(TYPE=2,CMR)) -> 0
J134: Dim.,"C" | K134: = | L134: =Frame_Height-L133 -> 0
B135: Top Glass Width | E135: =TRUNC((Frame_Width-4.75)*16+0.5)/16 -> -4.6875
B136: Bottom Glass Width | E136: =TRUNC((Frame_Width-5.3125)*16+0.5)/16 -> -5.25
B137: Top Glass Height | E137: =TRUNC((E132-2.625)*32+0.5)/32 -> -2.59375 | L137: 1702
B138: Bottom Glass Height | E138: =TRUNC((E133-2.875)*32+0.5)/32 -> -2.84375 | J138: Dim.,"D" | K138: = | L138: =IF(TYPE=1,(Frame_Width/2),IF(TYPE=2,CMR)) -> 0
J139: Dim.,"C" | K139: = | L139: =Frame_Width-L138 -> 0
L142: 1720
J143: Dim.,"D" | K143: = | L143: =IF(TYPE=1,(Frame_Height/2),IF(TYPE=2,CMR)) -> 0
J144: Dim.,"C" | K144: = | L144: =Frame_Height-L143 -> 0
L147: 1730
J148: Dim.,"D" | K148: = | L148: =IF(TYPE=1,(Frame_Height/2),IF(TYPE=2,CMR)) -> 0
J149: Dim.,"C" | K149: = | L149: =Frame_Height-L148 -> 0
L152: 1900
J153: Dim.,"D" | K153: = | L153: =IF(TYPE=1,(Frame_Height/2),IF(TYPE=2,CMR)) -> 0
J154: Dim.,"C" | K154: = | L154: =Frame_Height-L153 -> 0
L157: 1902
J158: Dim.,"D" | K158: = | L158: =IF(TYPE=1,(Frame_Width/2),IF(TYPE=2,CMR)) -> 0
J159: Dim.,"C" | K159: = | L159: =Frame_Width-L158 -> 0
L162: 1920
J163: Dim.,"D" | K163: = | L163: =IF(TYPE=1,(Frame_Height/2),IF(TYPE=2,CMR)) -> 0
J164: Dim.,"C" | K164: = | L164: =Frame_Height-L163 -> 0
L167: 1930
J168: Dim.,"D" | K168: = | L168: =IF(TYPE=1,(Frame_Height/2),IF(TYPE=2,CMR)) -> 0
J169: Dim.,"C" | K169: = | L169: =Frame_Height-L168 -> 0
J172: W | L172: 1901
J173: =IF(TYPE=1,$J172,IF(TYPE="",$J172," ")) -> W | K173: 1 | L173: =Frame_Height/2 -> 0 | M173: =TRUNC($L173*16+0.5)/16 -> 0
J174: =IF(TYPE=5,$J172,IF(TYPE=2,IF(Frame_Height>=54.5,IF(Frame_Height<72.5,$J172,""),""),"")) ->  | K174: 2 | L174: =INT((Frame_Height/5)*48+0.5)/16 -> 0 | M174: 0 | N174: 5
J175: =IF(TYPE=6,$J172,IF(AND(TYPE=2,OR(Frame_Height<54.5,Frame_Height>=72.5)),$J172,"")) ->  | L175: =INT((Frame_Height/3-0.22)*32+0.5)/16 -> -0.4375 | M175: -0.375 | N175: 6
J176: =IF(TYPE=7,$J172,IF(TYPE=3,IF(Frame_Height>=54.5,IF(Frame_Height<72.5,$J172,""),""),"")) ->  | K176: 3 | L176: =INT((Frame_Height/5+0.55)*32+0.5)/16 -> 1.125 | M176: 1.125 | N176: 7
J177: =IF(TYPE=8,$J172,IF(AND(TYPE=3,OR(Frame_Height<54.5,Frame_Height>=72.5)),$J172,"")) ->  | L177: =INT((Frame_Height/3+1.4)*16+0.5)/16 -> 1.375 | M177: 1.375 | N177: 8
J178: =IF(TYPE=4,$J172,"") ->  | K178: 4 | L178: =CMR -> 0 | M178: 0
J180: Dim.,"D" | K180: = | L180: =IF($J173=$J172,$M173,IF($J174=$J172,$M174,IF($J175=$J172,$M175,IF($J176=$J172,$M176,IF($J177=$J172,$M177,IF($J178=$J172,$M178)))))) -> 0
J181: Dim.,"C" | K181: = | L181: =Frame_Height-$L180 -> 0
J184: W | L184: 1921
J185: =IF(TYPE=1,$J184,IF(TYPE="",$J184," ")) -> W | K185: 1 | L185: =Frame_Height/2 -> 0 | M185: =TRUNC($L185*16+0.5)/16 -> 0
J186: =IF(TYPE=5,$J184,IF(TYPE=2,IF(Frame_Height>=54.5,IF(Frame_Height<72.5,$J184,""),""),"")) ->  | K186: 2 | L186: =INT((Frame_Height/5)*48+0.5)/16 -> 0 | M186: 0 | N186: 5
J187: =IF(TYPE=6,$J184,IF(AND(TYPE=2,OR(Frame_Height<54.5,Frame_Height>=72.5)),$J184,"")) ->  | L187: =INT((Frame_Height/3-0.22)*32+0.5)/16 -> -0.4375 | M187: -0.375 | N187: 6
J188: =IF(TYPE=7,$J184,IF(TYPE=3,IF(Frame_Height>=54.5,IF(Frame_Height<72.5,$J184,""),""),"")) ->  | K188: 3 | L188: =INT((Frame_Height/5+0.55)*32+0.5)/16 -> 1.125 | M188: 1.125 | N188: 7
J189: =IF(TYPE=8,$J184,IF(AND(TYPE=3,OR(Frame_Height<54.5,Frame_Height>=72.5)),$J184,"")) ->  | L189: =INT((Frame_Height/3+1.4)*16+0.5)/16 -> 1.375 | M189: 1.375 | N189: 8
J190: =IF(TYPE=4,$J184,"") ->  | K190: 4 | L190: =CMR -> 0 | M190: 0
J192: Dim.,"D" | K192: = | L192: =IF($J185=$J184,$M185,IF($J186=$J184,$M186,IF($J187=$J184,$M187,IF($J188=$J184,$M188,IF($J189=$J184,$M189,IF($J190=$J184,$M190)))))) -> 0
J193: Dim.,"C" | K193: = | L193: =Frame_Height-$L192 -> 0
J196: W | L196: 1931
J197: =IF(TYPE=1,$J196,IF(TYPE="",$J196," ")) -> W | K197: 1 | L197: =Frame_Height/2 -> 0 | M197: =TRUNC($L197*16+0.5)/16 -> 0
J198: =IF(TYPE=5,$J196,IF(TYPE=2,IF(Frame_Height>=54.5,IF(Frame_Height<72.5,$J196,""),""),"")) ->  | K198: 2 | L198: =INT((Frame_Height/5)*48+0.5)/16 -> 0 | M198: 0 | N198: 5
J199: =IF(TYPE=6,$J196,IF(AND(TYPE=2,OR(Frame_Height<54.5,Frame_Height>=72.5)),$J196,"")) ->  | L199: =INT((Frame_Height/3-0.22)*32+0.5)/16 -> -0.4375 | M199: -0.375 | N199: 6
J200: =IF(TYPE=7,$J196,IF(TYPE=3,IF(Frame_Height>=54.5,IF(Frame_Height<72.5,$J196,""),""),"")) ->  | K200: 3 | L200: =INT((Frame_Height/5+0.55)*32+0.5)/16 -> 1.125 | M200: 1.125 | N200: 7
J201: =IF(TYPE=8,$J196,IF(AND(TYPE=3,OR(Frame_Height<54.5,Frame_Height>=72.5)),$J196,"")) ->  | L201: =INT((Frame_Height/3+1.4)*16+0.5)/16 -> 1.375 | M201: 1.375 | N201: 8
J202: =IF(TYPE=4,$J196,"") ->  | K202: 4 | L202: =CMR -> 0 | M202: 0
J204: Dim.,"D" | K204: = | L204: =IF($J197=$J196,$M197,IF($J198=$J196,$M198,IF($J199=$J196,$M199,IF($J200=$J196,$M200,IF($J201=$J196,$M201,IF($J202=$J196,$M202)))))) -> 0
J205: Dim.,"C" | K205: = | L205: =Frame_Height-$L204 -> 0

Sheet Data (hidden)
B1: Model | C1: Description | D1: Value
A2: =IF(ModelNo=B2,1,"") ->  | B2: 0100 | C2: Bottom Sash Width | D2: =Frame_Width-2.3125 -> -2.3125 | F2: =G200 -> Select Model | G2: Models | H2: Description | I2: W cut-back | J2: H-cut-back | K2: Width | L2: Height | M2: Min W | N2: Min H | O2: Max W | P2: Max H | Q2: Max UI | R2: Type1 | S2: Type2 | T2: Type3 | U2: Type4 | V2: Screen1 | W2: Screen2 | X2: Screen3 | Y2: Ext./Reinf. | Z2: Ext./Reinf. | AA2: Ext./Reinf. | AB2: Ext./Reinf. | AC2: Ext./Reinf. | AD2: Ext./Reinf. | AE2: Ext./Reinf. | AF2: Ext./Reinf. | AG2: Glass1 | AH2: Glass2 | AI2: Glass3 | AJ2: Glass4 | AK2: Glass5 | AL2: Glass6 | AM2: Glass7 | AN2: Glass8 | AO2: Opening | AV2: Triple IG calculation
A3: =IF(ModelNo=B3,2,"") ->  | B3: 0100 | C3: Bottom Sash Height | D3: =CMR!$E$11+0.125 -> 0.125 | F3: 1 | G3: Select Model
A4: =IF(ModelNo=B4,3,"") ->  | B4: 0100 | C4: Bottom Glass Width | D4: =CMR!$E$14 -> -3.9375 | F4: 2 | G4: 0100 | H4: Builder Series Single Hung | I4: 0.5 | J4: 0.5 | M4: 14.375 | N4: 23.75 | O4: 52 | P4: 77 | Q4: 129 | R4: Standard | S4: Oriel (2/3 - 1/3) | T4: Cottage (1/3 - 2/3) | U4: Custom | V4: Half | AG4: Single Strength (2.5 mm) | AH4: Double Strength (3 mm) | AI4: Triple Strength (5 mm) | AL4: Laminated | AO4: << Select Opening | AQ4: 1 | AR4: Single Strength (2.5 mm) | AV4: SS (2.2) | AW4: DS (3.2) | AX4: 4 mm | AY4: TS (5.0) | BD4: Min. W | BE4: Min. H | BF4: Max. W | BG4: Max. H | BH4: Max. UI
A5: =IF(ModelNo=B5,4,"") ->  | B5: 0100 | C5: Bottom Glass Height | D5: =CMR!$E$16 -> -1.5 | F5: 3 | G5: 01HP | H5: Builder Series Single Hung High Performance | I5: 0.5 | J5: 0.5 | M5: 14.375 | N5: 23.75 | O5: 52 | P5: 84 | Q5: 129 | R5: Standard | S5: Oriel (2/3 - 1/3) | T5: Cottage (1/3 - 2/3) | U5: Custom | V5: Half | AH5: Double Strength (3 mm) | AI5: Triple Strength (5 mm) | AL5: Laminated | AO5: << Select Opening | AQ5: 2 | AR5: Double Strength (3 mm) | AU5: Max. Short | AV5: =IF(TG2W>41,0,41) -> 41 | AW5: =IF(TG2W>56,0,56) -> 56 | AX5: =IF(TG2W>67,0,67) -> 67 | AY5: =IF(TG2W>70,0,70) -> 70 | AZ5: Annealed | BC5: Mezzo | BD5: 25 | BE5: 40
A6: =IF(ModelNo=B6,5,"") ->  | B6: 0100 | C6: Top Glass Width | D6: =CMR!$E$13 -> -1.9375 | F6: 4 | G6: 0102 | H6: Builder Series Single Slider | I6: 0.5 | J6: 0.5 | M6: 23.5 | N6: 14.25 | O6: 72 | P6: 60 | Q6: 132 | R6: Standard | V6: Half | AG6: Single Strength (2.5 mm) | AH6: Double Strength (3 mm) | AI6: Triple Strength (5 mm) | AL6: Laminated | AO6: << Select Opening | AQ6: 3 | AR6: Triple Strength (5 mm) | AU6: Max. Long | AV6: =IF(TG2H>62,0,62) -> 62 | AW6: =IF(TG2H>76,0,76) -> 76 | AX6: =IF(TG2H>90,0,90) -> 90 | AY6: =IF(TG2H>102,0,102) -> 102 | AZ6: Annealed | BC6: Mezzo/N.F | BD6: 26 | BE6: 41
A7: =IF(ModelNo=B7,6,"") ->  | B7: 0100 | C7: Top Glass Height | D7: =CMR!$E$15 -> -1.875 | F7: 5 | G7: 0103 | H7: Builder Series 3 Lite Slider (1/4-1/2-1/4) | I7: 0.5 | J7: 0.5 | M7: 48 | N7: 14.25 | O7: 108 | P7: 60 | Q7: 168 | R7: Standard (1/4-1/2-1/4) | V7: Half | AG7: Single Strength (2.5 mm) | AH7: Double Strength (3 mm) | AI7: Triple Strength (5 mm) | AL7: Laminated | AO7: << Select Opening | AQ7: 4 | AR7: Triple IG Single Strrength | AU7: Max Sq.Ft. | AV7: =IF(TG2A>12,0,12) -> 12 | AW7: =IF(TG2A>22,0,22) -> 22 | AX7: =IF(TG2A>32,0,32) -> 32 | AY7: =IF(TG2A>35,0,35) -> 35 | AZ7: Annealed | BC7: New Construction | BD7: 20 | BE7: 36
A8: =IF(ModelNo=B8,7,"") ->  | B8: 0100 | C8: Astragal Length | D8: =TRUNC((Frame_Width-1.218)*32+0.5)/32 -> -1.1875 | F8: 6 | G8: 0104 | H8: Builder Series Picture Window | I8: 0.5 | J8: 0.5 | M8: 11.5 | N8: 11.5 | O8: 95 | P8: 95 | Q8: 154 | R8: Standard | AH8: Double Strength (3 mm) | AI8: Triple Strength (5 mm) | AL8: Laminated | AO8: << Select Opening | AQ8: 5 | AR8: Triple IG Double Strength | AU8: Max. Short | AV8: 0 | AW8: =IF(TG2W>42,0,42) -> 42 | AX8: =IF(TG2W>70,0,70) -> 70 | AY8: =IF(TG2W>70,0,70) -> 70 | AZ8: Tempered | BC8: 0700 Series | BD8: 20 | BE8: 36
A9: =IF(ModelNo=B9,8,"") ->  | B9: 0100 | C9: Screen Width | D9: =TRUNC((Frame_Width-1.75)*32+0.5)/32 -> -1.71875 | F9: 7 | G9: 0109 | H9: Builder Series 3 Lite Slider Equal Lite | I9: 0.5 | J9: 0.5 | M9: 34.75 | N9: 14.25 | O9: 108 | P9: 60 | Q9: 168 | R9: Standard (1/3-1/3-1/3) | V9: Half | AG9: Single Strength (2.5 mm) | AH9: Double Strength (3 mm) | AI9: Triple Strength (5 mm) | AL9: Laminated | AO9: << Select Opening | AQ9: 6 | AR9: Laminated | AU9: Max. Long | AV9: 0 | AW9: =IF(TG2H>84,0,84) -> 84 | AX9: =IF(TG2H>129,0,129) -> 129 | AY9: =IF(TG2H>129,0,129) -> 129 | AZ9: Tempered | BC9: Fusion | BD9: 23.5 | BE9: 38
A10: =IF(ModelNo=B10,9,"") ->  | B10: 0100 | C10: Screen Height | D10: =TRUNC((CMR!$E$11-1.1875)*32+0.5)/32 -> -1.15625 | F10: 8 | G10: 0151 | H10: Builder Series Single Vent Awning | I10: 0.5 | J10: 0.5 | M10: 19 | N10: 16 | O10: 48 | P10: 48 | Q10: 96 | R10: Standard | W10: Full | AH10: Double Strength (3 mm) | AI10: Triple Strength (5 mm) | AL10: Laminated | AO10: << Select Opening | AQ10: 7 | AR10: HP Package | AU10: Max Sq.Ft. | AV10: 0 | AW10: =IF(TG2A>24.5,0,24.5) -> 24.5 | AX10: =IF(TG2A>42,0,42) -> 42 | AY10: =IF(TG2A>42,0,42) -> 42 | AZ10: Tempered | BC10: 1700 | BD10: 24
A11: =IF(ModelNo=B11,10,"") ->  | B11: 0100 | C11: Bottom Sash Weight | D11: =IF(ISERROR(BTM_WGT&" "&"lb"),"N/A",BTM_WGT&" "&"lb") -> N/A | F11: 9 | G11: 0152 | H11: New Const. Awning W/ Transom Equal Lite | I11: 0.5 | J11: 0.5 | M11: 19 | N11: 32 | O11: 48 | P11: 96 | Q11: 144 | R11: Standard | V11: Half | AH11: Double Strength (3 mm) | AI11: Triple Strength (5 mm) | AL11: Laminated | AO11: << Select Opening | AQ11: 8 | AR11: Impact Laminated | AV11: =IF(AND(AV5>0,AV6>0,AV7>0),1,0) -> 1 | AW11: =IF(AND(AW5>0,AW6>0,AW7>0),1,0) -> 1 | AX11: =IF(AND(AX5>0,AX6>0,AX7>0),1,0) -> 1 | AY11: =IF(AND(AY5>0,AY6>0,AY7>0),1,0) -> 1 | AZ11: =IF(AV11>0,"≥SS Annealed",IF(AW11>0,"≥DS Annealed",IF(AY11>0,"TS Annealed",""))) -> ≥SS Annealed | BC11: 1900 | BD11: 24
A12: =IF(ModelNo=B12,11,"") ->  | B12: 0100 | C12: Balance Size (C.F) | D12: =IF(ISERROR((VLOOKUP(BTM_WGT,CFB,2,FALSE))&(VLOOKUP(BTM_WGT,CFB,3,FALSE))),"N/A",(VLOOKUP(BTM_WGT,CFB,2,FALSE))&(VLOOKUP(BTM_WGT,CFB,3,FALSE))) -> N/A | F12: 10 | G12: 0153 | H12: New Const. W/ Transom (1/3-2/3) | I12: 0.5 | J12: 0.5 | M12: 19 | N12: 48 | O12: 48 | P12: 96 | Q12: 144 | R12: Standard | V12: Half | AH12: Double Strength (3 mm) | AI12: Triple Strength (5 mm) | AL12: Laminated | AO12: << Select Opening | AW12: =IF(AND(AW8>0,AW9>0,AW10>0),1,0) -> 1 | AX12: =IF(AND(AX8>0,AX9>0,AX10>0),1,0) -> 1 | AY12: =IF(AND(AY8>0,AY9>0,AY10>0),1,0) -> 1 | AZ12: =IF(AW12>0,"≥DS Tempered",IF(AY12>0,"TS Tempered","")) -> ≥DS Tempered
A13: =IF(ModelNo=B13,12,"") ->  | B13: 0100 | C13: Balance Size (Spiral) | D13: =BOTTUBELENGTH&"-"&BOT_SPIRAL ->  | F13: 11 | G13: 0154 | H13: New Const. Single Vent Awning W/ Bottom Transom | I13: 0.5 | J13: 0.5 | M13: 19 | N13: 32 | O13: 48 | P13: 96 | Q13: 144 | R13: Standard | V13: Half | AH13: Double Strength (3 mm) | AI13: Triple Strength (5 mm) | AL13: Laminated | AO13: << Select Opening | AV13: 2.5 mm | AW13: 3.2 mm | AX13: 4 mm | AY13: 5 mm
A14: =IF(ModelNo=B14,13,"") ->  | B14: 0100 | C14: Egress Opening Width | D14: =IF(ISERROR(EW),"N/A",EW) -> N/A | F14: 12 | G14: 0155 | H14: New Const. Dual Vent Equal Lite | I14: 0.5 | J14: 0.5 | M14: 19 | N14: 32 | O14: 48 | P14: 96 | Q14: 144 | R14: Standard | V14: Half | AH14: Double Strength (3 mm) | AI14: Triple Strength (5 mm) | AL14: Laminated | AO14: << Select Opening | AU14: Max. Short | AV14: =IF(TG2H>41,0,41) -> 41 | AW14: =IF(TG2H>56,0,56) -> 56 | AX14: =IF(TG2H>67,0,67) -> 67 | AY14: =IF(TG2H>70,0,70) -> 70 | AZ14: Annealed
A15: =IF(ModelNo=B15,14,"") ->  | B15: 0100 | C15: Egress Opening Height | D15: =IF(ISERROR(EH),"N/A",EH) -> N/A | F15: 13 | G15: 0170 | H15: New Const. Casement Picture Window | I15: 0.5 | J15: 0.5 | M15: 13 | N15: 11.5 | O15: 96 | P15: 96 | Q15: 154 | R15: Standard | AH15: Double Strength (3 mm) | AI15: Triple Strength (5 mm) | AL15: Laminated | AO15: << Select Opening | AU15: Max. Long | AV15: =IF(TG2W>62,0,62) -> 62 | AW15: =IF(TG2W>76,0,76) -> 76 | AX15: =IF(TG2W>90,0,90) -> 90 | AY15: =IF(TG2W>102,0,102) -> 102 | AZ15: Annealed
A16: =IF(ModelNo=B16,15,"") ->  | B16: 0100 | C16: Egress Opening Area (sq.ft.) | D16: =IF(ISERROR(EO),"N/A",EO) -> N/A | F16: 14 | G16: 0171 | H16: New Const. Single Vent Casement | I16: 0.5 | J16: 0.5 | M16: 16 | N16: 19 | O16: 36 | P16: 78 | Q16: 114 | R16: Standard | W16: Full | AH16: Double Strength (3 mm) | AI16: Triple Strength (5 mm) | AL16: Laminated | AO16: << Select Opening | AU16: Max Sq.Ft. | AV16: =IF(TG2A>12,0,12) -> 12 | AW16: =IF(TG2A>22,0,22) -> 22 | AX16: =IF(TG2A>32,0,32) -> 32 | AY16: =IF(TG2A>35,0,35) -> 35 | AZ16: Annealed
A17: =IF(ModelNo=B17,1,"") ->  | B17: 01HP | C17: Bottom Sash Width | D17: =Frame_Width-2.3125 -> -2.3125 | F17: 15 | G17: 0172 | H17: New Const. Dual Vent Casement | I17: 0.5 | J17: 0.5 | M17: 32 | N17: 19 | O17: 72 | P17: 78 | Q17: 150 | R17: Standard | V17: Half | AH17: Double Strength (3 mm) | AI17: Triple Strength (5 mm) | AL17: Laminated | AO17: << Select Opening | AU17: Max. Short | AV17: 0 | AW17: =IF(TG2H>42,0,42) -> 42 | AX17: =IF(TG2H>70,0,70) -> 70 | AY17: =IF(TG2H>70,0,70) -> 70 | AZ17: Tempered
A18: =IF(ModelNo=B18,2,"") ->  | B18: 01HP | C18: Bottom Sash Height | D18: =CMR!$E$11+0.125 -> 0.125 | F18: 16 | G18: 0173 | H18: New Const. Dual Vent Casement (1/4-1/2-1/4) | I18: 0.5 | J18: 0.5 | M18: 64 | N18: 19 | O18: 120 | P18: 78 | Q18: 198 | R18: Standard (1/4-1/2-1/4) | V18: Half | AH18: Double Strength (3 mm) | AI18: Triple Strength (5 mm) | AL18: Laminated | AO18: << Select Opening | AU18: Max. Long | AV18: 0 | AW18: =IF(TG2W>84,0,84) -> 84 | AX18: =IF(TG2W>129,0,129) -> 129 | AY18: =IF(TG2W>129,0,129) -> 129 | AZ18: Tempered
A19: =IF(ModelNo=B19,3,"") ->  | B19: 01HP | C19: Bottom Glass Width | D19: =CMR!$E$14 -> -3.9375 | F19: 17 | G19: 0179 | H19: New Const. Dual Vent Casement Equal Lite | I19: 0.5 | J19: 0.5 | M19: 48 | N19: 19 | O19: 108 | P19: 78 | Q19: 186 | R19: Standard (1/3-1/3-1/3) | V19: Half | AH19: Double Strength (3 mm) | AI19: Triple Strength (5 mm) | AL19: Laminated | AO19: << Select Opening | AU19: Max Sq.Ft. | AV19: 0 | AW19: =IF(TG2A>24.5,0,24.5) -> 24.5 | AX19: =IF(TG2A>42,0,42) -> 42 | AY19: =IF(TG2A>42,0,42) -> 42 | AZ19: Tempered
A20: =IF(ModelNo=B20,4,"") ->  | B20: 01HP | C20: Bottom Glass Height | D20: =CMR!$E$16 -> -1.5 | F20: 18 | G20: S174 | H20: New Construction 4 Lite Casement | I20: 0.5 | J20: 0.5 | M20: 64 | N20: 19 | O20: 120 | P20: 78 | Q20: 198 | R20: Standard | V20: Half | AH20: Double Strength (3 mm) | AI20: Triple Strength (5 mm) | AL20: Laminated | AO20: << Select Opening | AV20: =IF(AND(AV14>0,AV15>0,AV16>0),1,0) -> 1 | AW20: =IF(AND(AW14>0,AW15>0,AW16>0),1,0) -> 1 | AX20: =IF(AND(AX14>0,AX15>0,AX16>0),1,0) -> 1 | AY20: =IF(AND(AY14>0,AY15>0,AY16>0),1,0) -> 1 | AZ20: =IF(AV20>0,"≥SS Annealed",IF(AW20>0,"≥DS Annealed",IF(AY20>0,"TS Annealed",""))) -> ≥SS Annealed
A21: =IF(ModelNo=B21,5,"") ->  | B21: 01HP | C21: Top Glass Width | D21: =CMR!$E$13 -> -1.9375 | F21: 19 | G21: S175 | H21: New Construction 5 Lite Casement | I21: 0.5 | J21: 0.5 | M21: 80 | N21: 19 | O21: 120 | P21: 78 | Q21: 198 | R21: Standard | V21: Half | AH21: Double Strength (3 mm) | AI21: Triple Strength (5 mm) | AL21: Laminated | AO21: << Select Opening | AW21: =IF(AND(AW17>0,AW18>0,AW19>0),1,0) -> 1 | AX21: =IF(AND(AX17>0,AX18>0,AX19>0),1,0) -> 1 | AY21: =IF(AND(AY17>0,AY18>0,AY19>0),1,0) -> 1 | AZ21: =IF(AW21>0,"≥DS Tempered",IF(AY21>0,"TS Tempered","")) -> ≥DS Tempered
A22: =IF(ModelNo=B22,6,"") ->  | B22: 01HP | C22: Top Glass Height | D22: =CMR!$E$15 -> -1.875 | F22: 20 | G22: 0201 | H22: 4000 Series Double Hung | I22: 0 | J22: 0 | M22: 11 | N22: 20 | O22: 52 | P22: 84 | Q22: 132 | R22: Standard | S22: Oriel (2/3 - 1/3) | T22: Cottage (1/3 - 2/3) | U22: Custom | V22: Half | W22: Full | X22: Locking | AH22: Double Strength (3 mm) | AI22: Triple Strength (5 mm) | AL22: Laminated | AO22: =IF(RO=2,"<< Exact Size Only","") ->  | AU22: =IF(AND(OR(AZ11="≥SS Annealed",AZ11="≥DS Annealed",AZ12="≥DS Tempered",AZ20="≥SS Annealed",AZ20="≥DS Annealed",AZ21="≥DS Tempered")),"TIG","") -> TIG | AV22: =IF(AND(ANNEALED1=0,ANNEALED2=0,OR(TEMPERED1>0,TEMPERED2>0)),"Tempered is Required for TIG","") -> 
A23: =IF(ModelNo=B23,7,"") ->  | B23: 01HP | C23: Astragal Length | D23: =TRUNC((Frame_Width-1.218)*32+0.5)/32 -> -1.1875 | F23: 21 | G23: 0202 | H23: 4000 Series 2 Lite Slider | I23: 0 | J23: 0 | M23: 18 | N23: 9 | O23: 84 | P23: 72 | Q23: 148 | R23: Standard | V23: Half | W23: Full | AH23: Double Strength (3 mm) | AI23: Triple Strength (5 mm) | AL23: Laminated | AU23: Model | AV23: Width | AW23: Height | AX23: Area | AY23: Balance
A24: =IF(ModelNo=B24,8,"") ->  | B24: 01HP | C24: Screen Width | D24: =TRUNC((Frame_Width-1.75)*32+0.5)/32 -> -1.71875 | F24: 22 | G24: 0203 | H24: 4000 Series 3 Lite Slider (1/4-1/2-1/4) | I24: 0 | J24: 0 | M24: 47.5 | N24: 9 | O24: 120 | P24: 72 | Q24: 192 | R24: Standard (1/4-1/2-1/4) | V24: Half | W24: Full | AH24: Double Strength (3 mm) | AI24: Triple Strength (5 mm) | AL24: Laminated | AT24: =IF(ModelNo=AU24,ModelNo,0) -> 0 | AU24: 3001 | AV24: =MAX($D$1122,$D$1124) -> -3.125 | AW24: =MAX($D$1123,$D$1125) -> -0.4375 | AX24: =(AV24*AW24)/144 -> 0.009494357639 | AY24: =IF(AND(OR(Glass=4,Glass=5),OR($D$1131="N/A",$D$1133="N/A")),1,IF(AND(Glass=3,Single_ST=0),1,0)) -> 0
A25: =IF(ModelNo=B25,9,"") ->  | B25: 01HP | C25: Screen Height | D25: =TRUNC((CMR!$E$11-1.1875)*32+0.5)/32 -> -1.15625 | F25: 23 | G25: 0204 | H25: 4000 Series Picture Window | I25: 0 | J25: 0 | M25: 9 | N25: 9 | O25: 112 | P25: 96 | Q25: 154 | R25: Standard | AH25: Double Strength (3 mm) | AI25: Triple Strength (5 mm) | AL25: Laminated | AT25: =IF(ModelNo=AU25,ModelNo,0) -> 0 | AU25: 3002 | AV25: =$D$1140 -> -2.875 | AW25: =$D$1141 -> -5.9375 | AX25: 0.1185438368
A26: =IF(ModelNo=B26,10,"") ->  | B26: 01HP | C26: Bottom Sash Weight | D26: =IF(ISERROR(BTM_WGT&" "&"lb"),"N/A",BTM_WGT&" "&"lb") -> N/A | F26: 24 | G26: 0209 | H26: 4000 Series 3 Lite Slider Equal Lite | I26: 0 | J26: 0 | M26: 37.25 | N26: 9 | O26: 120 | P26: 72 | Q26: 192 | R26: Standard (1/3-1/3-1/3) | V26: Half | W26: Full | AH26: Double Strength (3 mm) | AI26: Triple Strength (5 mm) | AL26: Laminated | AT26: 0 | AU26: 3003 | AV26: =MAX($D$1152,$D$1154) -> -1.6875 | AW26: =MAX($D$1153,$D$1155) -> -5.9375 | AX26: 0.06958007812
A27: =IF(ModelNo=B27,11,"") ->  | B27: 01HP | C27: Balance Size (C.F) | D27: =IF(ISERROR((VLOOKUP(BTM_WGT,CFB,2,FALSE))&(VLOOKUP(BTM_WGT,CFB,3,FALSE))),"N/A",(VLOOKUP(BTM_WGT,CFB,2,FALSE))&(VLOOKUP(BTM_WGT,CFB,3,FALSE))) -> N/A | F27: 25 | G27: 02A0 | H27: 4000 Series Single Hung | I27: 0 | J27: 0 | M27: 11 | N27: 20 | O27: 52 | P27: 84 | Q27: 132 | R27: Standard | S27: Oriel (2/3 - 1/3) | T27: Cottage (1/3 - 2/3) | U27: Custom | V27: Half | W27: Full | X27: Locking | AG27: Single Strength (2.5 mm) | AH27: Double Strength (3 mm) | AI27: Triple Strength (5 mm) | AL27: Laminated | AT27: 0 | AU27: 3004 | AV27: =$D$1161 -> -4.1875 | AW27: =$D$1162 -> -4.1875 | AX27: 0.1217719184
A28: =IF(ModelNo=B28,12,"") ->  | B28: 01HP | C28: Balance Size (Spiral) | D28: =BOTTUBELENGTH&"-"&BOT_SPIRAL ->  | F28: 26 | G28: 02A2 | H28: 4000 Series 2 Lite Single Slider | I28: 0 | J28: 0 | M28: 18 | N28: 12 | O28: 84 | P28: 66 | Q28: 148 | R28: Standard | V28: Half | W28: Full | AG28: Single Strength (2.5 mm) | AH28: Double Strength (3 mm) | AI28: Triple Strength (5 mm) | AL28: Laminated | AT28: 0 | AU28: 3009 | AV28: =MAX($D$1169,$D$1171) -> -2.1875 | AW28: =MAX($D$1170,$D$1172) -> -5.9375 | AX28: 0.09019639757
A29: =IF(ModelNo=B29,13,"") ->  | B29: 01HP | C29: Egress Opening Width | D29: =IF(ISERROR(EW),"N/A",EW) -> N/A | F29: 27 | G29: 02A3 | H29: 4000 Series 3 Lite Slider (1/4-1/2-1/4) | I29: 0 | J29: 0 | M29: 46 | N29: 12 | O29: 116 | P29: 66 | Q29: 182 | R29: Standard (1/4-1/2-1/4) | V29: Half | W29: Full | AG29: Single Strength (2.5 mm) | AH29: Double Strength (3 mm) | AI29: Triple Strength (5 mm) | AL29: Laminated | AT29: 0 | AU29: 03A0 | AV29: =MAX($D$1180,$D$1182) -> -4.6875 | AW29: =MAX($D$1181,$D$1183) -> -2.59375 | AX29: 0.08443196615 | AY29: =IF(AND(OR(Glass=4,Glass=5),$D$1188="N/A"),1,IF(AND(Glass=3,Single_ST=0),1,0)) -> 0
A30: =IF(ModelNo=B30,14,"") ->  | B30: 01HP | C30: Egress Opening Height | D30: =IF(ISERROR(EH),"N/A",EH) -> N/A | F30: 28 | G30: 02A4 | H30: 4000 Series Picture Window | I30: 0 | J30: 0 | M30: 9 | N30: 9 | O30: 96 | P30: 96 | Q30: 154 | R30: Standard | AG30: Single Strength (2.5 mm) | AH30: Double Strength (3 mm) | AI30: Triple Strength (5 mm) | AL30: Laminated | AT30: 0 | AU30: 03A2 | AV30: =MAX($D$1195,$D$1197) -> -2.5625 | AW30: =MAX($D$1196,$D$1198) -> -4.75 | AX30: 0.08452690972
A31: =IF(ModelNo=B31,15,"") ->  | B31: 01HP | C31: Egress Opening Area (sq.ft.) | D31: =IF(ISERROR(EO),"N/A",EO) -> N/A | F31: 29 | G31: 02A9 | H31: 4000 Series 3 Lite Slider Equal Lite | I31: 0 | J31: 0 | M31: 37.25 | N31: 12 | O31: 120 | P31: 66 | Q31: 182 | R31: Standard (1/3-1/3-1/3) | V31: Half | W31: Full | AG31: Single Strength (2.5 mm) | AH31: Double Strength (3 mm) | AI31: Triple Strength (5 mm) | AL31: Laminated | AT31: 0 | AU31: 03A3 | AV31: =MAX($D$1207,$D$1209) -> -1.5625 | AW31: =MAX($D$1208,$D$1210) -> -4.8125 | AX31: 0.05221896701
A32: =IF(ModelNo=B32,1,"") ->  | B32: 0102 | C32: Sash Width | D32: =(Frame_Width/2)+0.25 -> 0.25 | F32: 30 | G32: 3001 | H32: 4000 Series Double Hung | I32: 0 | J32: 0 | M32: 12 | N32: 20 | O32: =IF(EXTSELECT=2,48,IF(EXTSELECT=3,52,"")) ->  | P32: =IF(EXTSELECT=2,84,IF(EXTSELECT=3,96,"")) ->  | Q32: =IF(EXTSELECT=2,126,IF(EXTSELECT=3,148,"")) ->  | R32: Standard | S32: Oriel (2/3 - 1/3) | T32: Cottage (1/3 - 2/3) | U32: Custom | V32: Half | W32: Full | X32: Locking | Y32: Select Reinforcement | Z32: Composite | AA32: Steel | AH32: Double Strength (3 mm) | AI32: Triple Strength (5 mm) | AJ32: Triple IG Single Strength | AK32: Triple IG Double Strength | AL32: Laminated | AT32: 0 | AU32: 03A4 | AV32: =$D$1161 -> -4.1875 | AW32: =$D$1162 -> -4.1875 | AX32: 0.1217719184
A33: =IF(ModelNo=B33,2,"") ->  | B33: 0102 | C33: Sash Height | D33: =Frame_Height-2.25 -> -2.25 | F33: 31 | G33: 3002 | H33: 4000 Series 2 Lite Slider | I33: 0 | J33: 0 | M33: 18.5 | N33: 11.25 | O33: =IF(EXTSELECT=2,72,IF(EXTSELECT=3,96,"")) ->  | P33: =IF(EXTSELECT=2,56,IF(EXTSELECT=3,72,"")) ->  | Q33: =IF(EXTSELECT=2,128,IF(EXTSELECT=3,156,"")) ->  | R33: Standard | V33: Half | W33: Full | Y33: Select Reinforcement | Z33: Composite | AA33: Steel | AH33: Double Strength (3 mm) | AI33: Triple Strength (5 mm) | AJ33: Triple IG Single Strength | AK33: Triple IG Double Strength | AL33: Laminated | AT33: 0 | AU33: 03A9 | AV33: =MAX($D$1219,$D$1221) -> -2.0625 | AW33: =MAX($D$1220,$D$1222) -> -4.8125 | AX33: 0.06892903646
A34: =IF(ModelNo=B34,3,"") ->  | B34: 0102 | C34: Sash Glass Width | D34: =(Frame_Width/2)-1.4375 -> -1.4375 | F34: 32 | G34: 3003 | H34: 4000 Series 3 Lite Slider (1/4-1/2-1/4) | I34: 0 | J34: 0 | M34: 47.5 | N34: 11.25 | O34: =IF(EXTSELECT=2,108,IF(EXTSELECT=3,120,"")) ->  | P34: =IF(EXTSELECT=2,56,IF(EXTSELECT=3,72,"")) ->  | Q34: =IF(EXTSELECT=2,164,IF(EXTSELECT=3,192,"")) ->  | R34: Standard (1/4-1/2-1/4) | V34: Half | W34: Full | Y34: Select Reinforcement | Z34: Composite | AA34: Steel | AH34: Double Strength (3 mm) | AI34: Triple Strength (5 mm) | AJ34: Triple IG Single Strength | AK34: Triple IG Double Strength | AL34: Laminated | AT34: 0 | AU34: 0501 | AV34: =MAX($D$408,$D$410) -> -6.0625 | AW34: =MAX($D$409,$D$411) -> -4.0625 | AX34: 0.1710340712 | AY34: =IF(AND(OR(Glass=4,Glass=5),OR($D$415="N/A",$D$418="N/A")),1,IF(AND(Glass=3,Single_ST=0),1,0)) -> 0
A35: =IF(ModelNo=B35,4,"") ->  | B35: 0102 | C35: Sash Glass Height | D35: =Frame_Height-3.9375 -> -3.9375 | F35: 33 | G35: 3004 | H35: 4000 Series Picture Window | I35: 0 | J35: 0 | M35: 9.5 | N35: 9.5 | O35: 112 | P35: 112 | Q35: 154 | R35: Standard | AH35: Double Strength (3 mm) | AI35: Triple Strength (5 mm) | AJ35: Triple IG Single Strength | AK35: Triple IG Double Strength | AL35: Laminated | AT35: 0 | AU35: 0502 | AV35: =$D$426 -> -3.5 | AW35: =$D$427 -> -7.5 | AX35: 0.1822916667
A36: =IF(ModelNo=B36,5,"") ->  | B36: 0102 | C36: Fixed Glass Width | D36: =(Frame_Width/2)-1.9375 -> -1.9375 | F36: 34 | G36: 3009 | H36: 4000 Series 3 Lite Slider Equal Lite | I36: 0 | J36: 0 | M36: 37.25 | N36: 11.25 | O36: =IF(EXTSELECT=2,108,IF(EXTSELECT=3,120,"")) ->  | P36: =IF(EXTSELECT=2,56,IF(EXTSELECT=3,72,"")) ->  | Q36: =IF(EXTSELECT=2,164,IF(EXTSELECT=3,192,"")) ->  | R36: Standard (1/3-1/3-1/3) | V36: Half | W36: Full | Y36: Select Reinforcement | Z36: Composite | AA36: Steel | AH36: Double Strength (3 mm) | AI36: Triple Strength (5 mm) | AJ36: Triple IG Single Strength | AK36: Triple IG Double Strength | AL36: Laminated | AT36: 0 | AU36: 0503 | AV36: =MAX($D$438,$D$440) -> -1.9375 | AW36: =MAX($D$439,$D$441) -> -7.5 | AX36: 0.1009114583
A37: =IF(ModelNo=B37,6,"") ->  | B37: 0102 | C37: Fixed Glass Height | D37: =Frame_Height-2 -> -2 | F37: 35 | G37: 03A0 | H37: 4000 Series Single Hung | I37: 0 | J37: 0 | M37: 12 | N37: 22 | O37: =IF(EXTSELECT=2,48,IF(EXTSELECT=3,52,"")) ->  | P37: =IF(EXTSELECT=2,78,IF(EXTSELECT=3,96,"")) ->  | Q37: =IF(EXTSELECT=2,126,IF(EXTSELECT=3,148,"")) ->  | R37: Standard | S37: Oriel (2/3 - 1/3) | T37: Cottage (1/3 - 2/3) | U37: Custom | V37: Half | W37: Full | X37: Locking | Y37: Select Reinforcement | Z37: Composite | AA37: Steel | AH37: Double Strength (3 mm) | AI37: Triple Strength (5 mm) | AJ37: Triple IG Single Strength | AK37: Triple IG Double Strength | AL37: Laminated | AT37: 0 | AU37: 0504 | AV37: =$D$122 -> -4.625 | AW37: =$D$123 -> -4.625 | AX37: 0.1485460069
A38: =IF(ModelNo=B38,7,"") ->  | B38: 0102 | C38: Astragal Length | D38: =TRUNC((Frame_Height-1.218)*16+0.5)/16 -> -1.125 | F38: 36 | G38: 03A2 | H38: 4000 Series 2 Lite Single Slider | I38: 0 | J38: 0 | M38: 18.5 | N38: 12 | O38: =IF(EXTSELECT=2,72,IF(EXTSELECT=3,96,"")) ->  | P38: =IF(EXTSELECT=2,56,IF(EXTSELECT=3,72,"")) ->  | Q38: =IF(EXTSELECT=2,128,IF(EXTSELECT=3,156,"")) ->  | R38: Standard | V38: Half | W38: Full | Y38: Select Reinforcement | Z38: Composite | AA38: Steel | AH38: Double Strength (3 mm) | AI38: Triple Strength (5 mm) | AJ38: Triple IG Single Strength | AK38: Triple IG Double Strength | AL38: Laminated | AT38: 0 | AU38: 0509 | AV38: =MAX($D$452,$D$454) -> -2.6875 | AW38: =MAX($D$453,$D$455) -> -7.5 | AX38: 0.1399739583
A39: =IF(ModelNo=B39,8,"") ->  | B39: 0102 | C39: Roller Track Length | D39: =Frame_Width-1 -> -1 | F39: 37 | G39: 03A3 | H39: 4000 Series 3 Lite Slider (1/4-1/2-1/4) | I39: 0 | J39: 0 | M39: 52 | N39: 12 | O39: =IF(EXTSELECT=2,108,IF(EXTSELECT=3,110,"")) ->  | P39: =IF(EXTSELECT=2,56,IF(EXTSELECT=3,72,"")) ->  | Q39: =IF(EXTSELECT=2,164,IF(EXTSELECT=3,182,"")) ->  | R39: Standard (1/4-1/2-1/4) | V39: Half | W39: Full | Y39: Select Reinforcement | Z39: Composite | AA39: Steel | AH39: Double Strength (3 mm) | AI39: Triple Strength (5 mm) | AJ39: Triple IG Single Strength | AK39: Triple IG Double Strength | AL39: Laminated | AT39: 0 | AU39: B501 | AV39: =MAX($D$408,$D$410) -> -6.0625 | AW39: =MAX($D$409,$D$411) -> -4.0625 | AX39: 0.1710340712 | AY39: =IF(AND(OR(Glass=4,Glass=5),OR($D$415="N/A",$D$418="N/A")),1,IF(AND(Glass=3,Single_ST=0),1,0)) -> 0
A40: =IF(ModelNo=B40,9,"") ->  | B40: 0102 | C40: Screen Width | D40: =(Frame_Width/2)-1.1875 -> -1.1875 | F40: 38 | G40: 03A4 | H40: 4000 Series Picture Window | I40: 0 | J40: 0 | M40: 9.5 | N40: 9.5 | O40: 112 | P40: 112 | Q40: 154 | R40: Standard | AH40: Double Strength (3 mm) | AI40: Triple Strength (5 mm) | AJ40: Triple IG Single Strength | AK40: Triple IG Double Strength | AL40: Laminated | AT40: 0 | AU40: U501 | AV40: =MAX($D$408,$D$410) -> -6.0625 | AW40: =MAX($D$409,$D$411) -> -4.0625 | AX40: 0.1710340712 | AY40: =IF(AND(OR(Glass=4,Glass=5),OR($D$415="N/A",$D$418="N/A")),1,IF(AND(Glass=3,Single_ST=0),1,0)) -> 0
A41: =IF(ModelNo=B41,10,"") ->  | B41: 0102 | C41: Screen Height | D41: =Frame_Height-1.75 -> -1.75 | F41: 39 | G41: 03A9 | H41: 4000 Series 3 Lite Slider Equal Lite | I41: 0 | J41: 0 | M41: 52 | N41: 12 | O41: =IF(EXTSELECT=2,108,IF(EXTSELECT=3,120,"")) ->  | P41: =IF(EXTSELECT=2,56,IF(EXTSELECT=3,72,"")) ->  | Q41: =IF(EXTSELECT=2,164,IF(EXTSELECT=3,192,"")) ->  | R41: Standard (1/3-1/3-1/3) | V41: Half | W41: Full | Y41: Select Reinforcement | Z41: Composite | AA41: Steel | AH41: Double Strength (3 mm) | AI41: Triple Strength (5 mm) | AJ41: Triple IG Single Strength | AK41: Triple IG Double Strength | AL41: Laminated | AT41: 0 | AU41: U502 | AV41: =$D$426 -> -3.5 | AW41: =$D$427 -> -7.5 | AX41: 0.1822916667
A42: =IF(ModelNo=B42,11,"") ->  | B42: 0102 | C42: Egress Opening Width | D42: =TRUNC(((Frame_Width/2)-3.25)*16+0.5)/16 -> -3.1875 | F42: 40 | G42: L201 | H42: 2000 Series Double Hung | I42: 0 | J42: 0 | M42: 11 | N42: 20 | O42: 48 | P42: 78 | Q42: 126 | R42: Standard | S42: Oriel (2/3 - 1/3) | T42: Cottage (1/3 - 2/3) | U42: Custom | V42: Half | W42: Full | X42: Locking | AG42: Single Strength (2.5 mm) | AH42: Double Strength (3 mm) | AI42: Triple Strength (5 mm) | AT42: 0 | AU42: U503 | AV42: =MAX($D$438,$D$440) -> -1.9375 | AW42: =MAX($D$439,$D$441) -> -7.5 | AX42: 0.1009114583
A43: =IF(ModelNo=B43,12,"") ->  | B43: 0102 | C43: Egress Opening Height | D43: =TRUNC((Frame_Height-3.074)*16+0.5)/16 -> -3 | F43: 41 | G43: L202 | H43: 2000 Series 2 Lite Slider | I43: 0 | J43: 0 | M43: 18 | N43: 9 | O43: 84 | P43: 56 | Q43: 140 | R43: Standard | V43: Half | W43: Full | AG43: Single Strength (2.5 mm) | AH43: Double Strength (3 mm) | AI43: Triple Strength (5 mm) | AT43: 0 | AU43: U504 | AV43: =$D$122 -> -4.625 | AW43: =$D$123 -> -4.625 | AX43: 0.1485460069
A44: =IF(ModelNo=B44,13,"") ->  | B44: 0102 | C44: Egress Opening Area (sq.ft.) | D44: =(D42*D43)/144 -> 0.06640625 | F44: 42 | G44: L203 | H44: 2000 Series 3 Lite Slider (1/4-1/2-1/4) | I44: 0 | J44: 0 | M44: 48 | N44: 9 | O44: 108 | P44: 56 | Q44: 164 | R44: Standard (1/4-1/2-1/4) | V44: Half | W44: Full | AG44: Single Strength (2.5 mm) | AH44: Double Strength (3 mm) | AI44: Triple Strength (5 mm) | AT44: 0 | AU44: U509 | AV44: =MAX($D$452,$D$454) -> -2.6875 | AW44: =MAX($D$453,$D$455) -> -7.5 | AX44: 0.1399739583
A45: =IF(ModelNo=B45,1,"") ->  | B45: 0103 | C45: Sash Width | D45: =Frame_Width/4 -> 0 | F45: 43 | G45: L204 | H45: 2000 Series Picture Window | I45: 0 | J45: 0 | M45: 9 | N45: 9 | O45: 96 | P45: 96 | Q45: 154 | R45: Standard | AH45: Double Strength (3 mm) | AI45: Triple Strength (5 mm) | AT45: 0 | AU45: 0522 | AV45: =MAX($D$465,$D$467) -> -4 | AW45: =MAX($D$466,$D$468) -> -6.75 | AX45: 0.1875
A46: =IF(ModelNo=B46,2,"") ->  | B46: 0103 | C46: Sash Height | D46: =Frame_Height-2.25 -> -2.25 | F46: 44 | G46: L209 | H46: 2000 Series 3 Lite Slider Equal Lite | I46: 0 | J46: 0 | M46: 38 | N46: 9 | O46: 108 | P46: 56 | Q46: 164 | R46: Standard (1/3-1/3-1/3) | V46: Half | W46: Full | AG46: Single Strength (2.5 mm) | AH46: Double Strength (3 mm) | AI46: Triple Strength (5 mm) | AT46: 0 | AU46: 0523 | AV46: =MAX($D$478,$D4437) -> -2.25 | AW46: =MAX($D$479,$D$481) -> -6.75 | AX46: 0.10546875
A47: =IF(ModelNo=B47,3,"") ->  | B47: 0103 | C47: Sash Glass Width | D47: =(TRUNC((Frame_Width/4-0.25)*16+0.5)/16)-1.4375 -> -1.625 | F47: 45 | G47: 0301 | H47: New Const. Double Hung | I47: 0.5 | J47: 0.5 | M47: 14.25 | N47: 25.25 | O47: 48 | P47: 78 | Q47: 126 | R47: Standard | S47: Oriel (2/3 - 1/3) | T47: Cottage (1/3 - 2/3) | U47: Custom | V47: Half | W47: Full | AG47: Single Strength (2.5 mm) | AH47: Double Strength (3 mm) | AI47: Triple Strength (5 mm) | AL47: Laminated | AO47: << Select Opening | AT47: 0 | AU47: 0529 | AV47: =MAX($D$491,$D$493) -> -3.03125 | AW47: =MAX($D$492,$D$494) -> -6.75 | AX47: 0.1420898438
A48: =IF(ModelNo=B48,4,"") ->  | B48: 0103 | C48: Sash Glass Height | D48: =Frame_Height-3.9375 -> -3.9375 | F48: 46 | G48: 0401 | H48: Geneva Double Hung | I48: 0 | J48: 0 | M48: 14.25 | N48: 24 | O48: 48 | P48: 78 | Q48: 126 | R48: Standard | S48: Oriel (2/3 - 1/3) | T48: Cottage (1/3 - 2/3) | U48: Custom | V48: Half | W48: Full | X48: Locking | AH48: Double Strength (3 mm) | AI48: Triple Strength (5 mm) | AL48: Laminated | AO48: =IF(RO=2,"<< Exact Size Only","") ->  | AT48: 0 | AU48: 0601 | AV48: =MAX($D$504,$D$506) -> -6.0625 | AW48: =MAX($D$505,$D$507) -> -3.75 | AX48: 0.1578776042 | AY48: =IF(AND(OR(Glass=4,Glass=5),OR($D$511="N/A",$D$514="N/A")),1,IF(AND(Glass=3,Single_ST=0),1,0)) -> 0
A49: =IF(ModelNo=B49,5,"") ->  | B49: 0103 | C49: Fixed Glass Width | D49: =(Frame_Width-2*(TRUNC((Frame_Width/4-0.25)*16+0.5)/16))-1.9375 -> -1.5625 | F49: 47 | G49: 0402 | H49: Geneva 2 Lite Slider | I49: 0 | J49: 0 | M49: 24.625 | N49: 15.125 | O49: 84 | P49: 64 | Q49: 148 | R49: Standard | V49: Half | W49: Full | AH49: Double Strength (3 mm) | AI49: Triple Strength (5 mm) | AL49: Laminated | AT49: 0 | AU49: 0602 | AV49: =$D$426 -> -3.5 | AW49: =$D$427 -> -7.5 | AX49: 0.1822916667
A50: =IF(ModelNo=B50,6,"") ->  | B50: 0103 | C50: Fixed Glass Height | D50: =Frame_Height-2 -> -2 | F50: 48 | G50: 0403 | H50: Geneva 3 Lite Slider (1/4-1/2-1/4) | I50: 0 | J50: 0 | M50: 45.5 | N50: 15.125 | O50: 120 | P50: 64 | Q50: 184 | R50: Standard (1/4-1/2-1/4) | V50: Half | W50: Full | AH50: Double Strength (3 mm) | AI50: Triple Strength (5 mm) | AL50: Laminated | AT50: 0 | AU50: 0603 | AV50: =MAX($D$438,$D$440) -> -1.9375 | AW50: =MAX($D$439,$D$441) -> -7.5 | AX50: 0.1009114583
A51: =IF(ModelNo=B51,7,"") ->  | B51: 0103 | C51: Astragal Length | D51: =TRUNC((Frame_Height-1.218)*16+0.5)/16 -> -1.125 | F51: 49 | G51: 0404 | H51: Geneva Picture Window | I51: 0 | J51: 0 | M51: 12 | N51: 12 | O51: 96 | P51: 84 | Q51: 154 | R51: Standard | AH51: Double Strength (3 mm) | AI51: Triple Strength (5 mm) | AL51: Laminated | AT51: 0 | AU51: 0609 | AV51: =MAX($D$452,$D$454) -> -2.6875 | AW51: =MAX($D$453,$D$455) -> -7.5 | AX51: 0.1399739583
A52: =IF(ModelNo=B52,8,"") ->  | B52: 0103 | C52: Roller Track Length | D52: =Frame_Width-1 -> -1 | F52: 50 | G52: 0409 | H52: Geneva 3 Lite Slider Equal Lite | I52: 0 | J52: 0 | M52: 35.125 | N52: 15.125 | O52: 120 | P52: 64 | Q52: 184 | R52: Standard (1/3-1/3-1/3) | V52: Half | W52: Full | AH52: Double Strength (3 mm) | AI52: Triple Strength (5 mm) | AL52: Laminated | AT52: 0 | AU52: 0614 | AV52: =$D$122 -> -4.625 | AW52: =$D$123 -> -4.625 | AX52: 0.1485460069
A53: =IF(ModelNo=B53,9,"") ->  | B53: 0103 | C53: Screen Width | D53: =(Frame_Width/4)-1.3125 -> -1.3125 | F53: 51 | G53: 0501 | H53: 6000 Series Double Hung | I53: 0 | J53: 0 | M53: 15.25 | N53: 26.75 | O53: 52 | P53: 84 | Q53: 136 | R53: Standard | S53: Oriel (2/3 - 1/3) | T53: Cottage (1/3 - 2/3) | U53: Custom | V53: Half | W53: Full | X53: Locking | AH53: Double Strength (3 mm) | AI53: Triple Strength (5 mm) | AJ53: Triple IG Single Strength | AK53: Triple IG Double Strength | AL53: Laminated | AT53: 0 | AU53: B601 | AV53: =MAX($D$504,$D$506) -> -6.0625 | AW53: =MAX($D$505,$D$507) -> -3.75 | AX53: 0.1578776042 | AY53: =IF(AND(OR(Glass=4,Glass=5),OR($D$511="N/A",$D$514="N/A")),1,IF(AND(Glass=3,Single_ST=0),1,0)) -> 0
A54: =IF(ModelNo=B54,10,"") ->  | B54: 0103 | C54: Screen Height | D54: =Frame_Height-1.75 -> -1.75 | F54: 52 | G54: 0502 | H54: 6000 Series 2 Lite Slider | I54: 0 | J54: 0 | M54: 25.25 | N54: 16.625 | O54: 84 | P54: 68 | Q54: 148 | R54: Standard | V54: Half | W54: Full | AH54: Double Strength (3 mm) | AI54: Triple Strength (5 mm) | AJ54: Triple IG Single Strength | AK54: Triple IG Double Strength | AL54: Laminated | AT54: 0 | AU54: U601 | AV54: =MAX($D$504,$D$506) -> -6.0625 | AW54: =MAX($D$505,$D$507) -> -3.75 | AX54: 0.1578776042 | AY54: =IF(AND(OR(Glass=4,Glass=5),OR($D$511="N/A",$D$514="N/A")),1,IF(AND(Glass=3,Single_ST=0),1,0)) -> 0
A55: =IF(ModelNo=B55,11,"") ->  | B55: 0103 | C55: Egress Opening Width | D55: =(Frame_Width/4)-2.3125 -> -2.3125 | F55: 53 | G55: 0503 | H55: 6000 Series 3 Lite Slider (1/4-1/2-1/4) | I55: 0 | J55: 0 | M55: 44.5 | N55: 16.625 | O55: 120 | P55: 68 | Q55: 188 | R55: Standard (1/4-1/2-1/4) | V55: Half | W55: Full | AH55: Double Strength (3 mm) | AI55: Triple Strength (5 mm) | AJ55: Triple IG Single Strength | AK55: Triple IG Double Strength | AL55: Laminated | AT55: 0 | AU55: U602 | AV55: =$D$426 -> -3.5 | AW55: =$D$427 -> -7.5 | AX55: 0.1822916667
A56: =IF(ModelNo=B56,12,"") ->  | B56: 0103 | C56: Egress Opening Height | D56: =TRUNC((Frame_Height-3.074)*16+0.5)/16 -> -3 | F56: 54 | G56: 0504 | H56: 6000 Series Picture Window | I56: 0 | J56: 0 | M56: 13 | N56: 13 | O56: 96 | P56: 96 | Q56: 154 | R56: Standard | AH56: Double Strength (3 mm) | AI56: Triple Strength (5 mm) | AJ56: Triple IG Single Strength | AK56: Triple IG Double Strength | AL56: Laminated | AT56: =IF(ModelNo=AU56,ModelNo,0) -> 0 | AU56: U603 | AV56: =MAX($D$438,$D$440) -> -1.9375 | AW56: =MAX($D$439,$D$441) -> -7.5 | AX56: =(AV56*AW56)/144 -> 0.1009114583
A57: =IF(ModelNo=B57,13,"") ->  | B57: 0103 | C57: Egress Opening Area (sq.ft.) | D57: =(D55*D56)/144 -> 0.04817708333 | F57: 55 | G57: 0509 | H57: 6000 Series 3 Lite Slider Equal Lite | I57: 0 | J57: 0 | M57: 35.5 | N57: 16.625 | O57: 112 | P57: 68 | Q57: 184 | R57: Standard (1/3-1/3-1/3) | V57: Half | W57: Full | AH57: Double Strength (3 mm) | AI57: Triple Strength (5 mm) | AJ57: Triple IG Single Strength | AK57: Triple IG Double Strength | AL57: Laminated | AT57: 0 | AU57: U609 | AV57: =MAX($D$452,$D$454) -> -2.6875 | AW57: =MAX($D$453,$D$455) -> -7.5 | AX57: 0.1399739583
A58: =IF(ModelNo=B58,1,"") ->  | B58: 0104 | C58: Glass Width | D58: =Frame_Width-1.9375 -> -1.9375 | F58: 56 | G58: 0522 | H58: Swing & Clean 2 Lite Slider | I58: 0 | J58: 0 | M58: 30 | N58: 20 | O58: 72 | P58: 60 | Q58: 120 | R58: Standard | V58: Half | W58: Full | AH58: Double Strength (3 mm) | AI58: Triple Strength (5 mm) | AJ58: Triple IG Single Strength | AK58: Triple IG Double Strength | AL58: Laminated | AT58: 0 | AU58: U614 | AV58: =$D$122 -> -4.625 | AW58: =$D$123 -> -4.625 | AX58: 0.1485460069
A59: =IF(ModelNo=B59,2,"") ->  | B59: 0104 | C59: Glass Height | D59: =Frame_Height-1.9375 -> -1.9375 | F59: 57 | G59: 0523 | H59: Swing & Clean 3 Lite Slider (1/4-1/2-1/4) | I59: 0 | J59: 0 | M59: 48 | N59: 20 | O59: 84 | P59: 60 | Q59: 144 | R59: Standard (1/4-1/2-1/4) | V59: Half | W59: Full | AH59: Double Strength (3 mm) | AI59: Triple Strength (5 mm) | AJ59: Triple IG Single Strength | AK59: Triple IG Double Strength | AL59: Laminated | AT59: 0 | AU59: 0951 | AV59: =$D$76 -> -4.625 | AW59: =$D$77 -> -4.625 | AX59: 0.1485460069
A60: =IF(ModelNo=B60,3,"") ->  | B60: 0104 | C60: Glass Area (sq.ft.) | D60: =(D58*D59)/144 -> 0.0260687934 | F60: 58 | G60: 0529 | H60: Swing & Clean 3 Lite Slider Equal Lite | I60: 0 | J60: 0 | M60: 48 | N60: 20 | O60: 84 | P60: 60 | Q60: 144 | R60: Standard (1/3-1/3-1/3) | V60: Half | W60: Full | AH60: Double Strength (3 mm) | AI60: Triple Strength (5 mm) | AJ60: Triple IG Single Strength | AK60: Triple IG Double Strength | AL60: Laminated | AT60: 0 | AU60: 0952 | AV60: =MAX($D$86,$D$88) -> -4.625 | AW60: =MAX($D$87,$D$89) -> -4.375 | AX60: 0.1405164931
A61: =IF(ModelNo=B61,1,"") ->  | B61: 0109 | C61: Sash Width | D61: =TRUNC(((Frame_Width/3)+0.4375)*16+0.5)/16 -> 0.4375 | F61: 59 | G61: 0601 | H61: 6000 Series Double Hung | I61: 0 | J61: 0 | M61: 15.25 | N61: 25.875 | O61: 52 | P61: 84 | Q61: 136 | R61: Standard | S61: Oriel (2/3 - 1/3) | T61: Cottage (1/3 - 2/3) | U61: Custom | V61: Half | W61: Full | X61: Locking | AH61: Double Strength (3 mm) | AI61: Triple Strength (5 mm) | AJ61: Triple IG Single Strength | AK61: Triple IG Double Strength | AL61: Laminated | AT61: 0 | AU61: 0953 | AV61: =MAX($D$97,$D$99) -> -4.625 | AW61: =MAX($D$98,$D$100) -> -4.375 | AX61: 0.1405164931
A62: =IF(ModelNo=B62,2,"") ->  | B62: 0109 | C62: Sash Height | D62: =Frame_Height-2.25 -> -2.25 | F62: 60 | G62: 0602 | H62: 6000 Series 2 Lite Slider | I62: 0 | J62: 0 | M62: 25.25 | N62: 16.625 | O62: 84 | P62: 68 | Q62: 148 | R62: Standard | V62: Half | W62: Full | AH62: Double Strength (3 mm) | AI62: Triple Strength (5 mm) | AJ62: Triple IG Single Strength | AK62: Triple IG Double Strength | AL62: Laminated | AT62: 0 | AU62: 0954 | AV62: =MAX($D$108,$D$110) -> -4.625 | AW62: =MAX($D$109,$D$111) -> -4.375 | AX62: 0.1405164931
A63: =IF(ModelNo=B63,3,"") ->  | B63: 0109 | C63: Sash Glass Width | D63: =(TRUNC((Frame_Width/3+0.1875)*16+0.5)/16)-1.4375 -> -1.25 | F63: 61 | G63: 0603 | H63: 6000 Series 3 Lite Slider (1/4-1/2-1/4) | I63: 0 | J63: 0 | M63: 44.5 | N63: 16.625 | O63: 120 | P63: 68 | Q63: 188 | R63: Standard (1/4-1/2-1/4) | V63: Half | W63: Full | AH63: Double Strength (3 mm) | AI63: Triple Strength (5 mm) | AJ63: Triple IG Single Strength | AK63: Triple IG Double Strength | AL63: Laminated | AT63: 0 | AU63: 0955 | AV63: =$D$117 -> -4.625 | AW63: =$D$118 -> -4.375 | AX63: 0.1405164931
A64: =IF(ModelNo=B64,4,"") ->  | B64: 0109 | C64: Sash Glass Height | D64: =Frame_Height-3.9375 -> -3.9375 | F64: 62 | G64: 0605 | H64: 6000 Series Dead Lite | I64: 0 | J64: 0 | M64: 14 | N64: 14 | O64: 72 | P64: 60 | Q64: 118 | R64: Standard | AH64: Double Strength (3 mm) | AI64: Triple Strength (5 mm) | AL64: Laminated | AT64: 0 | AU64: 0970 | AV64: =$D$122 -> -4.625 | AW64: =$D$123 -> -4.625 | AX64: 0.1485460069
A65: =IF(ModelNo=B65,5,"") ->  | B65: 0109 | C65: Fixed Glass Width | D65: =(Frame_Width-2*(TRUNC((Frame_Width/3+0.1875)*16+0.5)/16))-1.9375 -> -2.3125 | F65: 63 | G65: 0609 | H65: 6000 Series 3 Lite Slider Equal Lite | I65: 0 | J65: 0 | M65: 35.5 | N65: 16.625 | O65: 112 | P65: 68 | Q65: 184 | R65: Standard (1/3-1/3-1/3) | V65: Half | W65: Full | AH65: Double Strength (3 mm) | AI65: Triple Strength (5 mm) | AJ65: Triple IG Single Strength | AK65: Triple IG Double Strength | AL65: Laminated | AT65: 0 | AU65: B970 | AV65: =$D$122 -> -4.625 | AW65: =$D$123 -> -4.625 | AX65: 0.1485460069
A66: =IF(ModelNo=B66,6,"") ->  | B66: 0109 | C66: Fixed Glass Height | D66: =Frame_Height-2 -> -2 | F66: 64 | G66: 0614 | H66: 6000 Series Picture Window | I66: 0 | J66: 0 | M66: 13 | N66: 13 | O66: 96 | P66: 96 | Q66: 154 | R66: Standard | AH66: Double Strength (3 mm) | AI66: Triple Strength (5 mm) | AJ66: Triple IG Single Strength | AK66: Triple IG Double Strength | AL66: Laminated | AT66: 0 | AU66: 0971 | AV66: =$D$127 -> -4.625 | AW66: =$D$128 -> -4.625 | AX66: 0.1485460069
A67: =IF(ModelNo=B67,7,"") ->  | B67: 0109 | C67: Astragal Length | D67: =TRUNC((Frame_Height-1.218)*16+0.5)/16 -> -1.125 | F67: 65 | G67: 0700 | H67: 0700 Series Single Hung | I67: 0 | J67: 0 | M67: 14.375 | N67: 23.75 | O67: 52 | P67: 72 | Q67: 120 | R67: Standard | S67: Oriel (2/3 - 1/3) | T67: Cottage (1/3 - 2/3) | U67: Custom | V67: Half | AG67: Single Strength (2.5 mm) | AH67: Double Strength (3 mm) | AI67: Triple Strength (5 mm) | AL67: Laminated | AT67: 0 | AU67: B971 | AV67: =$D$127 -> -4.625 | AW67: =$D$128 -> -4.625 | AX67: 0.1485460069
A68: =IF(ModelNo=B68,8,"") ->  | B68: 0109 | C68: Roller Track Length | D68: =Frame_Width-1 -> -1 | F68: 66 | G68: 07HP | H68: 0700 Series Single Hung High Performance | I68: 0 | J68: 0 | M68: 14.375 | N68: 23.75 | O68: 52 | P68: 77 | Q68: 129 | R68: Standard | S68: Oriel (2/3 - 1/3) | T68: Cottage (1/3 - 2/3) | U68: Custom | V68: Half | AG68: Single Strength (2.5 mm) | AH68: Double Strength (3 mm) | AI68: Triple Strength (5 mm) | AL68: Laminated | AO68: =IF(RO=2,"<< Exact Size Only","") ->  | AT68: 0 | AU68: 0972 | AV68: =$D$139 -> -4.375 | AW68: =$D$140 -> -4.625 | AX68: 0.1405164931
A69: =IF(ModelNo=B69,9,"") ->  | B69: 0109 | C69: Screen Width | D69: =TRUNC(((Frame_Width/3)-0.875)*16+0.5)/16 -> -0.8125 | F69: 67 | G69: 0702 | H69: 0700 Series 2 Lite Slider | I69: 0 | J69: 0 | M69: 23.5 | N69: 14.25 | O69: 72 | P69: 60 | Q69: 132 | R69: Standard | V69: Half | AG69: Single Strength (2.5 mm) | AH69: Double Strength (3 mm) | AI69: Triple Strength (5 mm) | AL69: Laminated | AT69: 0 | AU69: 0973 | AV69: =MAX($D$153,$D$155) -> -4.125 | AW69: =MAX($D$154,$D$156) -> -4.625 | AX69: 0.1324869792
A70: =IF(ModelNo=B70,10,"") ->  | B70: 0109 | C70: Screen Height | D70: =Frame_Height-1.75 -> -1.75 | F70: 68 | G70: 0703 | H70: 0700 Series 3 Lite Slider (1/4-1/2-1/4) | I70: 0 | J70: 0 | M70: 48 | N70: 14.25 | O70: 108 | P70: 60 | Q70: 168 | R70: Standard (1/4-1/2-1/4) | V70: Half | AG70: Single Strength (2.5 mm) | AH70: Double Strength (3 mm) | AI70: Triple Strength (5 mm) | AL70: Laminated | AT70: 0 | AU70: 0974 | AV70: =MAX($D$185,$D$187) -> -4.25 | AW70: =MAX($D$186,$D$188) -> -4.625 | AX70: 0.1365017361
A71: =IF(ModelNo=B71,11,"") ->  | B71: 0109 | C71: Egress Opening Width | D71: =TRUNC(((Frame_Width/3)-4.3125)*16+0.5)/16 -> -4.25 | F71: 69 | G71: 0704 | H71: 0700 Series Picture Window | I71: 0 | J71: 0 | M71: 12 | N71: 12 | O71: 96 | P71: 96 | Q71: 154 | R71: Standard | AH71: Double Strength (3 mm) | AI71: Triple Strength (5 mm) | AL71: Laminated | AT71: 0 | AU71: 0975 | AV71: =MAX($D$201,$D$203) -> -4.1875 | AW71: =MAX($D$202,$D$204) -> -4.625 | AX71: 0.1344943576
A72: =IF(ModelNo=B72,12,"") ->  | B72: 0109 | C72: Egress Opening Height | D72: =TRUNC((Frame_Height-3.074)*16+0.5)/16 -> -3 | F72: 70 | G72: 0709 | H72: 0700 Series 3 Lite Slider Equal Lite | I72: 0 | J72: 0 | M72: 34.75 | N72: 14.25 | O72: 108 | P72: 60 | Q72: 168 | R72: Standard (1/3-1/3-1/3) | V72: Half | AG72: Single Strength (2.5 mm) | AH72: Double Strength (3 mm) | AI72: Triple Strength (5 mm) | AL72: Laminated | AT72: 0 | AU72: 0979 | AV72: =MAX($D$169,$D$171) -> -4.25 | AW72: =MAX($D$170,$D$172) -> -4.625 | AX72: 0.1365017361
A73: =IF(ModelNo=B73,13,"") ->  | B73: 0109 | C73: Egress Opening Area (sq.ft.) | D73: =(D71*D72)/144 -> 0.08854166667 | F73: 71 | G73: 0901 | H73: 1000 Series Double Hung | I73: 0 | J73: 0 | M73: 15 | N73: 22 | O73: 48 | P73: 84 | Q73: 132 | R73: Standard | S73: Oriel (2/3 - 1/3) | T73: Cottage (1/3 - 2/3) | U73: Custom | V73: Half | W73: Full | X73: Locking | AH73: Double Strength (3 mm) | AI73: Triple Strength (5 mm) | AL73: Laminated | AT73: 0 | AU73: 6102 | AV73: =$D$737 -> -3.75 | AW73: =$D$738 -> -8.9375 | AX73: 0.2327473958
A74: =IF(OR(ModelNo="0151",ModelNo="0951",ModelNo="9051",ModelNo="8051"),1,"") ->  | B74: 0151 | C74: Sash Width | D74: =Frame_Width-1.625 -> -1.625 | F74: 72 | G74: 0902 | H74: 1000 Series 2 Lite Slider | I74: 0 | J74: 0 | M74: 21.5 | N74: 15.5 | O74: 84 | P74: 66 | Q74: 148 | R74: Standard | V74: Half | W74: Full | AH74: Double Strength (3 mm) | AI74: Triple Strength (5 mm) | AL74: Laminated | AT74: 0 | AU74: 6103 | AV74: =$D$749 -> -3.5625 | AW74: =$D$750 -> -8.9375 | AX74: 0.221110026
A75: =IF(OR(ModelNo="0151",ModelNo="0951",ModelNo="9051",ModelNo="8051"),2,"") ->  | B75: 0151 | C75: Sash Height | D75: =Frame_Height-1.625 -> -1.625 | F75: 73 | G75: 0903 | H75: 1000 Series 3 Lite Slider (1/4-1/2-1/4) | I75: 0 | J75: 0 | M75: 39.75 | N75: 15.5 | O75: 108 | P75: 66 | Q75: 164 | R75: Standard (1/4-1/2-1/4) | V75: Half | W75: Full | AH75: Double Strength (3 mm) | AI75: Triple Strength (5 mm) | AL75: Laminated | AT75: 0 | AU75: 6104 | AV75: =$D$763 -> -3.25 | AW75: =$D$764 -> -8.9375 | AX75: 0.2017144097
A76: =IF(OR(ModelNo="0151",ModelNo="0951",ModelNo="9051",ModelNo="8051"),3,"") ->  | B76: 0151 | C76: Sash Glass Width | D76: =Frame_Width-4.625 -> -4.625 | F76: 74 | G76: 09C7 | H76: Single Vent Hopper | I76: 0 | J76: 0 | M76: 12 | N76: 12 | O76: 36 | P76: 36 | Q76: 55 | R76: Standard | W76: Full | AH76: Double Strength (3 mm) | AI76: Triple Strength (5 mm) | AL76: Laminated | AT76: 0 | AU76: 6105 | AV76: =$D$737 -> -3.75 | AW76: =$D$738 -> -8.9375 | AX76: 0.2327473958
A77: =IF(OR(ModelNo="0151",ModelNo="0951",ModelNo="9051",ModelNo="8051"),4,"") ->  | B77: 0151 | C77: Sash Glass Height | D77: =Frame_Height-4.625 -> -4.625 | F77: 75 | G77: 0909 | H77: 1000 Series 3 Lite Slider Equal Lite | I77: 0 | J77: 0 | M77: 30.25 | N77: 15.5 | O77: 120 | P77: 66 | Q77: 164 | R77: Standard (1/3-1/3-1/3) | V77: Half | W77: Full | AH77: Double Strength (3 mm) | AI77: Triple Strength (5 mm) | AL77: Laminated | AT77: 0 | AU77: 6106 | AV77: =$D$737 -> -3.75 | AW77: =$D$738 -> -8.9375 | AX77: 0.2327473958
A78: =IF(OR(ModelNo="0151",ModelNo="0951",ModelNo="9051",ModelNo="8051"),5,"") ->  | B78: 0151 | C78: Glass Area (sq.ft.) | D78: =(D76*D77)/144 -> 0.1485460069 | F78: 76 | G78: 0914 | H78: 1000 Series Picture Window | I78: 0 | J78: 0 | M78: 14.5 | N78: 13 | O78: 96 | P78: 84 | Q78: 154 | R78: Standard | AH78: Double Strength (3 mm) | AI78: Triple Strength (5 mm) | AL78: Laminated | AT78: 0 | AU78: 6108 | AV78: =$D$737 -> -3.75 | AW78: =$D$738 -> -8.9375 | AX78: 0.2327473958
A79: =IF(OR(ModelNo="0151",ModelNo="0951",ModelNo="9051",ModelNo="8051"),6,"") ->  | B79: 0151 | C79: Screen Width | D79: =Frame_Width-4 -> -4 | F79: 77 | G79: 09L1 | H79: 1000 Lite Series Double Hung | I79: 0 | J79: 0 | M79: 15 | N79: 22 | O79: 44 | P79: 77 | Q79: 121 | R79: Standard | S79: Oriel (2/3 - 1/3) | T79: Cottage (1/3 - 2/3) | U79: Custom | V79: Half | W79: Full | X79: Locking | AG79: Single Strength (2.5 mm) | AH79: Double Strength (3 mm) | AI79: Triple Strength (5 mm) | AL79: Laminated | AT79: 0 | AU79: 6109 | AV79: =$D$749 -> -3.5625 | AW79: =$D$750 -> -8.9375 | AX79: 0.221110026
A80: =IF(OR(ModelNo="0151",ModelNo="0951",ModelNo="9051",ModelNo="8051"),7,"") ->  | B80: 0151 | C80: Screen Height | D80: =Frame_Height-4 -> -4 | F80: 78 | G80: 09L2 | H80: 1000 Lite Series 2 Lite Slider | I80: 0 | J80: 0 | M80: 21.5 | N80: 15.5 | O80: 72 | P80: 56 | Q80: 128 | R80: Standard | V80: Half | W80: Full | AG80: Single Strength (2.5 mm) | AH80: Double Strength (3 mm) | AI80: Triple Strength (5 mm) | AL80: Laminated | AT80: 0 | AU80: 6112 | AV80: =$D$763 -> -3.25 | AW80: =$D$764 -> -8.9375 | AX80: 0.2017144097
A81: =IF(OR(ModelNo="0151",ModelNo="0951",ModelNo="9051",ModelNo="8051"),8,"") ->  | B81: 0151 | C81: Awning Does not Meet Egress | F81: 79 | G81: 09L3 | H81: 1000 Lite Series 3 Lite Slider (1/4-1/2-1/4) | I81: 0 | J81: 0 | M81: 39.75 | N81: 15.5 | O81: 108 | P81: 56 | Q81: 164 | R81: Standard (1/4-1/2-1/4) | V81: Half | W81: Full | AG81: Single Strength (2.5 mm) | AH81: Double Strength (3 mm) | AI81: Triple Strength (5 mm) | AL81: Laminated | AT81: 0 | AU81: 6122 | AV81: =$D$749 -> -3.5625 | AW81: =$D$750 -> -8.9375 | AX81: 0.221110026
A82: =IF(OR(ModelNo="0152",ModelNo="0952",ModelNo="9052",ModelNo="8052"),1,"") ->  | B82: 0152 | C82: Operating Sash Width | D82: =Frame_Width-1.625 -> -1.625 | F82: 80 | G82: 09L4 | H82: 1000 Lite Series Picture Window | I82: 0 | J82: 0 | M82: 14.5 | N82: 13 | O82: 96 | P82: 84 | Q82: 154 | R82: Standard | AH82: Double Strength (3 mm) | AI82: Triple Strength (5 mm) | AL82: Laminated | AT82: 0 | AU82: 6175 | AV82: =$D$737 -> -3.75 | AW82: =$D$738 -> -8.9375 | AX82: 0.2327473958
A83: =IF(OR(ModelNo="0152",ModelNo="0952",ModelNo="9052",ModelNo="8052"),2,"") ->  | B83: 0152 | C83: Operating Sash Height | D83: =(Frame_Height/2)-1.375 -> -1.375 | F83: 81 | G83: 09L9 | H83: 1000 Lite Series 3 Lite Slider Equal Lite | I83: 0 | J83: 0 | M83: 30.25 | N83: 15.5 | O83: 108 | P83: 56 | Q83: 164 | R83: Standard (1/3-1/3-1/3) | V83: Half | W83: Full | AG83: Single Strength (2.5 mm) | AH83: Double Strength (3 mm) | AI83: Triple Strength (5 mm) | AL83: Laminated | AT83: 0 | AU83: 6402 | AV83: =$D$1087 -> -5.125 | AW83: =$D$1088 -> -8.625 | AX83: 0.3069661458
A84: =IF(OR(ModelNo="0152",ModelNo="0952",ModelNo="9052",ModelNo="8052"),3,"") ->  | B84: 0152 | C84: Fixed Sash Width | D84: =Frame_Width-1.625 -> -1.625 | F84: 82 | G84: 0951 | H84: Single Vent Awning | I84: 0 | J84: 0 | M84: 19 | N84: 16 | O84: 48 | P84: 48 | Q84: 96 | R84: Standard | W84: Full | AH84: Double Strength (3 mm) | AI84: Triple Strength (5 mm) | AJ84: Triple IG Single Strength | AK84: Triple IG Double Strength | AL84: Laminated | AT84: 0 | AU84: 6403 | AV84: =$D$1100 -> -5 | AW84: =$D$1101 -> -8.625 | AX84: 0.2994791667
A85: =IF(OR(ModelNo="0152",ModelNo="0952",ModelNo="9052",ModelNo="8052"),4,"") ->  | B85: 0152 | C85: Fixed Sash Height | D85: =(Frame_Height/2)-1.375 -> -1.375 | F85: 83 | G85: 0952 | H85: Awning W/ Transom Equal Lite | I85: 0 | J85: 0 | M85: 19 | N85: 32 | O85: 48 | P85: 96 | Q85: 144 | R85: Standard | V85: Half | AH85: Double Strength (3 mm) | AI85: Triple Strength (5 mm) | AJ85: Triple IG Single Strength | AK85: Triple IG Double Strength | AL85: Laminated | AT85: 0 | AU85: 6404 | AV85: =$D$1113 -> -4.6875 | AW85: =$D$1114 -> -8.625 | AX85: 0.2807617188
A86: =IF(OR(ModelNo="0152",ModelNo="0952",ModelNo="9052",ModelNo="8052"),5,"") ->  | B86: 0152 | C86: Operating Sash Glass Width | D86: =Frame_Width-4.625 -> -4.625 | F86: 84 | G86: 0953 | H86: Awning W/ Transom (1/3-2/3) | I86: 0 | J86: 0 | M86: 19 | N86: 48 | O86: 48 | P86: 96 | Q86: 144 | R86: Standard | V86: Half | AH86: Double Strength (3 mm) | AI86: Triple Strength (5 mm) | AJ86: Triple IG Single Strength | AK86: Triple IG Double Strength | AL86: Laminated | AT86: 0 | AU86: 6405 | AV86: =$D$1087 -> -5.125 | AW86: =$D$1088 -> -8.625 | AX86: 0.3069661458
A87: =IF(OR(ModelNo="0152",ModelNo="0952",ModelNo="9052",ModelNo="8052"),6,"") ->  | B87: 0152 | C87: Operating Sash Glass Height | D87: =Frame_Height/2-4.375 -> -4.375 | F87: 85 | G87: 0954 | H87: Single Vent Awning W/ Bottom Transom | I87: 0 | J87: 0 | M87: 19 | N87: 32 | O87: 48 | P87: 96 | Q87: 144 | R87: Standard | V87: Half | AH87: Double Strength (3 mm) | AI87: Triple Strength (5 mm) | AJ87: Triple IG Single Strength | AK87: Triple IG Double Strength | AL87: Laminated | AT87: 0 | AU87: 6406 | AV87: =$D$1087 -> -5.125 | AW87: =$D$1088 -> -8.625 | AX87: 0.3069661458
A88: =IF(OR(ModelNo="0152",ModelNo="0952",ModelNo="9052",ModelNo="8052"),7,"") ->  | B88: 0152 | C88: Fixed Sash Glass Width | D88: =Frame_Width-4.625 -> -4.625 | F88: 86 | G88: 0955 | H88: Dual Vent Awning Equal Lite | I88: 0 | J88: 0 | M88: 19 | N88: 32 | O88: 48 | P88: 96 | Q88: 144 | R88: Standard | V88: Half | AH88: Double Strength (3 mm) | AI88: Triple Strength (5 mm) | AJ88: Triple IG Single Strength | AK88: Triple IG Double Strength | AL88: Laminated | AT88: =IF(ModelNo=AU88,ModelNo,0) -> 0 | AU88: 6408 | AV88: =$D$1087 -> -5.125 | AW88: =$D$1088 -> -8.625 | AX88: =(AV88*AW88)/144 -> 0.3069661458
A89: =IF(OR(ModelNo="0152",ModelNo="0952",ModelNo="9052",ModelNo="8052"),8,"") ->  | B89: 0152 | C89: Fixed Sash Glass Height | D89: =Frame_Height/2-4.375 -> -4.375 | F89: 87 | G89: 0970 | H89: Casement Picture Window | I89: 0 | J89: 0 | M89: 13 | N89: 13 | O89: 96 | P89: 96 | Q89: 154 | R89: Standard | AH89: Double Strength (3 mm) | AI89: Triple Strength (5 mm) | AJ89: Triple IG Single Strength | AK89: Triple IG Double Strength | AL89: Laminated | AT89: =IF(ModelNo=AU89,ModelNo,0) -> 0 | AU89: 6409 | AV89: =$D$1100 -> -5 | AW89: =$D$1101 -> -8.625 | AX89: =(AV89*AW89)/144 -> 0.2994791667
A90: =IF(OR(ModelNo="0152",ModelNo="0952",ModelNo="9052",ModelNo="8052"),9,"") ->  | B90: 0152 | C90: Screen Width | D90: =Frame_Width-4 -> -4 | F90: 88 | G90: 0971 | H90: Single Vent Casement | I90: 0 | J90: 0 | M90: 16 | N90: 19 | O90: 36 | P90: 78 | Q90: 114 | R90: Standard | W90: Full | AH90: Double Strength (3 mm) | AI90: Triple Strength (5 mm) | AJ90: Triple IG Single Strength | AK90: Triple IG Double Strength | AL90: Laminated | AO90: =IF(RO=2,"<< Exact Size Only","") ->  | AT90: =IF(ModelNo=AU90,ModelNo,0) -> 0 | AU90: 6412 | AV90: =$D$1113 -> -4.6875 | AW90: =$D$1114 -> -8.625 | AX90: =(AV90*AW90)/144 -> 0.2807617188
A91: =IF(OR(ModelNo="0152",ModelNo="0952",ModelNo="9052",ModelNo="8052"),10,"") ->  | B91: 0152 | C91: Screen Height | D91: =(Frame_Height/2)-3.6875 -> -3.6875 | F91: 89 | G91: 0972 | H91: Dual Vent Casement | I91: 0 | J91: 0 | M91: 32 | N91: 19 | O91: 72 | P91: 78 | Q91: 150 | R91: Standard | V91: Half | AH91: Double Strength (3 mm) | AI91: Triple Strength (5 mm) | AJ91: Triple IG Single Strength | AK91: Triple IG Double Strength | AL91: Laminated | AT91: =IF(ModelNo=AU91,ModelNo,0) -> 0 | AU91: 6422 | AV91: =$D$1100 -> -5 | AW91: =$D$1101 -> -8.625 | AX91: =(AV91*AW91)/144 -> 0.2994791667
A92: =IF(OR(ModelNo="0152",ModelNo="0952",ModelNo="9052",ModelNo="8052"),11,"") ->  | B92: 0152 | C92: Awning Does not Meet Egress | F92: 90 | G92: 0973 | H92: Dual Vent 3 Lite Casement (1/4-1/2-1/4) | I92: 0 | J92: 0 | M92: 64 | N92: 19 | O92: 120 | P92: 78 | Q92: 198 | R92: Standard (1/4-1/2-1/4) | V92: Half | AH92: Double Strength (3 mm) | AI92: Triple Strength (5 mm) | AJ92: Triple IG Single Strength | AK92: Triple IG Double Strength | AL92: Laminated | AT92: =IF(ModelNo=AU92,ModelNo,0) -> 0 | AU92: 6475 | AV92: =$D$1087 -> -5.125 | AW92: =$D$1088 -> -8.625 | AX92: =(AV92*AW92)/144 -> 0.3069661458
A93: =IF(OR(ModelNo="0153",ModelNo="0953",ModelNo="9053",ModelNo="8053"),1,"") ->  | B93: 0153 | C93: Operating Sash Width | D93: =Frame_Width-1.625 -> -1.625 | F93: 91 | G93: 0974 | H93: 4 Lite Casement | I93: 0 | J93: 0 | M93: 64 | N93: 19 | O93: 120 | P93: 78 | Q93: 198 | R93: Standard | V93: Half | AH93: Double Strength (3 mm) | AI93: Triple Strength (5 mm) | AJ93: Triple IG Single Strength | AK93: Triple IG Double Strength | AL93: Laminated | AU93: =IF(ISERROR(VLOOKUP(ModelNo,AT24:AU92,2,FALSE)),"",ModelNo) ->  | AV93: =IF(ISERROR(VLOOKUP(ModelNo,$AU$24:$AY$92,2,FALSE)),0,VLOOKUP(ModelNo,$AU$24:$AY$92,2,FALSE)) -> 0 | AW93: =IF(ISERROR(VLOOKUP(ModelNo,$AU$24:$AY$92,3,FALSE)),0,VLOOKUP(ModelNo,$AU$24:$AY$92,3,FALSE)) -> 0 | AX93: =IF(ISERROR(VLOOKUP(ModelNo,$AU$24:$AY$92,4,FALSE)),0,VLOOKUP(ModelNo,$AU$24:$AY$92,4,FALSE)) -> 0 | AY93: =IF(ISERROR(VLOOKUP(ModelNo,$AU$24:$AY$92,5,FALSE)),0,VLOOKUP(ModelNo,$AU$24:$AY$92,5,FALSE)) -> 0
A94: =IF(OR(ModelNo="0153",ModelNo="0953",ModelNo="9053",ModelNo="8053"),2,"") ->  | B94: 0153 | C94: Operating Sash Height | D94: =(Frame_Height/3)-1.375 -> -1.375 | F94: 92 | G94: 0975 | H94: 5 Lite Casement | I94: 0 | J94: 0 | M94: 80 | N94: 19 | O94: 120 | P94: 78 | Q94: 198 | R94: Standard | V94: Half | AH94: Double Strength (3 mm) | AI94: Triple Strength (5 mm) | AJ94: Triple IG Single Strength | AK94: Triple IG Double Strength | AL94: Laminated
A95: =IF(OR(ModelNo="0153",ModelNo="0953",ModelNo="9053",ModelNo="8053"),3,"") ->  | B95: 0153 | C95: Fixed Sash Width | D95: =Frame_Width-1.625 -> -1.625 | F95: 93 | G95: 0979 | H95: Dual Vent 3 Lite Casement (Equal Lite) | I95: 0 | J95: 0 | M95: 48 | N95: 19 | O95: 108 | P95: 78 | Q95: 186 | R95: Standard (1/3-1/3-1/3) | V95: Half | AH95: Double Strength (3 mm) | AI95: Triple Strength (5 mm) | AJ95: Triple IG Single Strength | AK95: Triple IG Double Strength | AL95: Laminated
A96: =IF(OR(ModelNo="0153",ModelNo="0953",ModelNo="9053",ModelNo="8053"),4,"") ->  | B96: 0153 | C96: Fixed Sash Height | D96: =(2*(Frame_Height/3)-1.375) -> -1.375 | F96: 94 | G96: 1105 | H96: New Const. 4 Foot Patio Door | I96: 0.625 | J96: 0.5 | K96: 60 | L96: 80 | M96: 59.375 | N96: 79.5 | O96: 59.375 | P96: 79.5 | Q96: 140 | R96: Standard | V96: Half | AH96: Double Strength (3 mm) | AI96: Triple Strength (5 mm) | AJ96: Triple IG Single Strength | AK96: Triple IG Double Strength | AL96: Laminated | AO96: =IF(RO=1,"<< Rough Opening Only","") -> << Rough Opening Only
A97: =IF(OR(ModelNo="0153",ModelNo="0953",ModelNo="9053",ModelNo="8053"),5,"") ->  | B97: 0153 | C97: Operating Sash Glass Width | D97: =Frame_Width-4.625 -> -4.625 | F97: 95 | G97: 1106 | H97: New Const. Six Foot Patio Door | I97: 0.625 | J97: 0.5 | K97: 72 | L97: 80 | M97: 71.375 | N97: 79.5 | O97: 71.375 | P97: 95.5 | Q97: 168 | R97: Standard | V97: Half | AH97: Double Strength (3 mm) | AI97: Triple Strength (5 mm) | AJ97: Triple IG Single Strength | AK97: Triple IG Double Strength | AL97: Laminated | AO97: << Rough Opening Only
A98: =IF(OR(ModelNo="0153",ModelNo="0953",ModelNo="9053",ModelNo="8053"),6,"") ->  | B98: 0153 | C98: Operating Sash Glass Height | D98: =Frame_Height/3-4.375 -> -4.375 | F98: 96 | G98: 1108 | H98: New Const. Eight Foot Patio Door | I98: 0.625 | J98: 0.5 | K98: 96 | L98: 80 | M98: 95.375 | N98: 79.5 | O98: 95.375 | P98: 79.5 | Q98: 176 | R98: Standard | V98: Half | AH98: Double Strength (3 mm) | AI98: Triple Strength (5 mm) | AJ98: Triple IG Single Strength | AK98: Triple IG Double Strength | AL98: Laminated | AO98: << Rough Opening Only
A99: =IF(OR(ModelNo="0153",ModelNo="0953",ModelNo="9053",ModelNo="8053"),7,"") ->  | B99: 0153 | C99: Fixed Sash Glass Width | D99: =Frame_Width-4.625 -> -4.625 | F99: 97 | G99: 1109 | H99: New Const. Nine Foot Patio Door | I99: 0.625 | J99: 0.5 | K99: 108 | L99: 80 | M99: 107.375 | N99: 79.5 | O99: 107.375 | P99: 95.5 | Q99: 204 | R99: Standard | V99: Half | AH99: Double Strength (3 mm) | AI99: Triple Strength (5 mm) | AJ99: Triple IG Single Strength | AK99: Triple IG Double Strength | AL99: Laminated | AO99: << Rough Opening Only
A100: =IF(OR(ModelNo="0153",ModelNo="0953",ModelNo="9053",ModelNo="8053"),8,"") ->  | B100: 0153 | C100: Fixed Sash Glass Height | D100: =2*(Frame_Height/3)-4.375 -> -4.375 | F100: 98 | G100: 1176 | H100: New Const. 6.5 Foot Patio Door | I100: 0.625 | J100: 0.5 | K100: 76 | L100: 80 | M100: 75.375 | N100: 79.5 | O100: 75.375 | P100: 79.5 | Q100: 156 | R100: Standard | V100: Half | AH100: Double Strength (3 mm) | AI100: Triple Strength (5 mm) | AJ100: Triple IG Single Strength | AK100: Triple IG Double Strength | AL100: Laminated | AO100: << Rough Opening Only
A101: =IF(OR(ModelNo="0153",ModelNo="0953",ModelNo="9053",ModelNo="8053"),9,"") ->  | B101: 0153 | C101: Screen Width | D101: =Frame_Width-4 -> -4 | F101: 99 | G101: 11C5 | H101: New Const. C. Class 4 Foot Patio Door | I101: 0.5 | J101: 0.5 | K101: 60 | L101: 80 | M101: 59.5 | N101: 79.5 | O101: 60 | P101: 80 | Q101: 140 | R101: Standard | V101: Half | AH101: Double Strength (3 mm) | AI101: Triple Strength (5 mm) | AJ101: Triple IG Single Strength | AK101: Triple IG Double Strength | AL101: Laminated | AO101: << Rough Opening Only
A102: =IF(OR(ModelNo="0153",ModelNo="0953",ModelNo="9053",ModelNo="8053"),10,"") ->  | B102: 0153 | C102: Screen Height | D102: =(Frame_Height/3)-3.6875 -> -3.6875 | F102: 100 | G102: 11C6 | H102: New Const. C. Class Six Foot Patio Door | I102: 0.5 | J102: 0.5 | K102: 72 | L102: 80 | M102: 71.5 | N102: 79.5 | O102: 72 | P102: 80 | Q102: 152 | R102: Standard | V102: Half | AH102: Double Strength (3 mm) | AI102: Triple Strength (5 mm) | AJ102: Triple IG Single Strength | AK102: Triple IG Double Strength | AL102: Laminated | AO102: << Rough Opening Only
A103: =IF(OR(ModelNo="0153",ModelNo="0953",ModelNo="9053",ModelNo="8053"),11,"") ->  | B103: 0153 | C103: Awning Does not Meet Egress | F103: 101 | G103: 11C8 | H103: New Const. C. Class Eight Foot Patio Door | I103: 0.5 | J103: 0.5 | K103: 96 | L103: 80 | M103: 95.5 | N103: 79.5 | O103: 96 | P103: 80 | Q103: 176 | R103: Standard | V103: Half | AH103: Double Strength (3 mm) | AI103: Triple Strength (5 mm) | AJ103: Triple IG Single Strength | AK103: Triple IG Double Strength | AL103: Laminated | AO103: << Rough Opening Only
A104: =IF(OR(ModelNo="0154",ModelNo="0954",ModelNo="9054",ModelNo="8054"),1,"") ->  | B104: 0154 | C104: Operating Sash Width | D104: =Frame_Width-1.625 -> -1.625 | F104: 102 | G104: 11C9 | H104: New Const. C. Class Nine Foot Patio Door | I104: 0.5 | J104: 0.5 | K104: 108 | L104: 80 | M104: 107.5 | N104: 79.5 | O104: 108 | P104: 80 | Q104: 188 | R104: Standard | V104: Half | AH104: Double Strength (3 mm) | AI104: Triple Strength (5 mm) | AJ104: Triple IG Single Strength | AK104: Triple IG Double Strength | AL104: Laminated | AO104: << Rough Opening Only
A105: =IF(OR(ModelNo="0154",ModelNo="0954",ModelNo="9054",ModelNo="8054"),2,"") ->  | B105: 0154 | C105: Operating Sash Height | D105: =(Frame_Height/2)-1.375 -> -1.375 | F105: 103 | G105: 11i5 | H105: Coastal Impact Five Foot New Const. Patio Door | I105: 0.5 | J105: 0.5 | K105: 60 | L105: 80 | M105: 59.5 | N105: 79.5 | O105: 60 | P105: 80 | Q105: 140 | R105: Standard | V105: Half | AH105: Double Strength (3 mm) | AI105: Triple Strength (5 mm) | AJ105: Triple IG Single Strength | AK105: Triple IG Double Strength | AL105: Laminated | AO105: << Rough Opening Only
A106: =IF(OR(ModelNo="0154",ModelNo="0954",ModelNo="9054",ModelNo="8054"),3,"") ->  | B106: 0154 | C106: Fixed Sash Width | D106: =Frame_Width-1.625 -> -1.625 | F106: 104 | G106: 11i6 | H106: Coastal Impact Six Foot New Const. Patio Door | I106: 0.5 | J106: 0.5 | K106: 72 | L106: 80 | M106: 71.5 | N106: 79.5 | O106: 72 | P106: 80 | Q106: 152 | R106: Standard | V106: Half | AH106: Double Strength (3 mm) | AI106: Triple Strength (5 mm) | AJ106: Triple IG Single Strength | AK106: Triple IG Double Strength | AL106: Laminated | AO106: << Rough Opening Only
A107: =IF(OR(ModelNo="0154",ModelNo="0954",ModelNo="9054",ModelNo="8054"),4,"") ->  | B107: 0154 | C107: Fixed Sash Height | D107: =(Frame_Height/2)-1.375 -> -1.375 | F107: 105 | G107: 11i8 | H107: Coastal Impact Eight Foot New Const. Patio Door | I107: 0.5 | J107: 0.5 | K107: 96 | L107: 80 | M107: 95.5 | N107: 79.5 | O107: 96 | P107: 80 | Q107: 176 | R107: Standard | V107: Half | AH107: Double Strength (3 mm) | AI107: Triple Strength (5 mm) | AJ107: Triple IG Single Strength | AK107: Triple IG Double Strength | AL107: Laminated | AO107: << Rough Opening Only
A108: =IF(OR(ModelNo="0154",ModelNo="0954",ModelNo="9054",ModelNo="8054"),5,"") ->  | B108: 0154 | C108: Operating Sash Glass Width | D108: =Frame_Width-4.625 -> -4.625 | F108: 106 | G108: 5102 | H108: 5100 Series Custom 2 Lite Patio Door | I108: 0 | J108: 0 | M108: 48 | N108: 72 | O108: 96 | P108: 96 | Q108: 192 | V108: Half | AH108: Double Strength (3 mm) | AI108: Triple Strength (5 mm) | AJ108: Triple IG Single Strength | AK108: Triple IG Double Strength | AL108: Laminated | AO108: =IF(RO=2,"<< Exact Size Only","") -> 
A109: =IF(OR(ModelNo="0154",ModelNo="0954",ModelNo="9054",ModelNo="8054"),6,"") ->  | B109: 0154 | C109: Operating Sash Glass Height | D109: =(Frame_Height/2)-4.375 -> -4.375 | F109: 107 | G109: 5103 | H109: 5100 Series Custom 3 Lite Patio Door | I109: 0 | J109: 0 | M109: 84 | N109: 72 | O109: 108 | P109: 96 | Q109: 204 | V109: Half | AH109: Double Strength (3 mm) | AI109: Triple Strength (5 mm) | AJ109: Triple IG Single Strength | AK109: Triple IG Double Strength | AL109: Laminated | AO109: =IF(RO=2,"<< Exact Size Only","") -> 
A110: =IF(OR(ModelNo="0154",ModelNo="0954",ModelNo="9054",ModelNo="8054"),7,"") ->  | B110: 0154 | C110: Fixed Sash Glass Width | D110: =Frame_Width-4.625 -> -4.625 | F110: 108 | G110: 5105 | H110: 5100 Series Five Foot 2 Lite Patio Door | I110: 1.375 | J110: 0.5 | K110: 60 | L110: 80 | M110: 60 | N110: 80 | O110: 60 | P110: 80 | Q110: 140 | R110: Standard | V110: Half | AH110: Double Strength (3 mm) | AI110: Triple Strength (5 mm) | AJ110: Triple IG Single Strength | AK110: Triple IG Double Strength | AL110: Laminated | AO110: =IF(RO=1,"<< Rough Opening Only","") -> << Rough Opening Only
A111: =IF(OR(ModelNo="0154",ModelNo="0954",ModelNo="9054",ModelNo="8054"),8,"") ->  | B111: 0154 | C111: Fixed Sash Glass Height | D111: =(Frame_Height/2)-4.375 -> -4.375 | F111: 109 | G111: 5106 | H111: 5100 Series Six Foot 2 Lite Patio Door | I111: 1.375 | J111: 0.5 | K111: 72 | L111: 80 | M111: 72 | N111: 80 | O111: 72 | P111: 80 | Q111: 152 | R111: Standard | V111: Half | AH111: Double Strength (3 mm) | AI111: Triple Strength (5 mm) | AJ111: Triple IG Single Strength | AK111: Triple IG Double Strength | AL111: Laminated | AO111: << Rough Opening Only
A112: =IF(OR(ModelNo="0154",ModelNo="0954",ModelNo="9054",ModelNo="8054"),9,"") ->  | B112: 0154 | C112: Screen Width | D112: =Frame_Width-4 -> -4 | F112: 110 | G112: 5108 | H112: 5100 Series Eight Foot 2 Lite Patio Door | I112: 1.75 | J112: 0.5 | K112: 96 | L112: 80 | M112: 96 | N112: 80 | O112: 96 | P112: 80 | Q112: 176 | R112: Standard | V112: Half | AH112: Double Strength (3 mm) | AI112: Triple Strength (5 mm) | AJ112: Triple IG Single Strength | AK112: Triple IG Double Strength | AL112: Laminated | AO112: << Rough Opening Only
A113: =IF(OR(ModelNo="0154",ModelNo="0954",ModelNo="9054",ModelNo="8054"),10,"") ->  | B113: 0154 | C113: Screen Height | D113: =(Frame_Height/2)-3.6875 -> -3.6875 | F113: 111 | G113: 5109 | H113: 5100 Series Nine Foot 3 Lite Patio Door | I113: 2.5 | J113: 0.5 | K113: 108 | L113: 80 | M113: 108 | N113: 80 | O113: 108 | P113: 80 | Q113: 188 | R113: Standard | V113: Half | AH113: Double Strength (3 mm) | AI113: Triple Strength (5 mm) | AJ113: Triple IG Single Strength | AK113: Triple IG Double Strength | AL113: Laminated | AO113: << Rough Opening Only
A114: =IF(OR(ModelNo="0154",ModelNo="0954",ModelNo="9054",ModelNo="8054"),11,"") ->  | B114: 0154 | C114: Awning Does not Meet Egress | F114: 112 | G114: 5175 | H114: 5100 Series Wisconsin 2 Lite Patio Door | I114: 0.5 | J114: 0.5 | K114: 75 | L114: 80 | M114: 75 | N114: 80 | O114: 75 | P114: 80 | Q114: 155 | R114: Standard | V114: Half | AH114: Double Strength (3 mm) | AI114: Triple Strength (5 mm) | AJ114: Triple IG Single Strength | AK114: Triple IG Double Strength | AL114: Laminated | AO114: << Rough Opening Only
A115: =IF(OR(ModelNo="0155",ModelNo="0955",ModelNo="9055",ModelNo="8055"),1,"") ->  | B115: 0155 | C115: Sash Width | D115: =Frame_Width-1.625 -> -1.625 | F115: 113 | G115: 51i5 | H115: Coastal Impact Five Foot Replacenet Patio Door | I115: 1.375 | J115: 0.5 | K115: 60 | L115: 80 | M115: 60 | N115: 80 | O115: 60 | P115: 80 | Q115: 140 | R115: Standard | V115: Half | AH115: Double Strength (3 mm) | AI115: Triple Strength (5 mm) | AJ115: Triple IG Single Strength | AK115: Triple IG Double Strength | AL115: Laminated | AO115: << Rough Opening Only
A116: =IF(OR(ModelNo="0155",ModelNo="0955",ModelNo="9055",ModelNo="8055"),2,"") ->  | B116: 0155 | C116: Sash Height | D116: =(Frame_Height/2)-1.375 -> -1.375 | F116: 114 | G116: 51i6 | H116: Coastal Impact Six Foot Replacement Patio Door | I116: 1.375 | J116: 0.5 | K116: 72 | L116: 80 | M116: 72 | N116: 80 | O116: 72 | P116: 80 | Q116: 152 | R116: Standard | V116: Half | AH116: Double Strength (3 mm) | AI116: Triple Strength (5 mm) | AJ116: Triple IG Single Strength | AK116: Triple IG Double Strength | AL116: Laminated | AO116: << Rough Opening Only
A117: =IF(OR(ModelNo="0155",ModelNo="0955",ModelNo="9055",ModelNo="8055"),3,"") ->  | B117: 0155 | C117: Sash Glass Width | D117: =(Frame_Width)-4.625 -> -4.625 | F117: 115 | G117: 51i8 | H117: Coastal Impact Eight Foot Replacement Patio Door | I117: 1.75 | J117: 0.5 | K117: 96 | L117: 80 | M117: 96 | N117: 80 | O117: 96 | P117: 80 | Q117: 176 | R117: Standard | V117: Half | AH117: Double Strength (3 mm) | AI117: Triple Strength (5 mm) | AJ117: Triple IG Single Strength | AK117: Triple IG Double Strength | AL117: Laminated | AO117: << Rough Opening Only
A118: =IF(OR(ModelNo="0155",ModelNo="0955",ModelNo="9055",ModelNo="8055"),4,"") ->  | B118: 0155 | C118: Sash Glass Height | D118: =(Frame_Height/2)-4.375 -> -4.375 | F118: 116 | G118: 5202 | H118: 5200 Series Custom 2 Lite Patio Door | I118: 0 | J118: 0 | M118: 48 | N118: 72 | O118: 94.5 | P118: 94.5 | Q118: 189 | V118: Half | AH118: Double Strength (3 mm) | AI118: Triple Strength (5 mm) | AJ118: Triple IG Single Strength | AK118: Triple IG Double Strength | AL118: Laminated | AO118: =IF(RO=2,"<< Exact Size Only","") -> 
A119: =IF(OR(ModelNo="0155",ModelNo="0955",ModelNo="9055",ModelNo="8055"),5,"") ->  | B119: 0155 | C119: Screen Width | D119: =Frame_Width-4 -> -4 | F119: 117 | G119: 5203 | H119: 5200 Series Custom 3 Lite Patio Door | I119: 0 | J119: 0 | M119: 84 | N119: 72 | O119: 139 | P119: 95 | Q119: 234 | V119: Half | AH119: Double Strength (3 mm) | AI119: Triple Strength (5 mm) | AJ119: Triple IG Single Strength | AK119: Triple IG Double Strength | AL119: Laminated | AO119: =IF(RO=2,"<< Exact Size Only","") -> 
A120: =IF(OR(ModelNo="0155",ModelNo="0955",ModelNo="9055",ModelNo="8055"),6,"") ->  | B120: 0155 | C120: Screen Height | D120: =(Frame_Height/2)-3.6875 -> -3.6875 | F120: 118 | G120: 5205 | H120: 5200 Series Five Foot 2 Lite Patio Door | I120: 0.9375 | J120: 0.5 | K120: 60 | L120: 80 | M120: 60 | N120: 80 | O120: 60 | P120: 80 | Q120: 156 | R120: Standard | V120: Half | AH120: Double Strength (3 mm) | AI120: Triple Strength (5 mm) | AJ120: Triple IG Single Strength | AK120: Triple IG Double Strength | AL120: Laminated | AO120: =IF(RO=1,"<< Rough Opening Only","") -> << Rough Opening Only
A121: =IF(OR(ModelNo="0155",ModelNo="0955",ModelNo="9055",ModelNo="8055"),7,"") ->  | B121: 0155 | C121: Awning Does not Meet Egress | F121: 119 | G121: 5206 | H121: 5200 Series Six Foot 2 Lite Patio Door | I121: 1.125 | J121: 0.5 | K121: 72 | L121: 80 | M121: 72 | N121: 80 | O121: 72 | P121: 80 | Q121: 168 | R121: Standard | V121: Half | AH121: Double Strength (3 mm) | AI121: Triple Strength (5 mm) | AJ121: Triple IG Single Strength | AK121: Triple IG Double Strength | AL121: Laminated | AO121: << Rough Opening Only
A122: =IF(OR(ModelNo="0170",ModelNo="0970",ModelNo="0504",ModelNo="U504",ModelNo="0614",ModelNo="U614",ModelNo="9070",ModelNo="9014",ModelNo="8070",ModelNo="8014",ModelNo="B970",ModelNo="P970",ModelNo="R970",ModelNo="i970"),1,"") ->  | B122: 0170 | C122: Glass Width | D122: =Frame_Width-4.625 -> -4.625 | F122: 120 | G122: 5208 | H122: 5200 Series Eight Foot 2 Lite Patio Door | I122: 1.5 | J122: 0.5 | K122: 96 | L122: 80 | M122: 96 | N122: 80 | O122: 96 | P122: 80 | Q122: 192 | R122: Standard | V122: Half | AH122: Double Strength (3 mm) | AI122: Triple Strength (5 mm) | AJ122: Triple IG Single Strength | AK122: Triple IG Double Strength | AL122: Laminated | AO122: << Rough Opening Only
A123: =IF(OR(ModelNo="0170",ModelNo="0970",ModelNo="0504",ModelNo="U504",ModelNo="0614",ModelNo="U614",ModelNo="9070",ModelNo="9014",ModelNo="8070",ModelNo="8014",ModelNo="B970",ModelNo="P970",ModelNo="R970",ModelNo="i970"),2,"") ->  | B123: 0170 | C123: Glass Height | D123: =Frame_Height-4.625 -> -4.625 | F123: 121 | G123: 5209 | H123: 5200 Series Nine Foot 3 Lite Patio Door | I123: 4.5 | J123: 0.5 | K123: 108 | L123: 80 | M123: 108 | N123: 80 | O123: 108 | P123: 80 | Q123: 204 | R123: Standard | V123: Half | AH123: Double Strength (3 mm) | AI123: Triple Strength (5 mm) | AJ123: Triple IG Single Strength | AK123: Triple IG Double Strength | AL123: Laminated | AO123: << Rough Opening Only
A124: =IF(OR(ModelNo="0170",ModelNo="0970",ModelNo="0504",ModelNo="U504",ModelNo="0614",ModelNo="U614",ModelNo="9070",ModelNo="9014",ModelNo="8070",ModelNo="8014",ModelNo="B970",ModelNo="P970",ModelNo="R970",ModelNo="i970"),3,"") ->  | B124: 0170 | C124: Glass Area (sq.ft.) | D124: =(D122*D123)/144 -> 0.1485460069 | F124: 122 | G124: 5210 | H124: 5200 Series Ten Foot 3 Lite Patio Door | I124: 1.875 | J124: 0.5 | K124: 120 | L124: 80 | M124: 120 | N124: 80 | O124: 120 | P124: 96 | Q124: 216 | R124: Standard | V124: Half | AH124: Double Strength (3 mm) | AI124: Triple Strength (5 mm) | AJ124: Triple IG Single Strength | AK124: Triple IG Double Strength | AL124: Laminated | AO124: << Rough Opening Only
A125: =IF(OR(ModelNo="0171",ModelNo="0971",ModelNo="9071",ModelNo="8071",ModelNo="B971",ModelNo="P971",ModelNo="R971",ModelNo="i971"),1,"") ->  | B125: 0171 | C125: Sash Width | D125: =Frame_Width-1.625 -> -1.625 | F125: 123 | G125: 5212 | H125: 5200 Series Twelve Foot 3 Lite Patio Door | I125: 5.0625 | J125: 0.5 | K125: 144 | L125: 80 | M125: 144 | N125: 80 | O125: 144 | P125: 96 | Q125: 240 | R125: Standard | V125: Half | AH125: Double Strength (3 mm) | AI125: Triple Strength (5 mm) | AJ125: Triple IG Single Strength | AK125: Triple IG Double Strength | AL125: Laminated | AO125: << Rough Opening Only
A126: =IF(OR(ModelNo="0171",ModelNo="0971",ModelNo="9071",ModelNo="8071",ModelNo="B971",ModelNo="P971",ModelNo="R971",ModelNo="i971"),2,"") ->  | B126: 0171 | C126: Sash Height | D126: =Frame_Height-1.625 -> -1.625 | F126: 124 | G126: 6102 | H126: 6100 Series Custom 2 Lite Patio Door | I126: 0 | J126: 0 | M126: 48 | N126: 72 | O126: 96 | P126: 96 | Q126: 180 | V126: Half | AH126: Double Strength (3 mm) | AI126: Triple Strength (5 mm) | AJ126: Triple IG Single Strength | AK126: Triple IG Double Strength | AL126: Laminated | AO126: =IF(RO=2,"<< Exact Size Only","") -> 
A127: =IF(OR(ModelNo="0171",ModelNo="0971",ModelNo="9071",ModelNo="8071",ModelNo="B971",ModelNo="P971",ModelNo="R971",ModelNo="i971"),3,"") ->  | B127: 0171 | C127: Glass Width | D127: =Frame_Width-4.625 -> -4.625 | F127: 125 | G127: 6103 | H127: 6100 Series Custom 3 Lite Patio Door | I127: 0 | J127: 0 | M127: 84 | N127: 72 | O127: 144 | P127: 96 | Q127: 228 | V127: Half | AH127: Double Strength (3 mm) | AI127: Triple Strength (5 mm) | AJ127: Triple IG Single Strength | AK127: Triple IG Double Strength | AL127: Laminated | AO127: =IF(RO=2,"<< Exact Size Only","") -> 
A128: =IF(OR(ModelNo="0171",ModelNo="0971",ModelNo="9071",ModelNo="8071",ModelNo="B971",ModelNo="P971",ModelNo="R971",ModelNo="i971"),4,"") ->  | B128: 0171 | C128: Glass Height | D128: =Frame_Height-4.625 -> -4.625 | F128: 126 | G128: 6104 | H128: 6100 Series Custom 4 Lite Patio Door | I128: 0 | J128: 0 | M128: 96 | N128: 72 | O128: 144 | P128: 96 | Q128: 240 | V128: Half | AH128: Double Strength (3 mm) | AI128: Triple Strength (5 mm) | AJ128: Triple IG Single Strength | AK128: Triple IG Double Strength | AL128: Laminated | AO128: =IF(RO=2,"<< Exact Size Only","") -> 
A129: =IF(OR(ModelNo="0171",ModelNo="0971",ModelNo="9071",ModelNo="8071",ModelNo="B971",ModelNo="P971",ModelNo="R971",ModelNo="i971"),5,"") ->  | B129: 0171 | C129: Screen Width | D129: =Frame_Width-4.0625 -> -4.0625 | F129: 127 | G129: 6105 | H129: 6100 Series Five Foot 2 Lite Patio Door | I129: 1.375 | J129: 0.5 | K129: 60 | L129: 80 | M129: 60 | N129: 80 | O129: 60 | P129: 80 | Q129: 140 | R129: Standard | V129: Half | AH129: Double Strength (3 mm) | AI129: Triple Strength (5 mm) | AJ129: Triple IG Single Strength | AK129: Triple IG Double Strength | AL129: Laminated | AO129: =IF(RO=1,"<< Rough Opening Only","") -> << Rough Opening Only
A130: =IF(OR(ModelNo="0171",ModelNo="0971",ModelNo="9071",ModelNo="8071",ModelNo="B971",ModelNo="P971",ModelNo="R971",ModelNo="i971"),6,"") ->  | B130: 0171 | C130: Screen Height | D130: =Frame_Height-4 -> -4 | F130: 128 | G130: 6106 | H130: 6100 Series Six Foot 2 Lite Patio Door | I130: 1.375 | J130: 0.5 | K130: 72 | L130: 80 | M130: 72 | N130: 80 | O130: 72 | P130: 80 | Q130: 152 | R130: Standard | V130: Half | AH130: Double Strength (3 mm) | AI130: Triple Strength (5 mm) | AJ130: Triple IG Single Strength | AK130: Triple IG Double Strength | AL130: Laminated | AO130: << Rough Opening Only
A131: =IF(OR(ModelNo="0171",ModelNo="0971",ModelNo="9071",ModelNo="8071",ModelNo="B971",ModelNo="P971",ModelNo="R971",ModelNo="i971"),7,"") ->  | B131: 0171 | C131: Egress Opening Width (Standard Hinge) | D131: =Frame_Width-11.25 -> -11.25 | F131: 129 | G131: 6108 | H131: 6100 Series Eight Foot 2 Lite Patio Door | I131: 1.75 | J131: 0.5 | K131: 96 | L131: 80 | M131: 96 | N131: 80 | O131: 96 | P131: 80 | Q131: 176 | R131: Standard | V131: Half | AH131: Double Strength (3 mm) | AI131: Triple Strength (5 mm) | AJ131: Triple IG Single Strength | AK131: Triple IG Double Strength | AL131: Laminated | AO131: << Rough Opening Only
A132: =IF(OR(ModelNo="0171",ModelNo="0971",ModelNo="9071",ModelNo="8071",ModelNo="B971",ModelNo="P971",ModelNo="R971",ModelNo="i971"),8,"") ->  | B132: 0171 | C132: Egress Opening Height (Standard Hinge) | D132: =Frame_Height-4.375 -> -4.375 | F132: 130 | G132: 6109 | H132: 6100 Series Nine Foot 3 Lite Patio Door | I132: 2.5 | J132: 0.5 | K132: 108 | L132: 80 | M132: 108 | N132: 80 | O132: 108 | P132: 80 | Q132: 188 | R132: Standard | V132: Half | AH132: Double Strength (3 mm) | AI132: Triple Strength (5 mm) | AJ132: Triple IG Single Strength | AK132: Triple IG Double Strength | AL132: Laminated | AO132: << Rough Opening Only
A133: =IF(OR(ModelNo="0171",ModelNo="0971",ModelNo="9071",ModelNo="8071",ModelNo="B971",ModelNo="P971",ModelNo="R971",ModelNo="i971"),9,"") ->  | B133: 0171 | C133: Egress Opening Area w/Standard Hinge (sq.ft.) | D133: =(D131*D132)/144 -> 0.341796875 | F133: 131 | G133: 6112 | H133: 6100 Series Twelve Foot 4 Lite Patio Door | I133: 4.5 | J133: 0.5 | K133: 144 | L133: 80 | M133: 144 | N133: 80 | O133: 144 | P133: 80 | Q133: 224 | R133: Standard | V133: Half | AH133: Double Strength (3 mm) | AI133: Triple Strength (5 mm) | AJ133: Triple IG Single Strength | AK133: Triple IG Double Strength | AL133: Laminated | AO133: << Rough Opening Only
A134: =IF(OR(ModelNo="0171",ModelNo="0971",ModelNo="9071",ModelNo="8071",ModelNo="B971",ModelNo="P971",ModelNo="R971",ModelNo="i971"),10,"") ->  | B134: 0171 | C134: Egress Opening Width (Egress Hinge) | D134: =IF(D125<22.375,"N/A",Frame_Width-6.8125) -> N/A | F134: 132 | G134: 6122 | H134: 6100 Series Twelve Foot 3 Lite Patio Door | I134: 3.125 | J134: 0.5 | K134: 144 | L134: 80 | M134: 144 | N134: 80 | O134: 144 | P134: 80 | Q134: 224 | R134: Standard | V134: Half | AH134: Double Strength (3 mm) | AI134: Triple Strength (5 mm) | AJ134: Triple IG Single Strength | AK134: Triple IG Double Strength | AL134: Laminated | AO134: << Rough Opening Only
A135: =IF(OR(ModelNo="0171",ModelNo="0971",ModelNo="9071",ModelNo="8071",ModelNo="B971",ModelNo="P971",ModelNo="R971",ModelNo="i971"),11,"") ->  | B135: 0171 | C135: Egress Opening Height (Egress Hinge) | D135: =IF(D125<22.375,"N/A",Frame_Height-4.375) -> N/A | F135: 133 | G135: 6175 | H135: 6100 Series Wisconsin 2 Lite Patio Door | I135: 0.5 | J135: 0.5 | K135: 75 | L135: 80 | M135: 75 | N135: 80 | O135: 75 | P135: 80 | Q135: 155 | R135: Standard | V135: Half | AH135: Double Strength (3 mm) | AI135: Triple Strength (5 mm) | AJ135: Triple IG Single Strength | AK135: Triple IG Double Strength | AL135: Laminated | AO135: << Rough Opening Only
A136: =IF(OR(ModelNo="0171",ModelNo="0971",ModelNo="9071",ModelNo="8071",ModelNo="B971",ModelNo="P971",ModelNo="R971",ModelNo="i971"),12,"") ->  | B136: 0171 | C136: Egress Opening Area w/Egress Hinge (sq.ft.) | D136: =IF(D125<22.375,"N/A",(D134*D135)/144) -> N/A | F136: 134 | G136: 6202 | H136: 6200 Series Custom 2 Lite Patio Door | I136: 0 | J136: 0 | M136: 48 | N136: 72 | O136: 96 | P136: 96 | Q136: 192 | V136: Half | AH136: Double Strength (3 mm) | AI136: Triple Strength (5 mm) | AJ136: Triple IG Single Strength | AK136: Triple IG Double Strength | AL136: Laminated | AO136: =IF(RO=2,"<< Exact Size Only","") -> 
A137: =IF(OR(ModelNo="0172",ModelNo="0972",ModelNo="9072",ModelNo="8072"),1,"") ->  | B137: 0172 | C137: Sash Width | D137: =(Frame_Width/2)-1.375 -> -1.375 | F137: 135 | G137: 6203 | H137: 6200 Series Custom 3 Lite Patio Door | I137: 0 | J137: 0 | M137: 84 | N137: 72 | O137: 144 | P137: 96 | Q137: 240 | V137: Half | AH137: Double Strength (3 mm) | AI137: Triple Strength (5 mm) | AJ137: Triple IG Single Strength | AK137: Triple IG Double Strength | AL137: Laminated | AO137: =IF(RO=2,"<< Exact Size Only","") -> 
A138: =IF(OR(ModelNo="0172",ModelNo="0972",ModelNo="9072",ModelNo="8072"),2,"") ->  | B138: 0172 | C138: Sash Height | D138: =Frame_Height-1.625 -> -1.625 | F138: 136 | G138: 6204 | H138: 6200 Series Custom 4 Lite Patio Door | I138: 0 | J138: 0 | M138: 96 | N138: 72 | O138: 144 | P138: 96 | Q138: 240 | V138: Half | AH138: Double Strength (3 mm) | AI138: Triple Strength (5 mm) | AJ138: Triple IG Single Strength | AK138: Triple IG Double Strength | AL138: Laminated | AO138: =IF(RO=2,"<< Exact Size Only","") -> 
A139: =IF(OR(ModelNo="0172",ModelNo="0972",ModelNo="9072",ModelNo="8072"),3,"") ->  | B139: 0172 | C139: Glass Width | D139: =(Frame_Width/2)-4.375 -> -4.375 | F139: 137 | G139: 6205 | H139: 6200 Series Five Foot 2 Lite Patio Door | I139: 1.375 | J139: 0.5 | K139: 60 | L139: 80 | M139: 58.625 | N139: 79.5 | O139: 58.625 | P139: 79.5 | Q139: 139 | R139: Standard | V139: Half | AH139: Double Strength (3 mm) | AI139: Triple Strength (5 mm) | AJ139: Triple IG Single Strength | AK139: Triple IG Double Strength | AL139: Laminated | AO139: =IF(RO=1,"<< Rough Opening Only","") -> << Rough Opening Only
A140: =IF(OR(ModelNo="0172",ModelNo="0972",ModelNo="9072",ModelNo="8072"),4,"") ->  | B140: 0172 | C140: Glass Height | D140: =Frame_Height-4.625 -> -4.625 | F140: 138 | G140: 6206 | H140: 6200 Series Six Foot 2 Lite Patio Door | I140: 1.375 | J140: 0.5 | K140: 72 | L140: 80 | M140: 70.625 | N140: 79.5 | O140: 70.625 | P140: 79.5 | Q140: 151 | R140: Standard | V140: Half | AH140: Double Strength (3 mm) | AI140: Triple Strength (5 mm) | AJ140: Triple IG Single Strength | AK140: Triple IG Double Strength | AL140: Laminated | AO140: << Rough Opening Only
A141: =IF(OR(ModelNo="0172",ModelNo="0972",ModelNo="9072",ModelNo="8072"),5,"") ->  | B141: 0172 | C141: Screen Width | D141: =(Frame_Width/2)-3.8125 -> -3.8125 | F141: 139 | G141: 6208 | H141: 6200 Series Eight Foot 2 Lite Patio Door | I141: 1.75 | J141: 0.5 | K141: 96 | L141: 80 | M141: 94.25 | N141: 79.5 | O141: 94.25 | P141: 79.5 | Q141: 175 | R141: Standard | V141: Half | AH141: Double Strength (3 mm) | AI141: Triple Strength (5 mm) | AJ141: Triple IG Single Strength | AK141: Triple IG Double Strength | AL141: Laminated | AO141: << Rough Opening Only
A142: =IF(OR(ModelNo="0172",ModelNo="0972",ModelNo="9072",ModelNo="8072"),6,"") ->  | B142: 0172 | C142: Screen Height | D142: =Frame_Height-4 -> -4 | F142: 140 | G142: 6209 | H142: 6200 Series Nine Foot 3 Lite Patio Door | I142: 2.625 | J142: 0.5 | K142: 108 | L142: 80 | M142: 105.5 | N142: 79.5 | O142: 105.5 | P142: 79.5 | Q142: 186 | R142: Standard | V142: Half | AH142: Double Strength (3 mm) | AI142: Triple Strength (5 mm) | AJ142: Triple IG Single Strength | AK142: Triple IG Double Strength | AL142: Laminated | AO142: << Rough Opening Only
A143: =IF(OR(ModelNo="0172",ModelNo="0972",ModelNo="9072",ModelNo="8072"),7,"") ->  | B143: 0172 | C143: Egress Opening Width (Standard Hinge) | D143: =(Frame_Width/2)-11 -> -11 | F143: 141 | G143: 6212 | H143: 6200 Series Twelve Foot 4 Lite Patio Door | I143: 4.375 | J143: 0.5 | K143: 144 | L143: 80 | M143: 139.5 | N143: 79.5 | O143: 139.5 | P143: 79.5 | Q143: 220 | R143: Standard | V143: Half | AH143: Double Strength (3 mm) | AI143: Triple Strength (5 mm) | AJ143: Triple IG Single Strength | AK143: Triple IG Double Strength | AL143: Laminated | AO143: << Rough Opening Only
A144: =IF(OR(ModelNo="0172",ModelNo="0972",ModelNo="9072",ModelNo="8072"),8,"") ->  | B144: 0172 | C144: Egress Opening Height (Standard Hinge) | D144: =Frame_Height-4.375 -> -4.375 | F144: 142 | G144: 6222 | H144: 6200 Series Twelve Foot 3 Lite Patio Door | I144: 3.1875 | J144: 0.5 | K144: 144 | L144: 80 | M144: 140.875 | N144: 79.5 | O144: 140.875 | P144: 79.5 | Q144: 221 | R144: Standard | V144: Half | AH144: Double Strength (3 mm) | AI144: Triple Strength (5 mm) | AJ144: Triple IG Single Strength | AK144: Triple IG Double Strength | AL144: Laminated | AO144: << Rough Opening Only
A145: =IF(OR(ModelNo="0172",ModelNo="0972",ModelNo="9072",ModelNo="8072"),9,"") ->  | B145: 0172 | C145: Egress Opening Area w/Standard Hinge (sq.ft.) | D145: =(D143*D144)/144 -> 0.3342013889 | F145: 143 | G145: 6275 | H145: 6200 Series Wisconsin 2 Lite Patio Door | I145: 0.5 | J145: 0.5 | K145: 75 | L145: 80 | M145: 74.5 | N145: 79.5 | O145: 74.5 | P145: 79.5 | Q145: 154 | R145: Standard | V145: Half | AH145: Double Strength (3 mm) | AI145: Triple Strength (5 mm) | AJ145: Triple IG Single Strength | AK145: Triple IG Double Strength | AL145: Laminated | AO145: << Rough Opening Only
A146: =IF(OR(ModelNo="0172",ModelNo="0972",ModelNo="9072",ModelNo="8072"),10,"") ->  | B146: 0172 | C146: Egress Opening Width (Egress Hinge) | D146: =IF(D137<22.375,"N/A",(Frame_Width/2)-6.5625) -> N/A | F146: 144 | G146: 6402 | H146: 6400 Series Custom 2 Lite Patio Door | I146: 0 | J146: 0 | M146: 48 | N146: 72 | O146: 96 | P146: 96 | Q146: 192 | R146: 3" Sash | S146: 5" Sash | T146: French | V146: Half | AH146: Double Strength (3 mm) | AI146: Triple Strength (5 mm) | AJ146: Triple IG Single Strength | AK146: Triple IG Double Strength | AL146: Laminated | AO146: =IF(RO=2,"<< Exact Size Only","") -> 
A147: =IF(OR(ModelNo="0172",ModelNo="0972",ModelNo="9072",ModelNo="8072"),11,"") ->  | B147: 0172 | C147: Egress Opening Height (Egress Hinge) | D147: =IF(D137<22.375,"N/A",Frame_Height-4.375) -> N/A | F147: 145 | G147: 6403 | H147: 6400 Series Custom 3 Lite Patio Door | I147: 0 | J147: 0 | M147: 84 | N147: 72 | O147: 144 | P147: 96 | Q147: 240 | R147: 3" Sash | S147: 5" Sash | T147: French | V147: Half | AH147: Double Strength (3 mm) | AI147: Triple Strength (5 mm) | AJ147: Triple IG Single Strength | AK147: Triple IG Double Strength | AL147: Laminated | AO147: =IF(RO=2,"<< Exact Size Only","") -> 
A148: =IF(OR(ModelNo="0172",ModelNo="0972",ModelNo="9072",ModelNo="8072"),12,"") ->  | B148: 0172 | C148: Egress Opening Area w/Egress Hinge (sq.ft.) | D148: =IF(D137<22.375,"N/A",(D146*D147)/144) -> N/A | F148: 146 | G148: 6404 | H148: 6400 Series Custom 4 Lite Patio Door | I148: 0 | J148: 0 | M148: 96 | N148: 72 | O148: 144 | P148: 96 | Q148: 240 | R148: 3" Sash | S148: 5" Sash | T148: French | V148: Half | AH148: Double Strength (3 mm) | AI148: Triple Strength (5 mm) | AJ148: Triple IG Single Strength | AK148: Triple IG Double Strength | AL148: Laminated | AO148: =IF(RO=2,"<< Exact Size Only","") -> 
A149: =IF(OR(ModelNo="0173",ModelNo="0973",ModelNo="9073",ModelNo="8073"),1,"") ->  | B149: 0173 | C149: Operating Sash Width | D149: =(Frame_Width/4)-1.375 -> -1.375 | F149: 147 | G149: 6405 | H149: 6400 Series Five Foot 2 Lite Patio Door | I149: 1.375 | J149: 0.5 | K149: 60 | L149: 80 | M149: 58.625 | N149: 79.5 | O149: 58.625 | P149: 95.5 | Q149: 156 | R149: 3" Sash | S149: 5" Sash | T149: French | V149: Half | AH149: Double Strength (3 mm) | AI149: Triple Strength (5 mm) | AJ149: Triple IG Single Strength | AK149: Triple IG Double Strength | AL149: Laminated | AO149: =IF(RO=1,"<< Rough Opening Only","") -> << Rough Opening Only
A150: =IF(OR(ModelNo="0173",ModelNo="0973",ModelNo="9073",ModelNo="8073"),2,"") ->  | B150: 0173 | C150: Operating Sash Height | D150: =Frame_Height-1.625 -> -1.625 | F150: 148 | G150: 6406 | H150: 6400 Series Six Foot 2 Lite Patio Door | I150: 1.375 | J150: 0.5 | K150: 72 | L150: 80 | M150: 70.625 | N150: 80 | O150: 70.625 | P150: 95.5 | Q150: 168 | R150: 3" Sash | S150: 5" Sash | T150: French | V150: Half | AH150: Double Strength (3 mm) | AI150: Triple Strength (5 mm) | AJ150: Triple IG Single Strength | AK150: Triple IG Double Strength | AL150: Laminated | AO150: << Rough Opening Only
A151: =IF(OR(ModelNo="0173",ModelNo="0973",ModelNo="9073",ModelNo="8073"),3,"") ->  | B151: 0173 | C151: Fixed Sash Width | D151: =(Frame_Width/2)-1.125 -> -1.125 | F151: 149 | G151: 6408 | H151: 6400 Series Eight Foot 2 Lite Patio Door | I151: 1.75 | J151: 0.5 | K151: 96 | L151: 80 | M151: 94.25 | N151: 80 | O151: 94.25 | P151: 95.5 | Q151: 190 | R151: 3" Sash | S151: 5" Sash | T151: French | V151: Half | AH151: Double Strength (3 mm) | AI151: Triple Strength (5 mm) | AJ151: Triple IG Single Strength | AK151: Triple IG Double Strength | AL151: Laminated | AO151: << Rough Opening Only
A152: =IF(OR(ModelNo="0173",ModelNo="0973",ModelNo="9073",ModelNo="8073"),4,"") ->  | B152: 0173 | C152: Fixed Sash Height | D152: =Frame_Height-1.625 -> -1.625 | F152: 150 | G152: 6409 | H152: 6400 Series Nine Foot 3 Lite Patio Door | I152: 2.5 | J152: 0.5 | K152: 108 | L152: 80 | M152: 105.5 | N152: 80 | O152: 105.5 | P152: 95.5 | Q152: 204 | R152: 3" Sash | S152: 5" Sash | T152: French | V152: Half | AH152: Double Strength (3 mm) | AI152: Triple Strength (5 mm) | AJ152: Triple IG Single Strength | AK152: Triple IG Double Strength | AL152: Laminated | AO152: << Rough Opening Only
A153: =IF(OR(ModelNo="0173",ModelNo="0973",ModelNo="9073",ModelNo="8073"),5,"") ->  | B153: 0173 | C153: Operating Sash Glass Width | D153: =(Frame_Width/4)-4.375 -> -4.375 | F153: 151 | G153: 6412 | H153: 6400 Series Twelve Foot 4 Lite Patio Door | I153: 4.5 | J153: 0.5 | K153: 144 | L153: 80 | M153: 139.5 | N153: 80 | O153: 139.5 | P153: 95.5 | Q153: 240 | R153: 3" Sash | S153: 5" Sash | T153: French | V153: Half | AH153: Double Strength (3 mm) | AI153: Triple Strength (5 mm) | AJ153: Triple IG Single Strength | AK153: Triple IG Double Strength | AL153: Laminated | AO153: << Rough Opening Only
A154: =IF(OR(ModelNo="0173",ModelNo="0973",ModelNo="9073",ModelNo="8073"),6,"") ->  | B154: 0173 | C154: Operating Sash Glass Height | D154: =Frame_Height-4.625 -> -4.625 | F154: 152 | G154: 6422 | H154: 6400 Series Twelve Foot 3 Lite Patio Door | I154: 3.125 | J154: 0.5 | K154: 144 | L154: 80 | M154: 140.875 | N154: 80 | O154: 140.875 | P154: 95.5 | Q154: 240 | R154: 3" Sash | S154: 5" Sash | T154: French | V154: Half | AH154: Double Strength (3 mm) | AI154: Triple Strength (5 mm) | AJ154: Triple IG Single Strength | AK154: Triple IG Double Strength | AL154: Laminated | AO154: << Rough Opening Only
A155: =IF(OR(ModelNo="0173",ModelNo="0973",ModelNo="9073",ModelNo="8073"),7,"") ->  | B155: 0173 | C155: Fixed Sash Glass Width | D155: =(Frame_Width/2)-4.125 -> -4.125 | F155: 153 | G155: 6475 | H155: 6400 Series Wisconsin 2 Lite Patio Door | I155: 0.5 | J155: 0.5 | K155: 75 | L155: 80 | M155: 74.5 | N155: 80 | O155: 74.5 | P155: 79.5 | Q155: 155 | R155: 3" Sash | S155: 5" Sash | T155: French | V155: Half | AH155: Double Strength (3 mm) | AI155: Triple Strength (5 mm) | AJ155: Triple IG Single Strength | AK155: Triple IG Double Strength | AL155: Laminated | AO155: << Rough Opening Only
A156: =IF(OR(ModelNo="0173",ModelNo="0973",ModelNo="9073",ModelNo="8073"),8,"") ->  | B156: 0173 | C156: Fixed Sash Glass Height | D156: =Frame_Height-4.625 -> -4.625 | F156: 154 | G156: E301(3250) | H156: New Const. Double Hung Egress | I156: 0.5 | J156: 0.5 | K156: 38 | L156: 60 | M156: 37.5 | N156: 59.5 | O156: 37.5 | P156: 59.5 | Q156: 97 | R156: Standard | V156: Half | W156: Full | AG156: Single Strength (2.5 mm) | AH156: Double Strength (3 mm) | AI156: Triple Strength (5 mm) | AJ156: Triple IG Single Strength | AK156: Triple IG Double Strength | AL156: Laminated | AO156: =IF(RO=1,"<< Rough Opening Only","") -> << Rough Opening Only
A157: =IF(OR(ModelNo="0173",ModelNo="0973",ModelNo="9073",ModelNo="8073"),9,"") ->  | B157: 0173 | C157: Screen Width | D157: =(Frame_Width/4)-3.8125 -> -3.8125 | F157: 155 | G157: E301(3052) | H157: New Const. Double Hung Egress | I157: 0.5 | J157: 0.5 | K157: 36 | L157: 62 | M157: 35.5 | N157: 61.5 | O157: 35.5 | P157: 61.5 | Q157: 97 | R157: Standard | V157: Half | W157: Full | AG157: Single Strength (2.5 mm) | AH157: Double Strength (3 mm) | AI157: Triple Strength (5 mm) | AJ157: Triple IG Single Strength | AK157: Triple IG Double Strength | AL157: Laminated | AO157: =IF(RO=1,"<< Rough Opening Only","") -> << Rough Opening Only
A158: =IF(OR(ModelNo="0173",ModelNo="0973",ModelNo="9073",ModelNo="8073"),10,"") ->  | B158: 0173 | C158: Screen Height | D158: =Frame_Height-4 -> -4 | F158: 156 | G158: E301(2862) | H158: New Const. Double Hung Egress | I158: 0.5 | J158: 0.5 | K158: 32 | L158: 74 | M158: 31.5 | N158: 73.5 | O158: 31.5 | P158: 73.5 | Q158: 105 | R158: Standard | V158: Half | W158: Full | AG158: Single Strength (2.5 mm) | AH158: Double Strength (3 mm) | AI158: Triple Strength (5 mm) | AJ158: Triple IG Single Strength | AK158: Triple IG Double Strength | AL158: Laminated | AO158: =IF(RO=1,"<< Rough Opening Only","") -> << Rough Opening Only
A159: =IF(OR(ModelNo="0173",ModelNo="0973",ModelNo="9073",ModelNo="8073"),11,"") ->  | B159: 0173 | C159: Egress Opening Width (Standard Hinge) | D159: =(Frame_Width/4)-11 -> -11 | F159: 157 | G159: S140 | H159: Arched Top Single Hung (Round-Top) | I159: 0 | J159: 0 | M159: =MINR*2 ->  | N159: 43 | O159: 52 | P159: 96 | Q159: 148 | R159: Standard | S159: Oriel (2/3 - 1/3) | T159: Cottage (1/3 - 2/3) | U159: Custom | V159: Half | Y159: Select Extrusion | Z159: Mezzo | AA159: Mezzo/N.F | AB159: New Construction | AC159: 0700 Series | AD159: Fusion | AE159: 1700 | AF159: 1900 | AH159: Double Strength (3 mm) | AI159: Triple Strength (5 mm) | AJ159: Triple IG Single Strength | AK159: Triple IG Double Strength | AL159: Laminated | AO159: =IF(RO=2,"<< Exact Size Only","") -> 
A160: =IF(OR(ModelNo="0173",ModelNo="0973",ModelNo="9073",ModelNo="8073"),12,"") ->  | B160: 0173 | C160: Egress Opening Height (Standard Hinge) | D160: =Frame_Height-4.375 -> -4.375 | F160: 158 | G160: S144 | H160: Arched Top Single Hung (Eyebrow) | I160: 0 | J160: 0 | M160: 16 | N160: 43 | O160: 52 | P160: 96 | Q160: 148 | R160: Standard | S160: Oriel (2/3 - 1/3) | T160: Cottage (1/3 - 2/3) | U160: Custom | V160: Half | Y160: Select Extrusion | Z160: Mezzo | AA160: Mezzo/N.F | AB160: New Construction | AC160: 0700 Series | AD160: Fusion | AE160: 1700 | AF160: 1900 | AH160: Double Strength (3 mm) | AI160: Triple Strength (5 mm) | AJ160: Triple IG Single Strength | AK160: Triple IG Double Strength | AL160: Laminated
A161: =IF(OR(ModelNo="0173",ModelNo="0973",ModelNo="9073",ModelNo="8073"),13,"") ->  | B161: 0173 | C161: Egress Opening Area w/Standard Hinge (sq.ft.) | D161: =(D159*D160)/144 -> 0.3342013889 | F161: 159 | G161: S146 | H161: Arched Top Single Hung (1/2 Eyebrow) | I161: 0 | J161: 0 | M161: 16 | N161: 43 | O161: 52 | P161: 96 | Q161: 148 | R161: Standard | S161: Oriel (2/3 - 1/3) | T161: Cottage (1/3 - 2/3) | U161: Custom | V161: Half | Y161: Select Extrusion | Z161: Mezzo | AA161: Mezzo/N.F | AB161: New Construction | AC161: 0700 Series | AD161: Fusion | AE161: 1700 | AF161: 1900 | AH161: Double Strength (3 mm) | AI161: Triple Strength (5 mm) | AJ161: Triple IG Single Strength | AK161: Triple IG Double Strength | AL161: Laminated
A162: =IF(OR(ModelNo="0173",ModelNo="0973",ModelNo="9073",ModelNo="8073"),14,"") ->  | B162: 0173 | C162: Egress Opening Width (Egress Hinge) | D162: =IF(D149<22.375,"N/A",(Frame_Width/4)-6.5625) -> N/A | F162: 160 | G162: i201 | H162: Coastal Impact Double Hung | I162: 0 | J162: 0 | M162: 18 | N162: 26 | O162: 52 | P162: 84 | Q162: 132 | R162: Standard | S162: Oriel (2/3 - 1/3) | T162: Cottage (1/3 - 2/3) | U162: Custom | V162: Half | W162: Full | X162: Locking | AM162: HP Package | AN162: Impact Laminated
A163: =IF(OR(ModelNo="0173",ModelNo="0973",ModelNo="9073",ModelNo="8073"),15,"") ->  | B163: 0173 | C163: Egress Opening Height (Egress Hinge) | D163: =IF(D149<22.375,"N/A",Frame_Height-4.375) -> N/A | F163: 161 | G163: i204 | H163: Coastal Impact Picture Window | I163: 0 | J163: 0 | M163: 12 | N163: 12 | O163: 52 | P163: 84 | Q163: 136 | R163: Standard | AM163: HP Package | AN163: Impact Laminated
A164: =IF(OR(ModelNo="0173",ModelNo="0973",ModelNo="9073",ModelNo="8073"),16,"") ->  | B164: 0173 | C164: Egress Opening Area w/Egress Hinge (sq.ft.) | D164: =IF(D149<22.375,"N/A",(D162*D163)/144) -> N/A | F164: 162 | G164: 3100 | H164: Coastal Impact Single Hung | I164: 0 | J164: 0 | M164: 22.5 | N164: 25.75 | O164: 54 | P164: 76 | Q164: 126 | R164: Standard | S164: Oriel (2/3 - 1/3) | T164: Cottage (1/3 - 2/3) | U164: Custom | V164: Half | AM164: HP Package | AN164: Impact Laminated
A165: =IF(OR(ModelNo="0179",ModelNo="0979",ModelNo="9079",ModelNo="8079"),1,"") ->  | B165: 0179 | C165: Operating Sash Width | D165: =TRUNC(((Frame_Width/3)-1.291)*16+0.5)/16 -> -1.25 | F165: 163 | G165: 3102 | H165: Coastal Impact 2 Lite Single Slider | I165: 0 | J165: 0 | M165: 26.5 | N165: 22 | O165: 73 | P165: 63 | Q165: 136 | R165: Standard | V165: Half | AM165: HP Package | AN165: Impact Laminated
A166: =IF(OR(ModelNo="0179",ModelNo="0979",ModelNo="9079",ModelNo="8079"),2,"") ->  | B166: 0179 | C166: Operating Sash Height | D166: =Frame_Height-1.625 -> -1.625 | F166: 164 | G166: 3104 | H166: Coatal Impact Picture Window | I166: 0 | J166: 0 | M166: 12 | N166: 12 | O166: 52.5 | P166: 76 | Q166: 128 | R166: Standard | AM166: HP Package | AN166: Impact Laminated
A167: =IF(OR(ModelNo="0179",ModelNo="0979",ModelNo="9079",ModelNo="8079"),3,"") ->  | B167: 0179 | C167: Fixed Sash Width | D167: =TRUNC(((Frame_Width/3)-1.291)*16+0.5)/16 -> -1.25 | F167: 165 | G167: 3109 | H167: Coastal Impact 3 Lite Slider | I167: 0 | J167: 0 | M167: 44.5 | N167: 22 | O167: 110 | P167: 63 | Q167: 173 | R167: Standard (1/3-1/3-1/3) | V167: Half | AM167: HP Package | AN167: Impact Laminated
A168: =IF(OR(ModelNo="0179",ModelNo="0979",ModelNo="9079",ModelNo="8079"),4,"") ->  | B168: 0179 | C168: Fixed Sash Height | D168: =Frame_Height-1.625 -> -1.625 | F168: 166 | G168: i970 | H168: Preservation Bay-Bow Picture Window | I168: 0 | J168: 0 | M168: 13 | N168: 13 | O168: 52 | P168: 78 | Q168: 130 | R168: Standard | AM168: HP Package | AN168: Impact Laminated
A169: =IF(OR(ModelNo="0179",ModelNo="0979",ModelNo="9079",ModelNo="8079"),5,"") ->  | B169: 0179 | C169: Operating Sash Glass Width | D169: =TRUNC(((Frame_Width/3)-4.291)*16+0.5)/16 -> -4.25 | F169: 167 | G169: i971 | H169: Preservation Bay-Bow Single Vent Casement | I169: 0 | J169: 0 | M169: 16 | N169: 19 | O169: 36 | P169: 78 | Q169: 114 | R169: Standard | W169: Full | AM169: HP Package | AN169: Impact Laminated
A170: =IF(OR(ModelNo="0179",ModelNo="0979",ModelNo="9079",ModelNo="8079"),6,"") ->  | B170: 0179 | C170: Operating Sash Glass Height | D170: =Frame_Height-4.625 -> -4.625 | F170: 168 | G170: V100 | H170: Builder Series Gold Series Single Hung | I170: 0.5 | J170: 0.5 | M170: 14 | N170: 25 | O170: 48 | P170: 84 | Q170: 122 | R170: Standard | S170: Custom | V170: Half | AG170: Single Strength (2.5 mm) | AH170: Double Strength (3 mm) | AI170: Triple Strength (5 mm) | AL170: Laminated | AO170: << Select Opening
A171: =IF(OR(ModelNo="0179",ModelNo="0979",ModelNo="9079",ModelNo="8079"),7,"") ->  | B171: 0179 | C171: Fixed Sash Glass Width | D171: =TRUNC(((Frame_Width/3)-4.291)*16+0.5)/16 -> -4.25 | F171: 169 | G171: V101 | H171: Builder Series Gold Series Double Hung | I171: 0.5 | J171: 0.5 | M171: 19 | N171: 28 | O171: 48 | P171: 84 | Q171: 122 | R171: Standard | S171: Custom | V171: Half | W171: Full | AG171: Single Strength (2.5 mm) | AH171: Double Strength (3 mm) | AI171: Triple Strength (5 mm) | AL171: Laminated | AO171: << Select Opening
A172: =IF(OR(ModelNo="0179",ModelNo="0979",ModelNo="9079",ModelNo="8079"),8,"") ->  | B172: 0179 | C172: Fixed Sash Glass Height | D172: =Frame_Height-4.625 -> -4.625 | F172: 170 | G172: V102 | H172: Builder Series Gold Series Single Slider | I172: 0.5 | J172: 0.5 | M172: 26 | N172: 16 | O172: 73 | P172: 60 | Q172: 123 | R172: Standard | V172: Half | AG172: Single Strength (2.5 mm) | AH172: Double Strength (3 mm) | AI172: Triple Strength (5 mm) | AL172: Laminated | AO172: << Select Opening
A173: =IF(OR(ModelNo="0179",ModelNo="0979",ModelNo="9079",ModelNo="8079"),9,"") ->  | B173: 0179 | C173: Screen Width | D173: =TRUNC(((Frame_Width/3)-3.666)*32+0.5)/32 -> -3.625 | F173: 171 | G173: V103 | H173: N.C Gold Series 3 Lite Slider (1/4-1/2-1/4) | I173: 0.5 | J173: 0.5 | M173: 48.5 | N173: 14 | O173: 108 | P173: 60 | Q173: 168 | R173: Standard | V173: Half | AG173: Single Strength (2.5 mm) | AH173: Double Strength (3 mm) | AI173: Triple Strength (5 mm) | AL173: Laminated | AO173: << Select Opening
A174: =IF(OR(ModelNo="0179",ModelNo="0979",ModelNo="9079",ModelNo="8079"),10,"") ->  | B174: 0179 | C174: Screen Height | D174: =Frame_Height-4 -> -4 | F174: 172 | G174: V104 | H174: Builder Series Gold Series Picture Window | I174: 0.5 | J174: 0.5 | M174: 11.5 | N174: 11.5 | O174: 84 | P174: 84 | Q174: 158 | R174: Standard | AH174: Double Strength (3 mm) | AI174: Triple Strength (5 mm) | AL174: Laminated | AO174: << Select Opening
A175: =IF(OR(ModelNo="0179",ModelNo="0979",ModelNo="9079",ModelNo="8079"),11,"") ->  | B175: 0179 | C175: Egress Opening Width (Standard Hinge) | D175: =TRUNC(((Frame_Width/3)-10.916)*16+0.5)/16 -> -10.875 | F175: 173 | G175: V109 | H175: Gold Series 3 Lite Slider (1/3-1/3-1/3) | I175: 0.5 | J175: 0.5 | M175: 34 | N175: 14 | O175: 108 | P175: 60 | Q175: 168 | R175: Standard | V175: Half | AG175: Single Strength (2.5 mm) | AH175: Double Strength (3 mm) | AI175: Triple Strength (5 mm) | AL175: Laminated | AO175: << Select Opening
A176: =IF(OR(ModelNo="0179",ModelNo="0979",ModelNo="9079",ModelNo="8079"),12,"") ->  | B176: 0179 | C176: Egress Opening Height (Standard Hinge) | D176: =Frame_Height-4.375 -> -4.375 | F176: 174 | G176: V114 | H176: Builder Series Gold Series Picture Window | I176: 0.5 | J176: 0.5 | M176: 11.5 | N176: 11.5 | O176: 84 | P176: 84 | Q176: 158 | R176: Standard | AH176: Double Strength (3 mm) | AI176: Triple Strength (5 mm) | AL176: Laminated | AO176: << Select Opening
A177: =IF(OR(ModelNo="0179",ModelNo="0979",ModelNo="9079",ModelNo="8079"),13,"") ->  | B177: 0179 | C177: Egress Opening Area w/Standard Hinge (sq.ft.) | D177: =(D175*D176)/144 -> 0.3304036458 | F177: 175 | G177: V200 | H177: Builder Series Silver Series Single Hung | I177: 0.5 | J177: 0.5 | M177: 14 | N177: 25.5 | O177: 48 | P177: 84 | Q177: 122 | R177: Standard | S177: Custom | V177: Half | AG177: Single Strength (2.5 mm) | AH177: Double Strength (3 mm) | AI177: Triple Strength (5 mm) | AL177: Laminated | AO177: << Select Opening
A178: =IF(OR(ModelNo="0179",ModelNo="0979",ModelNo="9079",ModelNo="8079"),14,"") ->  | B178: 0179 | C178: Egress Opening Width (Egress Hinge) | D178: =IF(D165<22.375,"N/A",TRUNC(((Frame_Width/3)-6.4785)*16+0.5)/16) -> N/A | F178: 176 | G178: V202 | H178: Builder Series Silver Series Single Slider | I178: 0.5 | J178: 0.5 | M178: 23.5 | N178: 15 | O178: 73 | P178: 60 | Q178: 132 | R178: Standard | V178: Half | AG178: Single Strength (2.5 mm) | AH178: Double Strength (3 mm) | AI178: Triple Strength (5 mm) | AL178: Laminated | AO178: << Select Opening
A179: =IF(OR(ModelNo="0179",ModelNo="0979",ModelNo="9079",ModelNo="8079"),15,"") ->  | B179: 0179 | C179: Egress Opening Height (Egress Hinge) | D179: =IF(D165<22.375,"N/A",Frame_Height-4.375) -> N/A | F179: 177 | G179: V203 | H179: Silver Series 3 Lite Slider (1/4-1/2-1/4) | I179: 0.5 | J179: 0.5 | M179: 48 | N179: 15 | O179: 108 | P179: 60 | Q179: 168 | R179: Standard | V179: Half | AG179: Single Strength (2.5 mm) | AH179: Double Strength (3 mm) | AI179: Triple Strength (5 mm) | AL179: Laminated | AO179: << Select Opening
A180: =IF(OR(ModelNo="0179",ModelNo="0979",ModelNo="9079",ModelNo="8079"),16,"") ->  | B180: 0179 | C180: Egress Opening Area w/Egress Hinge (sq.ft.) | D180: =IF(D165<22.375,"N/A",(D178*D179)/144) -> N/A | F180: 178 | G180: V204 | H180: Builder Series Silver Series Picture Window | I180: 0.5 | J180: 0.5 | M180: 11.5 | N180: 11.5 | O180: 84 | P180: 84 | Q180: 158 | R180: Standard | AH180: Double Strength (3 mm) | AI180: Triple Strength (5 mm) | AL180: Laminated | AO180: << Select Opening
A181: =IF(OR(ModelNo="S174",ModelNo="0974",ModelNo="9074",ModelNo="8074"),1,"") ->  | B181: S174 | C181: Operating Sash Width | D181: =(Frame_Width/4)-1.25 -> -1.25 | F181: 179 | G181: V209 | H181: Silver Series 3 Lite Slider (1/3-1/3-1/3) | I181: 0.5 | J181: 0.5 | M181: 39 | N181: 15 | O181: 108 | P181: 60 | Q181: 168 | R181: Standard | V181: Half | AG181: Single Strength (2.5 mm) | AH181: Double Strength (3 mm) | AI181: Triple Strength (5 mm) | AL181: Laminated | AO181: << Select Opening
A182: =IF(OR(ModelNo="S174",ModelNo="0974",ModelNo="9074",ModelNo="8074"),2,"") ->  | B182: S174 | C182: Operating Sash Height | D182: =Frame_Height-1.625 -> -1.625 | F182: 180 | G182: 1700 | H182: New Const. Single Hung | I182: 0.5 | J182: 0.5 | M182: 14.25 | N182: 25 | O182: 52 | P182: =IF(Frame_Width>48,84,96) -> 96 | Q182: 136 | R182: Standard | S182: Custom | V182: Half | Y182: Standard | Z182: HP Package | AG182: Single Strength (2.5 mm) | AH182: Double Strength (3 mm) | AI182: Triple Strength (5 mm) | AL182: Laminated | AO182: << Select Opening
A183: =IF(OR(ModelNo="S174",ModelNo="0974",ModelNo="9074",ModelNo="8074"),3,"") ->  | B183: S174 | C183: Fixed Sash Width | D183: =(Frame_Width/4)-1.25 -> -1.25 | F183: 181 | G183: 1702 | H183: New Const. Single Slider | I183: 0.5 | J183: 0.5 | M183: 23.5 | N183: 14 | O183: 72 | P183: 72 | Q183: 144 | R183: Standard | S183: Custom | V183: Half | Y183: Standard | Z183: HP Package | AG183: Single Strength (2.5 mm) | AH183: Double Strength (3 mm) | AI183: Triple Strength (5 mm) | AL183: Laminated | AO183: << Select Opening
A184: =IF(OR(ModelNo="S174",ModelNo="0974",ModelNo="9074",ModelNo="8074"),4,"") ->  | B184: S174 | C184: Fixed Sash Height | D184: =Frame_Height-1.625 -> -1.625 | F184: 182 | G184: 1703 | H184: New Const. 3 Lite Slider (1/4-1/2-1/4) | I184: 0.5 | J184: 0.5 | M184: 48.5 | N184: 14 | O184: 108 | P184: =IF(Frame_Width>96,60,72) -> 72 | Q184: 168 | R184: Standard | V184: Half | Y184: Standard | Z184: HP Package | AG184: Single Strength (2.5 mm) | AH184: Double Strength (3 mm) | AI184: Triple Strength (5 mm) | AL184: Laminated | AO184: << Select Opening
A185: =IF(OR(ModelNo="S174",ModelNo="0974",ModelNo="9074",ModelNo="8074"),5,"") ->  | B185: S174 | C185: Operating Sash Glass Width | D185: =(Frame_Width/4)-4.25 -> -4.25 | F185: 183 | G185: 1704 | H185: New Const. Picture Window | I185: 0.5 | J185: 0.5 | M185: 11.5 | N185: 11.5 | O185: =IF(Frame_Height>54,84,96) -> 96 | P185: =IF(Frame_Width>54,84,96) -> 96 | Q185: 156 | R185: Standard | AH185: Double Strength (3 mm) | AI185: Triple Strength (5 mm) | AL185: Laminated | AO185: << Select Opening
A186: =IF(OR(ModelNo="S174",ModelNo="0974",ModelNo="9074",ModelNo="8074"),6,"") ->  | B186: S174 | C186: Operating Sash Glass Height | D186: =Frame_Height-4.625 -> -4.625 | F186: 184 | G186: 1709 | H186: New Const. 3 Lite Slider (1/3-1/3-1/3) | I186: 0.5 | J186: 0.5 | M186: 37 | N186: 14 | O186: 108 | P186: =IF(Frame_Width>96,60,72) -> 72 | Q186: 168 | R186: Standard | V186: Half | Y186: Standard | Z186: HP Package | AG186: Single Strength (2.5 mm) | AH186: Double Strength (3 mm) | AI186: Triple Strength (5 mm) | AL186: Laminated | AO186: << Select Opening
A187: =IF(OR(ModelNo="S174",ModelNo="0974",ModelNo="9074",ModelNo="8074"),7,"") ->  | B187: S174 | C187: Fixed Sash Glass Width | D187: =(Frame_Width/4)-4.25 -> -4.25 | F187: 185 | G187: 1720 | H187: New Const. Twin Single Hung | I187: 0.5 | J187: 0.5 | M187: 29 | N187: 25 | O187: 96 | P187: 84 | Q187: 170 | R187: Standard | S187: Custom | V187: Half | Y187: Standard | Z187: HP Package | AG187: Single Strength (2.5 mm) | AH187: Double Strength (3 mm) | AI187: Triple Strength (5 mm) | AL187: Laminated | AO187: << Select Opening
A188: =IF(OR(ModelNo="S174",ModelNo="0974",ModelNo="9074",ModelNo="8074"),8,"") ->  | B188: S174 | C188: Fixed Sash Glass Height | D188: =Frame_Height-4.625 -> -4.625 | F188: 186 | G188: 1730 | H188: New Const. Triple Single Hung | I188: 0.5 | J188: 0.5 | M188: 44 | N188: 25 | O188: 108 | P188: 84 | Q188: 192 | R188: Standard | S188: Custom | V188: Half | Y188: Standard | Z188: HP Package | AG188: Single Strength (2.5 mm) | AH188: Double Strength (3 mm) | AI188: Triple Strength (5 mm) | AL188: Laminated | AO188: << Select Opening
A189: =IF(OR(ModelNo="S174",ModelNo="0974",ModelNo="9074",ModelNo="8074"),9,"") ->  | B189: S174 | C189: Screen Width | D189: =(Frame_Width/4)-3.625 -> -3.625 | F189: 187 | G189: 1900 | H189: New Const. Single Hung | I189: 0.5 | J189: 0.5 | M189: 14.25 | N189: 25 | O189: 52 | P189: =IF(Frame_Width>48,84,96) -> 96 | Q189: 136 | R189: Standard | S189: Custom | V189: Half | Y189: Standard | Z189: HP Package | AG189: Single Strength (2.5 mm) | AH189: Double Strength (3 mm) | AI189: Triple Strength (5 mm) | AL189: Laminated | AO189: << Select Opening
A190: =IF(OR(ModelNo="S174",ModelNo="0974",ModelNo="9074",ModelNo="8074"),10,"") ->  | B190: S174 | C190: Screen Height | D190: =Frame_Height-4 -> -4 | F190: 188 | G190: 1901 | H190: New Const. Double Hung | I190: 0.5 | J190: 0.5 | M190: 16 | N190: 25 | O190: 52 | P190: =IF(Frame_Width>48,76,84) -> 84 | Q190: 136 | R190: Standard | S190: Oriel (2/3 - 1/3) | T190: Cottage (1/3 - 2/3) | U190: Custom | V190: Half | W190: Full | Y190: Standard | Z190: HP Package | AG190: Single Strength (2.5 mm) | AH190: Double Strength (3 mm) | AI190: Triple Strength (5 mm) | AL190: Laminated | AO190: << Select Opening
